{"text_format":"3","workbook":"xlsx","n_sheets":2,"sheets":["EESS - ","Listas"],"not_rendered":{"images":3,"defined_names":2,"comments":1},"read":"whole","date_system":"1900"}

{"sheet":"EESS - ","index":0,"n_rows":3315,"n_cols":18,"rows_kept":3315,"merged":[[1,14,1,17],[2,14,2,17],[3,14,3,17],[7,10,7,11],[7,15,7,16]]}
[]
[{"$nulls":14},"Registro de Inventario de Bienes Patrimoniales"]
[{"$nulls":14},"DADM-FO-043 Versión: 02"]
[{"$nulls":14},"Fecha de aprobación: 5/07/2021"]
[]
[]
[]
[null,"Regional:","8- Cibao Central","EESS:","SERVICIO NACIONAL DE SALUD EDIFICIO 2","",{"$nulls":4},"Fecha de Actualización:",{"$nulls":3},"Trabajado por:"]
[]
["Código","Departamento / Área","Planta / Nivel","Descripción","Marca","Modelo","Serie","Color","Estado","Tipo de Bien","Razón de Adquisición","Fecha de Adquisición","Proveedor","RNC / Cédula","No. de Proceso","No. de Factura","Conduce","Valor de la Factura / Valor Tasado"]
["00851","CONSULTORIO 1","1ER","SET DE DIAGNOSTICO","YUWELL",null,null,"CREMA","Bueno en Uso"]
["00852","CONSULTORIO 1","1er","NEGATOSCOPIO","GRAFCO","INSERT FILM HERE",null,"CREMA","Bueno en Uso"]
["00853","CONSULTORIO 1","1er","ARMARIO","IBKSP","N/A","N/A","GRIS","Bueno en Uso"]
["00854","CONSULTORIO 1","1er","BALANZA","RICE LAKE","RL-MPS",430,"GRIS CON NEGRO","Bueno en Uso"]
["00855","CONSULTORIO 1","1er","CAMILLA TIPO DIVAN","N/A","N/A","N/A","AZUL CON CREMA","Bueno en Uso"]
["00856","CONSULTORIO 1","1er","LAMPARA CUELLO DE GANSO","MCARE","JDML-200","N/A","ACERO INOX.","Bueno en Uso"]
["00857","CONSULTORIO 1","1er","MESA PARA MEDICAR","N/A","N/A","N/A","ACERO INOX.","Bueno en Uso"]
["00858","CONSULTORIO 1","1er","DISPENSADOR ELECTRONICO","N/A","KW-1020",24395,"ACERO INOX.","Bueno en Uso"]
["00859","CONSULTORIO 1","1er","ZAFACON","ROGER","N/A","N/A","GRIS OSCURO","Bueno en Uso"]
["00860","CONSULTORIO 1","1er","AIRE ACONDICIONADO","IMNOVAIR","N/A","N/A","BLANCO","Bueno en Uso"]
["00861","CONSULTORIO 1","1er","ESCRITORIO CON TOPE AMARILLO","N/A","N/A","N/A","N/A","Bueno en Uso"]
["00862","CONSULTORIO 1","1er","SILLA SECRETARIAL","N/A","N/A","N/A","NEGRO CON CREMA","Bueno en Uso"]
["00863","CONSULTORIO 1","1er","SILLA PARA PACIENTES","N/A","N/A","N/A","NEGRA","Bueno en Uso"]
["00864","CONSULTORIO 1","1er","SILLA PARA PACIENTES","N/A","N/A","N/A","NEGRA","Bueno en Uso"]
["00865","CONSULTORIO 1","1er","SILLA PARA PACIENTES","N/A","N/A","N/A","NEGRA","Bueno en Uso"]
["00866","CONSULTORIO 1","1er","ARCHIVO PEQUEÑO 3 GAVETAS","N/A","N/A","N/A","AMARILLO","Bueno en Uso"]
[]
["00867","CONSULTORIO 2 GENERAL","1er","SET DE DIAGNOSTICO","YUWELL","N/A","N/A","CREMA","Bueno en Uso"]
["00868","CONSULTORIO 2 GENERAL","1er","NEGATOSCOPIO","GRAFCO","INSERT FILM HERE","N/A","CREMA","Bueno en Uso"]
["00869","CONSULTORIO 2 GENERAL","1er","BALANZA","RICE LAKE","RL-MPS",15091800197,"GRIS CON NEGRO","Bueno en Uso"]
["00870","CONSULTORIO 2 GENERAL","1er","ARMARIO","IBKSP","N/A","N/A","GRIS","Bueno en Uso"]
["00871","CONSULTORIO 2 GENERAL","1er","CAMILLA TIPO DIVAN","N/A","N/A","N/A","AZUL CON CREMA","Bueno en Uso"]
["00872","CONSULTORIO 2 GENERAL","1er","LAMPARA CUELLO DE GANSO","MCARE","JDML-200","N/A","ACERO INOX.","Bueno en Uso"]
["00873","CONSULTORIO 2 GENERAL","1er","MESA PARA MEDICAR","N/A","N/A","N/A","ACERO INOX.","Bueno en Uso"]
["00874","CONSULTORIO 2 GENERAL","1er","ESCALINATA 1 PELDAÑO","N/A","N/A","N/A","ACERO INOX.","Bueno en Uso"]
["00875","CONSULTORIO 2 GENERAL","1er","DISPENSADOR ELECTRONICO","N/A","KW-1020",24395,"ACERO INOX.","Bueno en Uso"]
["00876","CONSULTORIO 2 GENERAL","1er","ESCRITORIO CON TOPE AMARILLO","N/A","N/A","N/A",null,"Bueno en Uso"]
["00877","CONSULTORIO 2 GENERAL","1er","AIRE ACONDICIONADO","IMNOVAIR","N/A","N/A","BLANCO","Bueno en Uso"]
["00878","CONSULTORIO 2 GENERAL","1er","SILLA SECRETARIAL","N/A","N/A","N/A","NEGRO CON BLANCO","Bueno en Uso"]
["00879","CONSULTORIO 2 GENERAL","1er","ARCHIVO PEQUEÑO 3 GAVETAS","N/A","N/A","N/A","AMARILLO","Bueno en Uso"]
["00880","CONSULTORIO 2 GENERAL","1er","SILLA PARA PACIENTES","N/A","N/A","N/A","NEGRA","Bueno en Uso"]
[]
["00881","CONSULTORIO 2 CIRUGIA GENERAL","1er","SET DE DIAGNOSTICO","YUWELL","N/A","N/A","CREMA","Bueno en Uso"]
["00882","CONSULTORIO 2 CIRUGIA GENERAL","1er","NEGATOSCOPIO","GRAFCO","INSERT FILM HERE","N/A","CREMA","Bueno en Uso"]
["00883","CONSULTORIO 2 CIRUGIA GENERAL","1er","ARMARIO","IBKSP","N/A","N/A","GRIS OSCURO","Bueno en Uso"]
["00884","CONSULTORIO 2 CIRUGIA GENERAL","1er","BALANZA","RICE LAKE","RL-MPS",6151800419,"GRIS CON NEGRO","Bueno en Uso"]
["00885","CONSULTORIO 2 CIRUGIA GENERAL","1er","CAMILLA TIPO DIVAN","N/A","N/A","N/A","AZUL CON CREMA","Bueno en Uso"]
["00886","CONSULTORIO 2 CIRUGIA GENERAL","1er","MESA PARA MEDICAR","N/A","N/A","N/A","ACERO INOX.","Bueno en Uso"]
["00887","CONSULTORIO 2 CIRUGIA GENERAL","1er","DISPENSADOR ELECTRONICO","N/A","N/A",24395,"ACERO INOX.","Bueno en Uso"]
["00888","CONSULTORIO 2 CIRUGIA GENERAL","1er","ESCALINATA 1 PELDAÑO","N/A","N/A","N/A","ACERO INOX.","Bueno en Uso"]
["00889","CONSULTORIO 2 CIRUGIA GENERAL","1er","LAMPARA CUELLO DE GANSO","MCARE","JDML-200","N/A","ACERO INOX.","Bueno en Uso"]
["00890","CONSULTORIO 2 CIRUGIA GENERAL","1er","ARCHIVO PEQUEÑO 3 GAVETAS","N/A","N/A","N/A","AMARILLO","Bueno en Uso"]
["00891","CONSULTORIO 2 CIRUGIA GENERAL","1er","ESCRITORIO CON TOPE AMARILLO","N/A","N/A","N/A","N/A","Bueno en Uso"]
["00892","CONSULTORIO 2 CIRUGIA GENERAL","1er","SILLA SECRETARIAL","N/A","N/A","N/A","NEGRO CON CREMA","Bueno en Uso"]
["00893","CONSULTORIO 2 CIRUGIA GENERAL","1er","SILLA PARA PACIENTES","N/A","N/A","N/A","NEGRA","Bueno en Uso"]
["00894","CONSULTORIO 2 CIRUGIA GENERAL","1er","SILLA PARA PACIENTES","N/A","N/A","N/A","NEGRA","Bueno en Uso"]
["00895","CONSULTORIO 2 CIRUGIA GENERAL","1er","AIRE ACONDICIONADO","IMNOVAIR","N/A","N/A","BLANCO","Bueno en Uso"]
[]
["00896","CONSULTORIO 3","1er","SET DE DIAGNOSTICO","WELL CHALLYN","N/A","N/A","NEGRO CON CREMA","Bueno en Uso"]
["00897","CONSULTORIO 3","1er","NEGATOSCOPIO","HOSPITECH","N/A","N/A","GRIS CON AZUL","Bueno en Uso"]
["00898","CONSULTORIO 3","1er","ARMARIO ","INKSP","N/A","N/A","CREMA","Bueno en Uso"]
["00899","CONSULTORIO 3","1er","CAMILLA TIPO DIVAN","N/A","N/A","N/A","AZUL CON CREMA","Bueno en Uso"]
["00900","CONSULTORIO 3","1er","ESCALINATA 1 PELDAÑO","N/A","N/A","N/A","ACERO INOX.","Bueno en Uso"]
["00901","CONSULTORIO 3","1er","LAMPARA CUELLO DE GANSO",{"$nulls":3},"BLANCO","Bueno en Uso"]
["00902","CONSULTORIO 3","1er","MESA PARA MEDICAR","N/A","N/A","N/A","ACERO INOX.","Bueno en Uso"]
["00903","CONSULTORIO 3","1er","BALANZA","RICE LAKE","RL-MPS",15091800467,"GRIS CON NEGRO","Bueno en Uso"]
["00904","CONSULTORIO 3","1er","DISPENSADOR ELECTRONICO","N/A","N/A","N/A","ACERO INOX.","Bueno en Uso"]
["00905","CONSULTORIO 3","1er","AIRE ACONDICIONADO","IMNOVAIR","N/A","N/A","BLANCO","Bueno en Uso"]
["00906","CONSULTORIO 3","1er","ESCRITORIO CON TOPE AMARILLO","N/A","N/A","N/A","N/A","Bueno en Uso"]
["00907","CONSULTORIO 3","1er","SILLA SECRETARIAL","N/A","N/A","N/A","NEGRO CON CREMA","Bueno en Uso"]
["00908","CONSULTORIO 3","1er","SILLA PARA PACIENTES","N/A","N/A","N/A","NEGRA","Bueno en Uso"]
["00909","CONSULTORIO 3","1er","SILLA PARA PACIENTES","N/A","N/A","N/A","NEGRA","Bueno en Uso"]
["00910","CONSULTORIO 3","1er","TABURETE GIRATORIO ","N/A","N/A","N/A","ACERO INOX.","Bueno en Uso"]
["00911","CONSULTORIO 3","1er","TABURETE GIRATORIO ","N/A","N/A","N/A","NIQUELADO","Bueno en Uso"]
["00912","CONSULTORIO 3","1er","ZAFACON","N/A","N/A","N/A","GRIS","Bueno en Uso"]
["00913","CONSULTORIO 3","1er","ARCHIVO PEQUEÑO 3 GAVETAS","N/A","N/A","N/A","AMARILLO","Bueno en Uso"]
[]
["00914","CONSULTORIO 4","1er","SET DE DIAGNOSTICO","ELIEZER","N/A","N/A","BLANCO","Bueno en Uso"]
["00915","CONSULTORIO 4","1er","NEGATOSCOPIO","HOSPITECH","N/A","N/A","GRIS OSCURO","Bueno en Uso"]
["00916","CONSULTORIO 4","1er","ARMARIO","IBKSP","N/A","N/A","CREMA","Bueno en Uso"]
["00917","CONSULTORIO 4","1er","LAMPARA CUELLO DE GANSO","N/A","X DO1A LED","N/A","BLANCO","Bueno en Uso"]
["00918","CONSULTORIO 4","1er","MESA PARA MEDICAR","N/A","N/A","N/A","ACERO INOX.","Bueno en Uso"]
["00919","CONSULTORIO 4","1er","CAMILLA TIPO DIVAN","N/A","N/A","N/A","ACERO INOX.","Bueno en Uso"]
["00920","CONSULTORIO 4","1er","BALANZA ","RICE LAKE","RL-MPS",15091800283,"GRIS CON NEGRO","Bueno en Uso"]
["00921","CONSULTORIO 4","1er","DISPENSADOR ELECTRONICO","N/A","KW-1020","N/A","ACERO INOX.","Bueno en Uso"]
["00922","CONSULTORIO 4","1er","ESCALINATA 1 PELDAÑO","N/A","N/A","N/A","ACERO INOX.","Bueno en Uso"]
["00923","CONSULTORIO 4","1er","ESCRITORIO CON TOPE AMARILLO","N/A","N/A","N/A","N/A","Bueno en Uso"]
["00924","CONSULTORIO 4","1er","TABURETE GIRATORIO ","N/A","N/A","N/A","ACERO INOX.","Bueno en Uso"]
["00925","CONSULTORIO 4","1er","ARCHIVO PEQUEÑO 3 GAVETAS","N/A","N/A","N/A","ACERO INOX.","Bueno en Uso"]
["00926","CONSULTORIO 4","1er","SILLA PARA PACIENTES","N/A","N/A","N/A","NEGRA","Bueno en Uso"]
["00927","CONSULTORIO 4","1er","SILLA PARA PACIENTES","N/A","N/A","N/A","NEGRA","Bueno en Uso"]
["00928","CONSULTORIO 4","1er","SILLA SECRETARIAL","N/A","N/A","N/A","NEGRO CON CREMA","Bueno en Uso"]
["00929","CONSULTORIO 4","1er","COMPUTADORA","DELL","ARTIPEX 7010","168917-222","NEGRO","Bueno en Uso"]
[]
["00931","CONSULTORIO 4","1er","MONITOR","N/A","W2081D","TS001354","NEGRO","Bueno en Uso"]
["00932","CONSULTORIO 4","1er","ZAFACON","N/A","N/A","N/A","GRIS ","Bueno en Uso"]
["00933","CONSULTORIO 5","1er","SET DE DIAGNOSTICO","YUWELL","N/A","N/A","GRIS","Bueno en Uso"]
["00934","CONSULTORIO 5","1er","NEGATOSCOPIO","HOSPITECH","N/A","N/A","GRIS","Bueno en Uso"]
["00935","CONSULTORIO 5","1er","BALANZA","RICE LAKE","RL-MPS","N/A","NEGRO CON GRIS","Bueno en Uso"]
["00936","CONSULTORIO 5","1er","ARMARIO","N/A","N/A","N/A","CREMA","Bueno en Uso"]
["00937","CONSULTORIO 5","1er","MESA PARA MEDICAR","N/A","N/A","N/A","ACERO INOX.","Bueno en Uso"]
["00938","CONSULTORIO 5","1er","ESCALINATA 1 PELDAÑO","N/A","N/A","N/A","ACERO INOX.","Bueno en Uso"]
["00939","CONSULTORIO 5","1er","LAMPARA CUELLO DE GANSO",{"$nulls":3},"BLANCO","Bueno en Uso"]
["00940","CONSULTORIO 5","1er","ZAFACON","N/A","N/A","N/A","GRIS","Bueno en Uso"]
["00941","CONSULTORIO 5","1er","DISPENSADOR ELECTRONICO","N/A","KW-1020","N/A","ACERO INOX.","Bueno en Uso"]
["00942","CONSULTORIO 5","1er","ESCRITORIO CON TOPE AMARILLO","N/A","N/A","N/A","N/A","Bueno en Uso"]
["00943","CONSULTORIO 5","1er","SILLA SECRETARIAL","N/A","N/A","N/A","NEGRO CON CREMA","Bueno en Uso"]
["00944","CONSULTORIO 5","1er","ARCHIVO PEQUEÑO 3 GAVETAS","N/A","N/A","N/A","AMARILLO","Bueno en Uso"]
["00945","CONSULTORIO 5","1er","SILLA PARA PACIENTES","N/A","N/A","N/A","NEGRO","Bueno en Uso"]
["00946","CONSULTORIO 5","1er","SILLA PARA PACIENTES","N/A","N/A","N/A","NEGRO","Bueno en Uso"]
["00947","CONSULTORIO 5","1er","COMPUTADORA","DELL","ARTIPEX 7010","N/A","NEGRO","Bueno en Uso"]
["00948","CONSULTORIO 5","1er","MONITOR","DELL","N/A","T112403","NEGRO","Bueno en Uso"]
["00949","CONSULTORIO 5","1er","AIRE ACONDICIONADO","IMNOVAIR","N/A","N/A","BLANCO","Bueno en Uso"]
[]
["00950","CONSULTORIO 6","1er","SET DE DIAGNOSTICO","ELIEZER","N/A","N/A","BLANCO","Bueno en Uso"]
["00951","CONSULTORIO 6","1er","NEGATOSCOPIO","N/A","N/A","N/A","GRIS","Bueno en Uso"]
["00952","CONSULTORIO 6","1er","ARMARIO","IBKSP","N/A","N/A","CREMA","Bueno en Uso"]
["00953","CONSULTORIO 6","1er","ARMARIO","IBKSP","N/A","N/A","CREMA","Bueno en Uso"]
["00954","CONSULTORIO 6","1er","CAMILLA TIPO DIVAN","N/A","N/A","N/A","CREMA CON AZUL","Bueno en Uso"]
["00955","CONSULTORIO 6","1er","ESCALINATA 1 PELDAÑO","N/A","N/A","N/A","ACERO INOX.","Bueno en Uso"]
["00956","CONSULTORIO 6","1er","LAMPARA CUELLO DE GANSO","N/A","N/A","N/A","ACERO INOX.","Bueno en Uso"]
["00957","CONSULTORIO 6","1er","BALANZA","RICE LAKE","RL-MPS",1115160043,"GRIS CON NEGRO","Bueno en Uso"]
["00958","CONSULTORIO 6","1er","DISPENSADOR ELECTRONICO","N/A","N/A","N/A","ACERO INOX.","Bueno en Uso"]
["00959","CONSULTORIO  6","1er","ESCRITORIO CON TOPE AMARILLO","N/A","N/A","N/A","N/A","Bueno en Uso"]
["00960","CONSULTORIO 6","1er","TABURETE GIRATORIO ","N/A","N/A","N/A","N/A","Bueno en Uso"]
["00961","CONSULTORIO 6","1er","MESA PARA MEDICAR","N/A","N/A","N/A","ACERO INOX.","Bueno en Uso"]
["00962","CONSULTORIO 6","1er","ARCHIVO PEQUEÑO 3 GAVETAS","N/A","N/A","N/A","AMARILLO","Bueno en Uso"]
["00963","CONSULTORIO 6","1er","SILLA SECRETARIAL","N/A","N/A","N/A","NEGRA","Bueno en Uso"]
["00964","CONSULTORIO 6","1er","IMPRESORA","CANO","F166400","NCSA226702","CREMA","Bueno en Uso"]
["00965","CONSULTORIO 6","1er","MONITOR","DELL","N/A","N/A","NEGRO","Bueno en Uso"]
["00966","CONSULTORIO 6","1er","CPU","COMPA","N/A","00916-14989","NEGRO","Bueno en Uso"]
["00967","CONSULTORIO 6","1er","SILLA PARA PACIENTES","N/A","N/A","N/A","NEGRO","Bueno en Uso"]
["00968","CONSULTORIO 6","1er","SILLA PARA PACIENTES","N/A","N/A","N/A","NEGRO","Bueno en Uso"]
["00969","CONSULTORIO 6","1er","ZAFACON","ROGER","N/A","N/A","GRIS OSCURO","Bueno en Uso"]
["00970","CONSULTORIO 6","1er","AIRE ACONDICIONADO","IMNOVAIR","N/A","N/A","BLANCO","Bueno en Uso"]
["00971","CONSULTORIO 6","1er","ZAFACON","N/A","N/A","N/A","GRIS","Bueno en Uso"]
[]
["00972","CONSULTORIO 7","1er","CPU","HP","PAVILION P6000","4CW2604Y","NEGRO","Bueno en Uso"]
["00973","CONSUTORIO 7","1er","MONITOR","HP","HP11940P","CNP71NTJB","NEGRO","Bueno en Uso"]
["00974","CONSULTORIO 7","1er","ESCRITORIO CON TOPE AMARILLO","N/A","N/A","N/A","N/A","Bueno en Uso"]
["00975","CONSULTORIO 7","1er","ARCHIVO PEQUEÑO 3 GAVETAS","N/A","N/A","N/A",null,"Bueno en Uso"]
["00976","CONSULTORIO 7","1er","MESA PEQUEÑA","N/A","N/A","N/A","MADERA","Bueno en Uso"]
["00977","CONSULTORIO 7","1er","SILLA SECRETARIAL","N/A","N/A","N/A","ACERO INOX.","Bueno en Uso"]
["00979","CONSULTORIO 7","1er","SILLA PARA PACIENTES","N/A","N/A","N/A","NEGRO CON GRIS","Bueno en Uso"]
["00980","CONSULTORIO 7","1er","SILLA PARA PACIENTES","N/A","N/A","N/A","NEGRO CON GRIS","Bueno en Uso"]
["00981","CONSULTORIO 7","1er","SET DE DIAGNOSTICO","ELIEZER","N/A","N/A","BLANCO","Bueno en Uso"]
["00982","CONSULTORIO 7","1er","NEGATOSCOPIO","HOSPITECH","N/A","N/A","GRIS","Bueno en Uso"]
["00983","CONSULTORIO 7","1er","ARMARIO","IBKSP","N/A","N/A","CREMA","Bueno en Uso"]
["00984","COSULTORIO 7","1er","MESA PARA MEDICAR","N/A","N/A","N/A","ACERO INOX.","Bueno en Uso"]
["00985","COSULTORIO 7","1er","CAMILLA TIPO DIVAN","N/A","N/A","N/A","AZUL","Bueno en Uso"]
["00986","COSULTORIO 7","1er","ESCALINATA 1 PELDAÑO","N/A","N/A","N/A","ACERO INOX.","Bueno en Uso"]
["00987","COSULTORIO 7","1er","BALANZA","RICE LAKE","RL-MPS",11151600323,"GRIS CON NEGRO","Bueno en Uso"]
["00988","COSULTORIO 7","1er","DISPENSADOR ELECTRONICO","N/A","CW-1020","N/A","ACERO INOX.","Bueno en Uso"]
["00989","COSULTORIO 7","1er","LAMPARA CUELLO DE GANSO","N/A","N/A","N/A","BLANCO","Bueno en Uso"]
["00990","COSULTORIO 7","1er","ZAFACON","N/A","N/A","N/A","GRIS","Bueno en Uso"]
["00991","COSULTORIO 7","1er","AIRE ACONDICIONADO","INNOVAIR","N/A","N/A","BLANCO","Bueno en Uso"]
[]
["00992","COSULTORIO 8","1er","SET DE DIAGNOSTOCO","ELIEZER","N/A","N/A","BLANCO","Bueno en Uso"]
["00993","COSULTORIO 8","1er","NEGATOSCOPIO","GRAFCO","N/A","N/A","GRIS","Bueno en Uso"]
["00994","COSULTORIO 8","1er","ARMARIO","IBKSP","N/A","N/A","CREMA","Bueno en Uso"]
["00995","COSULTORIO 8","1er","BALANZA","RICE LAKE","RL-MPS",15091800451,"GRIS CON NEGRO","Bueno en Uso"]
["00996","COSULTORIO 8","1er","MESA PARA MEDICAR","N/A","N/A","N/A","ACERO NILADO","Bueno en Uso"]
["00997","CONSUTORIO 8","1er","LAMPARA CUELLO DE GANSO","YDO1ALECD","N/A","N/A","BLANCO","Bueno en Uso"]
["00998","CONSUTORIO 8","1er","ESCALINATA 1 PELDAÑO","N/A","N/A","N/A","ACERO NILADO","Bueno en Uso"]
["00999","CONSUTORIO 8","1er","CAMILLA TIPO DIVAN","N/A","N/A","N/A","AZUL","Bueno en Uso"]
["01000","CONSUTORIO 8","1er","DISPENSADOR ELECTRONICO","N/A","N/A","N/A","BLANCO","Bueno en Uso"]
["01001","CONSUTORIO 8","1er","AIRE ACONDICIONADO","INNOVAIR","N/A","N/A","GRIS OSCURO","Bueno en Uso"]
["01002","CONSUTORIO 8","1er","TELEFONO","CISCO","N/A","W2P212506VJ","N/A","Bueno en Uso"]
["01003","CONSUTORIO 8","1er","ESCRITORIO CON TOPE AMARILLO","N/A","N/A","N/A",null,"Bueno en Uso"]
["01004","CONSUTORIO 8","1er","ARCHIVO PEQUEÑO 3 GAVETAS","N/A","N/A","N/A","MADERA","Bueno en Uso"]
["01005","CONSUTORIO 8","1er","SILLA DE SECRETARIAL","N/A","N/A","N/A","CREMA CON NEGRO","Bueno en Uso"]
["01006","CONSUTORIO 8","1er","TABURETE ","N/A","N/A","N/A","NIQUELADO NEGRO","Bueno en Uso"]
["01007","CONSUTORIO 8","1er","SILLA DE PACIENTE","N/A","N/A","N/A","NEGRO CON GRIS","Bueno en Uso"]
["01008","CONSUTORIO 8","1er","SILLA DE PACIENTE","N/A","N/A","N/A","NEGRO CON GRIS","Bueno en Uso"]
["01009","CONSUTORIO 8","1er","MONITOR","DELL","N/A","N/A","NEGRO","Bueno en Uso"]
["01010","CONSUTORIO 8","1er","CPU","CNOPK2566480","N/A","070257-13",null,"Bueno en Uso"]
[]
["10011","CONSUTORIO 9","1er","SET DE DIAGNOSTICO","ELIEZER","N/A","N/A","BLANCO","Bueno en Uso"]
["10012","CONSUTORIO 9","1er","NEGATOSCOPIO","GRAFCO","N/A","N/A","GRIS","Bueno en Uso"]
["10013","CONSUTORIO 9","1er","ARMARIO","IBKSP","N/A","N/A","GRIS","Bueno en Uso"]
["10014","CONSUTORIO 9","1er","BALANZA","RICE LAKE","N/A","N/A","GRIS CON NEGRO","Bueno en Uso"]
["10015","CONSUTORIO 9","1er","LAMPARA CUELLO DE GANSO","N/A","N/A","N/A","BLANCO","Bueno en Uso"]
["10016","CONSUTORIO 9","1er","DISPENSADOR ELECTRONICO","N/A","CW-1020","N/A","ACERO INOX.","Bueno en Uso"]
["10017","CONSUTORIO 9","1er","MESA PARA MEDICAR","N/A","N/A","N/A","ACERO INOX.","Bueno en Uso"]
["10018","CONSUTORIO 9","1er","ESCALINATA 1 PELDAÑO","N/A","N/A","N/A","ACERO INOX.","Bueno en Uso"]
["10019","CONSUTORIO 9","1er","CAMILLA TIPO DIVAN","N/A","N/A","N/A","AZUL CON CREMA","Bueno en Uso"]
["10020","CONSUTORIO 9","1er","SILLA PARA PACIENTES","N/A","N/A","N/A","GRIS CON NEGRO","Bueno en Uso"]
["10021","CONSUTORIO 9","1er","SILLA PARA PACIENTES","N/A","N/A","N/A","GRIS ON NEGRO","Bueno en Uso"]
["10022","CONSUTORIO 9","1er","ESCRITORIO TOPE MELAMINA","N/A","N/A","N/A","BLANCO","Bueno en Uso"]
["10023","CONSUTORIO 9","1er","SILLA SECRETARIAL","N/A","N/A","N/A","NEGRO CON GRIS","Bueno en Uso"]
["10024","CONSUTORIO 9","1er","TABURETE GIRATORIO ","N/A","N/A","N/A","NEGRO DE ACERO","Bueno en Uso"]
["10025","CONSUTORIO 9","1er","TABURETE GIRATORIO ","N/A","N/A","N/A","NRGRO DE ACERO","Bueno en Uso"]
[]
["10027","CONSUTORIO 10","1er","ZAFACON","N/A","N/A","N/A","NEGRO","Bueno en Uso"]
["10028","CONSUTORIO 10","1er","AIRE ACONDICIONADO","INNOVAIR","N/A","N/A","BLANCO","Bueno en Uso"]
["10029","CONSUTORIO 10","1er","NEGATOSCOPIO","GRAFCO","N/A","N/A","GRIS","Bueno en Uso"]
["10030","CONSUTORIO 10","1er","SET DE DIAGNOSTICO","ELIEZER","N/A","N/A","BLANCO","Bueno en Uso"]
["10031","CONSUTORIO 10","1er","ARMARIO","IBKSP","N/A","N/A","GRIS","Bueno en Uso"]
["10032","CONSUTORIO 10","1er","MESA PARA MEDICAR","N/A","N/A","N/A","ACERO INOX.","Bueno en Uso"]
["10033","CONSUTORIO 10","1er","BALANZA","RICE LAKE","RL-MPS",6151800276,"GRIS CON NEGRO","Bueno en Uso"]
["10034","CONSUTORIO 10","1er","LAMPARA CUELLO DE GANSO","N/A","N/A","N/A","BLANCO","Bueno en Uso"]
["10035","CONSUTORIO 10","1er","CAMILLA TIPO DIVAN","N/A","N/A","N/A","AZUL","Bueno en Uso"]
["10036","CONSUTORIO 10","1er","DISPENSADOR ELECTRONICO","CW1020","N/A","N/A","ACERO INOX.","Bueno en Uso"]
["10037","CONSUTORIO 10","1er","ESCRITORIO TOPE MELAMINA","N/A","N/A","N/A","AMARILLO","Bueno en Uso"]
["10038","CONSUTORIO 10","1er","SILLA SECRETARIAL","N/A","N/A","N/A","GRIS CON NEGRO","Bueno en Uso"]
["10039","CONSUTORIO 10","1er","ARCHIVO PEQUEÑO 3 GAVETAS","N/A","N/A","N/A","MADERA","Bueno en Uso"]
["10040","CONSUTORIO 10","1er","SILLA PARA PACIENTES","N/A","N/A","N/A","NEGRA CON GRIS","Bueno en Uso"]
["10041","CONSUTORIO 10","1er","SILLA PARA PACIENTES","N/A","N/A","N/A","NEGRA CO GRIS","Bueno en Uso"]
["10042","CONSUTORIO 10","1er","ZAFACON","N/A","N/A","N/A","GRIS","Bueno en Uso"]
["10043","CONSUTORIO 10","1er","AIRE ACONDICIONADO","N/A","N/A","N/A","BLANCO","Bueno en Uso"]
[]
["10045","CONSULTORIO 11","1er","SET DE DIAGNOSTICO","ELIEZER","N/A","N/A","BLANCO","Bueno en Uso"]
["10047","CONSULTORIO 11","1er","NEGATOSCOPIO","GRAFCO","N/A","N/A","GRIS","Bueno en Uso"]
["10048","CONSULTORIO 11","1er","ARMARIO","IBKSP","N/A","N/A","GRIS","Bueno en Uso"]
["10049","CONSULTORIO 11","1er","BALANZA","RICE LAKE","N/A","N/A","GRIS CON NEGRO","Bueno en Uso"]
["10050","CONSULTORIO 11","1er","MESA DE MEDICAR","N/A","N/A","N/A","ACERO INOX.","Bueno en Uso"]
["10051","CONSULTORIO 11","1er","LAMPARA CUELLO DE GANSO","YDO1ALECD","N/A","N/A","BLANCO","Bueno en Uso"]
["10052","CONSULTORIO 11","1er","CAMILLA TIPO DIVAN","N/A","N/A","N/A","AZUL","Bueno en Uso"]
["10053","CONSULTORIO 11","1er","ESCALINATA 1 PELDAÑO","N/A","N/A","N/A","ACERO INOX.","Bueno en Uso"]
["10054","CONSULTORIO 11","1er","SILA DE RUEDAS","N/A","N/A","N/A","AZUL CON NEGRO","Bueno en Uso"]
["10055","CONSULTORIO 11","1er","ESCRITORIO CON TOPE AMARILLO","N/A","N/A","N/A","N/A","Bueno en Uso"]
["10056","CONSULTORIO 11","1er","SILLA SECRETARIAL","N/A","N/A","N/A","BLANCO CON NEGRO","Bueno en Uso"]
["10057","CONSULTORIO 11","1er","ARCHIVO PEQUEÑO 3 GAVETAS","N/A","N/A","N/A","AMARILLO","Bueno en Uso"]
["10058","CONSULTORIO 11","1er","SILLA PARA PACIENTES","N/A","N/A","N/A","AZUL CON GRIS","Bueno en Uso"]
["10059","CONSULTORIO 11","1er","AIRE ACONDICIONADO","INNOVAIR","N/A","N/A","BLANCO","Bueno en Uso"]
["10060","CONSULTORIO 11","1er","DISPENSADOR ELECTRONICO","N/A","N/A","N/A","ACERO INOX.","Bueno en Uso"]
[]
["10061","CONSULTORIO 12","1er","ZAFACON","N/A","N/A","N/A","GRIS","Bueno en Uso"]
["10062","CONSULTORIO 12","1er","SET DE DIAGNOSTICO","WELL CHALLYN","N/A","N/A","BLANCO","Bueno en Uso"]
["10063","CONSULTORIO 12","1er","ESFIGMOMANOMETRO","WELL CHALLYN","N/A","N/A","BLANCO","Bueno en Uso"]
["10064","CONSULTORIO 12","1er","ARMARIO","IBKSP","N/A","N/A","GRIS","Bueno en Uso"]
["10065","CONSULTORIO 12","1er","BALANZA","RICE LAKE","RL-MPS","N/A","GRIS CON NEGRO","Bueno en Uso"]
["10066","CONSULTORIO 12","1er","LAMPARA CUELLO DE GANSO","N/A","N/A","N/A","BLANCO","Bueno en Uso"]
["10067","CONSULTORIO 12","1er","ARCHIVO PEQUEÑO 3 GAVETAS","N/A","N/A","N/A","GRIS","Bueno en Uso"]
["10068","CONSULTORIO 12","1er","NEGATOSCOPIO","GRAFCO","N/A","N/A","GRIS","Bueno en Uso"]
["10069","CONSULTORIO 12","1er","DISPENSADOR ELECTRONICO","N/A","N/A","N/A","ACERO INOX.","Bueno en Uso"]
["10070","CONSULTORIO 12","1er","MESA PARA MEDICAR","N/A","N/A","N/A","ACERO INOX.","Bueno en Uso"]
["10071","CONSULTORIO 12","1er","CAMILLA TIPO DIVAN","N/A","N/A","N/A","AZUL CON CREMA","Bueno en Uso"]
["10072","CONSULTORIO 12","1er","DISPENSADOR ","N/A","N/A","N/A","GRIS","Bueno en Uso"]
["10073","CONSULTORIO 12","1er","ZAFACON","N/A","N/A","N/A","NEGRO","Bueno en Uso"]
["10074","CONSULTORIO 12","1er","SILLA SECRETARIAL","N/A","N/A","N/A","NEGRA CON GRIS","Bueno en Uso"]
["10075","CONSULTORIO 12","1er","ESCRITORIO CON TOPE AMARILLO","N/A","N/A","N/A","N/A","Bueno en Uso"]
["10076","CONSULTORIO 12","1er","SILLA PARA PACIENTES","N/A","N/A","N/A","NEGRA","Bueno en Uso"]
["10077","CONSULTORIO 12","1er","SILLA PARA PACIENTES","N/A","N/A","N/A","NEGRA","Bueno en Uso"]
["10078","CONSULTORIO 12","1er","ARCHIVO PEQUEÑO 3 GAVETAS","N/A","N/A","N/A","MADERA","Bueno en Uso"]
["10079","CONSULTORIO 12","1er","TABURETE GIRATORIO ","N/A","N/A","N/A","NIQUELADO","Bueno en Uso"]
["10080","CONSULTORIO 12","1er","AIRE ACONDICIONADO","N/A","N/A","N/A","BLANCO","Bueno en Uso"]
[]
["01080","CONSULTORIO 13","1er","SET DE DIAGNOSTICO","WELL CHALLYN","N/A","N/A","BLANCO","Bueno en Uso"]
["01081","CONSULTORIO 13","1er","ESFIGMOMANOMETRO","WELL CHALLYN","N/A",18015114635,"BLANCO CON GRIS","Bueno en Uso"]
["01082","CONSULTORIO 13","1er","NEGATOSCOPIO","GRAFCO","N/A","N/A","GRIS","Bueno en Uso"]
["01083","CONSULTORIO 13","1er","ARMARIO","IBKSP","N/A","N/A","GRIS","Bueno en Uso"]
["01084","CONSULTORIO 13","1er","CAMILLA TIPO DIVAN","DIVAN","N/A","N/A","AZUL CON BLANCO ","Bueno en Uso"]
["01085","CONSULTORIO 13","1er","MESA PARA MEDICAR","N/A","N/A","N/A","ACERO INOX.","Bueno en Uso"]
["01086","CONSULTORIO 13","1er","NEVERA EJECUTIVA ","MIDEA","H5-160R",210067,"BLANCO","Bueno en Uso"]
["01087","CONSULTORIO 13","1er","DISPENSADOR ELECTRONICO","N/A","KW120","N/A","ACERO INOX.","Bueno en Uso"]
["01088","CONSULTORIO 13","1er","LAMPARA CUELLO DE GANSO","N/A","N/A","N/A","BLANCO","Bueno en Uso"]
["01089","CONSULTORIO 13","1er","ESCALINATA 1 PELDAÑO","N/A","N/A","N/A","ACERO INOX.","Bueno en Uso"]
["01090","CONSULTORIO 13","1er","BALANZA","RICE LAKE","RL-MPS",15091800289,"BLANCO CON NEGRO","Bueno en Uso"]
["01091","CONSULTORIO 13","1er","ZAFACON","ROGER","N/A","N/A","GRIS","Bueno en Uso"]
["01092","CONSULTORIO 13","1er","ESCRITORIO CON TOPE EN MELAMINA","N/A","N/A","N/A","MADERA","Bueno en Uso"]
["01093","CONSULTORIO 13","1er","TABURETE GIRATORIO ","N/A","N/A","N/A","NIQUELADO","Bueno en Uso"]
["01094","CONSULTORIO 13","1er","SILLA SECRETARIAL","N/A","N/A","N/A","CREMA","Bueno en Uso"]
["01095","CONSULTORIO 13","1er","SILLA PARA PACIENTES","N/A","N/A","N/A","VERDE","Bueno en Uso"]
["01096","CONSULTORIO 13","1er","SILLA PARA PACIENTES","N/A","N/A","N/A","NEGRO","Bueno en Uso"]
["01097","CONSULTORIO 13","1er","SILLA PARA PACIENTES","N/A","N/A","N/A","NEGRO","Bueno en Uso"]
["01098","CONSULTORIO 13","1er","IMPRESORA","HP","HP LASER JET P1102 W","VND3H25057","NEGRO","Bueno en Uso"]
["01099","CONSULTORIO 13","1er","ARCHIVO PEQUEÑO 3 GAVETAS","N/A","N/A","N/A","MADERA","Bueno en Uso"]
["01100","CONSULTORIO 13","1er","MONITOR","DELL","N/A","74443-89NJ 185","NEGRO CON GRIS","Bueno en Uso"]
["01101","CONSULTORIO 13","1er","CPU","DELL","OPTIPLEX",26721074341,"NEGRO","Bueno en Uso"]
["01102","CONSULTORIO 13","1er","AIRE ACONDICIONADO","INNOVAIR","N/A","N/A","BLANCO","Bueno en Uso"]
[]
["01103","CONSULTORIO 14","1er","ESCRITORIO CON TOPE DE AMARILLO","N/A","N/A","N/A","N/A","Bueno en Uso"]
["01104","CONSULTORIO 14","1er","SILLA SECRETARIAL","N/A","N/A","N/A","NEGRO CON GRIS","Bueno en Uso"]
["01105","CONSULTORIO 14","1er","SILLA PARA PACIENTES","N/A","N/A","N/A","NEGRO","Bueno en Uso"]
["01106","CONSULTORIO 14","1er","SILLA PARA PACIENTES","N/A","N/A","N/A","NEGRO","Bueno en Uso"]
["01107","CONSULTORIO 14","1er","AIRE ACONDICIONADO","INNOVAIR","N/A","N/A","BLANCO","Bueno en Uso"]
["01108","CONSULTORIO 14","1er","ARMARIO","N/A","N/A","N/A","CREMA ","Bueno en Uso"]
["01109","CONSULTORIO 14","1er","MESA PARA MEDICAR","N/A","N/A","N/A","ACERO INOX.","Bueno en Uso"]
["01110","CONSULTORIO 14","1er","BALANZA","RICE LAKE","RL-MPS",6151800446,"GRIS","Bueno en Uso"]
["01111","CONSULTORIO 14","1er","SONOGRAFO","GENERAL ELECTRIC","COLUSONV8","5002775U4","BLANCO HUESO","Bueno en Uso"]
["01112","CONSULTORIO 14","1er","ZAFACON","ROGER","N/A","N/A","GRIS OSCURO","Bueno en Uso"]
["01113","CONSULTORIO 14","1er","LAMPARA CUELLO DE GANSO","N/A","YDO1A LED","N/A","BLANCO","Bueno en Uso"]
["01114","CONSULTORIO 14","1er","CAMILLA TIPO DIVAN","N/A","N/A","N/A","AZUL CON CREMA","Bueno en Uso"]
["01115","CONSULTORIO 14","1er","DISPENSADOR ELECTRONICO","KM-1020","N/A","N/A","ACERO INOX.","Bueno en Uso"]
["01116","CONSULTORIO 14","1er","ESCALINATA 1 PELDAÑO","N/A","N/A","N/A","NEGRO","Bueno en Uso"]
["01117","CONSULTORIO 14","1er","SET DE DIAGNOSTICO","WELL CHALLYN","N/A","N/A","BLANCO","Bueno en Uso"]
["01118","CONSULTORIO 14","1er","ESFIGMOMANOMETRO","WELL CHALLYN","N/A","N/A","NEGRO CON BLANCO","Bueno en Uso"]
["01119","CONSULTORIO 14","1er","NEGATOSCOPIO","GRAFCO","INSERT FILM HERE","N/A","GRIS CLARO","Bueno en Uso"]
["01120","CONSULTORIO 14","1er","TABURETE GIRATORIO ","N/A","N/A","N/A","NEGRO","Bueno en Uso"]
["01121","CONSULTORIO 14","1er","ARCHIVO PEQUEÑO 3 GAVETAS","N/A","N/A","N/A","MADERA","Bueno en Uso"]
[]
["01122","CONSULTORIO 15","1er","SET DE DIAGNOSTICO","WELL CHALLYN","N/A","N/A","BLANCO","Bueno en Uso"]
["01123","CONSULTORIO 15","1er","ESFIGMOMANOMETRO","WELL CHALLYN","N/A","N/A","GRIS","Bueno en Uso"]
["01124","CONSULTORIO 15","1er","NEGATOSCOPIO","GRAFCO","INSERT FILM HERE","N/A","GRIS CLARO","Bueno en Uso"]
["01125","CONSULTORIO 15","1er","ARMARIO","IBKSP","N/A","N/A","CREMA","Bueno en Uso"]
["01126","CONSULTORIO 15","1er","MESA PARA MEDICAR","N/A","N/A","N/A","ACERO INOX.","Bueno en Uso"]
["01127","CONSULTORIO 15","1er","LAMPARA CUELLO DE GANSO","YDO1ALECD","N/A","N/A","BLAMCO","Bueno en Uso"]
["01128","CONSULTORIO 15","1er","CAMILLA TIPO DIVAN","N/A","N/A","N/A","AZUL CON CREMA","Bueno en Uso"]
["01129","CONSULTORIO 15","1er","ESCALINATA 1 PELDAÑO","N/A","N/A","N/A","NEGRO","Bueno en Uso"]
["01130","CONSULTORIO 15","1er","ZAFACON","ROGER","N/A","N/A","GRIS OSCURO","Bueno en Uso"]
["01131","CONSULTORIO 15","1er","DISPESADOR ELECTRICO","N/A","KW-1020","N/A","ACERO INOX.","Bueno en Uso"]
["01132","CONSULTORIO 15","1er","BALANZA","RICE LAKE","RL-MPS",4541509180,"GRIS CON NEGRO","Bueno en Uso"]
["01133","CONSULTORIO 15","1er","ESCRITORIO CON TOPE AMARILLO","N/A","N/A","N/A","N/A","Bueno en Uso"]
["01134","CONSULTORIO 15","1er","ARCHIVO PEQUEÑO 3 GAVETAS","N/A","N/A","N/A","N/A","Bueno en Uso"]
["01135","CONSULTORIO 15","1er","SILLA SECRETARIAL","N/A","N/A","N/A","NEGRO CON CREMA","Bueno en Uso"]
["01136","CONSULTORIO 15","1er","TABURETE GIRATORIO ","N/A","N/A","N/A","NEGRO","Bueno en Uso"]
["01137","CONSULTORIO 15","1er","SILLA PARA PACIENTES","N/A","N/A","N/A","NEGRO","Bueno en Uso"]
["01138","CONSULTORIO 15","1er","SILLA PARA PACIENTES","N/A","N/A","N/A","NEGRO","Bueno en Uso"]
["01139","CONSULTORIO 15","1er","AIRE ACONDICIONADO","INNOVAIR","N/A","N/A","BLANCO","Bueno en Uso"]
[]
["01140","CONSULTORIO 16","1er","MESA CON TOPE AMARILLO","N/A","N/A","N/A","N/A","Bueno en Uso"]
["01141","CONSULTORIO 16","1er","ARCHIVO PEQUEÑO ","N/A","N/A","N/A","MADERA","Bueno en Uso"]
["01142","CONSULTORIO 16","1er","SILLA SECRETARIAL","N/A","N/A","N/A","NEGRO","Bueno en Uso"]
["01143","CONSULTORIO 16","1er","SILLA PARA PACIENTES","N/A","N/A","N/A","NEGRO","Bueno en Uso"]
["01144","CONSULTORIO 16","1er","SILLA PARA PACIENTES","N/A","N/A","N/A","NEGRO","Bueno en Uso"]
["01145","CONSULTORIO 16","1er","AIRE ACONDICIONADO","INNOVAIR","N/A","N/A","BLANCO","Bueno en Uso"]
["01146","CONSULTORIO 16","1er","TABURETE GIRATORIO ","N/A","N/A","N/A","NEGRO","Bueno en Uso"]
["01147","CONSULTORIO 16","1er","ARMARIO","IBKSP","N/A","N/A","CREMA ","Bueno en Uso"]
["01148","CONSULTORIO 16","1er","MESA PARA MEDICAR","N/A","N/A","N/A","ACERO INOX.","Bueno en Uso"]
["01149","CONSULTORIO 16","1er","BALANZA","RICE LAKE","RL-MPS",4301900054,"GRIS","Bueno en Uso"]
["01150","CONSULTORIO 16","1er","ZAFACON","ROGER","N/A","N/A","GRIS OSCURO","Bueno en Uso"]
["01151","CONSULTORIO 16","1er","CAMILLA TIPO DIVAN","N/A","N/A","N/A","AZUL CON CREMA","Bueno en Uso"]
["01152","CONSULTORIO 16","1er","DISPENSADOR ELECTRONICO","KW-1020","N/A","N/A","ACERO INOX.","Bueno en Uso"]
["01153","CONSULTORIO 16","1er","ARCHIVO 4 GAVETAS","N/A","N/A","N/A","GRIS OSCURO","Bueno en Uso"]
["01154","CONSULTORIO 16","1er","SET DE DIAGNOSTICO","WELL CHALLYN","N/A","N/A","BLANCO","Bueno en Uso"]
["01155","CONSULTORIO 16","1er","ESCALINATA 1 PELDAÑO","N/A","N/A","N/A","NEGRO","Bueno en Uso"]
["01156","CONSULTORIO 16","1er","NEGATOSCOPIO","GRAFCO","INSERT FILM HERE","N/A","GRIS OSCURO","Bueno en Uso"]
[]
["01157","CONSULTORIO 17","1er","MESA CON TOPE AMARILLO","N/A","N/A","N/A","N/A","Bueno en Uso"]
["01158","CONSULTORIO 17","1er","ARCHIVO PEQUEÑO","N/A","N/A","N/A","MADERA","Bueno en Uso"]
["01159","CONSULTORIO 17","1er","SILLA SECRETARIAL","N/A","N/A","N/A","NEGRO","Bueno en Uso"]
["01160","CONSULTORIO 17","1er","SILLA PARA PACIENTES","N/A","N/A","N/A","NEGRO","Bueno en Uso"]
["01161","CONSULTORIO 17","1er","SILLA PARA PACIENTES","N/A","N/A","N/A","NEGRO","Bueno en Uso"]
["01162","CONSULTORIO 17","1er","AIRE ACONDICIONADO","INNOVAIR","N/A","N/A","BLANCO","Bueno en Uso"]
["01163","CONSULTORIO 17","1er","TABURETE GIRATORIO ","N/A","N/A","N/A","NEGRO","Bueno en Uso"]
["01164","CONSULTORIO 17","1er","ARMARIO","IBKSP","N/A","N/A","CREMA","Bueno en Uso"]
["01165","CONSULTORIO 17","1er","MESA PARA MEDICAR","N/A","N/A","N/A","ACERO INOX.","Bueno en Uso"]
["01166","CONSULTORIO 17","1er","BALANZA","RICE LAKE","RL-MPS",11151600451,"GRIS","Bueno en Uso"]
["01167","CONSULTORIO 17","1er","ZAFACON","ROGER","N/A","N/A","GRIS","Bueno en Uso"]
["01168","CONSULTORIO 17","1er","CAMILLA TIPO DIVAN","N/A","N/A","N/A","AZUL OSCURO","Bueno en Uso"]
["01169","CONSULTORIO 17","1er","DISPENSADOR ELECTRONICO","KM-1020","N/A","N/A","ACERO INOX.","Bueno en Uso"]
["01170","CONSULTORIO 17","1er","SET DE DIAGNOSTICO","YDO1ALECD","N/A","N/A","GRIS OSCURO","Bueno en Uso"]
["01171","CONSULTORIO 17","1er","ESCALINATA 1 PELDAÑO","N/A","N/A","N/A","NEGRO","Bueno en Uso"]
["01172","CONSULTORIO 17","1er","NEGATOSCOPIO","GRAFCO","INSERT FILM HERE","N/A","GRIS OSCURO","Bueno en Uso"]
["01173","CONSULTORIO 17","1er","LAMPARA CUELLO DE GANSO","N/A","YDO1A LED","N/A","BLANCO","Bueno en Uso"]
[]
["01174","INFO.FRENTE AL CONSULTORIO 15","1er","SILLA SECRETARIAL","N/A","N/A","N/A","AZUL CON BLANCO ","Bueno en Uso"]
["01175","INFO.FRENTE AL CONSULTORIO 15","1er","SILLA SECRETARIAL","N/A","N/A","N/A","GRIS CON NEGRO","Bueno en Uso"]
["01176","INFO.FRENTE AL CONSULTORIO 15","1er","SILLA SECRETARIAL","N/A","N/A","N/A","AZUL CON BLANCO ","Bueno en Uso"]
["01177","INFO.FRENTE AL CONSULTORIO 15","1er","SILLA SECRETARIAL","N/A","N/A","N/A","AZUL CON BLANCO ","Bueno en Uso"]
["01178","INFO.FRENTE AL CONSULTORIO 15","1er","SILLA SECRETARIAL","N/A","N/A","N/A","AZUL CON BLANCO ","Bueno en Uso"]
["01179","INFO.FRENTE AL CONSULTORIO 15","1er","TELEFONO","CISCO","N/A","N/A","GRIS OSCURO","Bueno en Uso"]
["01180","INFO.FRENTE AL CONSULTORIO 15","1er","MONITOR","DELL","N/A","3S","NEGRO","Bueno en Uso"]
["01181","INFO.FRENTE AL CONSULTORIO 15","1er","CPU","DELL","OPTIPLEX7020",4554383581,"NEGRO","Bueno en Uso"]
["01182","INFO.FRENTE AL CONSULTORIO 15","1er","CPU","DELL","OPTIPLEX7020",4564414621,"NEGRO","Bueno en Uso"]
["01183","INFO.FRENTE AL CONSULTORIO 15","1er","MONITOR","DELL","N/A","ASVH","NEGRO","Bueno en Uso"]
["01184","INFO.FRENTE AL CONSULTORIO 15","1er","MICROFONO","JBL","CS3M-4","CA31-001795","NEGRO","Bueno en Uso"]
[]
["02007","CAFETERIA ","1ER","BALANZA","RICELAKE","RL-MPS",15091800270,"CREMA","Bueno en Uso"]
["02008","CAFETERIA ","1ER","BALANZA","RICE LAKE","RL-MPS",1509180492,"CREMA","Bueno en Uso"]
["02009","CAFETERIA ","1er","BALANZA","RICE LAKE","RL-MPS",15091800461,"CREMA","Bueno en Uso"]
["02010","CAFETERIA ","1er","ESCALINATA 1 PELDAÑO","N/A","N/A","N/A","ACERO INOX.","Bueno en Uso"]
["02011","CAFETERIA ","1ER","ESCALINATA 1 PELDAÑO","N/A","N/A","N/A","ACERO INOX.","Bueno en Uso"]
["02012","CAFETERIA ","1ER","SELLADORA ","YEYOW",2200,2611,"ACERO INOX.","Bueno en Uso"]
["02013","CAFETERIA ","1ER","SELLADORA ","YEYOW",2200,2595,"ACERO INOX.","Bueno en Uso"]
["02014","CAFETERIA ","1ER","SELLADORA ","YEYOW",2200,2592,"ACERO INOX.","Bueno en Uso"]
["02015","CAFETERIA ","1ER","CAMILLA DE TRANSPORTE ","N/A","N/A","N/A","BLANCO Y AZUL ","Bueno en Uso"]
["02016","CAFETERIA ","1ER","CAMILLA DE TRANSPORTE ","N/A","N/A","N/A","BLANCO Y AZUL ","Bueno en Uso"]
["02017","CAFETERIA ","1ER","ESCALINATA 1 PELDAÑO","N/A","N/A","N/A","ACERO INOX.","Bueno en Uso"]
["02018","CAFETERIA ","1ER","VENTILADOR ","NIC PAUT","HT 70","N13HT701115268","BLANCO Y AZUL ","Bueno en Uso"]
["02019","CAFETERIA ","1ER","VENTILADOR PEDIARIATICO","DRAGER","CARINA","ASC0082","AZUL Y BLANCO","Bueno en Uso"]
["02020","CAFETERIA ","1ER","VENTILADOR PEDIARIATICO","DRAGER","CARINA","ASED0009","BLANCO Y AZUL ","Bueno en Uso"]
["02021","CAFETERIA ","1ER","MAQUINA DE ANESTESIA ","DRAGER","FABIUXPLUS ","ASDH-0161","AZUL Y CREMA ","Bueno en Uso"]
[]
["02022"," CAFETERIA (ALMACENADO)","1ER","NEGATOSCOPIO","YHML ","N/A","PD-081180518340","GRIS","Bueno en Uso"]
["02023"," CAFETERIA (ALMACENADO)","1ER","NEGATOSCOPIO","IHMED","N/A","PQ-081180518718","PLATEADO Y GRIS ","Bueno en Uso"]
["02024"," CAFETERIA (ALMACENADO)","1er","NEGATOSCOPIO","IHMED","N/A","PQ-081180518438","PLATEADO Y GRIS ","Bueno en Uso"]
["02025"," CAFETERIA (ALMACENADO)","1er","NEGATOSCOPIO","IHMED","N/A","PQ-081180518302","PLATEADO Y GRIS ","Bueno en Uso"]
["02026"," CAFETERIA (ALMACENADO)","1er","NEGATOSCOPIO","IHMED","N/A","N/A","PLATEADO Y GRIS ","Bueno en Uso"]
["02030"," CAFETERIA (ALMACENADO)","1er","NEGATOSCOPIO","IHMED","N/A","PD-081180818449","PLATEADO Y GRIS ","Bueno en Uso"]
["02029"," CAFETERIA (ALMACENADO)","1er","NEGATOSCOPIO","IHMED","N/A","PQ-081180518705","PLATEADO Y GRIS ","Bueno en Uso"]
["02028"," CAFETERIA (ALMACENADO)","1er","NEGATOSCOPIO","IHMED","N/A","PQ-081180518663","PLATEADO Y GRIS ","Bueno en Uso"]
["02027"," CAFETERIA (ALMACENADO)","1er","NEGATOSCOPIO","IHMED","N/A","PQ-081180518501","PLATEADO Y GRIS ","Bueno en Uso"]
["02026"," CAFETERIA (ALMACENADO)","1er","NEGATOSCOPIO","IHMED","N/A","PQ-081180518602","PLATEADO Y GRIS ","Bueno en Uso"]
["02031"," CAFETERIA (ALMACENADO)","1er","NEGATOSCOPIO","IHMED","N/A","PQ-081180518457","PLATEADO Y GRIS ","Bueno en Uso"]
["02032"," CAFETERIA (ALMACENADO)","1er","SILLA DE RUEDAS PLASTICAS","N/A","N/A","N/A","N/A","Bueno en Uso"]
["02033"," CAFETERIA (ALMACENADO)","1er","SILLA DE RUEDAS PLASTICAS","N/A","N/A","N/A","N/A","Bueno en Uso"]
["02034"," CAFETERIA (ALMACENADO)","1er","SILLA DE RUEDAS PLASTICAS","N/A","N/A","N/A","N/A","Bueno en Uso"]
["02035"," CAFETERIA (ALMACENADO)","1er","SILLA DE RUEDAS PLASTICAS","N/A","N/A","N/A","N/A","Bueno en Uso"]
["02036"," CAFETERIA (ALMACENADO)","1er","SILLA DE RUEDAS PLASTICAS","N/A","N/A","N/A","N/A","Bueno en Uso"]
["02037"," CAFETERIA (ALMACENADO)","1er","SILLA DE RUEDAS PLASTICAS","N/A","N/A","N/A","N/A","Bueno en Uso"]
["02038"," CAFETERIA (ALMACENADO)","1er","SILLA DE RUEDAS PLASTICAS","N/A","N/A","N/A","N/A","Bueno en Uso"]
["02039"," CAFETERIA (ALMACENADO)","1er","MESITA","N/A","N/A","N/A","MELAMINA","Bueno en Uso"]
["02040"," CAFETERIA (ALMACENADO)","1er","MESITA","N/A","N/A","N/A","MELAMINA","Bueno en Uso"]
["02041"," CAFETERIA (ALMACENADO)","1er","MESITA","N/A","N/A","N/A","MELAMINA","Bueno en Uso"]
["02042"," CAFETERIA (ALMACENADO)","1er","MESITA","N/A","N/A","N/A","MELAMINA","Bueno en Uso"]
["02043"," CAFETERIA (ALMACENADO)","1er","MESITA","N/A","N/A","N/A","MELAMINA","Bueno en Uso"]
["02044"," CAFETERIA (ALMACENADO)","1er","MESITA","N/A","N/A","N/A","MELAMINA","Bueno en Uso"]
["02045"," CAFETERIA (ALMACENADO)","1er","MESITA","N/A","N/A","N/A","MELAMINA","Bueno en Uso"]
["02046"," CAFETERIA (ALMACENADO)","1er","MESITA","N/A","N/A","N/A","MELAMINA","Bueno en Uso"]
["02047"," CAFETERIA (ALMACENADO)","1er","MESA RECTANGULAR","N/A","N/A","N/A","MELAMINA","Bueno en Uso"]
["02048"," CAFETERIA (ALMACENADO)","1er","MESITA","N/A","N/A","N/A","MELAMINA","Bueno en Uso"]
["02049"," CAFETERIA (ALMACENADO)","1er","MESITA","N/A","N/A","N/A","MELAMINA","Bueno en Uso"]
["02050"," CAFETERIA (ALMACENADO)","1er","SILLA DE RUEDAS ","N/A","N/A","N/A","AZUL","Bueno en Uso"]
["02051"," CAFETERIA (ALMACENADO)","1er","SILLA DE RUEDAS ","N/A","N/A","N/A","AZUL","Bueno en Uso"]
["02052"," CAFETERIA (ALMACENADO)","1er","SILLA DE RUEDAS ","N/A","N/A","N/A","AZUL","Bueno en Uso"]
["02053"," CAFETERIA (ALMACENADO)","1er","MESITA","N/A","N/A","N/A","MELAMINA","Bueno en Uso"]
["02054"," CAFETERIA (ALMACENADO)","1er","MESITA","N/A","N/A","N/A","MELAMINA","Bueno en Uso"]
["02055"," CAFETERIA (ALMACENADO)","1er","MESITA","N/A","N/A","N/A","MELAMINA","Bueno en Uso"]
["02056"," CAFETERIA (ALMACENADO)","1er","MESITA","N/A","N/A","N/A","MELAMINA","Bueno en Uso"]
["02057"," CAFETERIA (ALMACENADO)","1er","SILLA DE RUEDAS","N/A","N/A","N/A","AZUL","Bueno en Uso"]
["02058"," CAFETERIA (ALMACENADO)","1er","SILLA DE RUEDAS","N/A","N/A","N/A","AZUL","Bueno en Uso"]
["02059"," CAFETERIA (ALMACENADO)","1er","SILLA DE RUEDAS","N/A","N/A","N/A","AZUL","Bueno en Uso"]
[]
["02060","AUDITORIA MEDICA","1er","SILLA SEMI-EJECUTIVA","N/A","N/A","N/A","NEGRA","Bueno en Uso"]
["02061","AUDITORIA MEDICA","1er","CPU","HP","PAVILIOM P6000","J5L1CW1240C","NEGRO","Bueno en Uso"]
["02062","AUDITORIA MEDICA","1er","CARRITO PORTA COMPUTADORA","N/A","NA","N/A","CREMA","Bueno en Uso"]
["02063","AUDITORIA MEDICA","1er","MONITOR","N/A","L1940T","CNC-711NTJ5","GRIS","Bueno en Uso"]
["02064","AUDITORIA MEDICA","1er","ARCHIVO 3 GAVETAS","N/A","N/A","N/A","NEGRO","Bueno en Uso"]
["02065","AUDITORIA MEDICA","1er","CAUNTER 2 DIVISIONES","N/A","N/A","N/A","GRIS","Bueno en Uso"]
["02066","AUDITORIA MEDICA","1er","ZAFACON","N/A","N/A","N/A","CREMA","Bueno en Uso"]
["02067","AUDITORIA MEDICA","1er","SILLA SECRETARIAL","N/A","N/A","N/A","NEGRA CON GRIS","Bueno en Uso"]
["02068","AUDITORIA MEDICA","1er","CPU","DELL","OPTIPLEX 3010",8653305133,"NEGRO","Bueno en Uso"]
["02069","AUDITORIA MEDICA","1er","ZAFACON","N/A","N/A","N/A","NEGRO","Bueno en Uso"]
["02070","AUDITORIA MEDICA","1er","CAUNTER ","N/A","N/A","N/A","N/A","Bueno en Uso"]
["02071","AUDITORIA MEDICA","1er","MONITOR","DELL","N/A","534L","NEGRO","Bueno en Uso"]
["02072","AUDITORIA MEDICA","1er","CAUNTER","N/A","N/A","N/A","N/A","Bueno en Uso"]
["02073","AUDITORIA MEDICA","1er","ARCHIVO 3 GAVETAS","N/A","N/A","N/A","GRIS","Bueno en Uso"]
["02074","AUDITORIA MEDICA","1er","ZAFACON","N/A","N/A","N/A","CREMA","Bueno en Uso"]
["02075","AUDITORIA MEDICA","1er","MONITOR","ACER","G185H",8442,"NEGRO","Bueno en Uso"]
["02076","AUDITORIA MEDICA","1er","CPU","HP","PAVILIOM P6000","4CW125016W","NEGRO","Bueno en Uso"]
["02077","AUDITORIA MEDICA","1er","CARRO PORTA COMPUTADORA","N/A","N/A","N/A","CREMA","Bueno en Uso"]
["02078","AUDITORIA MEDICA","1er","SILLA SECRETARIAL","N/A","N/A","N/A","CREMA","Bueno en Uso"]
["02079","AUDITORIA MEDICA","1er","ESCRITORIO","N/A","N/A","N/A","TOPE MELAMINA","Bueno en Uso"]
["02080","AUDITORIA MEDICA","1er","ARCHIVO 3 GAVETAS","N/A","N/A","N/A","NEGRO","Bueno en Uso"]
["02081","AUDITORIA MEDICA","1er","SILLA SECRETARIAL","N/A","N/A","N/A","NEGRA","Bueno en Uso"]
["02082","AUDITORIA MEDICA","1er","MONITOR","ACER","N/A",1842,"NEGRO","Bueno en Uso"]
["02083","AUDITORIA MEDICA","1er","CPU","DELL","N/A","N/A","NEGRO","Bueno en Uso"]
["02084","AUDITORIA MEDICA","1er","SILLA SECRETARIAL","N/A","N/A","N/A","CREMA CON NEGRO","Bueno en Uso"]
["02085","AUDITORIA MEDICA","1er","ZAFACON","N/A","N/A","N/A","NEGRO","Bueno en Uso"]
["02086","AUDITORIA MEDICA","1er","MESITA RECTANGULAR","N/A","N/A","N/A","TOPE MELAMINA","Bueno en Uso"]
["02087","AUDITORIA MEDICA","1er","SILLA SECRETARIAL","N/A","N/A","N/A","CREMA CON NEGRO","Bueno en Uso"]
["02088","AUDITORIA MEDICA","1er","ARCHIVO 3 GAVETAS","N/A","N/A","N/A","TOPE MELAMINA","Bueno en Uso"]
["02089","AUDITORIA MEDICA","1er","CAUNTER 2 DIVISIONES","N/A","N/A","N/A","GRIS","Bueno en Uso"]
["02090","AUDITORIA MEDICA","1er","CPU","HP","PAVILIOM P6000","MX81900870","NEGRO","Bueno en Uso"]
["02091","AUDITORIA MEDICA","1er","MONITOR","HP","LP1965","CNN-7280YSZ","NEGRO","Bueno en Uso"]
["02092","AUDITORIA MEDICA","1er","CPU","DELL","OPTIPLEZ 7010",5581,"NEGRO","Bueno en Uso"]
["02093","AUDITORIA MEDICA","1er","MONITOR","HP",1940,"CNC-711NTMM","GRIS","Bueno en Uso"]
["02094","AUDITORIA MEDICA","1er","SILLA SECRETARIAL","N/A","N/A","N/A","CREMA CON NEGRO","Bueno en Uso"]
["02095","AUDITORIA MEDICA","1er","ZAFACON","N/A","N/A","N/A","NEGRO","Bueno en Uso"]
["02096","AUDITORIA MEDICA","1er","TELEFONO","CISCO","3844-13-1086","WZP18290Q07","NEGRO CON GRIS","Bueno en Uso"]
["02097","AUDITORIA MEDICA","1er","SILLA SECRETARIAL","N/A","N/A","N/A","CREMA CON NEGRO","Bueno en Uso"]
["02098","AUDITORIA MEDICA","1er","MONITOR","DELL","N/A","CN1WV02","NEGRO","Bueno en Uso"]
["02099","AUDITORIA MEDICA","1er","CPU","HP","PAVILIOM P6000","4CW1221CXG","NEGRO","Bueno en Uso"]
["02100","AUDITORIA MEDICA","1er","CARRITO PORTA COMPUTADORA","N/A","N/A","N/A","CREMA","Bueno en Uso"]
["02101","AUDITORIA MEDICA","1er","CAUNTER 1 DIVISION ","N/A","N/A","N/A","GRIS","Bueno en Uso"]
["02102","AUDITORIA MEDICA","1er","MESITA","N/A","N/A","N/A","MELAMINA","Bueno en Uso"]
["02103","AUDITORIA MEDICA","1er","IMPRESORA MULTIUSO ","HP","F6W13A","HPBBHDP1PC","BLANCO HUESO","Bueno en Uso"]
["02104","AUDITORIA MEDICA","1er","MONITOR","HP","L1950","CNC809T4HO","NEGRO CON GRIS","Bueno en Uso"]
["02105","AUDITORIA MEDICA","1er","CPU","HP","PAVILIOM P6000","4CW1221CD3","NEGRO","Bueno en Uso"]
["02106","AUDITORIA MEDICA","1er","ZAFACON","N/A","N/A","N/A","CREMA","Bueno en Uso"]
["02107","AUDITORIA MEDICA","1er","CAUNTER 2 DIVISIONES","N/A","N/A","N/A","CREMA","Bueno en Uso"]
["02108","AUDITORIA MEDICA","1er","TELEFONO","CISCO","3844-13-1086","WZP18290UVT","NEGRO CON GRIS","Bueno en Uso"]
["02109","AUDITORIA MEDICA","1er","SILLA SECRETARIAL","N/A","N/A","N/A","NEGRO CON CREMA","Bueno en Uso"]
["01799","AUNDITORIA MEDICA","1er","CREDENZA","N/A","N/A","N/A","MARRON","Bueno en Uso"]
["01800","AUNDITORIA MEDICA","1er","CAUNTER 2 DIVISIONES","N/A","N/A","N/A","GRIS","Bueno en Uso"]
["01801","AUNDITORIA MEDICA","1er","MONITOR","ACEL","N/A","3D8544","NEGRO","Bueno en Uso"]
["01802","AUNDITORIA MEDICA","1er","SILLA SECRETARIAL","N/A","N/A","N/A","GRIS CON NEGRO","Bueno en Uso"]
["01803","AUNDITORIA MEDICA","1er","CPU","DELL","OPTIPLEX 3040","3JNDGB2","NEGRO","Bueno en Uso"]
["01804","AUNDITORIA MEDICA","1er","SILLA SECRETARIAL","N/A","N/A","N/A","GRIS CON NEGRO","Bueno en Uso"]
["01805","AUNDITORIA MEDICA","1er","MONITOR","HP","L1950G","N/A","GRIS","Bueno en Uso"]
["01806","AUNDITORIA MEDICA","1er","CPU","HP","N/A","N/A","NEGRO","Bueno en Uso"]
["01807","AUNDITORIA MEDICA","1er","ZAFACON","N/A","N/A","N/A","GRIS","Bueno en Uso"]
["01808","AUNDITORIA MEDICA","1er","CAUNTER 2 DIVISIONES","N/A","N/A","N/A","GRIS","Bueno en Uso"]
["01809","AUNDITORIA MEDICA","1er","CUADRO PARA DECORACION","N/A","N/A","N/A","N/A","Bueno en Uso"]
["01810","AUNDITORIA MEDICA","1er","MONITOR","DELL","N/A","CN099WJF","NEGRO","Bueno en Uso"]
["01811","AUNDITORIA MEDICA","1er","CPU","HP","N/A","N/A","NEGRO","Bueno en Uso"]
["01812","AUNDITORIA MEDICA","1er","SILLA SECRETARIAL","N/A","N/A","N/A","GRIS CON NEGRO","Bueno en Uso"]
["01813","AUNDITORIA MEDICA","1er","ARCHIVO 3 GAVETAS","N/A","N/A","N/A","GRIS OSCURO","Bueno en Uso"]
["01814","AUNDITORIA MEDICA","1er","IMPRESORA MULTIUSO ","HP","F6W13A","HPB8HDP1YT","BLANCO HUESO","Bueno en Uso"]
["02110","AUNDITORIA MEDICA","1er","SILLA SECRETARIAL","N/A","N/A","N/A","BLANCO NEGRO","Bueno en Uso"]
["02111","AUNDITORIA MEDICA","1er","CPU","HP","PAVILIOM P6000","4CW12416GL","NEGRO","Bueno en Uso"]
["02112","AUNDITORIA MEDICA","1er","MANITOR","HP","L1940T","CNC6221BZN","GRIS","Bueno en Uso"]
["02113","AUNDITORIA MEDICA","1er","SILLA SECRETARIAL","N/A","N/A","N/A","NEGRO","Bueno en Uso"]
["02114","AUNDITORIA MEDICA","1er","ZAFACON ","N/A","N/A","N/A","NEGRO","Bueno en Uso"]
["02115","AUNDITORIA MEDICA","1er","ARCHIVO","IBKS","N/A","N/A","CREMA","Bueno en Uso"]
["02116","AUNDITORIA MEDICA","1er","ARCHIVO","IBKS","N/A","N/A","CREMA","Bueno en Uso"]
["02117","AUNDITORIA MEDICA","1er","ARCHIVO","IBKS","N/A","N/A","CREMA","Bueno en Uso"]
["02118","AUNDITORIA MEDICA","1er","ARCHIVO","IBKS","N/A","N/A","CREMA","Bueno en Uso"]
["02119","AUNDITORIA MEDICA","1er","ARCHIVO","IBKS","N/A","N/A","CREMA","Bueno en Uso"]
["02120","AUNDITORIA MEDICA","1er","ARCHIVO","IBKS","N/A","N/A","CREMA","Bueno en Uso"]
["02121","AUNDITORIA MEDICA","1er","ARCHIVO","IBKS","N/A","N/A","CREMA","Bueno en Uso"]
["02122","AUNDITORIA MEDICA","1er","ARCHIVO","IBKS","N/A","N/A","CREMA","Bueno en Uso"]
["02123","AUNDITORIA MEDICA","1er","ARCHIVO","IBKS","N/A","N/A","CREMA","Bueno en Uso"]
["02124","AUNDITORIA MEDICA","1er","ARCHIVO","IBKS","N/A","N/A","CREMA","Bueno en Uso"]
["02125","AUNDITORIA MEDICA","1er","ARCHIVO","IBKS","N/A","N/A","CREMA","Bueno en Uso"]
["02126","AUNDITORIA MEDICA","1er","ARCHIVO","IBKS","N/A","N/A","CREMA","Bueno en Uso"]
["02127","AUNDITORIA MEDICA","1er","SILLA DE CAFETERIA","N/A","N/A","N/A","VERDE","Bueno en Uso"]
["02128","AUNDITORIA MEDICA","1er","SILLA DE CAFETERIA","N/A","N/A","N/A","VERDE","Bueno en Uso"]
["02129","AUNDITORIA MEDICA","1er","SILLA DE CAFETERIA","N/A","N/A","N/A","VERDE","Bueno en Uso"]
["02130","AUNDITORIA MEDICA","1er","SILLA DE CAFETERIA","N/A","N/A","N/A","VERDE","Bueno en Uso"]
["02131","AUNDITORIA MEDICA","1er","SILLA DE CAFETERIA","N/A","N/A","N/A","VERDE","Bueno en Uso"]
["02132","AUNDITORIA MEDICA","1er","SILLA DE CAFETERIA","N/A","N/A","N/A","VERDE","Bueno en Uso"]
["02133","AUNDITORIA MEDICA","1er","SILLA DE CAFETERIA","N/A","N/A","N/A","VERDE","Bueno en Uso"]
["02134","AUNDITORIA MEDICA","1er","SILLA DE CAFETERIA","N/A","N/A","N/A","VERDE","Bueno en Uso"]
["02135","AUNDITORIA MEDICA","1er","SILLA DE CAFETERIA","N/A","N/A","N/A","VERDE","Bueno en Uso"]
["02136","AUNDITORIA MEDICA","1er","SILLA DE CAFETERIA","N/A","N/A","N/A","VERDE","Bueno en Uso"]
["02137","AUNDITORIA MEDICA","1er","ESTANTE","N/A","N/A","N/A","MODERA","Bueno en Uso"]
["02138","AUNDITORIA MEDICA","1er","MESA DE COMEDOR","N/A","N/A","N/A","CREMA","Bueno en Uso"]
["02139","AUNDITORIA MEDICA","1er","MESA DE COMEDOR","N/A","N/A","N/A","BLANCO CON NEGRO","Bueno en Uso"]
["02140","AUNDITORIA MEDICA","1er","MESA DE COMEDOR","N/A","N/A","N/A","CREMA","Bueno en Uso"]
["02141","AUNDITORIA MEDICA","1er","SILLA PARA VISITAS","N/A","N/A","N/A","NEGRO CON GRIS","Bueno en Uso"]
["02142","AUNDITORIA MEDICA","1er","SILA PARA VISITAS","N/A","N/A","N/A","EN VINIL","Bueno en Uso"]
["02143","AUNDITORIA MEDICA","1er","BEBEDERO","TECNOMASTER","TYLWYR33W",19090050401,"BLANCO","Bueno en Uso"]
["02144","AUNDITORIA MEDICA","1er","ARCHIVO 3 GAVETAS","N/A","N/A","N/A","GRIS","Bueno en Uso"]
["02145","AUNDITORIA MEDICA","1er","ESCRITORIO","N/A","N/A","N/A","TOPE DE MADERA","Bueno en Uso"]
["02146","AUNDITORIA MEDICA","1er","MESA DE COMPUTADORA","N/A","N/A","N/A","N/A","Bueno en Uso"]
["02147","AUNDITORIA MEDICA","1er","SILLA PARA VISITAS","N/A","N/A","N/A","EN VINIL","Bueno en Uso"]
["02148","AUNDITORIA MEDICA","1er","CARRITO DE TRASPORTE","N/A","N/A","N/A","ROJO","Bueno en Uso"]
["02149","AUNDITORIA MEDICA","1er","CARRITO DE TRASPORTE","N/A","N/A","N/A","EN VINIL","Bueno en Uso"]
["02150","AUNDITORIA MEDICA","1er","AIRE ACONDICIONADO","INNOVAIR","N/A","N/A","BLANCA","Bueno en Uso"]
["02151","AUNDITORIA MEDICA","1er","CREDENZA","N/A","N/A","N/A","AMARILLO","Bueno en Uso"]
["02152","AUNDITORIA MEDICA","1er","ESCRITORIO CON TOPE DE MELAMINA","N/A","N/A","N/A","BLANCO","Bueno en Uso"]
[]
["02153","AUNDITORIA MEDICA (ENC. DE SEGURO)","1er","ESCRITORIO CON TOPE DE MELAMINA","N/A","N/A","N/A","BLANCO","Bueno en Uso"]
["02154","AUNDITORIA MEDICA (ENC. DE SEGURO)","1er","SILLA PARA VISITAS","N/A","N/A","N/A","EN VINIL","Bueno en Uso"]
["02155","AUNDITORIA MEDICA (ENC. DE SEGURO)","1er","SILLA PARA VISITAS","N/A","N/A","N/A","EN VINIL","Bueno en Uso"]
["02156","AUNDITORIA MEDICA (ENC. DE SEGURO)","1er","CPU","DELL","N/A","150814-11","NEGRO","Bueno en Uso"]
["02157","AUNDITORIA MEDICA (ENC. DE SEGURO)","1er","MONITOR","DELL","E2216HF","CN01WV0Z","NEGRO","Bueno en Uso"]
["02158","AUNDITORIA MEDICA (ENC. DE SEGURO)","1er","TELEFONO","CISCO","3844-13-1086","WZP1829OV0W","NEGRO CON GRIS","Bueno en Uso"]
["02159","AUNDITORIA MEDICA (ENC. DE SEGURO)","1er","MONITOR","DELL","N/A","OSC-28CM","NEGRO","Bueno en Uso"]
["02160","AUNDITORIA MEDICA (ENC. DE SEGURO)","1er","CPU","HP","N/A","4CW1240KWW","NEGRO","Bueno en Uso"]
["02161","AUNDITORIA MEDICA (ENC. DE SEGURO)","1er","CARRITO PARA CPU","N/A","N/A","N/A","CREMA","Bueno en Uso"]
["02162","AUNDITORIA MEDICA (ENC. DE SEGURO)","1er","TELEFONO","CISCO","3844-13-1086","WZP18290UV0","NEGRO CON GRIS","Bueno en Uso"]
["02163","AUNDITORIA MEDICA (ENC. DE SEGURO)","1er","ARCHOVO 3 GAVETAS","N/A","N/A","N/A","MELAMINA","Bueno en Uso"]
["02164","AUNDITORIA MEDICA (ENC. DE SEGURO)","1er","ZAFACON","N/A","N/A","N/A","CREMA","Bueno en Uso"]
["02165","AUNDITORIA MEDICA (ENC. DE SEGURO)","1er","SILLA SECRETARIAL","N/A","N/A","N/A","GRIS CON NEGRO","Bueno en Uso"]
["02166","AUNDITORIA MEDICA (ENC. DE SEGURO)","1er","ARCHIVO 3 GAVETAS","N/A","N/A","N/A","MELAMINA","Bueno en Uso"]
["02167","AUNDITORIA MEDICA (ENC. DE SEGURO)","1er","SILLA SIMI-EJECUTIVA","N/A","N/A","N/A","NEGRO","Bueno en Uso"]
["02168","AUNDITORIA MEDICA (ENC. DE SEGURO)","1er","ZAFACON","N/A","N/A","N/A","PLATEADO ","Bueno en Uso"]
["02169","AUNDITORIA MEDICA (ENC. DE SEGURO)","1er","ESCRITORIO","N/A","N/A","N/A","MODERA","Bueno en Uso"]
["02170","AUNDITORIA MEDICA (ENC. DE SEGURO)","1er","ARMARIO PEQUEÑO","N/A","N/A","N/A","MADERA","Bueno en Uso"]
["02171","AUNDITORIA MEDICA (ENC. DE SEGURO)","1er","CALCULADORA ELECTRICA","SHARRP","EL-2630P III","6011817Y","BLANCO","Bueno en Uso"]
["02172","AUNDITORIA MEDICA (ENC. DE SEGURO)","1er","AIRE ACONDICIONADO","INNOVAIR","N/A","N/A","BLANCO","Bueno en Uso"]
[]
["02200","AUNDITORIA MEDICA (ATENCION AL USUARIO)","1er","ZAFACON","N/A","N/A","N/A","CREMA","Bueno en Uso"]
["02201","AUNDITORIA MEDICA (ATENCION AL USUARIO)","1er","ARCHIVO 3 GAVETAS","N/A","N/A","N/A","MELAMINA","Bueno en Uso"]
["02202","AUNDITORIA MEDICA (ATENCION AL USUARIO)","1er","CPU","DELL","OPTIPLEZ 3040","QN642AAR","NEGRO","Bueno en Uso"]
["02203","AUNDITORIA MEDICA (ATENCION AL USUARIO)","1er","CPU","DELL","N/A","3JVCGB2","NEGRO","Bueno en Uso"]
["02204","AUNDITORIA MEDICA (ATENCION AL USUARIO)","1er","MONITOR","DELL","N/A","79Q-262H","NEGRO","Bueno en Uso"]
["02205","AUNDITORIA MEDICA (ATENCION AL USUARIO)","1er","TELEFONO","CISCO","3844-13-1086","WZP18290Q1Z","NEGRO CON GRIS","Bueno en Uso"]
["02206","AUNDITORIA MEDICA (ATENCION AL USUARIO)","1er","MONITOR","DELL","N/A","05H-OYWN","NEGRO","Bueno en Uso"]
["02207","AUNDITORIA MEDICA (ATENCION AL USUARIO)","1er","CREDENZA","N/A","N/A","N/A","MADERA","Bueno en Uso"]
["02208","AUNDITORIA MEDICA (ATENCION AL USUARIO)","1er","SILLA PARA VISITAS","N/A","N/A","N/A","VINIL","Bueno en Uso"]
["02209","AUNDITORIA MEDICA (ATENCION AL USUARIO)","1er","SILLA PARA VISITAS","N/A","N/A","N/A","VINIL","Bueno en Uso"]
["02210","AUNDITORIA MEDICA (ATENCION AL USUARIO)","1er","SILLA PARA VISITAS","N/A","N/A","N/A","AZUL","Bueno en Uso"]
["02211","AUNDITORIA MEDICA (ATENCION AL USUARIO)","1er","SILLA PARA VISITAS","N/A","N/A","N/A","AZUL","Bueno en Uso"]
["02212","AUNDITORIA MEDICA (ATENCION AL USUARIO)","1er","ARCHIVO 5 GAVETAS","N/A","N/A","N/A","CREMA OSCURO","Bueno en Uso"]
["02213","AUNDITORIA MEDICA (ATENCION AL USUARIO)","1er","SILLA SECRETARIAL","N/A","N/A","N/A","NEGRO","Bueno en Uso"]
["02214","AUNDITORIA MEDICA (ATENCION AL USUARIO)","1er","ESCRITORIO","N/A","N/A","N/A","MELAMINA","Bueno en Uso"]
["02215","AUNDITORIA MEDICA (ATENCION AL USUARIO)","1er","SILLA SECRETARIAL","N/A","N/A","N/A","GRIS CON NEGRO","Bueno en Uso"]
["02216","AUNDITORIA MEDICA (ATENCION AL USUARIO)","1er","MONITOR","HP","L1940T","PB1CNK7060","GRIS CON NEGRO","Bueno en Uso"]
["02217","AUNDITORIA MEDICA (ATENCION AL USUARIO)","1er","ZAFACON","N/A","N/A","N/A","GRIS","Bueno en Uso"]
["02218","AUNDITORIA MEDICA (ATENCION AL USUARIO)","1er","IMPRESORA","HP","LASER JET P106","VND3404242","GRIS OSCURO","Bueno en Uso"]
["02219","AUNDITORIA MEDICA (ATENCION AL USUARIO)","1er","CPU","DELL","OPTIPLEZ 3020","9TBHFZ1","NEGRO","Bueno en Uso"]
["02220","AUNDITORIA MEDICA (ATENCION AL USUARIO)","1er","AIRE ACONDICIONADO","INNOVAIR","N/A","N/A","BLANCO","Bueno en Uso"]
["02221","AUNDITORIA MEDICA (ATENCION AL USUARIO)","1er","AIRE ACONDICIONADO","INNOVAIR","N/A","N/A","BLANCO","Bueno en Uso"]
["02172","AUNDITORIA MEDICA (ATENCION AL USUARIO)","1er","SILLA PARA PACIENTES","N/A","N/A","N/A","AZUL CON GRIS","Bueno en Uso"]
["02186","AUNDITORIA MEDICA (ATENCION AL USUARIO)","1er","SILLA PARA PACIENTES","N/A","N/A","N/A","AZUL CON NEGRO","Bueno en Uso"]
["02187","AUNDITORIA MEDICA (ATENCION AL USUARIO)","1er","SILLA PARA PACIENTES","N/A","N/A","N/A","NEGRO CON GRIS","Bueno en Uso"]
["02188","AUNDITORIA MEDICA (ATENCION AL USUARIO)","1er","SILLA PARA PACIENTES","N/A","N/A","N/A","BLANCO CON NEGRO","Bueno en Uso"]
["02189","AUNDITORIA MEDICA (ATENCION AL USUARIO)","1er","ZAFACON","N/A","N/A","N/A","CREMA","Bueno en Uso"]
["02190","AUNDITORIA MEDICA (ATENCION AL USUARIO)","1er","ESCRITORIO","N/A","N/A","N/A","GRIS CLARO","Bueno en Uso"]
["02191","AUNDITORIA MEDICA (ATENCION AL USUARIO)","1er","MONITOR","DELL","142-4975","N/A","NEGRO","Bueno en Uso"]
["02192","AUNDITORIA MEDICA (ATENCION AL USUARIO)","1er","CPU","DELL","N/A","9TJHFZ1","NEGRO","Bueno en Uso"]
["02193","AUNDITORIA MEDICA (ATENCION AL USUARIO)","1er","MONITOR","HP","LP1965","CNN74809DC","NEGRO","Bueno en Uso"]
["02194","AUNDITORIA MEDICA (ATENCION AL USUARIO)","1er","CPU","HP","N/A","QN642AAR","NEGRO","Bueno en Uso"]
["02195","AUNDITORIA MEDICA (ATENCION AL USUARIO)","1er","ESCRITORIO","N/A","N/A","N/A","GRIS CLARO","Bueno en Uso"]
["02196","AUNDITORIA MEDICA (ATENCION AL USUARIO)","1er","TELEFONO","CISCO","3844-13-1086","WZP1849OXLT","GRIS CON NEGRO","Bueno en Uso"]
["02197","AUNDITORIA MEDICA (ATENCION AL USUARIO)","1er","SILLA ALTA","N/A","N/A","N/A","GRIS CON NEGRO","Bueno en Uso"]
["02198","AUNDITORIA MEDICA (ATENCION AL USUARIO)","1er","SILLA ALTA","N/A","N/A","N/A","GRIS CON NEGRO","Bueno en Uso"]
["02199","AUNDITORIA MEDICA (ATENCION AL USUARIO)","1er","CAUNTER 2 DIVISIONES","N/A","N/A","N/A","GRIS","Bueno en Uso"]
[]
["02173","SEGUROS","1er","CREDENZA","N/A","N/A","N/A","MODERA","Bueno en Uso"]
["02174","SEGUROS","1er","ESCRITORIO CON TOPE MELANINA","N/A","N/A","N/A","BLANCO","Bueno en Uso"]
["02175","SEGUROS","1er","ESCRITORIO CON TOPE MELANINA","N/A","N/A","N/A","BLANCO","Bueno en Uso"]
["02176","SEGUROS","1er","SILLON","N/A","N/A","N/A","VERDE","Bueno en Uso"]
["02177","SEGUROS","1er","SILLA SECRETARIAL","N/A","N/A","N/A","AZUL CON BLANCO ","Bueno en Uso"]
["02178","SEGUROS","1er","MESITA","N/A","N/A","N/A","MELAMINA","Bueno en Uso"]
["02179","SEGUROS","1er","TELEFONO","CISCO","3844-13-1086","WZP1829OUVA","NEGRO CON GRIS","Bueno en Uso"]
["02180","SEGUROS","1er","MONITOR","DELL","64180-22N-369L","SN-0HF0K3","NEGRO","Bueno en Uso"]
["02181","SEGUROS","1er","CPU","HP","S53101A","3CR0010WXL","NEGRO","Bueno en Uso"]
["02182","SEGUROS","1er","IMPRESORA MULTIUSO ","CANON","F173700","WU666941","NEGRO","Bueno en Uso"]
["02183","SEGUROS","1er","ZAFACON","N/A","N/A","N/A","CREMA","Bueno en Uso"]
["02184","SEGUROS","1er","ARCHIVO 3 GAVETAS","N/A","N/A","N/A","MELAMINA","Bueno en Uso"]
["02185","SEGUROS","1er","SILLA SEMI-EJECUTIVA","N/A","N/A","N/A","NEGRO","Bueno en Uso"]
["02186","SEGUROS","1er","AIRE ACONDICIONADO","INNOVAIR","N/A","N/A","BLANCO","Bueno en Uso"]
["02778","PASILLO DE AUDITORIA MEDICA","1er","PONCHE","N/A","N/A","N/A","GRIS CON NEGRO","Bueno en Uso"]
["02779","PASILLO DE AUDITORIA MEDICA","1er","DISPENSADOR","N/A","N/A","N/A","N/A","Bueno en Uso"]
["02777","PASILLO DE AUDITORIA MEDICA","1er","EXTINTOR","N/A","N/A","N/A","ROJO","Bueno en Uso"]
["02780","PASILLO DE AUDITORIA MEDICA","1er","CUADRO PARA DECORACION","N/A","N/A","N/A","N/A","Bueno en Uso"]
["02781","PASILLO DE AUDITORIA MEDICA","1er","CUADRO PARA DECORACION","N/A","N/A","N/A","N/A","Bueno en Uso"]
["02782","PASILLO DE AUDITORIA MEDICA","1er","CUADRO PARA DECORACION","N/A","N/A","N/A","N/A","Bueno en Uso"]
["02783","PASILLO DE AUDITORIA MEDICA","1er","EXTINTOR","N/A","N/A","N/A","ROJO","Bueno en Uso"]
["02784","PASILLO DE AUDITORIA MEDICA","1er","CUADRO PARA DECORACION","N/A","N/A","N/A","N/A","Bueno en Uso"]
["02785","PASILLO AL LADO DE SENASA","1er","EXTINTOR","N/A","N/A","N/A","ROJO","Bueno en Uso"]
["02786","PASILLO AL LADO DE IDOPPRIL","1er","EXTINTOR","N/A","N/A","N/A","N/A","Bueno en Uso"]
["02787"," FRENTE A LA PUERTA PRINCIPAL","1er","CAUNTER  ","N/A","N/A","N/A","N/A","Bueno en Uso"]
[]
["01236","CONSULTORIO ORTOPEDIA 1","1er","MESA PARA MEDICAR","N/A","N/A","N/A","ACERO INOX.","Bueno en Uso"]
["01237","CONSULTORIO ORTOPEDIA 1","1er","CAMILLA TIPO DIVAN","N/A","N/A","N/A","AZUL","Bueno en Uso"]
["01238","CONSULTORIO ORTOPEDIA 1","1er","NEGATOSCOPIO","HOSPITECH","N/A","N/A","GRIS OSCURO","Bueno en Uso"]
["01239","CONSULTORIO ORTOPEDIA 1","1er","NEGATOSCOPIO","N/A","N/A","N/A","ACERO INOX.","Bueno en Uso"]
["01240","CONSULTORIO ORTOPEDIA 1","1er","ESCALINATA 1 PELDAÑO","N/A","N/A","N/A","NEGRO","Bueno en Uso"]
["01241","CONSULTORIO ORTOPEDIA  1","1er","DISPENSADOR ELECTRONICO","N/A","KW-1020","N/A","ACERO INOX.","Bueno en Uso"]
["01242","CONSULTORIO ORTOPEDIA 1","1er","ZAFACON","ROGER","N/A","N/A","GRIS OSCURO","Bueno en Uso"]
["01243","CONSULTORIO ORTOPEDIA 1","1er","LAMPARA CUELLO DE GANSO","MICARE","JD1200","N/A","CREMA CON GRIS","Bueno en Uso"]
["01244","CONSULTORIO ORTOPEDIA 1","1er","BALANZA","RICE LAKE","RL-MPS",15091800185,"GRIS CON NEGRO","Bueno en Uso"]
["01245","CONSULTORIO ORTOPEDIA 1","1er","MESA CON TOPE DE MELAMINA","N/A","N/A","N/A","BLANCO","Bueno en Uso"]
["01246","CONSULTORIO ORTOPEDIA 1","1er","SILLA PARA PARA PACIENTES","N/A","N/A","N/A","NEGRO","Bueno en Uso"]
["01247","CONSULTORIO ORTOPEDIA 1","1er","SILLA PARA PARA PACIENTES","N/A","N/A","N/A","NEGRO","Bueno en Uso"]
["01248","CONSULTORIO ORTOPEDIA 1","1er","SILLA PARA PARA PACIENTES","N/A","N/A","N/A","NEGRO","Bueno en Uso"]
["01249","CONSULTORIO ORTOPEDIA 1","1er","ARCHIVO 3 GAVETAS","N/A","N/A","N/A","MELAMINA","Bueno en Uso"]
["01250","CONSULTORIO ORTOPEDIA 1","1er","MONITOR","DELL","N/A","N/A","NEGRO","Bueno en Uso"]
["01251","CONSULTORIO ORTOPEDIA 1","1er","CPU","DELL","OPTIPLEX 990",1861532801,"NEGRO","Bueno en Uso"]
["01252","CONSULTORIO ORTOPEDIA 1","1er","AIRE ACONDICIONADO","IINNVAIR","N/A","N/A","BLANCO","Bueno en Uso"]
[]
["01220","CONSULTORIO ORTOPEDIA 3","1er","MESA PARA MEDICAR","N/A","N/A","N/A","ACERO INOX.","Bueno en Uso"]
["01221","CONSULTORIO ORTOPEDIA 3","1er","ARMARIO","IBK SP","N/A","N/A","GRIS","Bueno en Uso"]
["01222","CONSULTORIO ORTOPEDIA 3","1er","BALANZA","RICE LAKE","RL-MPS",6151800012,"GRIS CON NEGRO","Bueno en Uso"]
["01223","CONSULTORIO ORTOPEDIA 3","1er","CAMILLA TIPO DIVAN","N/A","N/A","N/A","AZUL","Bueno en Uso"]
["01224","CONSULTORIO ORTOPEDIA 3","1er","NEGATOSCOPIO","GRAFCO","N/A","N/A","GRIS","Bueno en Uso"]
["01225","CONSULTORIO ORTOPEDIA 3","1er","DISPENSADOR ELECTRONICO","N/A","KW-2010","N/A","ACERO INOX.","Bueno en Uso"]
["01226","CONSULTORIO ORTOPEDIA 3","1er","LAMPARA CUELLO DE GANSO","MICARE","TD1200","N/A","ACERO INOX.","Bueno en Uso"]
["01227","CONSULTORIO ORTOPEDIA 3","1er","ZAFACON","TRASH BOX","N/A","N/A","GRIS","Bueno en Uso"]
["01228","CONSULTORIO ORTOPEDIA 3","1er","ESCRITORIO CON TOPE EN MELAMINA","N/A","N/A","N/A","BLANCO","Bueno en Uso"]
["01229","CONSULTORIO ORTOPEDIA 3","1er","ARCHIVO 3 GAVETAS","N/A","N/A","N/A","MELAMINA","Bueno en Uso"]
["01230","CONSULTORIO ORTOPEDIA 3","1er","CPU","DELL","OPTIPLEX 3040","3JVFEB2","NEGRO","Bueno en Uso"]
["01231","CONSULTORIO ORTOPEDIA 3","1er","MONITOR","DELL","N/A","64181W-14KV","NEGRO","Bueno en Uso"]
["01232","CONSULTORIO ORTOPEDIA 3","1er","AIRE ACONDICIONADO","INNOVAIR","N/A","N/A","BLANCO","Bueno en Uso"]
["01233","CONSULTORIO ORTOPEDIA 3","1er","SILLA PARA PARA PACIENTES","N/A","N/A","N/A","NEGRO","Bueno en Uso"]
["01234","CONSULTORIO ORTOPEDIA 3","1er","SILLA PARA PARA PACIENTES","N/A","N/A","N/A","NEGRO","Bueno en Uso"]
["01235","CONSULTORIO ORTOPEDIA 3","1er","SILLA PARA PARA PACIENTES","N/A","N/A","N/A","NEGRO","Bueno en Uso"]
[]
["01205","CONSULTORIO ORTOPEDIA 4","1er","MESA PARA MEDICAR","N/A","N/A","N/A","ACERO INOX.","Bueno en Uso"]
["01206","CONSULTORIO ORTOPEDIA 4","1er","ARMARIO","IBK SP","N/A","N/A","GRIS","Bueno en Uso"]
["01207","CONSULTORIO ORTOPEDIA 4","1er","NEGATOSCOPIO","GRAFCO","N/A","N/A","GRIS","Bueno en Uso"]
["01208","CONSULTORIO ORTOPEDIA 4","1er","BALANZA","RICE LAKE","RL-MPS",15091800421,"GRIS CON NEGRO","Bueno en Uso"]
["01209","CONSULTORIO ORTOPEDIA 4","1er","ESCALINATA 1 PELDAÑO","N/A","N/A","N/A","NEGRO","Bueno en Uso"]
["01210","CONSULTORIO ORTOPEDIA 4","1er","DISPENSADOR ELECTRICO","N/A","N/A","N/A","ACERO INOX.","Bueno en Uso"]
["01211","CONSULTORIO ORTOPEDIA 4","1er","CAMILLA TIPO DIVAN","N/A","N/A","N/A","AZUL","Bueno en Uso"]
["01212","CONSULTORIO ORTOPEDIA 4","1er","LAMPARA CUELLO DE GANSO","MICARE","ID1220","N/A","ACERO INOX.","Bueno en Uso"]
["01213","CONSULTORIO ORTOPEDIA 4","1er","ZAFACON","ROGER","N/A","N/A","GRIS OSCURO","Bueno en Uso"]
["01214","CONSULTORIO ORTOPEDIA 4","1er","ESCRITORIO CON TOPE EN MELAMINA","N/A","N/A","N/A","BLANCO","Bueno en Uso"]
["01215","CONSULTORIO ORTOPEDIA 4","1er","SILLA SECRETARIAL","N/A","N/A","N/A","GRIS CON NEGRO","Bueno en Uso"]
["01216","CONSULTORIO ORTOPEDIA 4","1er","ARCHIVO 3 GAVETAS","N/A","N/A","N/A","MELAMINA","Bueno en Uso"]
["01217","CONSULTORIO ORTOPEDIA 4","1er","SILLA PARA PARA PACIENTES","N/A","N/A","N/A","GRIS CON NEGRO","Bueno en Uso"]
["01218","CONSULTORIO ORTOPEDIA 4","1er","SILLA PARA PARA PACIENTES","N/A","N/A","N/A","GRIS CON NEGRO","Bueno en Uso"]
["01219","CONSULTORIO ORTOPEDIA 4","1er","AIRE ACONDICIONADO","INNOVAIR","N/A","N/A","BLANCO","Bueno en Uso"]
[]
["01333","CIRUGIA AMBULAROTIA ","1er","CAUNTER","N/A","N/A","N/A","GRIS","Bueno en Uso"]
["01334","CIRUGIA AMBULAROTIA ","1er","CPU","DELL","OPTIPLEX 700","4KLTMKL","GRIS CON NEGRO","Bueno en Uso"]
["01335","CIRUGIA AMBULAROTIA ","1er","MONITOR","ACER","G185H","N/A","NEGRO","Bueno en Uso"]
["01336","CIRUGIA AMBULAROTIA ","1er","BANCADA 3 ASIENTOS","N/A","N/A","N/A","GRIS","Bueno en Uso"]
["01337","CIRUGIA AMBULAROTIA ","1er","SILLA SECRETARIAL","N/A","N/A","N/A","NEGRO","Bueno en Uso"]
["01338","CIRUGIA AMBULAROTIA ","1er","MANITOR DE SIGNOS VITALES","BIOCARE","M15","C418110016","GRIS CLARO","Bueno en Uso"]
["01339","CIRUGIA AMBULAROTIA ","1er","SILLA DE RUEDAS","BREEZYEC","2000HD","N/A","NEGRO","Bueno en Uso"]
["01340","CIRUGIA AMBULAROTIA ","1er","ELECTROCAUTERIO","ZEUS","N/A","A03BTAP11","GRIS CON AZUL","Bueno en Uso"]
["01341","CIRUGIA AMBULAROTIA ","1er","CARRO PARA MEDICAR","N/A","N/A","N/A","ACERO INOX.","Bueno en Uso"]
["01342","CIRUGIA AMBULAROTIA ","1er","LAMPARA DE REFLACTOR","HF12080716A8","N/A",1341,"BLANCO","Bueno en Uso"]
["01343","CIRUGIA AMBULAROTIA ","1er","MESA DE CIRUGIA","N/A","N/A","N/A","ACERO INOX.","Bueno en Uso"]
["01344","CIRUGIA AMBULAROTIA ","1er","CARRO DE PARO","N/A","N/A","N/A","AZUL Y GRIS","Bueno en Uso"]
["01345","CIRUGIA AMBULAROTIA ","1er","DESFRIBRILADOR","LE-COR","DEFI55","ASS190018","MAMEI","Bueno en Uso"]
["01346","CIRUGIA AMBULAROTIA ","1er","MANITOR DE SIGNOS VITALES","IM15","BIOCARE","C418110013","GRIS","Bueno en Uso"]
["01347","CIRUGIA AMBULAROTIA ","1er","MAQUINA DE ANESTESIA ","ADVANCED","AM-600","CYRZIO15","GRIS","Bueno en Uso"]
["01348","CIRUGIA AMBULAROTIA ","1er","MESA DE PREPARACION DE INSTRU.","N/A","N/A","N/A","ACERO INOX.","Bueno en Uso"]
["01349","CIRUGIA AMBULAROTIA ","1er","VITRINA","N/A","N/A","N/A","ACERO INOX.","Bueno en Uso"]
["01350","CIRUGIA AMBULAROTIA ","1er","PIE DE SUERO","N/A","N/A","N/A","NIQUELADO","Bueno en Uso"]
["01351","CIRUGIA AMBULAROTIA ","1er","ESCALINATA 1 PELDAÑO","N/A","N/A","N/A","NEGRO","Bueno en Uso"]
["01352","CIRUGIA AMBULAROTIA ","1er","ASPIRADOR PORTATIL","N/A","N/A",156736,"BLANCO","Bueno en Uso"]
["01353","CIRUGIA AMBULAROTIA ","1er","ZAFACON","ROGER","N/A","N/A","NEGRP","Bueno en Uso"]
["01354","CIRUGIA AMBULAROTIA ","1er","NEGATOSCOPIO","GRAFCO","INSERT FILM","N/A","GRIS","Bueno en Uso"]
["01355","CIRUGIA AMBULAROTIA ","1er","MESA DE MAYO","N/A","N/A","N/A","ACERO INOX.","Bueno en Uso"]
["01356","CIRUGIA AMBULAROTIA ","1er","ESCALINATA 2 PELDAÑO","N/A","N/A","N/A","NEGRO","Bueno en Uso"]
["01357","CIRUGIA AMBULAROTIA ","1er","RELOJ","N/A","N/A","N/A","MARRON","Bueno en Uso"]
["01360","CIRUGIA AMBULAROTIA ","1er","LOCKER","IBK SP","N/A","N/A","CREMA","Bueno en Uso"]
["01361","CIRUGIA AMBULAROTIA ","1er","ESCALINATA 1 PELDAÑO","N/A","N/A","N/A","ACERO INOX.","Bueno en Uso"]
["01362","CIRUGIA AMBULAROTIA ","1er","BANCADA 3 ASIENTOS","N/A","N/A","N/A","GRIS","Bueno en Uso"]
["01363","CIRUGIA AMBULAROTIA ","1er","BANCADA 3 ASIENTOS","N/A","N/A","N/A","GRIS","Bueno en Uso"]
["01364","CIRUGIA AMBULAROTIA ","1er","BANCADA 3 ASIENTOS","N/A","N/A","N/A","GRIS","Bueno en Uso"]
["01253","CIRUGIA AMBULAROTIA ","1er","MESA PARA MEDICAR","N/A","N/A","N/A","ACERO INOX.","Bueno en Uso"]
["01254","CIRUGIA AMBULAROTIA ","1er","BEBEDERO","SANKEY","N/A","307ST-17120283","BLANCO","Bueno en Uso"]
["01255","CIRUGIA AMBULAROTIA ","1er","NEVERA SEMI-EJECUTIVA","NEDOCA","TRS0500MD","N/A","BLANCO","Bueno en Uso"]
["01256","CIRUGIA AMBULAROTIA ","1er","CAMILLA DE INTERNAMIENTO","N/A","N/A","N/A","BLANCO","Bueno en Uso"]
["01257","CIRUGIA AMBULAROTIA ","1er","CAMILLA DE INTERNAMIENTO","N/A","N/A","N/A","BLANCO","Bueno en Uso"]
["01258","CIRUGIA AMBULAROTIA ","1er","CAMILLA DE INTERNAMIENTO","N/A","N/A","N/A","BLANCO","Bueno en Uso"]
["01259","CIRUGIA AMBULAROTIA ","1er","CAMILLA DE INTERNAMIENTO","N/A","N/A","N/A","BLANCO","Bueno en Uso"]
["01260","CIRUGIA AMBULAROTIA ","1er","ESCALINATA 1 PELDAÑO","N/A","N/A","N/A","NEGRO","Bueno en Uso"]
["01261","CIRUGIA AMBULAROTIA ","1er","PIE DE SUERO","N/A","N/A","N/A","ACERO INOX.","Bueno en Uso"]
["01262","CIRUGIA AMBULAROTIA ","1er","ZAFACON","TRASH BOX","N/A","N/A","GRIS OSCURO","Bueno en Uso"]
["01263","CIRUGIA AMBULAROTIA ","1er","PIE DE SUERO","N/A","N/A","N/A","ACERO INOX.","Bueno en Uso"]
["01264","CIRUGIA AMBULAROTIA ","1er","PIE DE SUERO","N/A","N/A","N/A","ACERO INOX.","Bueno en Uso"]
["01265","CIRUGIA AMBULAROTIA ","1er","BALANZA","RICE LAKE","RL-MPS",1115160251,"GRIS CON NEGRO","Bueno en Uso"]
["01266","CIRUGIA AMBULAROTIA ","1er","ESCALINATA 1 PELDAÑO","N/A","N/A","N/A","ACERO INOX.","Bueno en Uso"]
["01268","CIRUGIA AMBULAROTIA ","1er","ESCALINATA 1 PELDAÑO","N/A","N/A","N/A","NEGRO","Bueno en Uso"]
["01269","CIRUGIA AMBULAROTIA ","1er","MONITOR DE SIGNOS VITALES","BIOCARE","IM12","C318040154","GRIS CON BLANCO","Bueno en Uso"]
["01562","CIRUGIA AMBULAROTIA ","1er","ZAFACON","N/A","N/A","N/A","GRIS OSCURO","Bueno en Uso"]
["01563","CIRUGIA AMBULAROTIA ","1er","TABURETE GIRATORIO","N/A","N/A","N/A","NEGRO","Bueno en Uso"]
["01564","CIRUGIA AMBULAROTIA ","1er","NEGATOSCOPIO","N/A","N/A","N/A","NEGRO","Bueno en Uso"]
["01565","CIRUGIA AMBULAROTIA ","1er","MAQUINA DE ANESTECIA ","ADVANCED","AM-6000","N/A","GRIS CLARO","Bueno en Uso"]
["01566","CIRUGIA AMBULAROTIA ","1er","MONITOR DE SIGNOS VITALES","BIOCARE","IM15","C418110007","BLANCO","Bueno en Uso"]
["01567","CIRUGIA AMBULAROTIA ","1er","PIE DE SUERO","N/A","N/A","N/A","ACERO INOX.","Bueno en Uso"]
["01568","CIRUGIA AMBULAROTIA ","1er","CAMILLA PARA CIRUGIA","N/A","N/A","N/A","NEGRO","Bueno en Uso"]
["01569","CIRUGIA AMBULAROTIA ","1er","ASPIRADOR ","N/A","N/A","VARIO 18","CREMA CON AZUL","Bueno en Uso"]
["01570","CIRUGIA AMBULAROTIA ","1er","CARRO DE PARO CON DESFIBRILADOR","N/A","N/A","N/A","CREMA CON AZUL","Bueno en Uso"]
["01571","CIRUGIA AMBULAROTIA ","1er","TABURETE GIRATORIO","N/A","N/A","N/A","ACERO INOX.","Bueno en Uso"]
["01572","CIRUGIA AMBULAROTIA ","1er","PIE DE SUERO","N/A","N/A","N/A","ACERO INOX.","Bueno en Uso"]
["01573","CIRUGIA AMBULAROTIA ","1er","MESA PARA MEDICAR","N/A","N/A","N/A","ACERO INOX.","Bueno en Uso"]
["01574","CIRUGIA AMBULAROTIA ","1er","ELECTROCAUTERIO","ZEUS","BIPOLAR","N/A","AZUL CON GRIS","Bueno en Uso"]
["01575","CIRUGIA AMBULAROTIA ","1er","LAMPARA DE CIRUGIA SATELITAL","N/A","N/A","HF-120180713","BLANCO CON AZUL","Bueno en Uso"]
["01576","CIRUGIA AMBULAROTIA ","1er","MESA DE MAYO","N/A","N/A","N/A","ACERO INOX.","Bueno en Uso"]
["01577","CIRUGIA AMBULAROTIA ","1er","MESA PARA PREPACION DE INST.","N/A","N/A","N/A","ACERO INOX.","Bueno en Uso"]
["01578","CIRUGIA AMBULAROTIA ","1er","MESA PARA MEDICAR","N/A","N/A","N/A","ACERO INOX.","Bueno en Uso"]
["01579","CIRUGIA AMBULAROTIA ","1er","MESA PARA MEDICAR","N/A","N/A","N/A","ACERO INOX.","Bueno en Uso"]
["01580","CIRUGIA AMBULAROTIA ","1er","TABURETE GIRATORIO","N/A","N/A","N/A","NEGRO","Bueno en Uso"]
["01581","CIRUGIA AMBULAROTIA ","1er","SILLA PARA PARA PACIENTES","N/A","N/A","N/A","CREMA","Bueno en Uso"]
["01582","CIRUGIA AMBULAROTIA ","1er","SILLA DE RUEDAS","N/A","N/A","N/A","NEGRO","Bueno en Uso"]
["01583","CIRUGIA AMBULAROTIA ","1er","LOCKER  GAVETAS","N/A","N/A","N/A","CREMA","Bueno en Uso"]
["01584","CIRUGIA AMBULAROTIA ","1er","LOCKER  GAVETAS","N/A","N/A","N/A","CREMA","Bueno en Uso"]
["01585","CIRUGIA AMBULAROTIA ","1er","BANCADA 2 ASIENTOS  ","N/A","N/A","N/A","NEGRO","Bueno en Uso"]
["01586","CIRUGIA AMBULAROTIA ","1er","BANCADA 4  ASIENTOS  ","N/A","N/A","N/A","N/A","Bueno en Uso"]
[]
["01300","SALA DE ESPERA FRENTE CONSULTORIO 1","1er","LAMPARA CUELLO DE GANSO","N/A","N/A","N/A","BLANCO","Bueno en Uso"]
["01301","SALA DE ESPERA FRENTE CONSULTORIO 1","1er","BANCADA DE 3 ASIENTOS","N/A","N/A","N/A","GRIS","Bueno en Uso"]
["01302","SALA DE ESPERA FRENTE CONSULTORIO 1","1er","BANCADA DE 3 ASIENTOS","N/A","N/A","N/A","GRIS","Bueno en Uso"]
["01303","SALA DE ESPERA FRENTE CONSULTORIO 1","1er","BANCADA DE 3 ASIENTOS","N/A","N/A","N/A","GRIS","Bueno en Uso"]
["01304","SALA DE ESPERA FRENTE CONSULTORIO 1","1er","BANCADA DE 3 ASIENTOS","N/A","N/A","N/A","GRIS","Bueno en Uso"]
["01305","SALA DE ESPERA FRENTE CONSULTORIO 1","1er","BANCADA DE 3 ASIENTOS","N/A","N/A","N/A","GRIS","Bueno en Uso"]
["01306","SALA DE ESPERA FRENTE CONSULTORIO 1","1er","BANCADA DE 3 ASIENTOS","N/A","N/A","N/A","GRIS","Bueno en Uso"]
["01307","SALA DE ESPERA FRENTE CONSULTORIO 1","1er","BANCADA DE 3 ASIENTOS","N/A","N/A","N/A","GRIS","Bueno en Uso"]
["01308","SALA DE ESPERA FRENTE CONSULTORIO 1","1er","BANCADA DE 3 ASIENTOS","N/A","N/A","N/A","GRIS","Bueno en Uso"]
["01309","SALA DE ESPERA FRENTE CONSULTORIO 1","1er","BANCADA DE 3 ASIENTOS","N/A","N/A","N/A","GRIS","Bueno en Uso"]
["01310","SALA DE ESPERA FRENTE CONSULTORIO 1","1er","BANCADA DE 3 ASIENTOS","N/A","N/A","N/A","GRIS","Bueno en Uso"]
["01311","SALA DE ESPERA FRENTE CONSULTORIO 1","1er","BANCADA DE 3 ASIENTOS","N/A","N/A","N/A","GRIS","Bueno en Uso"]
["01312","SALA DE ESPERA FRENTE CONSULTORIO 1","1er","BANCADA DE 3 ASIENTOS","N/A","N/A","N/A","GRIS","Bueno en Uso"]
["01313","SALA DE ESPERA FRENTE CONSULTORIO 1","1er","BANCADA DE 3 ASIENTOS","N/A","N/A","N/A","GRIS","Bueno en Uso"]
["01314","SALA DE ESPERA FRENTE CONSULTORIO 1","1er","CUADRO PARA DECORACION ","N/A","N/A","N/A","N/A","Bueno en Uso"]
["01315","SALA DE ESPERA FRENTE CONSULTORIO 1","1er","MUEBLE","N/A","N/A","N/A","MAMEI","Bueno en Uso"]
["01316","SALA DE ESPERA FRENTE CONSULTORIO 1","1er","MUEBLE","N/A","N/A","N/A","MAMEI","Bueno en Uso"]
["01317","SALA DE ESPERA FRENTE CONSULTORIO 1","1er","MUEBLE","N/A","N/A","N/A","MAMEI","Bueno en Uso"]
["01318","SALA DE ESPERA FRENTE CONSULTORIO 1","1er","MUEBLE","N/A","N/A","N/A","MAMEI","Bueno en Uso"]
["01319","SALA DE ESPERA FRENTE CONSULTORIO 1","1er","BANCADA DE 4 ASIENTOS","N/A","N/A","N/A","GRIS","Bueno en Uso"]
["01320","SALA DE ESPERA FRENTE CONSULTORIO 1","1er","BANCADA DE 4 ASIENTOS","N/A","N/A","N/A","GRIS","Bueno en Uso"]
["01321","SALA DE ESPERA FRENTE CONSULTORIO 1","1er","BANCADA DE 4 ASIENTOS","N/A","N/A","N/A","GRIS","Bueno en Uso"]
["01322","SALA DE ESPERA FRENTE CONSULTORIO 1","1er","BANCADA DE 4 ASIENTOS","N/A","N/A","N/A","GRIS","Bueno en Uso"]
["01323","SALA DE ESPERA FRENTE CONSULTORIO 1","1er","BANCADA DE 4 ASIENTOS","N/A","N/A","N/A","GRIS","Bueno en Uso"]
["01324","SALA DE ESPERA FRENTE CONSULTORIO 1","1er","BANCADA DE 4 ASIENTOS","N/A","N/A","N/A","GRIS","Bueno en Uso"]
["01325","SALA DE ESPERA FRENTE CONSULTORIO 1","1er","BANCADA DE 4 ASIENTOS","N/A","N/A","N/A","GRIS","Bueno en Uso"]
["01326","SALA DE ESPERA FRENTE CONSULTORIO 1","1er","BANCADA DE 4 ASIENTOS","N/A","N/A","N/A","GRIS","Bueno en Uso"]
["01327","SALA DE ESPERA FRENTE CONSULTORIO 1","1er","BANCADA DE 4 ASIENTOS","N/A","N/A","N/A","GRIS","Bueno en Uso"]
["01328","SALA DE ESPERA FRENTE CONSULTORIO 1","1er","BANCADA DE 4 ASIENTOS","N/A","N/A","N/A","GRIS","Bueno en Uso"]
["01365","SALA DE ESPERA FRENTE CONSULTORIO 1","1er","BANCADA DE 3 ASIENTOS","N/A","N/A","N/A","GRIS","Bueno en Uso"]
["01366","SALA DE ESPERA FRENTE CONSULTORIO 1","1er","BANCADA DE 3 ASIENTOS","N/A","N/A","N/A","GRIS","Bueno en Uso"]
["01367","SALA DE ESPERA FRENTE CONSULTORIO 1","1er","BANCADA DE 3 ASIENTOS","N/A","N/A","N/A","GRIS","Bueno en Uso"]
["01368","SALA DE ESPERA FRENTE CONSULTORIO 1","1er","BANCADA DE 3 ASIENTOS","N/A","N/A","N/A","GRIS","Bueno en Uso"]
["01369","SALA DE ESPERA FRENTE CONSULTORIO 1","1er","BANCADA DE 3 ASIENTOS","N/A","N/A","N/A","GRIS","Bueno en Uso"]
["01370","SALA DE ESPERA FRENTE CONSULTORIO 1","1er","BANCADA DE 3 ASIENTOS","N/A","N/A","N/A","GRIS","Bueno en Uso"]
["01371","SALA DE ESPERA FRENTE CONSULTORIO 1","1er","BANCADA DE 3 ASIENTOS","N/A","N/A","N/A","GRIS","Bueno en Uso"]
["01372","SALA DE ESPERA FRENTE CONSULTORIO 1","1er","BANCADA DE 3 ASIENTOS","N/A","N/A","N/A","GRIS","Bueno en Uso"]
["01373","SALA DE ESPERA FRENTE CONSULTORIO 1","1er","BANCADA DE 3 ASIENTOS","N/A","N/A","N/A","GRIS","Bueno en Uso"]
["01374","SALA DE ESPERA FRENTE CONSULTORIO 1","1er","BANCADA DE 3 ASIENTOS","N/A","N/A","N/A","GRIS","Bueno en Uso"]
["01375","SALA DE ESPERA FRENTE CONSULTORIO 1","1er","BANCADA DE 3 ASIENTOS","N/A","N/A","N/A","GRIS","Bueno en Uso"]
["01376","SALA DE ESPERA FRENTE CONSULTORIO 1","1er","ZAFACON","N/A","N/A","N/A","GRIS","Bueno en Uso"]
["01377","SALA DE ESPERA FRENTE CONSULTORIO 1","1er","TELEVISOR","SANKEY","N/A",1377,"NEGRO","Bueno en Uso"]
["01378","SALA DE ESPERA FRENTE CONSULTORIO 1","1er","TELEVISOR","SANKEY","N/A",1378,"NEGRO","Bueno en Uso"]
["01379","SALA DE ESPERA FRENTE CONSULTORIO 1","1er","BANCO","OTOMAN","N/A","N/A","AZUL","Bueno en Uso"]
[]
[]
["01380","PASILLO","1er","BANCO","N/A","N/A","N/A","AZUL","Bueno en Uso"]
["01382","PASILLO","1er","CUADRO PARA DECORACION ","N/A","N/A","N/A","N/A","Bueno en Uso"]
["01383","PASILLO","1er","BANCO","N/A","N/A","N/A","VERDE","Bueno en Uso"]
["01384","PASILLO","1er","BANCO","N/A","N/A","N/A","VERDE","Bueno en Uso"]
["01385","PASILLO","1er","CUADRO PARA DECORACION ","N/A","N/A","N/A","N/A","Bueno en Uso"]
["01386","PASILLO","1er","CUADRO PARA DECORACION ","N/A","N/A","N/A","N/A","Bueno en Uso"]
["01387","PASILLO","1er","EXTINTOR","N/A","N/A","N/A","ROJO","Bueno en Uso"]
["01388","PASILLO","1er","EXTINTOR","N/A","N/A","N/A","ROJO","Bueno en Uso"]
["01389","PASILLO","1er","CUADRO PARA DECORACION ","N/A","N/A","N/A","N/A","Bueno en Uso"]
["01390","PASILLO","1er","CUADRO PARA DECORACION ","N/A","N/A","N/A","N/A","Bueno en Uso"]
["01391","PASILLO","1er","CUADRO PARA DECORACION ","N/A","N/A","N/A","N/A","Bueno en Uso"]
["01392","PASILLO","1er","CUADRO PARA DECORACION ","N/A","N/A","N/A","N/A","Bueno en Uso"]
["01393","PASILLO","1er","CUADRO PARA DECORACION ","N/A","N/A","N/A","N/A","Bueno en Uso"]
["01394","PASILLO","1er","CUADRO PARA DECORACION ","N/A","N/A","N/A","N/A","Bueno en Uso"]
["01395","PASILLO","1er","EXTINTOR","N/A","N/A","N/A","ROJO","Bueno en Uso"]
["01396","PASILLO","1er","CUADRO PARA DECORACION ","N/A","N/A","N/A","N/A","Bueno en Uso"]
["01397","PASILLO","1er","CUADRO PARA DECORACION ","N/A","N/A","N/A","N/A","Bueno en Uso"]
["01398","PASILLO","1er","CUADRO PARA DECORACION ","N/A","N/A","N/A","N/A","Bueno en Uso"]
["01399","PASILLO","1er","EXTINTOR","N/A","N/A","N/A","N/A","Bueno en Uso"]
[]
["01587","INFORMACION AL LADO DE RECUPERACION","1er","SILLA SECRETARIAL","N/A","N/A","N/A","AZUL CON NEGRO","Bueno en Uso"]
["01588","INFORMACION AL LADO DE RECUPERACION","1er","SILLA SECRETARIAL","N/A","N/A","N/A","AZUL CON NEGRO","Bueno en Uso"]
["01589","INFORMACION AL LADO DE RECUPERACION","1er","SILLA SECRETARIAL","N/A","N/A","N/A","AZUL CON NEGRO","Bueno en Uso"]
["01590","INFORMACION AL LADO DE RECUPERACION","1er","MONITOR","DELL","N/A","CN-0D307J","NEGRO","Bueno en Uso"]
["01591","INFORMACION AL LADO DE RECUPERACION","1er","IMPRESORA","CANON","F166400","NCSA226717","GRIS CLARO","Bueno en Uso"]
["01592","INFORMACION AL LADO DE RECUPERACION","1er","MONITOR","DELL","N/A","CN-0DC323","NEGRO","Bueno en Uso"]
["01593","INFORMACION AL LADO DE RECUPERACION","1er","CPU","DELL","OPTIPLEX 7010",2012004,"NEGRO","Bueno en Uso"]
["01594","INFORMACION AL LADO DE RECUPERACION","1er","CPU","HP","N/A",5176,"NEGRO","Bueno en Uso"]
["01595","INFORMACION AL LADO DE RECUPERACION","1er","ZAFACON","N/A","N/A","N/A","GRIS","Bueno en Uso"]
["01596","INFORMACION AL LADO DE RECUPERACION","1er","ESCALINATA 1 PELDAÑO","N/A","N/A","N/A","NEGRO","Bueno en Uso"]
["01608","INFORMACION AL LADO DE RECUPERACION","1er","TELEFONO","CISCO","3844-13-1086","WZP18290UPTT","GRIS CON NEGRO","Bueno en Uso"]
[]
["01597","INFORMACION FRENTE CONSUL. ORTOPEDIA 2","1er","SILLA SECRETARIAL","N/A","N/A","N/A","AZUL CON BLANCO","Bueno en Uso"]
["01598","INFORMACION FRENTE CONSUL. ORTOPEDIA 2","1er","SILLA SECRETARIAL","N/A","N/A","N/A","AZUL CON BLANCO","Bueno en Uso"]
["01599","INFORMACION FRENTE CONSUL. ORTOPEDIA 2","1er","SILLA SECRETARIAL","N/A","N/A","N/A","AZUL CON BLANCO","Bueno en Uso"]
["01600","INFORMACION FRENTE CONSUL. ORTOPEDIA 2","1er","MONITOR","DELL","N/A","O1WV02","NEGRO","Bueno en Uso"]
["01601","INFORMACION FRENTE CONSUL. ORTOPEDIA 2","1er","CPU","DELL","N/A",20160425,"NEGRO","Bueno en Uso"]
["01602","INFORMACION FRENTE CONSUL. ORTOPEDIA 2","1er","IMPRESORA MULTIUSO","CANON","F173700","WQG30379","NEGRO","Bueno en Uso"]
["01603","INFORMACION FRENTE CONSUL. ORTOPEDIA 2","1er","MONITOR","DELL","N/A","O1WV02","NEGRO","Bueno en Uso"]
["01604","INFORMACION FRENTE CONSUL. ORTOPEDIA 2","1er","CPU","DELL","OPTIPLEX 3040",20160425,"NEGRO","Bueno en Uso"]
["01605","INFORMACION FRENTE CONSUL. ORTOPEDIA 2","1er","TELEFONO","CISCO","3844-13-1086","WZP18290VTZ","GRIS CON NEGRO","Bueno en Uso"]
["01606","INFORMACION FRENTE CONSUL. ORTOPEDIA 2","1er","MICROFONO","JBL","CSPM-4","N/A","NEGRO","Bueno en Uso"]
["01607","INFORMACION FRENTE CONSUL. ORTOPEDIA 2","1er","ZAFACON","N/A","N/A","N/A","BLANCO","Bueno en Uso"]
[]
["01609","INFORMACION FRENTE CONSUL. GENERAL 6","1er","MONITOR","HP","L1940T","CNC711NTMG","NEGRO","Bueno en Uso"]
["01610","INFORMACION FRENTE CONSUL. GENERAL 6","1er","CPU","HP","N/A","N/A","NEGRO","Bueno en Uso"]
["01611","INFORMACION FRENTE CONSUL. GENERAL 6","1er","SILLA SECRETARIAL","N/A","N/A","N/A","AZUL CON BLANCO","Bueno en Uso"]
["01612","INFORMACION FRENTE CONSUL. GENERAL 6","1er","ZAFACON","N/A","N/A","N/A","BLANCO","Bueno en Uso"]
["01613","INFORMACION FRENTE CONSUL. GENERAL 6","1er","SILLA SECRETARIAL","N/A","N/A","N/A","AZUL CON BLANCO","Bueno en Uso"]
["01614","INFORMACION FRENTE CONSUL. GENERAL 6","1er","IMPRESORA MULTIUSO","CANON","F173700","WQG12544","NEGRO","Bueno en Uso"]
["01615","INFORMACION FRENTE CONSUL. GENERAL 6","1er","TELEFONO","CISCO","3844-13-1086","WZP189UWG","GIRS CON NEGRO","Bueno en Uso"]
["01616","INFORMACION FRENTE CONSUL. GENERAL 6","1er","MONITOR","HP","L1940T","CNC711NTDV","NEGRO","Bueno en Uso"]
["01617","INFORMACION FRENTE CONSUL. GENERAL 6","1er","CPU","HP","N/A","N/A","NEGRO","Bueno en Uso"]
["01618","INFORMACION FRENTE CONSUL. GENERAL 6","1er","SILLA SECRETARIAL","N/A","N/A","N/A","AZUL CON BLANCO","Bueno en Uso"]
["01619","INFORMACION FRENTE CONSUL. GENERAL 6","1er","SILLA SECRETARIAL","N/A","N/A","N/A","AZUL CON BLANCO","Bueno en Uso"]
["01620","INFORMACION FRENTE CONSUL. GENERAL 6","1er","TELEVISOR","SANKEY","N/A","N/A","NEGRO","Bueno en Uso"]
[]
["01401","SALA DE ESPERA FRENTE CONSULTORIO 7","1er","BANCADA DE 3 ASIENTOS","N/A","N/A","N/A","GRIS OSCURO","Bueno en Uso"]
["01402","SALA DE ESPERA FRENTE CONSULTORIO 7","1er","BANCADA DE 3 ASIENTOS","N/A","N/A","N/A","GRIS OSCURO","Bueno en Uso"]
["01403","SALA DE ESPERA FRENTE CONSULTORIO 7","1er","BANCADA DE 3 ASIENTOS","N/A","N/A","N/A","GRIS OSCURO","Bueno en Uso"]
["01404","SALA DE ESPERA FRENTE CONSULTORIO 7","1er","BANCADA DE 3 ASIENTOS","N/A","N/A","N/A","GRIS OSCURO","Bueno en Uso"]
["01405","SALA DE ESPERA FRENTE CONSULTORIO 7","1er","BANCADA DE 3 ASIENTOS","N/A","N/A","N/A","GRIS OSCURO","Bueno en Uso"]
["01406","SALA DE ESPERA FRENTE CONSULTORIO 7","1er","BANCADA DE 3 ASIENTOS","N/A","N/A","N/A","GRIS OSCURO","Bueno en Uso"]
["01407","SALA DE ESPERA FRENTE CONSULTORIO 7","1er","BANCADA DE 3 ASIENTOS","N/A","N/A","N/A","GRIS OSCURO","Bueno en Uso"]
["01408","SALA DE ESPERA FRENTE CONSULTORIO 7","1er","BANCADA DE 3 ASIENTOS","N/A","N/A","N/A","GRIS OSCURO","Bueno en Uso"]
["01409","SALA DE ESPERA FRENTE CONSULTORIO 7","1er","BANCADA DE 3 ASIENTOS","N/A","N/A","N/A","GRIS OSCURO","Bueno en Uso"]
["01410","SALA DE ESPERA FRENTE CONSULTORIO 7","1er","BANCADA DE 4 ASIENTOS","N/A","N/A","N/A","GRIS OSCURO","Bueno en Uso"]
["01411","SALA DE ESPERA FRENTE CONSULTORIO 7","1er","BANCADA DE 4 ASIENTOS","N/A","N/A","N/A","GRIS OSCURO","Bueno en Uso"]
["01412","SALA DE ESPERA FRENTE CONSULTORIO 7","1er","BANCADA DE 4 ASIENTOS","N/A","N/A","N/A","GRIS OSCURO","Bueno en Uso"]
["01413","SALA DE ESPERA FRENTE CONSULTORIO 7","1er","BANCADA DE 4 ASIENTOS","N/A","N/A","N/A","GRIS OSCURO","Bueno en Uso"]
["01414","SALA DE ESPERA FRENTE CONSULTORIO 7","1er","BANCADA DE 4 ASIENTOS","N/A","N/A","N/A","GRIS OSCURO","Bueno en Uso"]
["01415","SALA DE ESPERA FRENTE CONSULTORIO 7","1er","BANCADA DE 4 ASIENTOS","N/A","N/A","N/A","GRIS OSCURO","Bueno en Uso"]
["01416","SALA DE ESPERA FRENTE CONSULTORIO 7","1er","BANCADA DE 4 ASIENTOS","N/A","N/A","N/A","GRIS OSCURO","Bueno en Uso"]
["01417","SALA DE ESPERA FRENTE CONSULTORIO 7","1er","BANCADA DE 4 ASIENTOS","N/A","N/A","N/A","GRIS OSCURO","Bueno en Uso"]
["01418","SALA DE ESPERA FRENTE CONSULTORIO 7","1er","BANCADA DE 4 ASIENTOS","N/A","N/A","N/A","GRIS OSCURO","Bueno en Uso"]
["01419","SALA DE ESPERA FRENTE CONSULTORIO 7","1er","BANCADA DE 4 ASIENTOS","N/A","N/A","N/A","GRIS OSCURO","Bueno en Uso"]
["01420","SALA DE ESPERA FRENTE CONSULTORIO 7","1er","BANCADA DE 4 ASIENTOS","N/A","N/A","N/A","GRIS OSCURO","Bueno en Uso"]
["01421","SALA DE ESPERA FRENTE CONSULTORIO 7","1er","BANCADA DE 4 ASIENTOS","N/A","N/A","N/A","GRIS OSCURO","Bueno en Uso"]
["01422","SALA DE ESPERA FRENTE CONSULTORIO 7","1er","BANCADA DE 4 ASIENTOS","N/A","N/A","N/A","GRIS OSCURO","Bueno en Uso"]
["01423","SALA DE ESPERA FRENTE CONSULTORIO 7","1er","BANCADA DE 4 ASIENTOS","N/A","N/A","N/A","GRIS OSCURO","Bueno en Uso"]
["01424","SALA DE ESPERA FRENTE CONSULTORIO 7","1er","BANCADA DE 4 ASIENTOS","N/A","N/A","N/A","GRIS OSCURO","Bueno en Uso"]
["01425","SALA DE ESPERA FRENTE CONSULTORIO 7","1er","BANCADA DE 4 ASIENTOS","N/A","N/A","N/A","GRIS OSCURO","Bueno en Uso"]
["01426","SALA DE ESPERA FRENTE CONSULTORIO 7","1er","BANCADA DE 4 ASIENTOS","N/A","N/A","N/A","GRIS OSCURO","Bueno en Uso"]
["01427","SALA DE ESPERA FRENTE CONSULTORIO 7","1er","BANCADA DE 4 ASIENTOS","N/A","N/A","N/A","GRIS OSCURO","Bueno en Uso"]
["01428","SALA DE ESPERA FRENTE CONSULTORIO 7","1er","BANCADA DE 4 ASIENTOS","N/A","N/A","N/A","GRIS OSCURO","Bueno en Uso"]
["01429","SALA DE ESPERA FRENTE CONSULTORIO 7","1er","BANCADA DE 4 ASIENTOS","N/A","N/A","N/A","GRIS OSCURO","Bueno en Uso"]
["01430","SALA DE ESPERA FRENTE CONSULTORIO 7","1er","BANCADA DE 4 ASIENTOS","N/A","N/A","N/A","GRIS OSCURO","Bueno en Uso"]
["01431","SALA DE ESPERA FRENTE CONSULTORIO 7","1er","BANCADA DE 3 ASIENTOS","N/A","N/A","N/A","GRIS OSCURO","Bueno en Uso"]
["01432","SALA DE ESPERA FRENTE CONSULTORIO 7","1er","BANCADA DE 3 ASIENTOS","N/A","N/A","N/A","GRIS OSCURO","Bueno en Uso"]
["01433","SALA DE ESPERA FRENTE CONSULTORIO 7","1er","BANCADA DE 3 ASIENTOS","N/A","N/A","N/A","GRIS OSCURO","Bueno en Uso"]
["01434","SALA DE ESPERA FRENTE CONSULTORIO 7","1er","BANCADA DE 3 ASIENTOS","N/A","N/A","N/A","GRIS OSCURO","Bueno en Uso"]
["01435","SALA DE ESPERA FRENTE CONSULTORIO 7","1er","BANCADA DE 3 ASIENTOS","N/A","N/A","N/A","GRIS OSCURO","Bueno en Uso"]
["01436","SALA DE ESPERA FRENTE CONSULTORIO 7","1er","BANCADA DE 3 ASIENTOS","N/A","N/A","N/A","GRIS OSCURO","Bueno en Uso"]
["01437","SALA DE ESPERA FRENTE CONSULTORIO 7","1er","BANCADA DE 3 ASIENTOS","N/A","N/A","N/A","GRIS OSCURO","Bueno en Uso"]
["01438","SALA DE ESPERA FRENTE CONSULTORIO 7","1er","BANCADA DE 3 ASIENTOS","N/A","N/A","N/A","GRIS OSCURO","Bueno en Uso"]
["01439","SALA DE ESPERA FRENTE CONSULTORIO 7","1er","BANCADA DE 3 ASIENTOS","N/A","N/A","N/A","GRIS OSCURO","Bueno en Uso"]
["01440","SALA DE ESPERA FRENTE CONSULTORIO 7","1er","BANCADA DE 4 ASIENTOS","N/A","N/A","N/A","GRIS OSCURO","Bueno en Uso"]
["01441","SALA DE ESPERA FRENTE CONSULTORIO 7","1er","BANCADA DE 4 ASIENTOS","N/A","N/A","N/A","GRIS OSCURO","Bueno en Uso"]
["01442","SALA DE ESPERA FRENTE CONSULTORIO 7","1er","BANCADA DE 4 ASIENTOS","N/A","N/A","N/A","GRIS OSCURO","Bueno en Uso"]
["01443","SALA DE ESPERA FRENTE CONSULTORIO 7","1er","BANCADA DE 4 ASIENTOS","N/A","N/A","N/A","GRIS OSCURO","Bueno en Uso"]
["01444","SALA DE ESPERA FRENTE CONSULTORIO 7","1er","BANCADA DE 4 ASIENTOS","N/A","N/A","N/A","GRIS OSCURO","Bueno en Uso"]
["01445","SALA DE ESPERA FRENTE CONSULTORIO 7","1er","BANCADA DE 4 ASIENTOS","N/A","N/A","N/A","GRIS OSCURO","Bueno en Uso"]
["01446","SALA DE ESPERA FRENTE CONSULTORIO 7","1er","BANCADA DE 4 ASIENTOS","N/A","N/A","N/A","GRIS OSCURO","Bueno en Uso"]
["01447","SALA DE ESPERA FRENTE CONSULTORIO 7","1er","BANCADA DE 4 ASIENTOS","N/A","N/A","N/A","GRIS OSCURO","Bueno en Uso"]
["01448","SALA DE ESPERA FRENTE CONSULTORIO 7","1er","BANCADA DE 3 ASIENTOS","N/A","N/A","N/A","GRIS OSCURO","Bueno en Uso"]
["01449","SALA DE ESPERA FRENTE CONSULTORIO 7","1er","BANCADA DE 3 ASIENTOS","N/A","N/A","N/A","GRIS OSCURO","Bueno en Uso"]
["01450","SALA DE ESPERA FRENTE CONSULTORIO 7","1er","BANCADA DE 3 ASIENTOS","N/A","N/A","N/A","GRIS OSCURO","Bueno en Uso"]
["01451","SALA DE ESPERA FRENTE CONSULTORIO 7","1er","BANCADA DE 3 ASIENTOS","N/A","N/A","N/A","GRIS OSCURO","Bueno en Uso"]
["01452","SALA DE ESPERA FRENTE CONSULTORIO 7","1er","BANCADA DE 3 ASIENTOS","N/A","N/A","N/A","GRIS OSCURO","Bueno en Uso"]
["01453","SALA DE ESPERA FRENTE CONSULTORIO 7","1er","BANCADA DE 3 ASIENTOS","N/A","N/A","N/A","GRIS OSCURO","Bueno en Uso"]
["01454","SALA DE ESPERA FRENTE CONSULTORIO 7","1er","BANCADA DE 3 ASIENTOS","N/A","N/A","N/A","GRIS OSCURO","Bueno en Uso"]
["01455","SALA DE ESPERA FRENTE CONSULTORIO 7","1er","MUEBLE","N/A","N/A","N/A","VERDE","Bueno en Uso"]
["01456","SALA DE ESPERA FRENTE CONSULTORIO 7","1er","MUEBLE","N/A","N/A","N/A","VERDE","Bueno en Uso"]
["01457","SALA DE ESPERA FRENTE CONSULTORIO 7","1er","MUEBLE","N/A","N/A","N/A","MAMEI","Bueno en Uso"]
["01458","SALA DE ESPERA FRENTE CONSULTORIO 7","1er","MUEBLE","N/A","N/A","N/A","VERDE","Bueno en Uso"]
["01459","SALA DE ESPERA FRENTE CONSULTORIO 7","1er","EXTINTOR","N/A","N/A","N/A","ROJO","Bueno en Uso"]
["01460","SALA DE ESPERA FRENTE CONSULTORIO 7","1er","MUEBLE","N/A","N/A","N/A","MAMEI","Bueno en Uso"]
["01461","SALA DE ESPERA FRENTE CONSULTORIO 7","1er","MUEBLE","N/A","N/A","N/A","MAMEI","Bueno en Uso"]
["01462","SALA DE ESPERA FRENTE CONSULTORIO 7","1er","MUEBLE","N/A","N/A","N/A","MAMEI","Bueno en Uso"]
["01463","SALA DE ESPERA FRENTE CONSULTORIO 7","1er","MUEBLE","N/A","N/A","N/A","VERDE","Bueno en Uso"]
["01464","SALA DE ESPERA FRENTE CONSULTORIO 7","1er","CUADRO GRANDE PARA DECORACION","N/A","N/A","N/A","N/A","Bueno en Uso"]
["01465","SALA DE ESPERA FRENTE CONSULTORIO 7","1er","CUADRO GRANDE PARA DECORACION","N/A","N/A","N/A","N/A","Bueno en Uso"]
["01466","SALA DE ESPERA FRENTE CONSULTORIO 7","1er","CUADRO GRANDE PARA DECORACION","N/A","N/A","N/A","N/A","Bueno en Uso"]
["01467","SALA DE ESPERA FRENTE CONSULTORIO 7","1er","ZAFACON","ROGER","N/A","N/A","NEGRO","Bueno en Uso"]
["01468","SALA DE ESPERA FRENTE CONSULTORIO 7","1er","EXTINTOR","N/A","N/A","N/A","ROJO","Bueno en Uso"]
["01469","SALA DE ESPERA FRENTE CONSULTORIO 7","1er","CUADRO PEQUEÑO PARA DECORACION","N/A","N/A","N/A","N/A","Bueno en Uso"]
["01470","SALA DE ESPERA FRENTE CONSULTORIO 7","1er","MESA PEQUEÑA","N/A","N/A","N/A","MELAMINA","Bueno en Uso"]
["01471","SALA DE ESPERA FRENTE CONSULTORIO 7","1er","BANCO","N/A","N/A","N/A","AZUL","Bueno en Uso"]
["01472","SALA DE ESPERA FRENTE CONSULTORIO 7","1er","EXTINTOR","N/A","N/A","N/A","ROJO","Bueno en Uso"]
[]
["01473","IDOPPRIL","1er","CREDENZA (NO ES PROPIEDAD DEL HOSP.)","N/A","N/A","N/A","N/A","Bueno en Uso"]
["01474","IDOPPRIL","1er","IMPRESORA  (NO ES PROPIEDAD DEL HOSP.)","HP","LASER JET  PRO M402N","PHBHK78683","BLANCA","Bueno en Uso"]
["01475","IDOPPRIL","1er","SILLA SECRETARIAL  (NO ES PROPIEDAD DEL HOSP.)","N/A","N/A","N/A","NEGRO","Bueno en Uso"]
["01476","IDOPPRIL","1er","TELEFONO  (NO ES PROPIEDAD DEL HOSP.)","CISCO","3844-13-1086","WZP182900WQ","NEGRO CON GRIS","Bueno en Uso"]
["01477","IDOPPRIL","1er","MONITOR  (NO ES PROPIEDAD DEL HOSP.)","DELL","N/A","CN-OY01GT","NEGRO","Bueno en Uso"]
[]
["01185","AREA DE VACUNA","1er","MESA PARA MEDICAR","N/A","N/A","N/A","ACERO INOX.","Bueno en Uso"]
["01186","AREA DE VACUNA","1er","CAMILLA TIPO DIVAN","N/A","N/A","N/A","AZUL","Bueno en Uso"]
["01187","AREA DE VACUNA","1er","NEVERA","GENERAL ELECTRIC","N/A",53673,"BLANCO","Bueno en Uso"]
["01188","AREA DE VACUNA","1er","NEGATOSCOPIO","GRAFCO","N/A","N/A","NGRIS","Bueno en Uso"]
["01189","AREA DE VACUNA","1er","DISPENSADOR ELECTRICO","N/A","KW-120","N/A","ACERO INOX.","Bueno en Uso"]
["01190","AREA DE VACUNA","1er","ARMARIO","N/A","N/A","N/A","GRIS","Bueno en Uso"]
["01191","AREA DE VACUNA","1er","NEVERA EJECUTIVA","GENERAL ELECTRIC","TA04D04EX","0707A200880","BLANCO","Bueno en Uso"]
["01192","AREA DE VACUNA","1er","ESCALINATA 1 PELDAÑO","N/A","N/A","N/A","NEGRO","Bueno en Uso"]
["01193","AREA DE VACUNA","1er","SET DE DIAGNOSTICO","YUWELL","X1812024","N/A","CREMA","Bueno en Uso"]
["01194","AREA DE VACUNA","1er","ESFIGMOMANOMETRO","YUWELL","N/A","N/A","GRIS CLARO","Bueno en Uso"]
["01195","AREA DE VACUNA","1er","ZAFACON","TRASH BOX","N/A","N/A","GRIS","Bueno en Uso"]
["01196","AREA DE VACUNA","1er","AIRE ACONDICIONADO","INNVAIR","N/A","N/A","BLANCO","Bueno en Uso"]
["01197","AREA DE VACUNA","1er","ESCRITORIO CON TOPE DE MELAMINA","N/A","N/A","N/A","MELAMINA","Bueno en Uso"]
["01198","AREA DE VACUNA","1er","ARCHIVO 3 GAVETAS","N/A","N/A","N/A","MELAMINA","Bueno en Uso"]
["01199","AREA DE VACUNA","1er","SILLA SECRETARIAL","N/A","N/A","N/A","NEGRO CON CREMA","Bueno en Uso"]
["01200","AREA DE VACUNA","1er","TELEFONO","CISCO","3844-13-1086","WZP18290V08","GRIS OSCURO","Bueno en Uso"]
["01201","AREA DE VACUNA","1er","SILLA  PARA PACIENTES","N/A","N/A","N/A","NEGRO","Bueno en Uso"]
["01202","AREA DE VACUNA","1er","SILLA  PARA PACIENTES","N/A","N/A","N/A","NEGRO","Bueno en Uso"]
["01203","AREA DE VACUNA","1er","TUBURETE GIRATORIO","N/A","N/A","N/A","ACERO INOX.","Bueno en Uso"]
["01204","AREA DE VACUNA","1er","BANCADA 3 ASIENTOS","N/A","N/A","N/A","GRIS","Bueno en Uso"]
[]
["01270","PIE DIABETICO","1er","ESCRITORIO ","N/A","N/A","N/A","GRIS","Bueno en Uso"]
["01271","PIE DIABETICO","1er","ARMARIO","N/A","N/A","N/A","CREMA","Bueno en Uso"]
["01272","PIE DIABETICO","1er","SILLA SECRETARIAL","N/A","N/A","N/A","NEGRO","Bueno en Uso"]
["01273","PIE DIABETICO","1er","SILLA SECRETARIAL","N/A","N/A","N/A","AZUL","Bueno en Uso"]
["01274","PIE DIABETICO","1er","SILLA SECRETARIAL","N/A","N/A","N/A","AZUL","Bueno en Uso"]
["01275","PIE DIABETICO","1er","SILLA SECRETARIAL","N/A","N/A","N/A","AZUL","Bueno en Uso"]
["01276","PIE DIABETICO","1er","IMPRESORA","HP","LASER JET 1000","VNB3N37275","NEGRO","Bueno en Uso"]
["01278","PIE DIABETICO","1er","CPU","DELL","PAVILION P6000","MX81298MJX","NEGRO","Bueno en Uso"]
["01279","PIE DIABETICO","1er","BANCADA 3 ASIENTOS","N/A","N/A","N/A","GRIS","Bueno en Uso"]
["01280","PIE DIABETICO","1er","SILLA  PARA PACIENTES","N/A","N/A","N/A","AZUL","Bueno en Uso"]
["01281","PIE DIABETICO","1er","BANCADA 3 ASIENTOS","N/A","N/A","N/A","GRIS","Bueno en Uso"]
["01282","PIE DIABETICO","1er","CAMILLA TIPO DIVAN","N/A","N/A","N/A","AZUL","Bueno en Uso"]
["01283","PIE DIABETICO","1er","SILLA PARA PASIENTES","N/A","N/A","N/A","AZUL","Bueno en Uso"]
["01284","PIE DIABETICO","1er","SILLA PARA PASIENTES","N/A","N/A","N/A","AZUL","Bueno en Uso"]
["01285","PIE DIABETICO","1er","SILLA PARA PASIENTES","N/A","N/A","N/A","AZUL","Bueno en Uso"]
[]
["01503","SALA DE CURA","1er","CAMILLA DE TRANSPORTE","N/A","N/A","N/A","BLANCO CON AZUL","Bueno en Uso"]
["01504","SALA DE CURA","1er","MESA DE INSTRUMENTO","N/A","N/A","N/A","ACERO INOX.","Bueno en Uso"]
["01505","SALA DE CURA","1er","ESCALINATA 2 PELDAÑO","N/A","N/A","N/A","ACERO INOX.","Bueno en Uso"]
["01506","SALA DE CURA","1er","ZAFACON ","N/A","N/A","N/A","MOSTAZA","Bueno en Uso"]
["01507","SALA DE CURA","1er","MESA PARA MEDICAR","N/A","N/A","N/A","ACERO INOX.","Bueno en Uso"]
["01508","SALA DE CURA","1er","TABURETE GIRATORIO","N/A","N/A","N/A","NEGRO","Bueno en Uso"]
["01509","SALA DE CURA","1er","CAMILLA TIPO DIVAN","N/A","N/A","N/A","CREMA","Bueno en Uso"]
["01510","SALA DE CURA","1er","LAMPARA DE CIRUGIA","ADVANCED","SL 500",14040325,"CREMA","Bueno en Uso"]
[]
["01511","SALA DE CURA (REDUCCION)","1er","TABURETE GIRATORIO","N/A","N/A","N/A","NEGRO","Bueno en Uso"]
["01512","SALA DE CURA (REDUCCION)","1er","SILLA  PARA PACIENTES","N/A","N/A","N/A","NEGRO","Bueno en Uso"]
["01513","SALA DE CURA (REDUCCION)","1er","BANCADA DE 3 ASIENTOS","N/A","N/A","N/A","AZUL","Bueno en Uso"]
["01514","SALA DE CURA (REDUCCION)","1er","BANCADA DE 3 ASIENTOS","N/A","N/A","N/A","AZUL","Bueno en Uso"]
["01515","SALA DE CURA (REDUCCION)","1er","BANCADA DE 5 ASIENTOS","N/A","N/A","N/A","AZUL","Bueno en Uso"]
[]
["01492","SALA DE YESO","1er","CAMILLA TIPO DIVAN","N/A","N/A","N/A","AZUL","Bueno en Uso"]
["01493","SALA DE YESO","1er","CARRITO PARA MEDICAR","N/A","N/A","N/A","ACERO INOX.","Bueno en Uso"]
["01494","SALA DE YESO","1er","FREGADERO","N/A","N/A","N/A","ACERO INOX.","Bueno en Uso"]
["01495","SALA DE YESO","1er","ZAFACON ","N/A","N/A","N/A","ROJO","Bueno en Uso"]
["01496","SALA DE YESO","1er","PIE DE SUERO","N/A","N/A","N/A","ACERO INOX.","Bueno en Uso"]
["01497","SALA DE YESO","1er","ESCALINATA 1 PELDAÑO","N/A","N/A","N/A","ACERO INOX.","Bueno en Uso"]
["01498","SALA DE YESO","1er","ARMARIO","IBK SP","N/A","N/A","GRIS OSCURO","Bueno en Uso"]
["01499","SALA DE YESO","1er","TABURETE GIRATORIO","N/A","N/A","N/A","GRIS CON NEGRO","Bueno en Uso"]
["01500","SALA DE YESO","1er","SIERRA","DE SOOTTER","SS4 100","N/A","GRIS","Bueno en Uso"]
["01501","SALA DE YESO","1er","SIERRA","DE SOOTTER","SS4 101","N/A","GRIS","Bueno en Uso"]
["01502","SALA DE YESO","1er","ASPIRADORA","DE SOOTTER","CCS",191321517,"BLANCO","Bueno en Uso"]
[{"$nulls":5},"N/A","N/A"]
["01707","SENASA ","1er","SILLA SECRETORIAL ","N/A","N/A","N/A","GRIS CON NEGRO","Bueno en Uso"]
["01708","SENASA ","1er","SILLA SECRETORIAL ","N/A","N/A","N/A","GRIS CON NEGRO","Bueno en Uso"]
["01709","SENASA ","1er","CAUNTER 3 DIVISIONES ","N/A","N/A","N/A","AMARILLO ","Bueno en Uso"]
["01710","SENASA ","1er","SILLA PARA VISITAS ","N/A","N/A","N/A","NEGRA","Bueno en Uso"]
["01711","SENASA ","1er","TELEFONO ","DISCO ","3844-13-1086","WZP18290UUG","GRIS CON NEGRO","Bueno en Uso"]
["01712","SENASA ","1er","TELEFONO ","DISCO ","3844-13-1086","WZ918290UW","GRIS CON NEGRO","Bueno en Uso"]
["01713","SENASA ","1er","MESITA ","N/A","N/A","N/A","MELAMINA","Bueno en Uso"]
["01714","SENASA ","1er","AIRE ACONDICIONADO ","INNOVAIR","N/A","N/A","BLANCO ","Bueno en Uso"]
["01715","SENASA ","1er","ESCRITORIO ","N/A","N/A","N/A","GRIS CON AMARILLO","Bueno en Uso"]
["01716","SENASA ","1er","MESA PEQUEÑA","N/A","N/A","N/A","MELAMINA","Bueno en Uso"]
["01717","SENASA ","1er","ESCRITORIO ","N/A","N/A","N/A","AMARILLO ","Bueno en Uso"]
["01718","SENASA ","1er","ARCHIVO 3 GAVETA ","N/A","N/A","N/A","OSCURO CREMA","Bueno en Uso"]
["01719","SENASA ","1er","SILLA PARA VISITAS ","N/A","N/A","N/A","NEGRA","Bueno en Uso"]
["01720","SENASA ","1er","SILLA PARA VISITAS ","N/A","N/A","N/A","NEGRA","Bueno en Uso"]
["01721","SENASA ","1er","SILLA PARA VISITAS ","N/A","N/A","N/A","NEGRA","Bueno en Uso"]
["01722","SENASA ","1er","SILLA PARA VISITAS ","N/A","N/A","N/A","NEGRA","Bueno en Uso"]
["01723","SENASA ","1er","AIRE ACONDICIONADO ","INNOVAIR","N/A","N/A","BLANCO ","Bueno en Uso"]
[]
["01724","CENTRAL DE MONITOREO","1er","ESCRITORIO ","N/A","N/A","N/A","AMARILLO ","Bueno en Uso"]
["01725","CENTRAL DE MONITOREO","1er","MONITOR ","KTC",40015,121921958640,"NEGRO ","Bueno en Uso"]
["01726","CENTRAL DE MONITOREO","1er","MONITOR ","KTC",40015,692195640121,"NEGRO ","Bueno en Uso"]
["01727","CENTRAL DE MONITOREO","1er","ARCHIVO 3 GAVETAS ","N/A","N/A","N/A","AMARILLO ","Bueno en Uso"]
["01728","CENTRAL DE MONITOREO","1er","MESA PLATICA ","N/A","N/A","N/A","GRIS CLORO","Bueno en Uso"]
["01729","CENTRAL DE MONITOREO","1er","ZAFACON","N/A","N/A","N/A","GRIS","Bueno en Uso"]
["01730","CENTRAL DE MONITOREO","1er","SILLA PARA VISITAS ","N/A","N/A","N/A","AZUL","Bueno en Uso"]
["01731","CENTRAL DE MONITOREO","1er","SILLA SECRETORIAL ","N/A","N/A","N/A","NEGRA","Bueno en Uso"]
["00880","CENTRAL DE MONITOREO","1er","SILLA PARA VISITAS ","BUSCOR","N/A","N/A",null,"Bueno en Uso"]
["01732","CENTRAL DE MONITOREO","1er","PANEL DE CONTROL","N/A","N/A","N/A","ROJO VINO CON GRIS","Bueno en Uso"]
["01733","CENTRAL DE MONITOREO","1er","PANEL DE CONTROL","N/A","N/A","N/A","ROJO VINO CON GRIS","Bueno en Uso"]
["01734","CENTRAL DE MONITOREO","1er","TELEFONO ","CISCO","CP97821-39W","WZP21267EF","GRIS NEGRO ","Bueno en Uso"]
["01735","CENTRAL DE MONITOREO","1er","AIRE ACONDICIONADO ","INNOVAIR ","N/A","N/A","BLANCO ","Bueno en Uso"]
["01736","CENTRAL DE MONITOREO","1er","PANEL DE CONTROL","N/A","N/A","N/A","ROJO VINO CON GRIS","Bueno en Uso"]
[]
["01737","MEDICINA AMBULATORIA","1er","CAMINADOR DE PRUEBA DE ESFUERZO","BAILER","N/A","N/A","ACERO INOXIDABLE ","Bueno en Uso"]
["01738","MEDICINA AMBULATORIA","1er","ESCALINATA","CLINTON ","N/A","N/A","MADERA NATURAL","Bueno en Uso"]
["01739","MEDICINA AMBULATORIA","1er","ARCHIVO ","N/A","N/A","N/A","MELAMINA","Bueno en Uso"]
["01740","MEDICINA AMBULATORIA","1er","SILLA SECRETORIAL ","N/A","N/A","N/A","CREMA Y NEGRO ","Bueno en Uso"]
["01741","MEDICINA AMBULATORIA","1er","SILLA  PARA PACIENTES","N/A","N/A","N/A","NEGRA ","Bueno en Uso"]
["01742","MEDICINA AMBULATORIA","1er","SILLA  PARA PACIENTES","N/A","N/A","N/A","AZUL","Bueno en Uso"]
["01743","MEDICINA AMBULATORIA","1er","CAMILLA TIPO DIVAN ","N/A","N/A","N/A","AZUL","Bueno en Uso"]
["01744","MEDICINA AMBULATORIA","1er","CAR TABURETA ","N/A","N/A","N/A","AZUL Y CREMA ","Bueno en Uso"]
["01745","MEDICINA AMBULATORIA","1er","TABURETA GIRATORIO ","N/A","N/A","N/A","NEGRO ","Bueno en Uso"]
["01746","MEDICINA AMBULATORIA","1er","ESCALINATA CON FONDO NEGRO ","N/A","N/A","N/A","ACERO INOXIDABLE ","Bueno en Uso"]
["01747","MEDICINA AMBULATORIA","1er","ESCALINATA CON FONDO NEGRO ","N/A","N/A","N/A","ACERO INOXIDABLE ","Bueno en Uso"]
["01748","MEDICINA AMBULATORIA","1er","UN SET DE DIGANOSTICO ","YUWELLKPA","N/A","N/A","CREMA Y NEGRO ","Bueno en Uso"]
["01749","MEDICINA AMBULATORIA","1er","ULTRASONIDO SOUND CORE PLUS",null,"CROSCOE","SZP17090016","BLANCO ","Bueno en Uso"]
["01751","MEDICINA AMBULATORIA","1er","THERATOUCH DX2","RICHMAR",null,null,"BLANCO ","Bueno en Uso"]
["01752","MEDICINA AMBULATORIA","1er","AIRE INNOVAIR ",{"$nulls":3},"BLANCO ","Bueno en Uso"]
["01753","MEDICINA AMBULATORIA","1er","BAÑO DE MARIA ","WHITEHALL",null,17525862,"ACERO INOXIDABLE ","Bueno en Uso"]
["01754","MEDICINA AMBULATORIA","1er","SILLA PARA VISITAS ","N/A","N/A","N/A","AZUL","Bueno en Uso"]
["01755","MEDICINA AMBULATORIA","1er","SILLA PARA VISITAS ","N/A","N/A","N/A","NEGRO ","Bueno en Uso"]
["01756","MEDICINA AMBULATORIA","1er","ESPEJO VISITA ","N/A","N/A","N/A","AMARILLO ","Bueno en Uso"]
["01757","MEDICINA AMBULATORIA","1er","BAÑO DE MARIA ","POROMED","VLDE",2710," BLANCO HUESO","Bueno en Uso"]
["01758","MEDICINA AMBULATORIA","1er","SILLA PARA VISITAS ","N/A","N/A","N/A","AZUL","Bueno en Uso"]
["01759","MEDICINA AMBULATORIA","1er","ESCALINATA CON PELDOÑO","N/A","N/A","N/A","NEGRO ","Bueno en Uso"]
["01760","MEDICINA AMBULATORIA","1er","CANDO MAGNETICO ","N/A","N/A","N/A","BLANCO ","Bueno en Uso"]
["01761","MEDICINA AMBULATORIA","1er","CANDO MAGNETICO ","N/A","N/A","N/A","BLANCO ","Bueno en Uso"]
["01762","MEDICINA AMBULATORIA","1er","CAMILLA TIPO DIVAN ","N/A","N/A","N/A","AZUL","Bueno en Uso"]
["01763","MEDICINA AMBULATORIA","1er","ESCALINATA 2 PELDAÑO","N/A","N/A","N/A","NEGRO ","Bueno en Uso"]
["01764","MEDICINA AMBULATORIA","1er","AIRE ACONDICIONADO ","INNOVAIR","N/A","N/A","BLANCO ","Bueno en Uso"]
[]
["01765","PASILLO FRENTE A SENASA ","1er","MUEBLE ","N/A","N/A","N/A","MAMEI","Bueno en Uso"]
["01766","PASILLO FRENTE A SENASA ","1er","MUEBLE ","N/A","N/A","N/A","AZUL","Bueno en Uso"]
["01767","PASILLO FRENTE A SENASA ","1er","MUEBLE ","N/A","N/A","N/A","VERDE ","Bueno en Uso"]
["01768","PASILLO FRENTE A SENASA ","1er","MUEBLE ","N/A","N/A","N/A","MAMEI","Bueno en Uso"]
["01769","PASILLO FRENTE A SENASA ","1er","MUEBLE ","N/A","N/A","N/A","VERDE ","Bueno en Uso"]
["01770","PASILLO FRENTE A SENASA ","1er","MUEBLE ","N/A","N/A","N/A","MAMEI","Bueno en Uso"]
["01771","PASILLO FRENTE A SENASA ","1er","BANCADA 3 ASIENTO ","N/A","N/A","N/A","ACERO INOXIDABLE ","Bueno en Uso"]
["01772","PASILLO FRENTE A SENASA ","1er","CUADRO PARA DECORACION ","N/A","N/A","N/A","N/A","Bueno en Uso"]
["01773","PASILLO FRENTE A SENASA ","1er","CUADRO PARA DECORACION ","N/A","N/A","N/A","N/A","Bueno en Uso"]
["01774","PASILLO FRENTE A SENASA ","1er","CUADRO PARA DECORACION ","N/A","N/A","N/A","N/A","Bueno en Uso"]
[]
["01775","DIRECCION MEDICA","1er","IMPRESORA ","CANON","F173700","WQ642360","NEGRO ","Bueno en Uso"]
["01776","DIRECCION MEDICA","1er","ARCHIVO PEQUEÑO 3 GAVETAS ","N/A","N/A","N/A","CREMA  ","Bueno en Uso"]
["01777","DIRECCION MEDICA","1er","ESCRITORIO ","N/A","N/A","N/A","AMARILLO ","Bueno en Uso"]
["01778","DIRECCION MEDICA","1er","ARCHIVO PEQUEÑO 3 GAVETAS ","N/A","N/A","N/A","GRIS ","Bueno en Uso"]
["01779","DIRECCION MEDICA","1er","SILLA SEMI-EJECUTIVA","N/A","N/A","N/A","NEGRA ","Bueno en Uso"]
["01780","DIRECCION MEDICA","1er","ARCHIVO Y GAVETAS ","N/A","N/A","N/A","CREMA","Bueno en Uso"]
["01781","DIRECCION MEDICA","1er","MONITOR ","DELL","D981-A00","CN-01WV02","NEGRO ","Bueno en Uso"]
["01782","DIRECCION MEDICA","1er","CPU","DELL","N/A",25180052509,"NEGRO ","Bueno en Uso"]
["01783","DIRECCION MEDICA","1er","SILLA PARA VISITAS ","N/A","N/A","N/A","NEGRO ","Bueno en Uso"]
["01784","DIRECCION MEDICA","1er","SILLA PARA VISITAS ","N/A","N/A","N/A","NEGRO ","Bueno en Uso"]
["01785","DIRECCION MEDICA","1er","SILLA PARA VISITAS ","N/A","N/A","N/A","NEGRO ","Bueno en Uso"]
["01786","DIRECCION MEDICA","1er","TELEFONO ","CISCO","3844-13-1086","NHW2P18500","GRIS CON NEGRO ","Bueno en Uso"]
["01787","DIRECCION MEDICA","1er","SILLA PARA VISITAS ","N/A","N/A","N/A","NEGRO ","Bueno en Uso"]
["01788","DIRECCION MEDICA","1er","ESCRITORIO ","N/A","N/A","N/A","AMARILLO ","Bueno en Uso"]
["01789","DIRECCION MEDICA","1er","SOFA","N/A","N/A","N/A","VERDE","Bueno en Uso"]
["01790","DIRECCION MEDICA","1er","CREDENZA ","N/A","N/A","N/A","AMARILLO ","Bueno en Uso"]
["01791","DIRECCION MEDICA","1er","ARCHIVO 3 GAVETAS ","N/A","N/A","N/A","AMARILLO ","Bueno en Uso"]
["01792","DIRECCION MEDICA","1er","SILLA SEMI-EJECUTIVA","N/A","N/A","N/A","NEGRA ","Bueno en Uso"]
["01793","DIRECCION MEDICA","1er","ZAFACON ","N/A","N/A","N/A","CREMA ","Bueno en Uso"]
["01794","DIRECCION MEDICA","1er","CPU","HP","N/A","N/A","NEGRO ","Bueno en Uso"]
["01795","DIRECCION MEDICA","1er","MONITOR ","EMACHINES ","E182HD",20254037,"NEGRO ","Bueno en Uso"]
["01796","DIRECCION MEDICA","1er","CUADRO PARA DECORACION ","N/A","N/A","N/A",null,"Bueno en Uso"]
["01797","DIRECCION MEDICA","1er","MESITA ","N/A","N/A","N/A","MALAMINA","Bueno en Uso"]
["01798","DIRECCION MEDICA","1er","NEVERA EJECUTIVA ","TECNOMASTER","N/A","N/A","NEGRA ","Bueno en Uso"]
["01799","DIRECCION MEDICA","1er","AIRE ACONDICIONADO ","INNOVAIR ","N/A","N/A","BLANCO ","Bueno en Uso"]
["01800","DIRECCION MEDICA","1er","AIRE ACONDICIONADO ","INNOVARI","N/A","N/A","BLANCO ","Bueno en Uso"]
["01801","DIRECCION MEDICA","1er","AIRE ACONDICIONADO ","INNOVAIR","N/A","N/A","BLANCO ","Bueno en Uso"]
["01802","DIRECCION MEDICA","1er","AIRE ACONDICIONADO ","INNOVAIR","N/A","N/A","BLANCO ","Bueno en Uso"]
[]
["01622","ADMISION","1er","SILLA SECRETARIAL","N/A","N/A","N/A","CREMA CON NEGRO","Bueno en Uso"]
["01623","ADMISION","1er","SILLA SECRETARIAL","N/A","N/A","N/A","CREMA CON NEGRO","Bueno en Uso"]
["01624","ADMISION","1er","SILLA SECRETARIAL","N/A","N/A","N/A","CREMA CON NEGRO","Bueno en Uso"]
["01625","ADMISION","1er","SILLA SECRETARIAL","N/A","N/A","N/A","CREMA CON NEGRO","Bueno en Uso"]
["01626","ADMISION","1er","SILLA SECRETARIAL","N/A","N/A","N/A","CREMA CON NEGRO","Bueno en Uso"]
["01627","ADMISION","1er","SILLA SECRETARIAL","N/A","N/A","N/A","CREMA CON NEGRO","Bueno en Uso"]
["01628","ADMISION","1er","SILLA SECRETARIAL","N/A","N/A","N/A","CREMA CON NEGRO","Bueno en Uso"]
["01629","ADMISION","1er","SILLA SECRETARIAL","N/A","N/A","N/A","CREMA CON NEGRO","Bueno en Uso"]
["01630","ADMISION","1er","SILLA SECRETARIAL","N/A","N/A","N/A","CREMA CON NEGRO","Bueno en Uso"]
["01631","ADMISION","1er","MESA PEQUEÑA","N/A","N/A","N/A","MELAMINA","Bueno en Uso"]
["01632","ADMISION","1er","ARCHVIO PEQUEÑO 3 GAVETAS","N/A","N/A","N/A","CREMA","Bueno en Uso"]
["01633","ADMISION","1er","MONITOR","DELL","N/A","CN-01WV02","NEGRO","Bueno en Uso"]
["01634","ADMISION","1er","CPU","DELL","N/A",7708525454,"NEGRO","Bueno en Uso"]
["01635","ADMISION","1er","CAUNTER 4 DIVISIONES","N/A","N/A","N/A","GRIS","Bueno en Uso"]
["01636","ADMISION","1er","CPU","COMPAQ","CQ5700F","3CR107BMR","NEGRO","Bueno en Uso"]
["01637","ADMISION","1er","MONITOR","HP","N/A","CND715134CB","NEGRO","Bueno en Uso"]
["01638","ADMISION","1er","CPU","PAVILION P6000","N/A","MX8121095Z","NEGRO","Bueno en Uso"]
["01639","ADMISION","1er","MONITOR","EMACHINES","E182HD",24036,"NEGRO","Bueno en Uso"]
["01640","ADMISION","1er","IMPRESORA MULTIUSO","CANON","F17370","WOF35688","NEGRO","Bueno en Uso"]
["01641","ADMISION","1er","CAUNTER 2 DIVISIONES","N/A","N/A","N/A","GRIS","Bueno en Uso"]
["01642","ADMISION","1er","CPU","HP","N/A","1240KRC","NEGRO","Bueno en Uso"]
["01643","ADMISION","1er","MONITOR","HP","LP1965","CNN7280Y7C","NEGRO","Bueno en Uso"]
["01644","ADMISION","1er","MUEBLE","N/A","N/A","N/A","VERDE","Bueno en Uso"]
["01645","ADMISION","1er","MESA PEQUEÑA","N/A","N/A","N/A","MELAMINA","Bueno en Uso"]
["01646","ADMISION","1er","MUEBLE","N/A","N/A","N/A","VERDE","Bueno en Uso"]
["01647","ADMISION","1er","CAUNTER 2 DIVISIONES","N/A","N/A","N/A","GRIS","Bueno en Uso"]
["01648","ADMISION","1er","CAUNTER 2 DIVISIONES","N/A","N/A","N/A","GRIS","Bueno en Uso"]
["01649","ADMISION","1er","MESA PEQUEÑA","N/A","N/A","N/A","MELAMINA","Bueno en Uso"]
["01650","ADMISION","1er","CPU","HP","N/A","4CW124171X","NEGRO","Bueno en Uso"]
["01651","ADMISION","1er","MONITOR","HP","N/A","CNN7280YYT","NEGRO","Bueno en Uso"]
["01652","ADMISION","1er","TELEFONO","CISCO","3844-13-1086","WZP18500NT4","NEGRO CON GRIS","Bueno en Uso"]
["01653","ADMISION","1er","MICROONDAS","SAMSUNG","AMW832K","00133F","BLANCO","Bueno en Uso"]
["01654","ADMISION","1er","MESA PARA COMER","N/A","N/A","N/A","CREMA","Bueno en Uso"]
["01655","ADMISION","1er","SILLA DE CAFETERIA","N/A","N/A","N/A","VERDE","Bueno en Uso"]
["01656","ADMISION","1er","SILLA DE CAFETERIA","N/A","N/A","N/A","VERDE","Bueno en Uso"]
["01657","ADMISION","1er","SILLA DE CAFETERIA","N/A","N/A","N/A","VERDE","Bueno en Uso"]
["01658","ADMISION","1er","SILLA DE CAFETERIA","N/A","N/A","N/A","VERDE","Bueno en Uso"]
["01659","ADMISION","1er","ZAFACON","FRASH BOX","N/A","N/A","GRIS","Bueno en Uso"]
["01660","ADMISION","1er","SILLA SECRETARIAL","N/A","N/A","N/A","NEGRO CON AZUL","Bueno en Uso"]
["01661","ADMISION","1er","MESA PARA COMPUTADORA","N/A","N/A","N/A","NEGRO","Bueno en Uso"]
["01662","ADMISION","1er","NEVERA EJECUTIVA","TECNOMARTER","N/A","0B0963","NEGRO","Bueno en Uso"]
["01663","ADMISION","1er","SILLA DE RUEDAS","KX MEDICAL","N/A","N/A","NEGRO","Bueno en Uso"]
["01664","ADMISION","1er","CUADRO PARA DECORACION","N/A","N/A","N/A","N/A","Bueno en Uso"]
["01670","ADMISION","1er","AIRE ACONDICIONADO","INNOVAIR","N/A","N/A","BLANCO","Bueno en Uso"]
["01671","ADMISION","1er","AIRE ACONDICIONADO","INNOVAIR","N/A","N/A","BLANCO","Bueno en Uso"]
["01478","ADMISION","1er","SILLA SECRETARIAL","N/A","N/A","N/A","AZUL CON BLANCO","Bueno en Uso"]
["01479","ADMISION","1er","SILLA SECRETARIAL","N/A","N/A","N/A","AZUL CON BLANCO","Bueno en Uso"]
["01480","ADMISION","1er","SILLA SECRETARIAL","N/A","N/A","N/A","AZUL CON BLANCO","Bueno en Uso"]
["01481","ADMISION","1er","MONITOR","DELL","N/A","062285-11","NEGRO","Bueno en Uso"]
["01482","ADMISION","1er","MONITOR","DELL","N/A","01WV02","NEGRO","Bueno en Uso"]
["01483","ADMISION","1er","TELEFONO","CISCO","3844-13-1086","WZP18500NT6","NEGRO","Bueno en Uso"]
["01484","ADMISION","1er","CPU","DELL","OPTILPLEX 710",1136212445,"NEGRO","Bueno en Uso"]
["01485","ADMISION","1er","CPU","DELL","OPTILPLEX 3004",77235995342,"NEGRO","Bueno en Uso"]
["01486","ADMISION","1er","MESITA","N/A","N/A","N/A","MELAMINA","Bueno en Uso"]
["01487","ADMISION","1er","ZAFACON","N/A","N/A","N/A","BLANCO","Bueno en Uso"]
["01488","ADMISION","1er","EXTINTOR","N/A","N/A","N/A","ROJO","Bueno en Uso"]
["01489","ADMISION","1er","EXTINTOR","N/A","N/A","N/A","ROJO","Bueno en Uso"]
["01490","ADMISION","1er","BEBEDERO","TECNOMARTER","TYLWYR33W","909005Y0258","BLANCO","Bueno en Uso"]
["01621","ADMISION","1er","SILLA SECRETARIAL","N/A","N/A","N/A","GRIS CON NEGRO","Bueno en Uso"]
[]
["02751","CARDIOLOGIA(SALA DE ESPERA)","2do","SILLA PARA PACIENTES","N/A","N/A","N/A","AZUL","Bueno en Uso"]
["02755","CARDIOLOGIA(SALA DE ESPERA)","2do","SILLA PARA PACIENTES","N/A","N/A","N/A","AZUL","Bueno en Uso"]
["02756","CARDIOLOGIA(SALA DE ESPERA)","2do","SILLA PARA PACIENTES","N/A","N/A","N/A","AZUL","Bueno en Uso"]
["02757","CARDIOLOGIA(SALA DE ESPERA)","2do","SILLA PARA PACIENTES","N/A","N/A","N/A","AZUL","Bueno en Uso"]
["02758","CARDIOLOGIA(SALA DE ESPERA)","2do","SILLA PARA PACIENTES","N/A","N/A","N/A","AZUL","Bueno en Uso"]
["02759","CARDIOLOGIA(SALA DE ESPERA)","2do","SILLA PARA PACIENTES","N/A","N/A","N/A","NEGRO","Bueno en Uso"]
["02760","CARDIOLOGIA(SALA DE ESPERA)","2do","SILLA PARA PACIENTES","N/A","N/A","N/A","AZUL","Bueno en Uso"]
["02761","CARDIOLOGIA(SALA DE ESPERA)","2do","SILLA PARA PACIENTES","N/A","N/A","N/A","AZUL","Bueno en Uso"]
["02762","CARDIOLOGIA(SALA DE ESPERA)","2do","SILLA PARA PACIENTES","N/A","N/A","N/A","AZUL","Bueno en Uso"]
["02763","CARDIOLOGIA(SALA DE ESPERA)","2do","SILLA PARA PACIENTES","N/A","N/A","N/A","AZUL","Bueno en Uso"]
["02764","CARDIOLOGIA(SALA DE ESPERA)","2do","SILLA PARA PACIENTES","N/A","N/A","N/A","NEGRO","Bueno en Uso"]
["02765","CARDIOLOGIA(SALA DE ESPERA)","2do","SILLA PARA PACIENTES","N/A","N/A","N/A","AZUL","Bueno en Uso"]
["02766","CARDIOLOGIA(SALA DE ESPERA)","2do","SILLA PARA PACIENTES","N/A","N/A","N/A","NEGRO","Bueno en Uso"]
["02767","CARDIOLOGIA(SALA DE ESPERA)","2do","SILLA SECRETARIAL","N/A","N/A","N/A","BLANCO/NEGRO","Bueno en Uso"]
["02768","CARDIOLOGIA(SALA DE ESPERA)","2do","SILLA SECRETARIAL","N/A","N/A","N/A","BLANCO/NEGRO","Bueno en Uso"]
["02769","CARDIOLOGIA(SALA DE ESPERA)","2do","EXTINTOR","N/A","N/A","N/A","ROJO","Bueno en Uso"]
["02770","CARDIOLOGIA(SALA DE ESPERA)","2do","ESCRITORIO CON TOPE","N/A","N/A","N/A","BLANCO","Bueno en Uso"]
["02771","CARDIOLOGIA(SALA DE ESPERA)","2do","ARCHIVO","N/A","N/A","N/A","MELAMINA","Bueno en Uso"]
["02772","CARDIOLOGIA(SALA DE ESPERA)","2do","ZAFACON","N/A","N/A","N/A","BLANCO","Bueno en Uso"]
["02773","CARDIOLOGIA(SALA DE ESPERA)","2do","RELOJ DE PARED","N/A","N/A","N/A","BLANCO","Bueno en Uso"]
["02774","CARDIOLOGIA(SALA DE ESPERA)","2do","TELEVISOR","TECNOMASTER","40D12415",299901856351,"NEGRO","Bueno en Uso"]
["02775","CARDIOLOGIA(SALA DE ESPERA)","2do","NEGATOSCOPIO","GRAFCO","INSERT FILM HERE","N/A","GRIS","Bueno en Uso"]
["02776","CARDIOLOGIA(SALA DE ESPERA)","2do","NEGATOSCOPIO","GRAFCO","INSERT FILM HERE","N/A","GRIS","Bueno en Uso"]
[]
["02720","MAPA","2do","BALANZA","RICE LAKE","RL-MPS",15091800424,"GRIS/NEGRO","Bueno en Uso"]
["02721","MAPA","2do","MESA PARA MEDICAR","N/A","N/A","N/A","ACERO INOX.","Bueno en Uso"]
["02722","MAPA","2do","ARCHIVO 5 GAVETAS","N/A","N/A","N/A","CREMA","Bueno en Uso"]
["02723","MAPA","2do","MESA PARA MEDICAR","N/A","N/A","N/A","ACERO INOX.","Bueno en Uso"]
["02724","MAPA","2do","CAMILLA TIPO DIVAN","N/A","N/A","N/A","AZUL","Bueno en Uso"]
["02725","MAPA","2do","ESCALINATA 1 PELDAÑO","N/A","N/A","N/A","NEGRO","Bueno en Uso"]
["02726","MAPA","2do","CREDENZA","N/A","N/A","N/A","MADERA","Bueno en Uso"]
["02727","MAPA","2do","TABURETE GIRATORIO","N/A","N/A","N/A","NEGRO","Bueno en Uso"]
[]
["02708","CUBICULO 1 (CARDIOLOGIA)","2do","MONITOR","HP","21KD","CNC9171H1R","NEGRO","Bueno en Uso"]
["02709","CUBICULO 1 (CARDIOLOGIA)","2do","CPU","LENOVO","MJ9029717387","MJ09FS4E","GRIS","Bueno en Uso"]
["02710","CUBICULO 1 (CARDIOLOGIA)","2do","IMPRESORA","HP","LASER JET PRO M15W","UNB3D43555","BLANCA","Bueno en Uso"]
["02711","CUBICULO 1 (CARDIOLOGIA)","2do","CARRO DE TRANSPORTE","GLOBAL","N/A","N/A","GRIS","Bueno en Uso"]
["02712","CUBICULO 1 (CARDIOLOGIA)","2do","BALANZA","RICE LAKE","RL-MPS",75091800282,"GRIS CON NEGRO","Bueno en Uso"]
["02713","CUBICULO 1 (CARDIOLOGIA)","2do","CARRO DE PARO","N/A","N/A","N/A","AZUL CON GRIS","Bueno en Uso"]
["02714","CUBICULO 1 (CARDIOLOGIA)","2do","CAMILLA TIPO DIVAN","N/A","N/A","N/A","AZUL","Bueno en Uso"]
["02715","CUBICULO 1 (CARDIOLOGIA)","2do","DESFIBRILADOR DESECHABLE","LE-COR","N/A","N/A","MEMEI","Bueno en Uso"]
["02716","CUBICULO 1 (CARDIOLOGIA)","2do","ESFIGMOMANOMETRO","CERTIFIED","N/A","N/A","AZUL MARINO","Bueno en Uso"]
["02717","CUBICULO 1 (CARDIOLOGIA)","2do","TABURETE GIRATORIO","N/A","N/A","N/A","NEGRO","Bueno en Uso"]
["02718","CUBICULO 1 (CARDIOLOGIA)","2do","CAMINADOR PRUEBA DE ESFUERZO","TRACK MASTER","N/A","TMX428220","NEGRO","Bueno en Uso"]
["02719","CUBICULO 1 (CARDIOLOGIA)","2do","CPU","EATON","MX-2000","N/A","NEGRO","Bueno en Uso"]
[]
["02694","CUBICULO 2 (CARDIOLOGIA)","2do","NEGATOSCOPIO","GRAFCO","N/A","N/A","GRIS CLARO","Bueno en Uso"]
["02695","CUBICULO 2 (CARDIOLOGIA)","2do","BALANZA","RICE LAKE","BLMPS",11151600501,"CREMA","Bueno en Uso"]
["02696","CUBICULO 2 (CARDIOLOGIA)","2do","TABURETE","N/A","N/A","N/A","NEGRO","Bueno en Uso"]
["02697","CUBICULO 2 (CARDIOLOGIA)","2do","CAMILLA TIPO DIVAN","N/A","N/A","N/A","AZUL/CREMA","Bueno en Uso"]
["02698","CUBICULO 2 (CARDIOLOGIA)","2do","TABURETE SIN RUEDA","N/A","N/A","N/A","ACERO INOX.","Bueno en Uso"]
["02699","CUBICULO 2 (CARDIOLOGIA)","2do","ECO-CARDIOGRAFO","CHISON","QBIT7",119060051,"BLANCO/NEGRO","Bueno en Uso"]
["02700","CUBICULO 2 (CARDIOLOGIA)","2do","ZAFACON DE METAL","N/A","N/A","N/A","NEGRO","Bueno en Uso"]
[]
["02222","CUBICULO 3 (CARDIOLOGIA)","2do","NEGATOSCOPIO","GRAFCO","N/A","N/A","BLANCO/GRIS","Bueno en Uso"]
["02223","CUBICULO 3 (CARDIOLOGIA)","2do","SILLA PARA VISITAS","N/A","N/A","N/A","NEGRO","Bueno en Uso"]
["02224","CUBICULO 3 (CARDIOLOGIA)","2do","SILLA PARA VISITAS","N/A","N/A","N/A","NEGRO","Bueno en Uso"]
["02225","CUBICULO 3 (CARDIOLOGIA)","2do","SILLA PARA VISITAS","N/A","N/A","N/A","AZUL","Bueno en Uso"]
["02226","CUBICULO 3 (CARDIOLOGIA)","2do","SILLA PARA VISITAS","N/A","N/A","N/A","AZUL","Bueno en Uso"]
["02227","CUBICULO 3 (CARDIOLOGIA)","2do","MESA P/ TRANSPORTAR MEDICAMENTOS","N/A","N/A","N/A","ACERO INOX.","Bueno en Uso"]
["02228","CUBICULO 3 (CARDIOLOGIA)","2do","MICROONDAS","WESTINHOUSE","N/A","N/A","BLANCO/NEGRO","Bueno en Uso"]
["02229","CUBICULO 3 (CARDIOLOGIA)","2do","ESFIGMO DE PARED","WELCH ALLYN","N/A","N/A","BANCO/AZUL MAR.","Bueno en Uso"]
["02230","CUBICULO 3 (CARDIOLOGIA)","2do","BEBEDERO","TECNOMASTER","N/A","N/A","NEGRO","Bueno en Uso"]
["02231","CUBICULO 3 (CARDIOLOGIA)","2do","CARRITO DE TORRE DE LAPARO","N/A","N/A","N/A","CREMA","Bueno en Uso"]
["02232","CUBICULO 3 (CARDIOLOGIA)","2do","AIRE ACONDICIONADO","INNOVAIR","N/A","N/A","BLANCO","Bueno en Uso"]
[]
["02233","CUBICULO  4 (CARDIOLOGIA)","2do","AIRE ACONDICIONADO","INNOVAIR","N/A","N/A","BLANCO","Bueno en Uso"]
["02234","CUBICULO  4 (CARDIOLOGIA)","2do","CAMILLA TIPO DIVAN","N/A","N/A","N/A","AZUL","Bueno en Uso"]
["02235","CUBICULO  4 (CARDIOLOGIA)","2do","NEGATOSCOPIO","GRAFCO","N/A","N/A","GRIS/AZUL","Bueno en Uso"]
["02236","CUBICULO  4 (CARDIOLOGIA)","2do","BALANZA","RICE LAKE","RL-LPS",15091800689,"GRIS/NEGRO","Bueno en Uso"]
["02237","CUBICULO  4 (CARDIOLOGIA)","2do","SONOGRAFO","CHISON","QBR17",119060045,"BLANCO/NEGRO","Bueno en Uso"]
["02238","CUBICULO  4 (CARDIOLOGIA)","2do","CPU DE SONOGRAFO","FATON","9SX2000","N/A","NEGRO","Bueno en Uso"]
["02239","CUBICULO  4 (CARDIOLOGIA)","2do","MESITA RODANTE","TROLEY","MT-805",50032,"GRIS","Bueno en Uso"]
["02240","CUBICULO  4 (CARDIOLOGIA)","2do","TABURETE GIRATORIO","N/A","N/A","N/A","NEGRO","Bueno en Uso"]
["02241","CUBICULO  4 (CARDIOLOGIA)","2do","TABURETE GIRATORIO","N/A","N/A","N/A","NEGRO","Bueno en Uso"]
["02242","CUBICULO  4 (CARDIOLOGIA)","2do","ESCALINATA","N/A","N/A","N/A","NEGRO","Bueno en Uso"]
["02243","CUBICULO  4 (CARDIOLOGIA)","2do","ZAFACON","N/A","N/A","N/A","ACERO INOX.","Bueno en Uso"]
[]
["02684","CUBICULO  5 (CARDIOLOGIA)","2do","MONITOR","HP","21KD","CNC9233L6L","NEGRO","Bueno en Uso"]
["02685","CUBICULO  5 (CARDIOLOGIA)","2do","CPU","LENOVO","N/A","MJ09HN5J","PLATEADO","Bueno en Uso"]
["02686","CUBICULO  5 (CARDIOLOGIA)","2do","IMPRESORA","HP","LESER JET PRO M15W","VNB3D43548","BLANCO","Bueno en Uso"]
["02687","CUBICULO  5 (CARDIOLOGIA)","2do","CARRO PORTATIL","GLABAL","N/A","N/A","GRIS","Bueno en Uso"]
["02688","CUBICULO  5 (CARDIOLOGIA)","2do","CPU","EATON","9SX-2000","PC24K30E57","NEGRO","Bueno en Uso"]
["02689","CUBICULO  5 (CARDIOLOGIA)","3ro","PRUEBA DE ESFUERZO","MASTER","TMX428220","N/A","NEGRO","Bueno en Uso"]
["02690","CUBICULO  5 (CARDIOLOGIA)","2do","ESFIGMOMANOMETRO","WELCH ALLYN","N/A","N/A","AZUL MARINO","Bueno en Uso"]
["02691","CUBICULO  5 (CARDIOLOGIA)","2do","CAMILLA TIPO DIVAN","N/A","N/A","N/A","AZUL MARINO","Bueno en Uso"]
["02692","CUBICULO  5 (CARDIOLOGIA)","2do","ESCALINATA 1 PELDAÑO","N/A","N/A","N/A","NEGRO","Bueno en Uso"]
["02693","CUBICULO  5 (CARDIOLOGIA)","2do","TABURETE GIRATORIO","N/A","N/A","N/A","NEGRO","Bueno en Uso"]
[]
["02728","HOLTER","2do","CAMINADORA PRUEBA ESFUERZO","N/A","N/A","N/A","NEGRO","Bueno en Uso"]
["02729","HOLTER","2do","CAMILLA TIPO DIVAN","N/A","N/A","N/A","AZUL","Bueno en Uso"]
["02730","HOLTER","2do","CPU","MACHINE","EL1333","EL133G-08W","NEGRO","Bueno en Uso"]
["02731","HOLTER","2do","UPS","UDC","D-800",200074,"NEGRO","Bueno en Uso"]
["02732","HOLTER","2do","CARRO PORTATIL","GLOBAL","N/A","N/A","GRIS","Bueno en Uso"]
["02733","HOLTER","2do","CAMILLA DE TRANSPORTE","N/A","N/A","N/A","ALUMINIO/AZUL","Bueno en Uso"]
["02734","HOLTER","2do","CAMILLA DE TRANSPORTE","N/A","N/A","N/A","ALUMINIO/AZUL","Bueno en Uso"]
["02735","HOLTER","2do","SILLON RECLINABLE","DRIVE","N/A","N/A","AZUL MARINO","Bueno en Uso"]
["02736","HOLTER","2do","ESFIGMO","CARHFIED","N/A","N/A","AZUL MARINO","Bueno en Uso"]
["02737","HOLTER","2do","ESFIGMO","MOBILESCACY","N/A",4786440717,"NEGRO","Bueno en Uso"]
["02738","HOLTER","2do","IMPRESORA","SONY","UP-25MD",740662,"BLANCO","Bueno en Uso"]
["02739","HOLTER","2do","IMPRESORA","HP",15074411,"RRGN96PGTO","NEGRO","Bueno en Uso"]
["02740","HOLTER","2do","ARMARIO","N/A","N/A","N/A","CREMA","Bueno en Uso"]
["02741","HOLTER","2do","ESTABILIZADOR","N/A","N/A","N/A","CREMA","Bueno en Uso"]
[]
["02702","ELECTROCARDIOGRAFIA ","2do","NEGATOSCOPIO","GRAFCO","HERE INSERT FILM","N/A","GRIS","Bueno en Uso"]
["02703","ELECTROCARDIOGRAFIA ","2do","PIE DE SUERO","N/A","N/A","N/A","ACERO INOX.","Bueno en Uso"]
["02704","ELECTROCARDIOGRAFIA ","2do","CAMILLA TIPO DIVAN","N/A","N/A","N/A","AZUL","Bueno en Uso"]
["02705","ELECTROCARDIOGRAFIA ","2do","CARRITO PARA MEDICAR","N/A","N/A","N/A","ACERO INOX.","Bueno en Uso"]
["02706","ELECTROCARDIOGRAFIA ","2do","ELECTROCARDIOGRAFO","BIOCARE","IE6","A217080228","GRIS","Bueno en Uso"]
["02707","ELECTROCARDIOGRAFIA ","2do","CARRO DE TRANSPORTE","GLOBAL","N/A","N/A","GRIS","Bueno en Uso"]
[]
["02742","INFORME MEDICO","2do","COMPUTADORA","LENOVO","PF9XB9705004","N/A","NEGRO","Bueno en Uso"]
["02743","INFORME MEDICO","2do","COMPUTADORA","HP","14CB174WM","SED034D8","NEGRO","Bueno en Uso"]
["02744","INFORME MEDICO","2do","IMPRESORA","EPSON","C634D",644244624,"NEGRO","Bueno en Uso"]
["02745","INFORME MEDICO","2do","IMPRESORA","HP","LASER JET PRO M15W","VNB3B51830","BLANCO","Bueno en Uso"]
["02746","INFORME MEDICO","2do","TELEFONO","CISCO","3844-13-1086","WZP1829UT6","NEGRO CON GRIS","Bueno en Uso"]
["02747","INFORME MEDICO","2do","CAUNTER 3 DIVISIONES","N/A","N/A","N/A","GRIS","Bueno en Uso"]
["02748","INFORME MEDICO","2do","ZAFACON METAL","N/A","N/A","N/A","ACERO INOX.","Bueno en Uso"]
["02749","INFORME MEDICO","2do","SILLA SECRETARIAL","N/A","N/A","N/A","BLANCO CON NEGRO","Bueno en Uso"]
["02750","INFORME MEDICO","2do","SILLA SECRETARIAL","N/A","N/A","N/A","BLANCO CON NEGRO","Bueno en Uso"]
[]
["01516","CONSULTORIO 1","2do","ESCRITORIO","N/A","N/A","N/A","CREMA","Bueno en Uso"]
["01517","CONSULTORIO 1","2do","ARMARIO","N/A","N/A","N/A","CREMA","Bueno en Uso"]
["01518","CONSULTORIO 1","2do","NEGATOSCOPIO","GRAFCO","INSERT FILM HERE","N/A","GRIS CLARO","Bueno en Uso"]
["01519","CONSULTORIO 1","2do","MESA PARA MEDICAR","N/A","N/A","N/A","ACERO INOX.","Bueno en Uso"]
["01520","CONSULTORIO 1","2do","SED DE DIAGNOSTICO","WELCH ALLYN","N/A","N/A","BLANCO","Bueno en Uso"]
["01521","CONSULTORIO 1","2do","ARCHIVO 3 GAVETAS","N/A","N/A","N/A","CREMA","Bueno en Uso"]
["01522","CONSULTORIO 1","2do","SILLA SECRETARIAL","N/A","N/A","N/A","AZUL CON BALNCO","Bueno en Uso"]
["01523","CONSULTORIO 1","2do","SILLAPARA PACIENTES","N/A","N/A","N/A","NEGRO","Bueno en Uso"]
["01524","CONSULTORIO 1","2do","DISPENSADOR ELECTRICO","N/A","N/A","N/A","ACERO INOX.","Bueno en Uso"]
["01525","CONSULTORIO 1","2do","ZAFACON","N/A","N/A","N/A","ACERO INOX.","Bueno en Uso"]
["01526","CONSULTORIO 1","2do","SILLA DE RUEDAS","N/A","N/A","N/A","NEGRA","Bueno en Uso"]
["01527","CONSULTORIO 1","2do","TABURETE GIRATORIO","N/A","N/A","N/A","NIQUELADO","Bueno en Uso"]
["01528","CONSULTORIO 1","2do","TABURETE GIRATORIO","N/A","N/A","N/A","NIQUELADO","Bueno en Uso"]
["01531","CONSULTORIO 1","2do","AIRE ACONDICIONADO","INNOVAIR","N/A","N/A","BLANCO","Bueno en Uso"]
[]
["01682","CONSULTORIO GENERAL 2","2do","MESA PARA MEDIR","N/A","N/A","N/A","ACERO INOX.","Bueno en Uso"]
["01683","CONSULTORIO GENERAL 2","2do","ESCALINATA UN PELDAÑO","N/A","N/A","N/A","NEGRO","Bueno en Uso"]
["01684","CONSULTORIO GENERAL 2","2do","LAMPARA CUELLO DE GANSO","N/A","N/A","HF120181158WL","BLANCO","Bueno en Uso"]
["01685","CONSULTORIO GENERAL 2","2do","NEGATOSCOPIO","HOSPITECH","N/A","N/A","GRIS","Bueno en Uso"]
["01686","CONSULTORIO GENERAL 2","2do","SET DE DIAGNOSTICO","WLLCH ALLYN","N/A","N/A","BLANCO","Bueno en Uso"]
["01687","CONSULTORIO GENERAL 2","2do","ESFIGMOMANOMETRO","WELLCH ALLYN","N/A","N/A","BLANCO","Bueno en Uso"]
["01688","CONSULTORIO GENERAL 2","2do","CAMILLA TIPO DIVAN","N/A","N/A","N/A","AZUL","Bueno en Uso"]
[]
["01529","CONSULTORIO DE PSICOLOGIA","2do","NEGAROSCOPIO","N/A","N/A","N/A","GRIS CON AZUL","Bueno en Uso"]
["01530","CONSULTORIO DE PSICOLOGIA","2do","CAMILLA TIPO DIVAN","N/A","N/A","N/A","AZUL","Bueno en Uso"]
["01532","CONSULTORIO DE PSICOLOGIA","2do","AIRE ACONDICIONADO","INNOVAIR","N/A","N/A","BLANCO","Bueno en Uso"]
["01533","CONSULTORIO DE PSICOLOGIA","2do","SET DE DIAGNOSTICO","N/A","N/A","N/A","BLANCO","Bueno en Uso"]
["01534","CONSULTORIO DE PSICOLOGIA","2do","ESCAINATA UN PELDAÑO","N/A","N/A","N/A","NEGRO","Bueno en Uso"]
["01535","CONSULTORIO DE PSICOLOGIA","2do","LAMPARA CUELLA DE GANSO","N/A","N/A","N/A","BLANCO","Bueno en Uso"]
["01536","CONSULTORIO DE PSICOLOGIA","2do","ARMARIO","N/A","N/A","N/A","CREMA","Bueno en Uso"]
["01537","CONSULTORIO DE PSICOLOGIA","2do","MESA PARA MEDICAR","N/A","N/A","N/A","ACERO INOX.","Bueno en Uso"]
["01538","CONSULTORIO DE PSICOLOGIA","2do","DISPENSADOR ELECTRICO","N/A","N/A","N/A","ACERO INOX.","Bueno en Uso"]
["01539","CONSULTORIO DE PSICOLOGIA","2do","SILLA SECRETARIAL","N/A","N/A","N/A","CREMA CON NEGRO","Bueno en Uso"]
["01540","CONSULTORIO DE PSICOLOGIA","2do","BALANZA","RICE LAKE","RL-MPS",15091800291,"GRIS CON NEGRO","Bueno en Uso"]
["01541","CONSULTORIO DE PSICOLOGIA","2do","ESCRITORIO","N/A","N/A","N/A","CREMA","Bueno en Uso"]
["01542","CONSULTORIO DE PSICOLOGIA","2do","SILLA SECRETARIAL","N/A","N/A","N/A","AZUL CON BLANCO","Bueno en Uso"]
["01543","CONSULTORIO DE PSICOLOGIA","2do","SILLA PARA PACIENTE","N/A","N/A","N/A","NEGRO","Bueno en Uso"]
["01544","CONSULTORIO DE PSICOLOGIA","2do","ARCHIVO 3 GAVETAS","N/A","N/A","N/A","CREMA","Bueno en Uso"]
[]
["01545","CONSULTORIO 4","2do","AIRE ACONDICIONADO","N/A","N/A","N/A","BLANCO","Bueno en Uso"]
["01546","CONSULTORIO 4","2do","ESCRITORIO","N/A","N/A","N/A","CREMA","Bueno en Uso"]
["01547","CONSULTORIO 4","2do","SILLA SECRETARIAL","N/A","N/A","N/A","NEGRA CON CREMA","Bueno en Uso"]
["01548","CONSULTORIO 4","2do","ESCRITORIO PEQUEÑO 3 GABETAS","N/A","N/A","N/A","CREMA","Bueno en Uso"]
["01549","CONSULTORIO 4","2do","ZAFACON","N/A","N/A","N/A","SALMON","Bueno en Uso"]
["01550","CONSULTORIO 4","2do","TABURETE GIRATORIO","N/A","N/A","N/A","NIQUELADO","Bueno en Uso"]
["01551","CONSULTORIO 4","2do","SILLA PARA PACIENTE","N/A","N/A","N/A","NEGRA","Bueno en Uso"]
["01552","CONSULTORIO 4","2do","SILLA PARA PACIENTE","N/A","N/A","N/A","NEGRA","Bueno en Uso"]
["01553","CONSULTORIO 4","2do","CAMILLA TIPO DIVAN","N/A","N/A","N/A","AZUL","Bueno en Uso"]
["01554","CONSULTORIO 4","2do","ESCALINATA","N/A","N/A","N/A","NEGRO","Bueno en Uso"]
["01555","CONSULTORIO 4","2do","LAMPARA CUELLO DE GANZO","N/A","N/A","N/A","BLANCO","Bueno en Uso"]
["01556","CONSULTORIO 4","2do","SED DE DIAGNOSTICO","WELCH ALLYN","N/A","N/A","BLANCO","Bueno en Uso"]
["01557","CONSULTORIO 4","2do","EXFIMO","N/A","N/A","N/A","BLANCO","Bueno en Uso"]
["01558","CONSULTORIO 4","2do","NEGASTOCOPIO","N/A","N/A","N/A","AZUL CON GRIS","Bueno en Uso"]
["01559","CONSULTORIO 4","2do","ARMARIO","IBK","N/A","N/A","GRIS OSCURO","Bueno en Uso"]
["01560","CONSULTORIO 4","2do","BALANZA","RICE LAKE","RL-MPS",615180033,"GRIS CON NEGRO","Bueno en Uso"]
["01561","CONSULTORIO 4","2do","DISPENSADOR ELECTRICO","N/A","KW-1020","N/A","ACERO INOX.","Bueno en Uso"]
[]
["01665","CONSULTORIO GENERAL 5","2do","ESCRITORIO","N/A","N/A","N/A","CREMA","Bueno en Uso"]
["01666","CONSULTORIO GENERAL 5","2do","SILLA PARA PACIENTE","N/A","N/A","N/A","NEGRO","Bueno en Uso"]
["01667","CONSULTORIO GENERAL 5","2do","SILLA PARA PACIENTE","N/A","N/A","N/A","NEGRO","Bueno en Uso"]
["01668","CONSULTORIO GENERAL 5","2do","CPU","DELL","OPTIPLEX",20120813,"NEGRO","Bueno en Uso"]
["01669","CONSULTORIO GENERAL 5","2do","MONITOR","DELL","N/A","CN-OFP182","NEGRO","Bueno en Uso"]
["01672","CONSULTORIO GENERAL 5","2do","AIRE ACONDICIONADO","INNOVAIR","N/A","N/A","BLANCO","Bueno en Uso"]
["01673","CONSULTORIO GENERAL 5","2do","ZAFACON","TRASH BOX","N/A","N/A","GRIS","Bueno en Uso"]
["01674","CONSULTORIO GENERAL 5","2do","ARCHIVO 3 GAVETAS","N/A","N/A","N/A","CREMA","Bueno en Uso"]
["01675","CONSULTORIO GENERAL 5","2do","SILLA SECRETARIAL","N/A","N/A","N/A","NEGRA CON GRIS","Bueno en Uso"]
["01676","CONSULTORIO GENERAL 5","2do","DISPENSADOR ELECTRICO","N/A","KW-1020","N/A","ACERO INOX.","Bueno en Uso"]
["01677","CONSULTORIO GENERAL 5","2do","TABURETE GIRATORIO","N/A","N/A","N/A","ACERO INOX.","Bueno en Uso"]
["01678","CONSULTORIO GENERAL 5","2do","TABURETE GIRATORIO","N/A","N/A","N/A","ACERO INOX.","Bueno en Uso"]
["01679","CONSULTORIO GENERAL 5","2do","TABURETE GIRATORIO","N/A","N/A","N/A","ACERO INOX.","Bueno en Uso"]
["01680","CONSULTORIO GENERAL 5","2do","BALANZA","RICE LAKE","RE-MPS",15091800431,"NEGRO CON GRIS","Bueno en Uso"]
["01681","CONSULTORIO GENERAL 5","2do","ARMARIO","IBK-SP","N/A","N/A","GRIS OSCURO","Bueno en Uso"]
[]
["01689","CONSULTORIO GENERAL 7","2do","ESCRITORIO","N/A","N/A","N/A","CREMA","Bueno en Uso"]
["01690","CONSULTORIO GENERAL 7","2do","SILLA PARA PACIENTE","N/A","N/A","N/A","NEGRO","Bueno en Uso"]
["01691","CONSULTORIO GENERAL 7","2do","ARCHIVO 3 GAVETAS","N/A","N/A","N/A","CREMA","Bueno en Uso"]
["01692","CONSULTORIO GENERAL 7","2do","ZAFACON","N/A","N/A","N/A","NEGRO","Bueno en Uso"]
["01693","CONSULTORIO GENERAL 7","2do","SILLA SECRETARIAL","N/A","N/A","N/A","CREMA","Bueno en Uso"]
["01694","CONSULTORIO GENERAL 7","2do","TABURETE GIRATORIO","N/A","N/A","N/A","ACERO INOX.","Bueno en Uso"]
["01695","CONSULTORIO GENERAL 7","2do","TABURETE GIRATORIO","N/A","N/A","N/A","ACERO INOX.","Bueno en Uso"]
["01696","CONSULTORIO GENERAL 7","2do","BALANZA","RICE LAKE","RL-MPS",10151600448,"CREMA","Bueno en Uso"]
["01697","CONSULTORIO GENERAL 7","2do","ARMARIO","IBK-SP","N/A","N/A","GRIS","Bueno en Uso"]
["01698","CONSULTORIO GENERAL 7","2do","NEGATOSCOPIO","HOSPITECH","N/A","N/A","GRIS CON AZUL","Bueno en Uso"]
["01699","CONSULTORIO GENERAL 7","2do","LAMPARA CUELLO GANSO","N/A","N/A","N/A","BLANCO","Bueno en Uso"]
["01700","CONSULTORIO GENERAL 7","2do","CAMILLA TIPO DIVAN","N/A","N/A","N/A","AZUL","Bueno en Uso"]
["01701","CONSULTORIO GENERAL 7","2do","ESCALINATA UN PELDAÑO","N/A","N/A","N/A","NEGRO","Bueno en Uso"]
["01702","CONSULTORIO GENERAL 7","2do","SET DIAGNOSTICO","WELLCH ALLYN","N/A","N/A","BLANCO","Bueno en Uso"]
["01703","CONSULTORIO GENERAL 7","2do","ESFIGMOMANOMETRO","WELLCH ALLYN","N/A","N/A","BLANCO","Bueno en Uso"]
["01704","CONSULTORIO GENERAL 7","2do","MESA PARA MEDICAR","N/A","N/A","N/A","ACERO INOX.","Bueno en Uso"]
["01705","CONSULTORIO GENERAL 7","2do","MESA PARA MEDICAR","N/A","N/A","N/A","ACERO INOX.","Bueno en Uso"]
["01706","CONSULTORIO GENERAL 7","2do","DISPENSADOR ELECTRICO","N/A","KW-1020","N/A","ACERO INOX.","Bueno en Uso"]
["01707","CONSULTORIO GENERAL 7","2do","AIRE ACONDICIONADO","INNOVAIR","N/A","N/A","BLANCO","Bueno en Uso"]
[]
["00224","COCINA ( COCCION DE ALIMENTOS)","1er","TRANSPORTADOR DE ROLITOS","N/A","N/A","N/A","ACERO INOX.","Bueno en Uso"]
["00225","COCINA ( COCCION DE ALIMENTOS)","1er","CAMPANA CENTRAL","N/A","N/A","N/A","ACERO INOX.","Bueno en Uso"]
["00226","COCINA (LAVADO DE VAJILLAS)","1er","MESA LAVADO VAJILLA EN FORMA DE L","N/A","N/A","N/A","ACERO INOX.","Bueno en Uso"]
["00562","COCINA (LAVADO DE VAJILLAS)","1er","CARRITO FREGACION","N/A","N/A","N/A","NIQUELADO","Bueno en Uso"]
["00563","COCINA (LAVADO DE VAJILLAS)","1er","ZAFACONES","N/A","N/A","N/A","ACERO INOX.","Bueno en Uso"]
["00564","COCINA (LAVADO DE VAJILLAS)","1er","ZAFACONES","N/A","N/A","N/A","ACERO INOX.","Bueno en Uso"]
["00565","COCINA (LAVADO DE VAJILLAS)","1er","CARRITO DE TRANSPOTE","N/A","N/A","N/A","ACERO INOX.","Bueno en Uso"]
["00566","COCINA (LAVADO DE VAJILLAS)","1er","CARRITO DE TRANSPOTE","N/A","N/A","N/A","ACERO INOX.","Bueno en Uso"]
["00227","COCINA (LAVADO DE OLLAS)","1er","FREGADERO TRIPLE 30X30X16","N/A","N/A","N/A","ACERO INOX.","Bueno en Uso"]
["00228","COCINA (RECIBO DE MERCANCIAS)","1er","TINA LAVADO VIVERES 48X36","N/A","N/A","N/A","ACERO INOX.","Bueno en Uso"]
["00229","COCINA (LAVADO FRUTAS Y VETALES)","1er","FREGADERO TRIPLE  30X30X16","N/A","N/A","N/A","ACERO INOX.","Bueno en Uso"]
["00230","COCINA (LAVADO FRUTAS Y VETALES)","1er","FREGADERO DOBLE 30X30X14","N/A","N/A","N/A","ACERO INOX.","Bueno en Uso"]
["00231","COCINA (CARNICERIA)","1er","FREGADERO DOBLE 24X30","N/A","N/A","N/A","ACERO INOX.","Bueno en Uso"]
["00485","COCINA (CARNICERIA)","1er","FREGADERO DOBLE 24X30","N/A","N/A","N/A","ACERO INOX.","Bueno en Uso"]
["00510","COCINA (PANTRY FRIO)","1er","FREGADERO SENCILLO 24X30","N/A","N/A","N/A","ACERO INOX.","Bueno en Uso"]
["00786","COCINA (PUREE)","1er","FREGADERO SENCILLO 30X30","N/A","N/A","N/A","ACERO INOX.","Bueno en Uso"]
["00776","COCINA (COCCION DE ALIMENTOS)","1er","MESA ABIERTA 30X72","N/A","N/A","N/A","ACERO INOX.","Bueno en Uso"]
["00608","COCINA (COCCION DE ALIMENTOS)","1er","MESA ABIERTA 30X74","N/A","N/A","N/A","ACERO INOX.","Bueno en Uso"]
["00814","COCINA (DIETAS)","1er","MESA ABIERTA 30X72","N/A","N/A","N/A","ACERO INOX.","Bueno en Uso"]
["00815","COCINA (DIETAS)","1er","MESA ABIERTA 30X72","N/A","N/A","N/A","ACERO INOX.","Bueno en Uso"]
["00574","COCINA (PREPACION BANDEJAS)","1er","MESA 30X70","N/A","N/A","N/A","ACERO INOX.","Bueno en Uso"]
["00575","COCINA (PREPACION BANDEJAS)","1er","MESA 30X48","N/A","N/A","N/A","ACERO INOX.","Bueno en Uso"]
["00597","COCINA (COCCION DE ALIMENTOS)","1er","MESA 30X72, REPISA DE MESA","N/A","N/A","N/A","ACERO INOX.","Bueno en Uso"]
["00610","COCINA (COCCION DE ALIMENTOS)","1er","MESA 30X48","N/A","N/A","N/A","ACERO INOX.","Bueno en Uso"]
["00800","COCINA (PUREE)","1er","MESA ABIERTA 30X60","N/A","N/A","N/A","ACERO INOX.","Bueno en Uso"]
["00611","COCINA (COCCION DE ALIMENTOS DIETISTA)","1er","CONSOLA DE AIRE ACONDICIONADO","YORK","N/A","3001Y","BASE METAL","Bueno en Uso"]
["00232","COCINA (CARNICERIA)","1er","MESA 30X48","N/A","N/A","N/A","ACERO INOX.","Bueno en Uso"]
["00233","COCINA (CARNICERIA)","1er","MESA DE TRABAJO 30X48","N/A","N/A","N/A","ACERO INOX.","Bueno en Uso"]
["00234","COCINA (CARNICERIA)","1er","MESA DE TRABAJO 30X50","N/A","N/A","N/A","ACERO INOX.","Bueno en Uso"]
["00235","COCINA (CARNICERIA)","1er","MESA DE TRABAJO ABIERTA 30 X60","N/A","N/A","N/A","ACERO INOX.","Bueno en Uso"]
["00487","COCINA (CARNICERIA)","1er","MESA DE TRABAJO ABIERTA 30 X60","N/A","N/A","N/A","ACERO INOX.","Bueno en Uso"]
["00236","COCINA (CARNICERIA)","1er","MESA DE TRABAJO CON REPISA 30X70","N/A","N/A","N/A","ACERO INOX.","Bueno en Uso"]
["00237","COCINA (CARNICERIA)","1er","MESA DE TRABAJO CON REPISA 30X70","N/A","N/A","N/A","ACERO INOX.","Bueno en Uso"]
["00238","COCINA (CARNICERIA)","1er","MESA DE TRABAJO CON REPISA 30X70","N/A","N/A","N/A","ACERO INOX.","Bueno en Uso"]
["00511","COCINA (PANTRY FRIO)","1er","MESA DE TRABAJO 30X40","N/A","N/A","N/A","ACERO INOX.","Bueno en Uso"]
["00784","COCINA (PANTRY FRIO)","1er","MESA DE TRABAJO 30X40","N/A","N/A","N/A","ACERO INOX.","Bueno en Uso"]
["00785","COCINA (PANTRY FRIO)","1er","MESA DE TRABAJO 30X40","N/A","N/A","N/A","ACERO INOX.","Bueno en Uso"]
["00512","COCINA (PELADO DE VIVERES)","1er","MESA DE TRABAJO 30X65","N/A","N/A","N/A","ACERO INOX.","Bueno en Uso"]
["00513","COCINA (PELADO DE VIVERES)","1er","MESA DE TRABAJO  30X50","N/A","N/A","N/A","ACERO INOX.","Bueno en Uso"]
["00514","COCINA (PELADO DE VIVERES)","1er","MESA DE TRABAJO  30X50","N/A","N/A","N/A","ACERO INOX.","Bueno en Uso"]
["00817","COCINA (DIETAS)","1er","MESA DE TRABAJO 30X24","N/A","N/A","N/A","ACERO INOX.","Bueno en Uso"]
["00811","COCINA (DIETAS)","1er","MESA DE TRABAJO ABIERTA 30X60","N/A","N/A","N/A","ACERO INOX.","Bueno en Uso"]
["00812","COCINA (DIETAS)","1er","MESA DE TRABAJO ABIERTA 30X60","N/A","N/A","N/A","ACERO INOX.","Bueno en Uso"]
["00813","COCINA (DIETAS)","1er","MESA DE TRABAJO ABIERTA 30X89","N/A","N/A","N/A","ACERO INOX.","Bueno en Uso"]
["00532","COCINA (LAVADO DE VAJILLAS)","1er","CONJUNTO DE MESA FREGADERO INTEGRADO","N/A","N/A","N/A","ACERO INOX.","Bueno en Uso"]
["00533","COCINA (LAVADO DE VAJILLAS)","1er","CONJUNTO DE MESA FREGADERO INTEGRADO","N/A","N/A","N/A","ACERO INOX.","Bueno en Uso"]
["00801","COCINA (PREPARACION)","1er","ESTANTE BAJO DE COCCION REFRIGERADO 4 GVTAS.","N/A","N/A","N/A","N/A","Bueno en Uso"]
["00802","COCINA (PREPARACION)","1er","ESTANTE BAJO DE COCCION REFRIGERADO 4 GVTAS.","N/A","N/A","N/A","N/A","Bueno en Uso"]
["00534","COCINA (LAVADO DE VAJILLAS)","1er","MESA CON REPISA INTEGARDA","N/A","N/A","N/A","ACERO INOX.","Bueno en Uso"]
["00609","COCINA (PANTRY FRIO)","1er","VITRINA REFIRGERA ABIRETA 3 NIVELES","INFRICO","N/A","N/A","ACERO INOX.","Bueno en Uso"]
["00810","COCINA (DISTISTA)","1er","FREFIGERADOR VERTICAL ABIERTA DE 3 NIVELES","INFRICO","N/A","N/A","ACERO INOX.","Bueno en Uso"]
["00515","COCINA (PANTRY FRIO)","1er","MESA REFRIGERADA 2 PUERTAS","INFRICO","N/A","N/A","ACERO INOX.","Bueno en Uso"]
["00576","COCINA (PREPACION ALIMENTOS)","1er","ARMARIO","INFRICO","N/A","N/A","ACERO INOX.","Bueno en Uso"]
["00541","COCINA (LAVADO VAJILLAS)","1er","LAVAPLATOS","CHAMPION","N/A","D190918319","ACERO INOX.","Bueno en Uso"]
["00808","COCINA (COCCION ALIMENTOS)","1er","ESTUFA MODULAR, PLANCHA MANUEAL","N/A","N/A","N/A","ACERO INOX.","Bueno en Uso"]
["00809","COCINA (COCCION ALIMENTOS)","1er","ESTUFA MODULAR, PLANCHA MANUEAL","N/A","N/A","N/A","ACERO INOX.","Bueno en Uso"]
["00803","COCINA (COCCION ALIMENTOS)","1er","ESTUFA MODULAR, PARRILLA ASADORA","N/A","N/A","N/A","ACERO INOX.","Bueno en Uso"]
["00602","COCINA (COCCION ALIMENTOS)","1er","MARMITA","CROWN","N/A","N/A","ACERO INOX.","Bueno en Uso"]
["00603","COCINA (COCCION ALIMENTOS)","1er","MARMITA","CROWN","N/A","N/A","ACERO INOX.","Bueno en Uso"]
["00604","COCINA (COCCION ALIMENTOS)","1er","SARTEN VOLTEABLE","CROWN","N/A","N/A","ACERO INOX.","Bueno en Uso"]
["00605","COCINA (COCCION ALIMENTOS)","1er","SARTEN VOLTEABLE","CROWN","N/A","N/A","ACERO INOX.","Bueno en Uso"]
["00606","COCINA (COCCION ALIMENTOS)","1er","HORNO COMBINADO COMBI","ALTO SHAAM","N/A","N/A","ACERO INOX.","Bueno en Uso"]
["00607","COCINA (PUREE)","1er","ROLL-IN ARMARIO DE CALEFACCION (CARRO CALENTADOR)","N/A","N/A","N/A","ACERO INOX.","Bueno en Uso"]
["00648","COCINA (RECIBO DE MERCANCIAS)","1er","BALANZA DE PLATAFORMA "," CARDINAL","N/A","N/A","ACERO INOX.","Bueno en Uso"]
["00521","COCINA (PELADO DE VIVERES)","1er","PELADOR DE VEJETALES","HEATCRAFT REFRIGERATION","N/A","N/A","ACERO INOX.","Bueno en Uso"]
["00745","COCINA (CUARTO FRIO EMBUTIDOS Y LACTEOS  35°F)","1er","COMBINACION 2 CUARTOS FRIOS","DADE ENGINEERING","N/A","N/A","ACERO INOX.","Bueno en Uso"]
["00520","COCINA (CUARTO FRIO EMBUTIDOS Y LACTEOS  35°F)","1er","UNIDAD DE REFRIGERACION ","HETCRAFT REFRIGERATION","N/A","N/A","ACERO INOX.","Bueno en Uso"]
["00744","CUARTO FRIO  35°F","1er","CUARTO FRIO","DADE ENGINEERING","N/A","N/A","ACERO INOX.","Bueno en Uso"]
["00749","BASURA REFRIGERADA 35°F","1er","CUARTO FRIO","DADE ENGINEERING","N/A","N/A","ACERO INOX.","Bueno en Uso"]
["00239","COCINA (CARNICERIA)","1er","SISTEMA DE REFRIGERACION","HEATCRAFT REFRIGERATION","N/A","N/A","ACERO INOX.","Bueno en Uso"]
["00516","COCINA (PANTRY FRIO)","1er","SISTEMA DE REFRIGERACION","HEATCRAFT REFRIGERATION","N/A","N/A","ACERO INOX.","Bueno en Uso"]
["00517","COCINA (PELADO DE VIVERES)","1er","SISTEMA DE REFRIGERACION","HEATCRAFT REFRIGERATION","N/A","N/A","ACERO INOX.","Bueno en Uso"]
["00518","COCINA (PANTRY FRIO)","1er","CARTADOR DE FRUTAS/REBANDOR VEGETALES/CEBOLLAS","NEMCO","N/A","N/A","ACERO INOX.","Bueno en Uso"]
["00519","COCINA (PANTRY FRIO)","1er","REBANADOR DE TOMATES","NEMCO","N/A","N/A","ACERO INOX.","Bueno en Uso"]
["00508","COCINA (CARNICERIA)","1er","CONGELADOR","N/A","N/A","N/A","ACERO INOX.","Bueno en Uso"]
["00509","COCINA (CARNICERIA)","1er","CONGELADOR","N/A","N/A","N/A","ACERO INOX.","Bueno en Uso"]
["00625","COCINA (PREPARACION DE BANDEJAS)","1er","FABRICADOR DE HIELO","FOLLETT","DEVI325SG-60","L17561","ACERO INOX.","Bueno en Uso"]
["00577","COCINA (PREPARACION DE BANDEJAS)","1er","TOSTADORA PORTATIL","HATCO","N/A",6095791939,"ACERO INOX.","Bueno en Uso"]
["00522","COCINA (PANTRY FRIO)","1er","PROCESADOR DE ALIEMTOS DE MESA","WARING","N/A","N/A","ACERO INOX.","Bueno en Uso"]
["00523","COCINA (PANTRY FRIO)","1er","REBANADORA DE ALIMENTOS ELECTRICA","GLOBE","N/A","N/A","ACERO INOX.","Bueno en Uso"]
["00524","COCINA (PUREE)","1er","MEZCLADORA DE  ALIMENTOS PLANETARY","GLOBE","N/A","N/A","ACERO INOX.","Bueno en Uso"]
["00578","COCINA (PREPARACION DE ALIMENTOS)","1er","MARMITA DE SOPA","GLOBE","CPSKB1","N/A","ACERO INOX.","Bueno en Uso"]
["00480","COCINA (CARNICERIA)","1er","MOLINO CARNICERIA","BIRO","BI-922","N/A","ACERO INOX.","Bueno en Uso"]
["00481","COCINA (CARNICERIA)","1er","SIN FIN DE CARNECERIA","BIRO","BI-1433","N/A","ACERO INOX.","Bueno en Uso"]
["00482","COCINA (CARNICERIA)","1er","TENDERIZADERA CON MOTOR ","BIRO","N/A","N/A","ACERO INOX.","Bueno en Uso"]
["00488","COCINA (CARNICERIA)","1er","CARRITO DE BANDEJAS","N/A","N/A","N/A","ACERO INOX.","Bueno en Uso"]
["00489","COCINA (CARNICERIA)","1er","CARRITO DE BANDEJAS","N/A","N/A","N/A","ACERO INOX.","Bueno en Uso"]
["00483","COCINA (CARNICERIA)","1er","CORTADORA DE POLLOS CON MOTOR CON SWITC","BIRO","N/A","N/A","ACERO INOX.","Bueno en Uso"]
["00484","COCINA (CARNICERIA)","1er","MARINADORA MASAJEADORA","BIRO","BI-VTS-42-110-60","N/A","ACERO INOX.","Bueno en Uso"]
["00486","COCINA (CARNICERIA)","1er","DISCO","BIRO","N/A","SC-102969","ACERO INOX.","Bueno en Uso"]
["00525","COCINA (COCCION DE ALIMENTOS)","1er","CONJUNTO DE GRIFERIA DE PRE-ENJUEGUE, FREGADERO CON GIRO AÑADIDO","T & S","N/A","N/A","ACERO INOX.","Bueno en Uso"]
["00526","COCINA (COCCION DE ALIMENTOS)","1er","ESTACION PARA MANGUERAS DE LLENADO Y LIMPIEZA","T & S","N/A","N/A","ACERO INOX.","Bueno en Uso"]
["00527","COCINA (COCCION DE ALIMENTOS)","1er","ESTACION PARA MANGUERAS DE LLENADO Y LIMPIEZA","T & S","N/A","N/A","ACERO INOX.","Bueno en Uso"]
["00528","COCINA (CLAVADO VAJILLA)","1er","CONJUNTO DE GRIFERIA DE PRE-ENJUEGUE, FREGADERO CON GIRO AÑADIDO","T & S","N/A","N/A","ACERO INOX.","Bueno en Uso"]
["00529","COCINA (CLAVADO VAJILLA)","1er","CONJUNTO DE GRIFERIA DE PRE-ENJUEGUE, FREGADERO CON GIRO AÑADIDO","T & S","B-0133-12ACBJST","N/A","ACERO INOX.","Bueno en Uso"]
["00530","COCINA (CLAVADO VAJILLA)","1er","CONJUNTO DE GRIFERIA DE PRE-ENJUEGUE, FREGADERO CON GIRO AÑADIDO","T & S","B-0133-12ACBJST","N/A","ACERO INOX.","Bueno en Uso"]
["00653","COCINA (LAVADO DE FRUTAS Y VEJETALES)","1er","GRIFO PARA FREGADERO","T & S","B-0230","N/A","ACERO INOX.","Bueno en Uso"]
["00652","COCINA (LAVADO DE FRUTAS Y VEJETALES)","1er","GRIFO DE PICO","T & S","066X","N/A","ACERO INOX.","Bueno en Uso"]
["00757","COCINA (LAVADO DE OLLAS)","1er","CONJUNTO DE GRIFERIA DE PRE-ENJUEGUE, FREGADERO CON GIRO AÑADIDO","T & S","B-0133-12ACBJST","N/A","ACERO INOX.","Bueno en Uso"]
["00542","COCINA (PREPARACION DE BANDEJAS)","1er","CARRO PORTA BANDEJAS","CAMBRO","MDC1520T30191","N/A","ACERO INOX.","Bueno en Uso"]
["00543","COCINA (PREPARACION DE BANDEJAS)","1er","CARRO PORTA BANDEJAS","CAMBRO","MDC1520T30192","N/A","ACERO INOX.","Bueno en Uso"]
["00544","COCINA (PREPARACION DE BANDEJAS)","1er","CARRO PORTA BANDEJAS","CAMBRO","MDC1520T30193","N/A","ACERO INOX.","Bueno en Uso"]
["00545","COCINA (PREPARACION DE BANDEJAS)","1er","CARRO PORTA BANDEJAS","CAMBRO","MDC1520T30194","N/A","ACERO INOX.","Bueno en Uso"]
["00546","COCINA (PREPARACION DE BANDEJAS)","1er","CARRO PORTA BANDEJAS","CAMBRO","MDC1520T30195","N/A","ACERO INOX.","Bueno en Uso"]
["00547","COCINA (PREPARACION DE BANDEJAS)","1er","CARRO PORTA BANDEJAS","CAMBRO","MDC1520T30196","N/A","ACERO INOX.","Bueno en Uso"]
["00548","COCINA (PREPARACION DE BANDEJAS)","1er","CARRO PORTA BANDEJAS","CAMBRO","MDC1520T30197","N/A","ACERO INOX.","Bueno en Uso"]
["00549","COCINA (PREPARACION DE BANDEJAS)","1er","CARRO PORTA BANDEJAS","CAMBRO","MDC1520T30198","N/A","ACERO INOX.","Bueno en Uso"]
["00550","COCINA (PREPARACION DE BANDEJAS)","1er","CARRO PORTA BANDEJAS","CAMBRO","MDC1520T30199","N/A","ACERO INOX.","Bueno en Uso"]
["00551","COCINA (PREPARACION DE BANDEJAS)","1er","CARRO PORTA BANDEJAS","CAMBRO","MDC1520T30200","N/A","ACERO INOX.","Bueno en Uso"]
["00552","COCINA (PREPARACION DE BANDEJAS)","1er","CARRO PORTA BANDEJAS","CAMBRO","MDC1520T30201","N/A","ACERO INOX.","Bueno en Uso"]
["00553","COCINA (PREPARACION DE BANDEJAS)","1er","CARRO PORTA BANDEJAS","CAMBRO","MDC1520T30202","N/A","ACERO INOX.","Bueno en Uso"]
["00554","COCINA (PREPARACION DE BANDEJAS)","1er","CARRO PORTA BANDEJAS","CAMBRO","MDC1520T30203","N/A","ACERO INOX.","Bueno en Uso"]
["00555","COCINA (PREPARACION DE BANDEJAS)","1er","CARRO PORTA BANDEJAS","CAMBRO","MDC1520T30204","N/A","ACERO INOX.","Bueno en Uso"]
["00556","COCINA (PREPARACION DE BANDEJAS)","1er","CARRO PORTA BANDEJAS","CAMBRO","MDC1520T30205","N/A","ACERO INOX.","Bueno en Uso"]
["00557","COCINA (PREPARACION DE BANDEJAS)","1er","CARRO PORTA BANDEJAS","CAMBRO","MDC1520T30206","N/A","ACERO INOX.","Bueno en Uso"]
["00558","COCINA (PREPARACION DE BANDEJAS)","1er","CARRO PORTA BANDEJAS","CAMBRO","MDC1520T30207","N/A","ACERO INOX.","Bueno en Uso"]
["00567","COCINA (PREPARACION DE BANDEJAS)","1er","CARRO PORTA PLATOS","CAMBRO","TDC30191","N/A","ACERO INOX.","Bueno en Uso"]
["00568","COCINA (PREPARACION DE BANDEJAS)","1er","CARRO PORTA PLATOS","CAMBRO","TDC30192","N/A","ACERO INOX.","Bueno en Uso"]
["00820","COCINA (PREPARACION DE BANDEJAS)","1er","CARRO PORTA AJUSTABLE","CAMBRO","ADCS480","N/A","ACERO INOX.","Bueno en Uso"]
["00821","COCINA (PREPARACION DE BANDEJAS)","1er","CARRO PORTA AJUSTABLE","CAMBRO","ADCS481","N/A","ACERO INOX.","Bueno en Uso"]
["00586","COCINA (PREPARACION DE BANDEJAS)","1er","CARGADOR PARA BASE TERMICA DE PELLET","CAMBRO","MDSCDC9X1000","N/A","ACERO INOX.","Bueno en Uso"]
["00587","COCINA (PREPARACION DE BANDEJAS)","1er","CARGADOR PARA BASE TERMICA DE PELLET","CAMBRO","MDSCDC9X1000","N/A","ACERO INOX.","Bueno en Uso"]
["00588","COCINA (PREPARACION DE BANDEJAS)","1er","CARGADOR PARA BASE TERMICA DE PELLET","CAMBRO","MDSCDC9X1000","N/A","ACERO INOX.","Bueno en Uso"]
["00589","COCINA (PREPARACION DE BANDEJAS)","1er","CARGADOR PARA BASE TERMICA DE PELLET","CAMBRO","MDSCDC9X1000","N/A","ACERO INOX.","Bueno en Uso"]
["00773","COCINA (PREPARACION DE BANDEJAS)","1er","CARROS DE BASE TERMICA","N/A","N/A","N/A","ACERO INOX.","Bueno en Uso"]
["00774","COCINA (PREPARACION DE BANDEJAS)","1er","CARROS DE BASE TERMICA","N/A","N/A","N/A","ACERO INOX.","Bueno en Uso"]
["00629","COCINA (PREPARACION DE BANDEJAS)","1er","CARRA TRANSPORTADOR DE COMIDA","N/A","N/A","N/A","ACERO INOX.","Bueno en Uso"]
["00630","COCINA (PREPARACION DE BANDEJAS)","1er","CARRA TRANSPORTADOR DE COMIDA","N/A","N/A","N/A","ACERO INOX.","Bueno en Uso"]
["00631","COCINA (PREPARACION DE BANDEJAS)","1er","CARRA TRANSPORTADOR DE COMIDA","N/A","N/A","N/A","ACERO INOX.","Bueno en Uso"]
["00585","COCINA (PREPARACION DE BANDEJAS)","1er","DISPENSADOR MOVIL DE PLATOS","N/A","N/A","N/A","ACERO INOX.","Bueno en Uso"]
["00582","COCINA (PREPARACION DE BANDEJAS)","1er","ESTANTERIA ALMACENAMIENTO 24X48X75","CAMBRO","CPMU244875PDPKG","N/A","ACERO INOX.","Bueno en Uso"]
["00593","COCINA (PREPARACION DE BANDEJAS)","1er","ESTANTERIA ALMACENAMIENTO 24X48X75","CAMBRO","CPMU244875PDPKG","N/A","ACERO INOX.","Bueno en Uso"]
["00594","COCINA (PREPARACION DE BANDEJAS)","1er","ESTANTERIA ALMACENAMIENTO 24X48X75","CAMBRO","CPMU244875PDPKG","N/A","ACERO INOX.","Bueno en Uso"]
["00595","COCINA (PREPARACION DE BANDEJAS)","1er","ESTANTERIA ALMACENAMIENTO 24X48X75","CAMBRO","CPMU244875PDPKG","N/A","ACERO INOX.","Bueno en Uso"]
["00581","COCINA (PREPARACION DE BANDEJAS)","1er","ESTANTERIA ALMACENAMIENTO 22X36X75","CAMBRO","CPMU213675DDPKG","N/A","ACERO INOX.","Bueno en Uso"]
["00590","COCINA (PREPARACION DE BANDEJAS)","1er","ESTANTERIA ALMACENAMIENTO 22X36X75","CAMBRO","CPMU213675DDPKG","N/A","ACERO INOX.","Bueno en Uso"]
["00591","COCINA (PREPARACION DE BANDEJAS)","1er","ESTANTERIA ALMACENAMIENTO 22X36X75","CAMBRO","CPMU213675DDPKG","N/A","ACERO INOX.","Bueno en Uso"]
["00592","COCINA (PREPARACION DE BANDEJAS)","1er","ESTANTERIA ALMACENAMIENTO 22X36X75","CAMBRO","CPMU213675DDPKG","N/A","ACERO INOX.","Bueno en Uso"]
["00596","COCINA (PREPARACION DE BANDEJAS)","1er","ESTANTERIA ALMACENAMIENTO 22X36X75","CAMBRO","CPMU213675DDPKG","N/A","ACERO INOX.","Bueno en Uso"]
["00490","COCINA (CARNICERIA)","1er","BANCO BAJO 21X48X12","CAMBRO","DRS480480","N/A","ACERO INOX.","Bueno en Uso"]
["00491","COCINA (CARNICERIA)","1er","BANCO BAJO 21X48X12","CAMBRO","DRS480480","N/A","ACERO INOX.","Bueno en Uso"]
["00492","COCINA (CARNICERIA)","1er","BANCO BAJO 21X48X12","CAMBRO","DRS480480","N/A","ACERO INOX.","Bueno en Uso"]
["00493","COCINA (CARNICERIA)","1er","BANCO BAJO 21X48X12","CAMBRO","DRS480480","N/A","ACERO INOX.","Bueno en Uso"]
["00494","COCINA (CARNICERIA)","1er","BANCO BAJO 21X48X12","CAMBRO","DRS480480","N/A","ACERO INOX.","Bueno en Uso"]
["00495","COCINA (CARNICERIA)","1er","BANCO BAJO 21X48X12","CAMBRO","DRS480480","N/A","ACERO INOX.","Bueno en Uso"]
["00496","COCINA (CARNICERIA)","1er","BANJO BAJO 21 X36X12","CAMBRO","DRS360480","N/A","ACERO INOX.","Bueno en Uso"]
["00497","COCINA (CARNICERIA)","1er","BANJO BAJO 21 X36X12","CAMBRO","DRS360480","N/A","ACERO INOX.","Bueno en Uso"]
["00498","COCINA (CARNICERIA)","1er","BANCO BAJO 21X60X12","CAMBRO","DRS600480","N/A","ACERO INOX.","Bueno en Uso"]
["00499","COCINA (CARNICERIA)","1er","BANCO BAJO 21X60X12","CAMBRO","DRS600480","N/A","ACERO INOX.","Bueno en Uso"]
["00500","COCINA (CARNICERIA)","1er","ESTANTERIA  PLASTICA 24XX48X72","CAMBRO","CPU244872V4480","N/A","ACERO INOX.","Bueno en Uso"]
["00501","COCINA (CARNICERIA)","1er","ESTANTERIA  PLASTICA 24XX48X72","CAMBRO","CPU244872V4480","N/A","ACERO INOX.","Bueno en Uso"]
["00502","COCINA (CARNICERIA)","1er","ESTANTERIA  PLASTICA 24XX48X72","CAMBRO","CPU244872V4480","N/A","ACERO INOX.","Bueno en Uso"]
["00503","COCINA (CARNICERIA)","1er","ESTANTERIA  PLASTICA 24XX48X72","CAMBRO","CPU244872V4480","N/A","ACERO INOX.","Bueno en Uso"]
["00504","COCINA (CARNICERIA)","1er","ESTANTERIA  PLASTICA 24XX48X72","CAMBRO","CPU244872V4480","N/A","ACERO INOX.","Bueno en Uso"]
["00505","COCINA (CARNICERIA)","1er","ESTANTERIA  PLASTICA 24XX42X72","CAMBRO","CPU244272V4480","N/A","ACERO INOX.","Bueno en Uso"]
["00741","COCINA (CARNICERIA)","1er","BANCO BAJO 21X48X12","CAMBRO","DRS480480","N/A","ACERO INOX.","Bueno en Uso"]
["00742","COCINA (CARNICERIA)","1er","BANCO BAJO 21X48X12","CAMBRO","DRS480480","N/A","ACERO INOX.","Bueno en Uso"]
["00740","COCINA (CUARTO FRIO EMBUTIDOS Y LACTEOS  35°F)","1er","BANCO BAJO 21X36X12","CAMBRO","DRS360480","N/A","ACERO INOX.","Bueno en Uso"]
["00716","COCINA (CUARTO FRIO EMBUTIDOS Y LACTEOS  35°F)","1er","ESTANTERIAS PLASTICAS 24X60X72","CAMBRO","CPU244872V4480","N/A","ACERO INOX.","Bueno en Uso"]
["00717","COCINA (CUARTO FRIO EMBUTIDOS Y LACTEOS  35°F)","1er","ESTANTERIAS PLASTICAS 24X60X72","CAMBRO","CPU244872V4480","N/A","ACERO INOX.","Bueno en Uso"]
["00718","COCINA (CUARTO FRIO FRUTAS Y VEJETALES  35°F)","1er","ESTANTERIAS PLASTICAS 24X60X72","CAMBRO","CPU244872V4480","N/A","ACERO INOX.","Bueno en Uso"]
["00719","COCINA (CUARTO FRIO FRUTAS Y VEJETALES  35°F)","1er","ESTANTERIAS PLASTICAS 24X48X72","CAMBRO","CPU244872V4480","N/A","ACERO INOX.","Bueno en Uso"]
["00720","COCINA (CUARTO FRIO FRUTAS Y VEJETALES  35°F)","1er","ESTANTERIAS PLASTICAS 24X48X72","CAMBRO","CPU244872V4480","N/A","ACERO INOX.","Bueno en Uso"]
["00721","COCINA (CUARTO FRIO FRUTAS Y VEJETALES  35°F)","1er","ESTANTERIAS PLASTICAS 24X48X72","CAMBRO","CPU244872V4480","N/A","ACERO INOX.","Bueno en Uso"]
["00722","COCINA (CUARTO FRIO FRUTAS Y VEJETALES  35°F)","1er","ESTANTERIAS PLASTICAS 21X48X12","CAMBRO","DRS360480","N/A","ACERO INOX.","Bueno en Uso"]
["00723","COCINA (CUARTO FRIO FRUTAS Y VEJETALES  35°F)","1er","ESTANTERIAS PLASTICAS 21X48X12","CAMBRO","DRS360480","N/A","ACERO INOX.","Bueno en Uso"]
["00724","COCINA (CUARTO FRIO FRUTAS Y VEJETALES  35°F)","1er","ESTANTERIAS PLASTICAS 21X48X12","CAMBRO","DRS360480","N/A","ACERO INOX.","Bueno en Uso"]
["00725","COCINA (CUARTO FRIO FRUTAS Y VEJETALES  35°F)","1er","ESTANTERIAS PLASTICAS 21X48X12","CAMBRO","DRS360480","N/A","ACERO INOX.","Bueno en Uso"]
["00726","COCINA (CUARTO FRIO FRUTAS Y VEJETALES  35°F)","1er","ESTANTERIAS PLASTICAS 21X48X12","CAMBRO","DRS360480","N/A","ACERO INOX.","Bueno en Uso"]
["00727","COCINA (CUARTO FRIO FRUTAS Y VEJETALES  35°F)","1er","ESTANTERIAS PLASTICAS 21X48X12","CAMBRO","DRS360480","N/A","ACERO INOX.","Bueno en Uso"]
["00728","COCINA (CUARTO FRIO FRUTAS Y VEJETALES  35°F)","1er","ESTANTERIAS PLASTICAS 21X48X12","CAMBRO","DRS360480","N/A","ACERO INOX.","Bueno en Uso"]
["00729","COCINA (CUARTO FRIO FRUTAS Y VEJETALES  35°F)","1er","ESTANTERIAS PLASTICAS 21X48X12","CAMBRO","DRS360480","N/A","ACERO INOX.","Bueno en Uso"]
["00730","COCINA (CUARTO FRIO FRUTAS Y VEJETALES  35°F)","1er","ESTANTERIAS PLASTICAS 21X48X12","CAMBRO","DRS360480","N/A","ACERO INOX.","Bueno en Uso"]
["00559","COCINA (LAVADO VAJILLAS)","1er","CARRO TRANSPORTADOR CON RUEDAS","CAMBRO","CDR2020G151","N/A","ACERO INOX.","Bueno en Uso"]
["00560","COCINA (LAVADO VAJILLAS)","1er","CARRO TRANSPORTADOR CON RUEDAS","CAMBRO","CDR2020G151","N/A","ACERO INOX.","Bueno en Uso"]
["00561","COCINA (LAVADO VAJILLAS)","1er","CARRO TRANSPORTADOR CON RUEDAS","CAMBRO","CDR2020G151","N/A","ACERO INOX.","Bueno en Uso"]
["00536","COCINA (LAVADO VAJILLAS)","1er","ESTANTERIA PLASTICA 24x48x72","CAMBRO","CPU244872V4480","N/A","ACERO INOX.","Bueno en Uso"]
["00537","COCINA (LAVADO VAJILLAS)","1er","ESTANTERIA PLASTICA 24x48x72","CAMBRO","CPU244872V4480","N/A","ACERO INOX.","Bueno en Uso"]
["00538","COCINA (LAVADO VAJILLAS)","1er","ESTANTERIA PLASTICA 24x48x72","CAMBRO","CPU244872V4480","N/A","ACERO INOX.","Bueno en Uso"]
["00539","COCINA (LAVADO VAJILLAS)","1er","ESTANTERIA PLASTICA 24x48x72","CAMBRO","CPU244872V4480","N/A","ACERO INOX.","Bueno en Uso"]
["00540","COCINA (LAVADO VAJILLAS)","1er","ESTANTERIA PLASTICA 24x48x72","CAMBRO","CPU244872V4480","N/A","ACERO INOX.","Bueno en Uso"]
["00655","COCINA (LAVADO DE FRUTAS Y VEJETALES)","1er","BANCO BAJO 21X60X12","CAMBRO","DRS600480","N/A","ACERO INOX.","Bueno en Uso"]
["00667","COCINA (LAVADO DE FRUTAS Y VEJETALES)","1er","CONTEDOR  DE LECHUGA","CAMBRO","CC32148","N/A","ACERO INOX.","Bueno en Uso"]
["00668","COCINA (LAVADO DE FRUTAS Y VEJETALES)","1er","CONTEDOR  DE LECHUGA","CAMBRO","CC32148","N/A","ACERO INOX.","Bueno en Uso"]
["00643","COCINA (LAVADO DE FRUTAS Y VEJETALES)","1er","ESTANTERIA PLASTICA 24X48X12","CAMBRO","CPU244272V4480","N/A","ACERO INOX.","Bueno en Uso"]
["00644","COCINA (LAVADO DE FRUTAS Y VEJETALES)","1er","ESTANTERIA PLASTICA 24X36","CAMBRO","CPU244272V4480","N/A","ACERO INOX.","Bueno en Uso"]
["00709","COCINA (DESPENSA SECA)","1er","BANCO BAJO 21X48X12","CAMBRO","DRS480480","N/A","ACERO INOX.","Bueno en Uso"]
["00672","COCINA (DESPENSA SECA)","1er","BANCO BAJO 21X48X12","CAMBRO","DRS480480","N/A","ACERO INOX.","Bueno en Uso"]
["00673","COCINA (DESPENSA SECA)","1er","BANCO BAJO 21X48X12","CAMBRO","DRS480480","N/A","ACERO INOX.","Bueno en Uso"]
["00674","COCINA (DESPENSA SECA)","1er","BANCO BAJO 21X48X12","CAMBRO","DRS480480","N/A","ACERO INOX.","Bueno en Uso"]
["00675","COCINA (DESPENSA SECA)","1er","BANCO BAJO 21X48X12","CAMBRO","DRS480480","N/A","ACERO INOX.","Bueno en Uso"]
["00676","COCINA (DESPENSA SECA)","1er","BANCO BAJO 21X48X12","CAMBRO","DRS480480","N/A","ACERO INOX.","Bueno en Uso"]
["00669","COCINA (DESPENSA SECA)","1er","BANCO BAJO 21X60X12","CAMBRO","DRS600480","N/A","ACERO INOX.","Bueno en Uso"]
["00670","COCINA (DESPENSA SECA)","1er","BANCO BAJO 21X60X12","CAMBRO","DRS600480","N/A","ACERO INOX.","Bueno en Uso"]
["00671","COCINA (DESPENSA SECA)","1er","BANCO BAJO 21X60X12","CAMBRO","DRS600480","N/A","ACERO INOX.","Bueno en Uso"]
["00703","COCINA (DESPENSA SECA)","1er","BANCO BAJO 21X60X12","CAMBRO","DRS600480","N/A","ACERO INOX.","Bueno en Uso"]
["00704","COCINA (DESPENSA SECA)","1er","BANCO BAJO 21X60X12","CAMBRO","DRS600480","N/A","ACERO INOX.","Bueno en Uso"]
["00705","COCINA (DESPENSA SECA)","1er","BANCO BAJO 21X60X12","CAMBRO","DRS600480","N/A","ACERO INOX.","Bueno en Uso"]
["00706","COCINA (DESPENSA SECA)","1er","BANCO BAJO 21X60X12","CAMBRO","DRS600480","N/A","ACERO INOX.","Bueno en Uso"]
["00707","COCINA (DESPENSA SECA)","1er","BANCO BAJO 21X60X12","CAMBRO","DRS600480","N/A","ACERO INOX.","Bueno en Uso"]
["00677","COCINA (DESPENSA SECA)","1er","ESTANTERIA PLASTICA 24X48X72","CAMBRO","CPU244872V4480","N/A","ACERO INOX.","Bueno en Uso"]
["00678","COCINA (DESPENSA SECA)","1er","ESTANTERIA PLASTICA 24X48X72","CAMBRO","CPU244872V4480","N/A","ACERO INOX.","Bueno en Uso"]
["00679","COCINA (DESPENSA SECA)","1er","ESTANTERIA PLASTICA 24X48X72","CAMBRO","CPU244872V4480","N/A","ACERO INOX.","Bueno en Uso"]
["00680","COCINA (DESPENSA SECA)","1er","ESTANTERIA PLASTICA 24X48X72","CAMBRO","CPU244872V4480","N/A","ACERO INOX.","Bueno en Uso"]
["00681","COCINA (DESPENSA SECA)","1er","ESTANTERIA PLASTICA 24X48X72","CAMBRO","CPU244872V4480","N/A","ACERO INOX.","Bueno en Uso"]
["00682","COCINA (DESPENSA SECA)","1er","ESTANTERIA PLASTICA 24X48X72","CAMBRO","CPU244872V4480","N/A","ACERO INOX.","Bueno en Uso"]
["00683","COCINA (DESPENSA SECA)","1er","ESTANTERIA PLASTICA 24X48X72","CAMBRO","CPU244872V4480","N/A","ACERO INOX.","Bueno en Uso"]
["00684","COCINA (DESPENSA SECA)","1er","ESTANTERIA PLASTICA 24X48X72","CAMBRO","CPU244872V4480","N/A","ACERO INOX.","Bueno en Uso"]
["00685","COCINA (DESPENSA SECA)","1er","ESTANTERIA PLASTICA 24X48X72","CAMBRO","CPU244872V4480","N/A","ACERO INOX.","Bueno en Uso"]
["00686","COCINA (DESPENSA SECA)","1er","ESTANTERIA PLASTICA 24X48X72","CAMBRO","CPU244872V4480","N/A","ACERO INOX.","Bueno en Uso"]
["00687","COCINA (DESPENSA SECA)","1er","ESTANTERIA PLASTICA 24X48X72","CAMBRO","CPU244872V4480","N/A","ACERO INOX.","Bueno en Uso"]
["00688","COCINA (DESPENSA SECA)","1er","ESTANTERIA PLASTICA 24X48X72","CAMBRO","CPU244872V4480","N/A","ACERO INOX.","Bueno en Uso"]
["00689","COCINA (DESPENSA SECA)","1er","ESTANTERIA PLASTICA 24X48X72","CAMBRO","CPU244872V4480","N/A","ACERO INOX.","Bueno en Uso"]
["00690","COCINA (DESPENSA SECA)","1er","ESTANTERIA PLASTICA 24X48X72","CAMBRO","CPU244872V4480","N/A","ACERO INOX.","Bueno en Uso"]
["00691","COCINA (DESPENSA SECA)","1er","ESTANTERIA PLASTICA 24X48X72","CAMBRO","CPU244872V4480","N/A","ACERO INOX.","Bueno en Uso"]
["00692","COCINA (DESPENSA SECA)","1er","ESTANTERIA PLASTICA 24X48X72","CAMBRO","CPU244872V4480","N/A","ACERO INOX.","Bueno en Uso"]
["00754","COCINA (LAVADO DE OLLAS)","1er","ESTANTERIA PLASTICA 24X60X72","CAMBRO","CPU246072V4480","N/A","ACERO INOX.","Bueno en Uso"]
["00755","COCINA (LAVADO DE OLLAS)","1er","ESTANTERIA PLASTICA 24X60X72","CAMBRO","CPU246072V4480","N/A","ACERO INOX.","Bueno en Uso"]
["00750","COCINA (LAVADO DE OLLAS)","1er","ESTANTERIA PLASTICA 24X42X72","CAMBRO","CPU244272V4480","N/A","ACERO INOX.","Bueno en Uso"]
["00751","COCINA (LAVADO DE OLLAS)","1er","ESTANTERIA PLASTICA 24X42X72","CAMBRO","CPU244272V4480","N/A","ACERO INOX.","Bueno en Uso"]
["00752","COCINA (LAVADO DE OLLAS)","1er","ESTANTERIA PLASTICA 24X36X72","CAMBRO","CPU243672V4480","N/A","ACERO INOX.","Bueno en Uso"]
["00753","COCINA (LAVADO DE OLLAS)","1er","ESTANTERIA PLASTICA 24X36X72","CAMBRO","CPU243672V4480","N/A","ACERO INOX.","Bueno en Uso"]
["00580","COCINA (PREPARACION BANDEJAS)","1er","ESTANTERIA PLASTICA 24X48X72","CAMBRO","CPU244872V4480","N/A","ACERO INOX.","Bueno en Uso"]
["00818","COCINA (PREPARACION BANDEJAS)","1er","CARRO PORTA PLATOS SUCIOS","CAMBRO","BC340KD480","N/A","ACERO INOX.","Bueno en Uso"]
["00819","COCINA (PREPARACION BANDEJAS)","1er","CARRO PORTA PLATOS SUCIOS","CAMBRO","BC340KD480","N/A","ACERO INOX.","Bueno en Uso"]
["00624","COCINA (PREPARACION BANDEJAS)","1er","CONTENEDOR DE HIELO CON RUEDAS","CAMBRO","ICS125L191","N/A","ACERO INOX.","Bueno en Uso"]
["00822","COCINA (DEPOSITO DE VAJILLAS LIMPIAS)","1er","ESTANTERIA PLASTICA 24X48X84","CAMBRO","CPU244884V5PKG","N/A","ACERO INOX.","Bueno en Uso"]
["00823","COCINA (DEPOSITO DE VAJILLAS LIMPIAS)","1er","ESTANTERIA PLASTICA 24X48X84","CAMBRO","CPU244884V5PKG","N/A","ACERO INOX.","Bueno en Uso"]
["00824","COCINA (DEPOSITO DE VAJILLAS LIMPIAS)","1er","ESTANTERIA PLASTICA 24X48X84","CAMBRO","CPU244884V5PKG","N/A","ACERO INOX.","Bueno en Uso"]
["00825","COCINA (DEPOSITO DE VAJILLAS LIMPIAS)","1er","ESTANTERIA PLASTICA 24X48X84","CAMBRO","CPU244884V5PKG","N/A","ACERO INOX.","Bueno en Uso"]
["00826","COCINA (DEPOSITO DE VAJILLAS LIMPIAS)","1er","ESTANTERIA PLASTICA 24X48X84","CAMBRO","CPU244884V5PKG","N/A","ACERO INOX.","Bueno en Uso"]
["00827","COCINA (DEPOSITO DE VAJILLAS LIMPIAS)","1er","ESTANTERIA PLASTICA 24X48X84","CAMBRO","CPU244884V5PKG","N/A","ACERO INOX.","Bueno en Uso"]
["00828","COCINA (DEPOSITO DE VAJILLAS LIMPIAS)","1er","ESTANTERIA PLASTICA 24X48X84","CAMBRO","CPU244884V5PKG","N/A","ACERO INOX.","Bueno en Uso"]
["00829","COCINA (DEPOSITO DE VAJILLAS LIMPIAS)","1er","ESTANTERIA PLASTICA 24X48X84","CAMBRO","CPU244884V5PKG","N/A","ACERO INOX.","Bueno en Uso"]
["00830","COCINA (DEPOSITO DE VAJILLAS LIMPIAS)","1er","ESTANTERIA PLASTICA 24X48X84","CAMBRO","CPU244884V5PKG","N/A","ACERO INOX.","Bueno en Uso"]
["00831","COCINA (DEPOSITO DE VAJILLAS LIMPIAS)","1er","ESTANTERIA PLASTICA 24X48X84","CAMBRO","CPU244884V5PKG","N/A","ACERO INOX.","Bueno en Uso"]
["00832","COCINA (DEPOSITO DE VAJILLAS LIMPIAS)","1er","ESTANTERIA PLASTICA 24X48X84","CAMBRO","CPU244884V5PKG","N/A","ACERO INOX.","Bueno en Uso"]
["00833","COCINA (DEPOSITO DE VAJILLAS LIMPIAS)","1er","ESTANTERIA PLASTICA 24X48X84","CAMBRO","CPU244884V5PKG","N/A","ACERO INOX.","Bueno en Uso"]
["00834","COCINA (DEPOSITO DE VAJILLAS LIMPIAS)","1er","ESTANTERIA PLASTICA 24X48X84","CAMBRO","CPU244884V5PKG","N/A","ACERO INOX.","Bueno en Uso"]
["00835","COCINA (DEPOSITO DE VAJILLAS LIMPIAS)","1er","ESTANTERIA PLASTICA 24X48X84","CAMBRO","CPU244884V5PKG","N/A","ACERO INOX.","Bueno en Uso"]
["00836","COCINA (DEPOSITO DE VAJILLAS LIMPIAS)","1er","CARRITO MOVIL  PARA BANDEJAS 24X60X75","CAMBRO","CPMU246075DRPKG","N/A","ACERO INOX.","Bueno en Uso"]
["00837","COCINA (DEPOSITO DE VAJILLAS LIMPIAS)","1er","CARRITO MOVIL  PARA BANDEJAS 24X60X75","CAMBRO","CPMU246075DRPKG","N/A","ACERO INOX.","Bueno en Uso"]
["00838","COCINA (DEPOSITO DE VAJILLAS LIMPIAS)","1er","CARRITO MOVIL  PARA BANDEJAS 24X60X75","CAMBRO","CPMU246075DRPKG","N/A","ACERO INOX.","Bueno en Uso"]
["00839","COCINA (DEPOSITO DE VAJILLAS LIMPIAS)","1er","CARRITO MOVIL  DE SECADO PARA BANDEJAS 24X60X75","CAMBRO","CPMU246075DRPKG","N/A","ACERO INOX.","Bueno en Uso"]
["00841","COCINA (DEPOSITO DE VAJILLAS LIMPIAS)","1er","CARRITO MOVIL  DE SECADO PARA BANDEJAS 24X48X75","CAMBRO","CPMU244875DRPKG","N/A","ACERO INOX.","Bueno en Uso"]
["00842","COCINA (DEPOSITO DE VAJILLAS LIMPIAS)","1er","CARRITO MOVIL  DE SECADO PARA BANDEJAS 24X48X75","CAMBRO","CPMU244875DRPKG","N/A","ACERO INOX.","Bueno en Uso"]
["00569","COCINA (PREPARACION DE BANDEJAS)","1er","CARRO PORTA BANDEJAS PARA PANADERIA","CAMBRO","RD78N","N/A","ACERO INOX.","Bueno en Uso"]
["00570","COCINA (PREPARACION DE BANDEJAS)","1er","CARRO PORTA BANDEJAS PARA PANADERIA","CAMBRO","RD78N","N/A","ACERO INOX.","Bueno en Uso"]
["00571","COCINA (PREPARACION DE BANDEJAS)","1er","CARRO PORTA BANDEJAS PARA PANADERIA","CAMBRO","RD78N","N/A","ACERO INOX.","Bueno en Uso"]
["00580","COCINA (PREPARACION DE BANDEJAS)","1er","CARRO PORTA BANDEJAS PARA PANADERIA","CAMBRO","RD78N","N/A","ACERO INOX.","Bueno en Uso"]
["00583","COCINA (PREPARACION DE BANDEJAS)","1er","CARRO PORTA BANDEJAS PARA PANADERIA","CAMBRO","RD78N","N/A","ACERO INOX.","Bueno en Uso"]
["00584","COCINA (PREPARACION DE BANDEJAS)","1er","CARRO PORTA BANDEJAS PARA PANADERIA","CAMBRO","RD78N","N/A","ACERO INOX.","Bueno en Uso"]
["00731","COCINA (PREPARACION DE BANDEJAS)","1er","CARRO PORTA BANDEJAS PARA PANADERIA","CAMBRO","RD78N","N/A","ACERO INOX.","Bueno en Uso"]
["00732","COCINA (PREPARACION DE BANDEJAS)","1er","CARRO PORTA BANDEJAS PARA PANADERIA","CAMBRO","RD78N","N/A","ACERO INOX.","Bueno en Uso"]
["00733","COCINA (PREPARACION DE BANDEJAS)","1er","CARRO PORTA BANDEJAS PARA PANADERIA","CAMBRO","RD78N","N/A","ACERO INOX.","Bueno en Uso"]
["00764","COCINA (PREPARACION DE BANDEJAS)","1er","CARRO PORTA BANDEJAS PARA PANADERIA","CAMBRO","RD78N","N/A","ACERO INOX.","Bueno en Uso"]
["00795","COCINA (PREPARACION DE BANDEJAS)","1er","CARRO PORTA BANDEJAS PARA PANADERIA","CAMBRO","RD78N","N/A","ACERO INOX.","Bueno en Uso"]
["00805","COCINA (PREPARACION DE BANDEJAS)","1er","BATERIA DE DOS BOCAS FREIDOR PROFUNDO","CAMBRO","SG14R-2FD","N/A","ACERO INOX.","Bueno en Uso"]
["00804","COCINA (COCCION DE ALIMENTOS)","1er","FREIDOR PROFUNDO, UNA BOCA CON 4 RUEDA GIRATORIAS","PITCO","N/A","N/A","ACERO INOX.","Bueno en Uso"]
["00806","COCINA (COCCION DE ALIMENTOS)","1er","LAMPARA PARA FREIDOR","PITCO","PFW","N/A","ACERO INOX.","Bueno en Uso"]
["00807","COCINA (COCCION DE ALIMENTOS)","1er","LAMPARA PARA FREIDOR","PITCO","PFW","N/A","ACERO INOX.","Bueno en Uso"]
["00627","COCINA (LAVADO DE CARROS)","1er","ESTACION DE MANGUERA DE LIMPIEZA VAPOR PARED","STRAHMAN VALVE","M5000TS","N/A","ACERO INOX.","Bueno en Uso"]
["00845","COCINA (LAVADO DE CARROS)","1er","ESTACION DE MANGUERA DE LIMPIEZA VAPOR PARED","STRAHMAN VALVE","M5000TS","N/A","ACERO INOX.","Bueno en Uso"]
["00633","COCINA (LAVADO DE CARROS)","1er","DIR DIFUSE INLINE TRAP","STRAHMAN VALVE","DDITRAP","N/A","ACERO INOX.","Bueno en Uso"]
["00598","COCINA (COCCION DE ALIMENTOS)","1er","ARMARIO MOVIL CON CALEFACCION","CARTER HOFFMANN","PH1830-291","N/A","ACERO INOX.","Bueno en Uso"]
["00599","COCINA (COCCION DE ALIMENTOS)","1er","ARMARIO MOVIL CON CALEFACCION","CARTER HOFFMANN","PH1830-291","N/A","ACERO INOX.","Bueno en Uso"]
["00600","COCINA (COCCION DE ALIMENTOS)","1er","ARMARIO MOVIL CON CALEFACCION","CARTER HOFFMANN","PH1830-291","N/A","ACERO INOX.","Bueno en Uso"]
["00601","COCINA (COCCION DE ALIMENTOS)","1er","ARMARIO MOVIL CON CALEFACCION","CARTER HOFFMANN","PH1830-291","N/A","ACERO INOX.","Bueno en Uso"]
["00635","COCINA (LAVADO FRUTAS Y VETALES)","1er","CARRO PLATAFORMA 48X24 STANDAR","RUBERMAID","FG443600BLA","N/A","ACERO INOX.","Bueno en Uso"]
["00636","COCINA (LAVADO FRUTAS Y VETALES)","1er","CARRO PLATAFORMA 48X24 STANDAR","RUBERMAID","FG443600BLA","N/A","ACERO INOX.","Bueno en Uso"]
["00506","COCINA (CARNICERIA)","1er","MESA PARA CARNICERIA","JOHN BOSS","PCA5","N/A","ACERO INOX.","Bueno en Uso"]
["00507","COCINA (CARNICERIA)","1er","MESA PARA CARNICERIA","JOHN BOSS","PCA5","N/A","ACERO INOX.","Bueno en Uso"]
["00762","COCINA (PELADO DE VIVERES)","1er","MESA AUXILIAR 30X60","N/A","N/A","N/A","ACERO INOX.","Bueno en Uso"]
["00763","COCINA (PELADO DE VIVERES)","1er","MESA AUXILIAR 30X60","N/A","N/A","N/A","ACERO INOX.","Bueno en Uso"]
["00766","COCINA (CARNICERIA)","1er","FREGADERO BOBLE 24X48","N/A","N/A","N/A","ACERO INOX.","Bueno en Uso"]
["00767","COCINA (PELADO DE VIVERES)","1er","GRIFO DE PARED","T & S","N/A","N/A","ACERO INOX.","Bueno en Uso"]
["00735","COCINA (CUARTO FRIO EMBUTIDOS Y LACTEOS  35°F)","1er","ESTANTERIA PLASTICA 24X48X72","N/A","N/A","N/A","ACERO INOX.","Bueno en Uso"]
["00736","COCINA (CUARTO FRIO EMBUTIDOS Y LACTEOS  35°F)","1er","ESTANTERIA PLASTICA 24X48X72","N/A","N/A","N/A","ACERO INOX.","Bueno en Uso"]
["00737","COCINA (CUARTO FRIO EMBUTIDOS Y LACTEOS  35°F)","1er","ESTANTERIA PLASTICA 24X48X72","N/A","N/A","N/A","ACERO INOX.","Bueno en Uso"]
["00734","COCINA (CUARTO FRIO EMBUTIDOS Y LACTEOS  35°F)","1er","ESTANTERIA PLASTICA 24X42X72","N/A","N/A","N/A","ACERO INOX.","Bueno en Uso"]
["00738","COCINA (CUARTO FRIO EMBUTIDOS Y LACTEOS  35°F)","1er","ESTANTERIA PLASTICA 24X42X72","N/A","N/A","N/A","ACERO INOX.","Bueno en Uso"]
["00572","COCINA (PREPARACIO DE BANDEJAS)","1er","MESA ELEVADO CONDIMENTO 5 HUECOS","N/A","N/A","N/A","ACERO INOX.","Bueno en Uso"]
["00573","COCINA (PREPARACIO DE BANDEJAS)","1er","MESA ALIMENTOS CALIENTES 30X80","N/A","N/A","N/A","ACERO INOX.","Bueno en Uso"]
["00693","COCINA (DESPENSA SECA)","1er","ESTANTERIA ","N/A","N/A","N/A","ACERO INOX.","Bueno en Uso"]
["00694","COCINA (DESPENSA SECA)","1er","CARROS TRANSPORTE DE ALIMENTOS","N/A","N/A","N/A","ACERO INOX.","Bueno en Uso"]
["00695","COCINA (DESPENSA SECA)","1er","CARROS TRANSPORTE DE ALIMENTOS","N/A","N/A","N/A","ACERO INOX.","Bueno en Uso"]
["00696","COCINA (DESPENSA SECA)","1er","EXTINTOR","N/A","1SO9001","N/A","ROJO","Bueno en Uso"]
["00697","COCINA (DESPENSA SECA)","1er","SILLA SECRETARIAL","N/A","N/A","N/A","N/A","Bueno en Uso"]
["00698","COCINA (DESPENSA SECA)","1er","SILLA PARA VISITAS","N/A","N/A","N/A","N/A","Bueno en Uso"]
["00699","COCINA (DESPENSA SECA)","1er","ZAFACON","N/A","N/A","N/A","AZUL","Bueno en Uso"]
["00700","COCINA (DESPENSA SECA)","1er","ZAFACON","N/A","N/A","N/A","AZUL","Bueno en Uso"]
["00701","COCINA (DESPENSA SECA)","1er","ZAFACON","N/A","N/A","N/A","AZUL","Bueno en Uso"]
["00702","COCINA (DESPENSA SECA)","1er","ZAFACON","N/A","N/A","N/A","AZUL","Bueno en Uso"]
["00708","COCINA (DESPENSA SECA)","1er","PESO RELOJ","N/A","N/A","N/A","N/A","Bueno en Uso"]
["00710","COCINA (DESPENSA SECA)","1er","MESA DE TRABAJO","N/A","N/A","N/A","BLANCO HUESO","Bueno en Uso"]
["00711","COCINA (DESPENSA SECA)","1er","MESA DE TRABAJO","N/A","N/A","N/A","BLANCO HUESO","Bueno en Uso"]
["00712","COCINA (DESPENSA SECA)","1er","SILLA SECRETARIAL","N/A","N/A","N/A","NEGRO","Bueno en Uso"]
["00713","COCINA (DESPENSA SECA)","1er","SILLA SECRETARIAL","N/A","N/A","N/A","NEGRO","Bueno en Uso"]
["00714","COCINA (DESPENSA SECA)","1er","ARCHIVO 3 GAVETAS","N/A","N/A","N/A","BLANCO HUESO","Bueno en Uso"]
["00715","COCINA (DESPENSA SECA)","1er","ARCHIVO 3 GAVETAS","N/A","N/A","N/A","BLANCO HUESO","Bueno en Uso"]
["00739","COCINA (CUARTO FRIO EMBUTIDOS Y LACTEOS  35°F)","1er","CONTENEDOR","N/A","N/A","N/A","N/A","Bueno en Uso"]
["00743","COCINA (CUARTO FRIO FRUTAS Y VEJETALES  35°F)","1er","CONGELADOR","N/A","N/A","N/A","N/A","Bueno en Uso"]
["00746","COCINA (CUARTO FRIO EMBUTIDOS Y LACTEOS  35°F)","1er","COMBINACION 2 CUARTOS ","N/A","N/A","N/A","N/A","Bueno en Uso"]
["00747","COCINA (CUARTO FRIO POLLO)","1er","COMBINACION 2 CUARTOS","N/A","N/A","N/A","N/A","Bueno en Uso"]
["00748","COCINA (CARNICERIA)","1er","COMBINACION 2 CUARTOS","N/A","N/A","N/A","N/A","Bueno en Uso"]
["00765","COCINA (PELADO DE VIVERES)","1er","BANCO BAJO","N/A","N/A","N/A","N/A","Bueno en Uso"]
["00768","COCINA (PELADO DE VIVERES)","1er","ZAFACONES","N/A","N/A","N/A","GRIS","Bueno en Uso"]
["00769","COCINA (PELADO DE VIVERES)","1er","ZAFACONES","N/A","N/A","N/A","GRIS","Bueno en Uso"]
["00770","COCINA (PELADO DE VIVERES)","1er","ZAFACONES","N/A","N/A","N/A","GRIS","Bueno en Uso"]
["00777","COCINA (PANTRY FRIO)","1er","ZAFACONES","N/A","N/A","N/A","GRIS","Bueno en Uso"]
["00778","COCINA (PANTRY FRIO)","1er","ZAFACONES","N/A","N/A","N/A","GRIS","Bueno en Uso"]
["00779","COCINA (PANTRY FRIO)","1er","ZAFACONES","N/A","N/A","N/A","GRIS","Bueno en Uso"]
["00780","COCINA (PANTRY FRIO)","1er","ZAFACONES","N/A","N/A","N/A","GRIS","Bueno en Uso"]
["00781","COCINA (PANTRY FRIO)","1er","ZAFACONES","N/A","N/A","N/A","GRIS","Bueno en Uso"]
["00782","COCINA (PANTRY FRIO)","1er","ZAFACONES","N/A","N/A","N/A","GRIS","Bueno en Uso"]
["00783","COCINA (PANTRY FRIO)","1er","ZAFACONES","N/A","N/A","N/A","GRIS","Bueno en Uso"]
["00787","COCINA (ALAMACEN SECO)","1er","ESTANTERIA PLASTICA","N/A","N/A","N/A","N/A","Bueno en Uso"]
["00788","COCINA (ALAMACEN SECO)","1er","ESTANTERIA PLASTICA","N/A","N/A","N/A","N/A","Bueno en Uso"]
["00789","COCINA (ALAMACEN SECO)","1er","ESTANTERIA PLASTICA","N/A","N/A","N/A","N/A","Bueno en Uso"]
["00790","COCINA (ALAMACEN SECO)","1er","ESTANTERIA PLASTICA","N/A","N/A","N/A","N/A","Bueno en Uso"]
["00791","COCINA (ALAMACEN SECO)","1er","ESTANTERIA PLASTICA","N/A","N/A","N/A","N/A","Bueno en Uso"]
["00792","COCINA (ALAMACEN SECO)","1er","ESTANTERIA PLASTICA","N/A","N/A","N/A","N/A","Bueno en Uso"]
["00793","COCINA (ALAMACEN SECO)","1er","AIRE ACONDICIONADO ","YORK","N/A","N/A","BLANCO HUESO","Bueno en Uso"]
["00794","CORDERA","1er","COMPRESOR","N/A","N/A","N/A","N/A","Bueno en Uso"]
["00795","CORDERA","1er","COMPRESOR","N/A","N/A","N/A","N/A","Bueno en Uso"]
["00796","CORDERA","1er","COMPRESOR","N/A","N/A","N/A","N/A","Bueno en Uso"]
["00797","CORDERA","1er","COMPRESOR","N/A","N/A","N/A","N/A","Bueno en Uso"]
["00798","CORDERA","1er","COMPRESOR","N/A","N/A","N/A","N/A","Bueno en Uso"]
["00799","CORDERA","1er","COMPRESOR","N/A","N/A","N/A","N/A","Bueno en Uso"]
["00844","CORDERA","1er","COMPRESOR","N/A","N/A","N/A","N/A","Bueno en Uso"]
["00845","CORDERA","1er","COMPRESOR DE AIRE","N/A","N/A","N/A","GRIS","Bueno en Uso"]
["00846","COCINA (LAVADO DE CARRO)","1er","TAPA","N/A","N/A","N/A","ACERO INOX.","Bueno en Uso"]
["00847","COCINA (PELADO DE VIVERES)","1er","CARRO TRANSPORTADOR ","N/A","N/A","N/A","N/A","Bueno en Uso"]
["00848","COCINA (PELADO DE VIVERES)","1er","CARRO TRANSPORTADOR ","N/A","N/A","N/A","N/A","Bueno en Uso"]
["00850","COCINA (PELADO DE VIVERES)","1er","CARRO DE LIMPEZA","N/A","N/A","N/A","N/A","Bueno en Uso"]
["00849","COCINA (BASURA REFIRGERA 35°F)","1er","EQUIPO DE TRFRIGERACION","HEATCRAFT REFRIGERATION","CHT009H6BF/LSC140BK","N/A","N/A","Bueno en Uso"]
["00612","COCINA (OFICINA DEL CHEF)","1er","ESCRITORIO","N/A","N/A","N/A","BLANCO","Bueno en Uso"]
["00613","COCINA (OFICINA DEL CHEF)","1er","SILLA SECRETARIAL","N/A","N/A","N/A","N/A","Bueno en Uso"]
["00614","COCINA (OFICINA DEL CHEF)","1er","IMPRESORA","HP","LESER JET P1102W","VNB40208086","N/A","Bueno en Uso"]
["00615","COCINA (OFICINA DEL CHEF)","1er","COMPUTADORA","N/A","N/A","4CW11910Y0","N/A","Bueno en Uso"]
["00616","COCINA (OFICINA DEL CHEF)","1er","MONITOR","N/A","SNN71700S2D","N/A","N/A","Bueno en Uso"]
["00617","COCINA (OFICINA DEL CHEF)","1er","ESCRITORIO","N/A","N/A","N/A","AMARILLO","Bueno en Uso"]
["00618","COCINA (OFICINA DEL CHEF)","1er","ARCHIVO 3 GAVETAS","N/A","N/A","N/A","BLANCO HUESO","Bueno en Uso"]
["00619","COCINA (OFICINA DEL CHEF)","1er","SILLA SECRETARIAL","N/A","N/A","N/A","N/A","Bueno en Uso"]
["00620","COCINA (OFICINA DEL CHEF)","1er","ABANICO DE PARED","SANKEY","FN-1853R/C","N/A","N/A","Bueno en Uso"]
["00621","COCINA (OFICINA DEL CHEF)","1er","AIRE ACONDICIONADO ","YORK","N/A","N/A","CREMA","Bueno en Uso"]
["00622","COCINA (OFICINA DEL CHEF)","1er","EMBASE PLASTICO PARA HIELO","N/A","N/A","N/A","N/A","Bueno en Uso"]
["00623","COCINA (OFICINA DEL CHEF)","1er","EMBASE PLASTICO PARA HIELO","N/A","N/A","N/A","N/A","Bueno en Uso"]
["00626","COCINA (OFICINA DEL CHEF)","1er","EXTINTOR","N/A","DLE-01-31-9-00100626","N/A","ROJO","Bueno en Uso"]
["00628","COCINA (OFICINA DEL CHEF)","1er","EXTINTOR","N/A","CK25","N/A","NIQUELADO","Bueno en Uso"]
["00632","COCINA (OFICINA DEL CHEF)","1er","EXTINTOR","N/A","AA-118711","N/A","NIQUELADO","Bueno en Uso"]
["00636","COCINA (OFICINA DE DESPENSA)","1er","ESCRITORIO","N/A","N/A","N/A","BLANCO HUESO","Bueno en Uso"]
["00637","COCINA (OFICINA DE DESPENSA)","1er","ARCHIVO 3 GAVETAS","N/A","N/A","N/A","N/A","Bueno en Uso"]
["00638","COCINA (OFICINA DE DESPENSA)","1er","SILLA SECRETARIAL","N/A","N/A","N/A","N/A","Bueno en Uso"]
["00639","COCINA (OFICINA DE DESPENSA)","1er","SILLA SECRETARIAL","N/A","N/A","N/A","N/A","Bueno en Uso"]
["00640","COCINA (OFICINA DE DESPENSA)","1er","IMPRESORA","HP","LASER JET P1102W","VNB3225083","N/A","Bueno en Uso"]
["00641","COCINA (OFICINA DE DESPENSA)","1er","MONITOR","HP","L1906","CNN7040HHR","N/A","Bueno en Uso"]
["00642","COCINA (OFICINA DE DESPENSA)","1er","CPU","N/A","N/A","4CW12501MZ","N/A","Bueno en Uso"]
["00645","COCINA  (DESPENSA SECA)","1er","ANAQUEL","N/A","N/A","N/A","NIQUELADO","Bueno en Uso"]
["00646","COCINA  (DESPENSA SECA)","1er","ANAQUEL","N/A","N/A","N/A","NIQUELADO","Bueno en Uso"]
["00647","COCINA  (DESPENSA SECA)","1er","BALANZA","N/A","N/A","N/A","GRIS CON NEGRO","Bueno en Uso"]
["00648","COCINA  (DESPENSA SECA)","1er","BALANZA DE PISO","N/A","N/A","N/A","CREMA","Bueno en Uso"]
["00649","COCINA  (DESPENSA SECA)","1er","BALANZA ","N/A","N/A","N/A","ACERO INOX.","Bueno en Uso"]
["00650","COCINA  (DESPENSA SECA)","1er","NEVERA EJECUTIVA","MABE","EA04DBE","960A003343","N/A","Bueno en Uso"]
["00651","COCINA  (DESPENSA SECA)","1er","ARCHIVO 3 GAVETAS","N/A","N/A","N/A","GRIS","Bueno en Uso"]
["00657","COCINA  (DESPENSA SECA)","1er","ZAFACONES","N/A","N/A","N/A","GRIS","Bueno en Uso"]
["00658","COCINA  (DESPENSA SECA)","1er","ZAFACONES","N/A","N/A","N/A","GRIS","Bueno en Uso"]
["00659","COCINA  (DESPENSA SECA)","1er","ZAFACONES","N/A","N/A","N/A","GRIS","Bueno en Uso"]
["00660","COCINA  (DESPENSA SECA)","1er","ZAFACONES","N/A","N/A","N/A","GRIS","Bueno en Uso"]
["00661","COCINA  (DESPENSA SECA)","1er","ZAFACONES","N/A","N/A","N/A","GRIS","Bueno en Uso"]
["00662","COCINA  (DESPENSA SECA)","1er","ZAFACONES","N/A","N/A","N/A","GRIS","Bueno en Uso"]
["00663","COCINA  (DESPENSA SECA)","1er","ZAFACONES","N/A","N/A","N/A","GRIS","Bueno en Uso"]
["00664","COCINA  (DESPENSA SECA)","1er","ZAFACONES","N/A","N/A","N/A","GRIS","Bueno en Uso"]
["00665","COCINA  (DESPENSA SECA)","1er","ZAFACONES","N/A","N/A","N/A","GRIS","Bueno en Uso"]
["00666","COCINA  (DESPENSA SECA)","1er","ZAFACONES","N/A","N/A","N/A","GRIS","Bueno en Uso"]
[]
["03023","NEUMOLOGIA ","2do","ESCRITORIO","N/A","N/A","N/A","BANCO","Bueno en Uso"]
["03024","NEUMOLOGIA ","2do","LAPTOP","HP","14CF00120X","N/A","GRIS","Bueno en Uso"]
["03025","NEUMOLOGIA ","2do","TELEFONO","CISCO",3844131086,"WZP182904YR","NEGRO CON GRIS","Bueno en Uso"]
["03026","NEUMOLOGIA ","2do","IMPRESORA","HP","LASER JET PRO M15W","VNB3B1800","BLANCO","Bueno en Uso"]
["03027","NEUMOLOGIA ","2do","ARCHIVO PEQUEÑO","N/A","N/A","N/A","MELAMINA","Bueno en Uso"]
["03028","NEUMOLOGIA ","2do","ZAFACON PEQUEÑO","N/A","N/A","N/A","ACERO INOX.","Bueno en Uso"]
["03029","NEUMOLOGIA ","2do","SILLA SECRETARIAL","N/A","N/A","N/A","GRIS CON NEGRO","Bueno en Uso"]
["03030","NEUMOLOGIA ","2do","SILLA PARA PASIENTES","N/A","N/A","N/A","AZUL CON GRIS","Bueno en Uso"]
["03031","NEUMOLOGIA ","2do","TABURETE GIRATORIO","N/A","N/A","N/A","NEGRO","Bueno en Uso"]
["03032","NEUMOLOGIA ","2do","TABURETE GIRATORIO","N/A","N/A","N/A","NEGRO","Bueno en Uso"]
["03033","NEUMOLOGIA ","2do","LAPTOP","HP","RLTB8723DE","C9925ABB","GRIS","Bueno en Uso"]
["03034","NEUMOLOGIA ","2do","TORRE PARA EQUIPOS","N/A","N/A","N/A","CREMA","Bueno en Uso"]
["03035","NEUMOLOGIA ","2do","IMPRESORA","HP","LASER JET PRO M15W","VNB3B5180021","BLANCO","Bueno en Uso"]
["03036","NEUMOLOGIA ","2do","ESTABILIZADOR DE ENERGIA","N/A","0-777","N/A","NEGRO","Bueno en Uso"]
["03037","NEUMOLOGIA ","2do","LAPTOP","HP","RLTB723DER","5CG9259RHJ","GRI","Bueno en Uso"]
["03038","NEUMOLOGIA ","2do","TORRE DE TRANSPORTE","N/A","N/A","N/A","CREMA","Bueno en Uso"]
["03039","NEUMOLOGIA ","2do","IMPRESORA","HP","LASER JET PRO M15W","N/A","BLANCO","Bueno en Uso"]
["03040","NEUMOLOGIA ","2do","BALANZA","RICE LAKE","RL-MPS",4301900383,"GRIS CON NEGRO","Bueno en Uso"]
["03041","NEUMOLOGIA ","2do","EXTINTOR","N/A","N/A","N/A","ROJO","Bueno en Uso"]
["03042","NEUMOLOGIA ","2do","ZAFACON","N/A","N/A","N/A","ACERO INOX.","Bueno en Uso"]
["03043","NEUMOLOGIA ","2do","ESCRITORIO CON TOPE DE CRISTAL","N/A","N/A","N/A","BLANCO","Bueno en Uso"]
["03044","NEUMOLOGIA ","2do","SILLA PARA PACIENTE","N/A","N/A","N/A","GRIS CON AZUL","Bueno en Uso"]
["03045","NEUMOLOGIA ","2do","CUADRO PARA DECORACION","N/A","N/A","N/A","N/A","Bueno en Uso"]
["03046","NEUMOLOGIA ","2do","CUADRO PARA DECORACION","N/A","N/A","N/A","N/A","Bueno en Uso"]
["03047","NEUMOLOGIA ","2do","ESPIROMETRO","COMED","PONY FX",2018023456,"CREMA","Bueno en Uso"]
["03048","NEUMOLOGIA ","2do","ESPIROMETRO","COMED","PONY FX",2019094220,"CREMA","Bueno en Uso"]
["03049","NEUMOLOGIA ","2do","ESPIROMETRO","COMED","PONY FX",2015031418,"CREMA","Bueno en Uso"]
["03050","NEUMOLOGIA ","2do","ESPIROMETRO","COMED","PONY FX",2014010048,"CREMA","Bueno en Uso"]
["03051","NEUMOLOGIA ","2do","TORRE DE TRANSPORTE","N/A","N/A","N/A","N/A","Bueno en Uso"]
["03052","NEUMOLOGIA ","2do","TORRE DE FIBROSCOPIA","HUGER","N/A","N/A","CREMA","Bueno en Uso"]
["03053","NEUMOLOGIA ","2do","IMPRESORA","SONY","UP-25ND",740660,"CREMA","Bueno en Uso"]
["03054","NEUMOLOGIA ","2do","FUENTE DE LUZ","HUGER","UP-2800","P2822-66","CREMA","Bueno en Uso"]
["03055","NEUMOLOGIA ","2do","FUENTE DE LUZ","HUGER","LLG-2810","L2810141","CREMA","Bueno en Uso"]
["03056","NEUMOLOGIA ","2do","MONITOR","N/A","N/A","CL-1911AA19230028","CREMA","Bueno en Uso"]
["03057","NEUMOLOGIA ","2do","TORRE DE FIBROSCOPIA","HUGER","N/A","N/A","CREMA","Bueno en Uso"]
["03058","NEUMOLOGIA ","2do","IMPRESORA","SONY","VP-ZSMD",7406699,"CREMA","Bueno en Uso"]
["03059","NEUMOLOGIA ","2do","VIDEO PROCESADORA","HUGER","VP-2800","P282188","CREMA","Bueno en Uso"]
["03060","NEUMOLOGIA ","2do","FUENTE DE LUZ","HUGER","LLS-2800","LA0127","CREMA","Bueno en Uso"]
["03061","NEUMOLOGIA ","2do","MONITOR","N/A","N/A","CL-1911AA19230026","CREMA","Bueno en Uso"]
["03062","NEUMOLOGIA ","2do","ESCALINATA DE UN PELDAÑO","N/A","N/A","N/A","NEGRO","Bueno en Uso"]
["03063","NEUMOLOGIA ","2do","CAMILLA DE TRANSPORTE","N/A","N/A","N/A","BLANCO","Bueno en Uso"]
["03064","NEUMOLOGIA ","2do","CAMILLA DE TRANSPORTE","N/A","N/A","N/A","BLANCO CON CREMA","Bueno en Uso"]
["03065","NEUMOLOGIA ","2do","BEBEDERO","KTC","210S000169","YLIS335","BLANCO CON NEGRO","Bueno en Uso"]
["03066","NEUMOLOGIA ","2do","ZAFACON DE METAL PEQUEÑO","N/A","N/A","N/A","ACERO INOX.","Bueno en Uso"]
["03067","NEUMOLOGIA ","2do","ESCALINATA DE UN PELDAÑO","N/A","N/A","N/A","ACERO INOX.","Bueno en Uso"]
["03068","NEUMOLOGIA ","2do","CAMILLA DE TRANSPORTE","N/A","N/A","N/A","ACERO INOX.","Bueno en Uso"]
["03069","NEUMOLOGIA ","2do","MAQUINA DE ANESTESIA","ADVANCED","AM 6000T",62451840003,"CREMA","Bueno en Uso"]
["03070","NEUMOLOGIA ","2do","TORRE DE FIBROSCOPIA","HUGER","N/A","N/A","CREMA","Bueno en Uso"]
["03071","NEUMOLOGIA ","2do","IMPRESORA","SONY","UP-25MD",740557,"CREMA","Bueno en Uso"]
["03072","NEUMOLOGIA ","2do","VIDEO PROCESADOR","HUGER","VEP-2800","P282268","CREMA","Bueno en Uso"]
["03073","NEUMOLOGIA ","2do","FUENTE DE LUZ","HUGER","LLS-2800","LA0132","CREMA","Bueno en Uso"]
["03074","NEUMOLOGIA ","2do","ESCALINATA DE UN PELDAÑO","N/A","N/A","N/A","ACERO INOX.","Bueno en Uso"]
["03075","NEUMOLOGIA ","2do","AIRE ACONDICIONADO","INNOVAIR","N/A","N/A","BLANCO","Bueno en Uso"]
["03076","NEUMOLOGIA ","2do","TABURETE GIRATORIO","N/A","N/A","N/A","NEGRO","Bueno en Uso"]
["03076","NEUMOLOGIA (ESPIROMETRIA, MOBILIARIOS DONADOS)","2do","MESA DE SALA DE CONFERENCIA (","N/A","N/A","N/A","BLANCO","Bueno en Uso"]
["03077","NEUMOLOGIA (ESPIROMETRIA, MOBILIARIOS DONADOS)","2do","SILLA SEMI-EJECUTIVA","N/A","N/A","N/A","BANCO","Bueno en Uso"]
["03078","NEUMOLOGIA (ESPIROMETRIA, MOBILIARIOS DONADOS)","2do","SILLA SEMI-EJECUTIVA","N/A","N/A","N/A","CREMA CON GRIS","Bueno en Uso"]
["03079","NEUMOLOGIA (ESPIROMETRIA, MOBILIARIOS DONADOS)","2do","SILLA SEMI-EJECUTIVA","N/A","N/A","N/A","CREMA CON GRIS","Bueno en Uso"]
["03080","NEUMOLOGIA (ESPIROMETRIA, MOBILIARIOS DONADOS)","2do","SILLA SEMI-EJECUTIVA","N/A","N/A","N/A","CREMA CON GRIS","Bueno en Uso"]
["03081","NEUMOLOGIA (ESPIROMETRIA, MOBILIARIOS DONADOS)","2do","SILLA SEMI-EJECUTIVA","N/A","N/A","N/A","CREMA CON GRIS","Bueno en Uso"]
["03082","NEUMOLOGIA (ESPIROMETRIA, MOBILIARIOS DONADOS)","2do","SILLA SEMI-EJECUTIVA","N/A","N/A","N/A","CREMA CON GRIS","Bueno en Uso"]
["03083","NEUMOLOGIA (ESPIROMETRIA, MOBILIARIOS DONADOS)","2do","SILLA PARA VISITAS","N/A","N/A","N/A","BLANCO HUESO","Bueno en Uso"]
["03084","NEUMOLOGIA (ESPIROMETRIA, MOBILIARIOS DONADOS)","2do","SILLA PARA VISITAS","N/A","N/A","N/A","BLANCO HUESO","Bueno en Uso"]
["03085","NEUMOLOGIA (ESPIROMETRIA, MOBILIARIOS DONADOS)","2do","SILLA PARA VISITAS","N/A","N/A","N/A","BLANCO HUESO","Bueno en Uso"]
["03086","NEUMOLOGIA (ESPIROMETRIA, MOBILIARIOS DONADOS)","2do","ARMARIO PEQUEÑO","N/A","N/A","N/A","GRIS","Bueno en Uso"]
["03087","NEUMOLOGIA (ESPIROMETRIA, MOBILIARIOS DONADOS)","2do","BALANZA","RICE LAKE","RL-MPS",6151800294,"GRIS","Bueno en Uso"]
["03088","NEUMOLOGIA (ESPIROMETRIA, MOBILIARIOS DONADOS)","2do","BALANZA","RICE LAKE","RL-MPS",15091800298,"GRIS","Bueno en Uso"]
["03089","NEUMOLOGIA (ESPIROMETRIA, MOBILIARIOS DONADOS)","2do","SILLA PARA PACIENTE","N/A","N/A","N/A","NEGRO","Bueno en Uso"]
["03090","NEUMOLOGIA (ESPIROMETRIA, MOBILIARIOS DONADOS)","2do","SILLA PARA PACIENTE","N/A","N/A","N/A","NEGRO","Bueno en Uso"]
["03091","NEUMOLOGIA (ESPIROMETRIA, MOBILIARIOS DONADOS)","2do","SILLA PARA PACIENTE","N/A","N/A","N/A","AZUL","Bueno en Uso"]
["03092","NEUMOLOGIA (ESPIROMETRIA, MOBILIARIOS DONADOS)","2do","SILLA PARA PACIENTE","N/A","N/A","N/A","AZUL","Bueno en Uso"]
["03093","NEUMOLOGIA (ESPIROMETRIA, MOBILIARIOS DONADOS)","2do","CARRO PARA TRANSPORTE","GLOBAL","N/A","N/A","GRIS","Bueno en Uso"]
["03094","NEUMOLOGIA (ESPIROMETRIA, MOBILIARIOS DONADOS)","2do","CARRO PARA TRANSPORTE","GLOBAL","N/A","N/A","GRIS","Bueno en Uso"]
["03095","NEUMOLOGIA (ESPIROMETRIA, MOBILIARIOS DONADOS)","2do","CARRO PARA TRANSPORTE","GLOBAL","N/A","N/A","GRIS","Bueno en Uso"]
["03096","NEUMOLOGIA (ESPIROMETRIA, MOBILIARIOS DONADOS)","2do","CREDENZA","N/A","N/A","N/A","GRIS","Bueno en Uso"]
["03097","NEUMOLOGIA (ESPIROMETRIA, MOBILIARIOS DONADOS)","2do","TELEVISION","STODIA","43D1Z80","ID1S3436A-01","NEGRO","Bueno en Uso"]
["03098","NEUMOLOGIA (ESPIROMETRIA, MOBILIARIOS DONADOS)","2do","NEVERA EJECUTIVA","KTC","ES17DF","32KHS100179","NEGRO","Bueno en Uso"]
["03099","NEUMOLOGIA (ESPIROMETRIA, MOBILIARIOS DONADOS)","2do","CUADRO PARA DECORACION","N/A","N/A","N/A","N/A","Bueno en Uso"]
["03100","NEUMOLOGIA (ESPIROMETRIA, MOBILIARIOS DONADOS)","2do","RELOJ","CASIO","LN011","N/A","NEGRO","Bueno en Uso"]
["03101","NEUMOLOGIA (ESPIROMETRIA, MOBILIARIOS DONADOS)","2do","ESCRITORIO CON TOPE DE CRISTAL","N/A","N/A","N/A","GRIS","Bueno en Uso"]
["03102","NEUMOLOGIA (ESPIROMETRIA, MOBILIARIOS DONADOS)","2do","ARCHIVO PEQUEÑO","N/A","N/A","N/A","BLANCO","Bueno en Uso"]
["03103","NEUMOLOGIA (ESPIROMETRIA, MOBILIARIOS DONADOS)","2do","MONITOR","DELL","N/A","SNOKW14V742615714","GRIS","Bueno en Uso"]
["03104","NEUMOLOGIA (ESPIROMETRIA, MOBILIARIOS DONADOS)","2do","COMPUTADORA","DELL","OPTIPLEX-3040",20007011,"NEGRO","Bueno en Uso"]
["03105","NEUMOLOGIA (ESPIROMETRIA, MOBILIARIOS DONADOS)","2do","ZAFACON PEQUEÑO","N/A","N/A","N/A","ACERO INOX.","Bueno en Uso"]
["03106","NEUMOLOGIA (ESPIROMETRIA, MOBILIARIOS DONADOS)","2do","IMPRESORA","EPSON","L3110","X644830893","NWGEO","Bueno en Uso"]
["03107","NEUMOLOGIA (ESPIROMETRIA, MOBILIARIOS DONADOS)","2do","TELEFONO","CISCO",3844131086,"WZP18290K","GRIS CON NEGRO","Bueno en Uso"]
["03108","NEUMOLOGIA (ESPIROMETRIA, MOBILIARIOS DONADOS)","2do","UPS","FOEZA","NTS110","Z10311S0402","NEGRO","Bueno en Uso"]
["03109","NEUMOLOGIA (ESPIROMETRIA, MOBILIARIOS DONADOS)","2do","SILLA SECRETARIAL","N/A","N/A","N/A","CREMA","Bueno en Uso"]
["03110","NEUMOLOGIA (ESPIROMETRIA, MOBILIARIOS DONADOS)","2do","SILLA PARA VISITAS","N/A","N/A","N/A","GRIS","Bueno en Uso"]
["03111","NEUMOLOGIA (ESPIROMETRIA, MOBILIARIOS DONADOS)","2do","SILLA PARA VISITAS","N/A","N/A","N/A","GRIS","Bueno en Uso"]
["03112","NEUMOLOGIA (ESPIROMETRIA, MOBILIARIOS DONADOS)","2do","CUADRO PARA DECORACION","N/A","N/A","N/A","N/A","Bueno en Uso"]
[]
["03328","NEUROCIRUGIA","2do","NEGATOSCOPIO","GRAFCO","INSERT FILM HERE","N/A","GRIS"]
["03329","NEUROCIRUGIA","2do","CAMILLA PARA TRANSPORTE  DE PACIENTES","N/A","N/A","N/A","BLANCO","Bueno en Uso"]
["03330","NEUROCIRUGIA","2do","LAMPARA CUELLO DE GANZO","YDO1A LED","N/A","N/A","BLANCO","Bueno en Uso"]
["03331","NEUROCIRUGIA","2do","ESCALINATA","N/A","N/A","N/A","ACERO INOX.","Bueno en Uso"]
["03332","NEUROCIRUGIA","2do","CARRO DE TRANSPORTE","GLOBAL","N/A","N/A","GRIS","Bueno en Uso"]
["03333","NEUROCIRUGIA","2do","BALANZA","RICE LAKE","RL MPS",615800365,"BLANCO CON NEGRO","Bueno en Uso"]
["03334","NEUROCIRUGIA","2do","TABURETE","N/A","N/A","N/A","ACERO INOX.","Bueno en Uso"]
["03335","NEUROCIRUGIA","2do","ARCHIVO DE 3 GABETAS","N/A","N/A","N/A","MELAMINA","Bueno en Uso"]
["03336","NEUROCIRUGIA","2do","ESCRITORIO CON TOPE DE MELAINA","N/A","N/A","N/A","BLANCO","Bueno en Uso"]
["03337","NEUROCIRUGIA","2do","SILLA PARA PACIENTE","N/A","N/A","N/A","NEGRO","Bueno en Uso"]
["03338","NEUROCIRUGIA","2do","SILLA PARA PACIENTE","N/A","N/A","N/A","NEGRO","Bueno en Uso"]
["03339","NEUROCIRUGIA","2do","SILLA SECRETARIAL","N/A","N/A","N/A","CREMA CON NEGRO","Bueno en Uso"]
["03340","NEUROCIRUGIA","2do","SILLA PARA PACIENTE","N/A","N/A","N/A","NEGRO","Bueno en Uso"]
["03341","NEUROCIRUGIA","2do","SILLA PARA PACIENTE","N/A","N/A","N/A","NEGRO","Bueno en Uso"]
["03342","NEUROCIRUGIA","2do","ARMARIO","IBKSP","N/A","N/A","CREMA ","Bueno en Uso"]
["03343","NEUROCIRUGIA","2do","CAMILLA TIPO DIVAN","N/A","N/A","N/A","BLANCO","Bueno en Uso"]
["03344","NEUROCIRUGIA","2do","ESCALINATA","N/A","N/A","N/A","ACERO INOX.","Bueno en Uso"]
["03345","NEUROCIRUGIA","2do","ESCRITORIO CON TOPE DE MELAINA","N/A","N/A","N/A","BLANCO","Bueno en Uso"]
["03346","NEUROCIRUGIA","2do","ARCHIVO DE 3 GABETAS","N/A","N/A","N/A","MELAMINA","Bueno en Uso"]
["03347","NEUROCIRUGIA","2do","SILLA SECRETARIAL","N/A","N/A","N/A","GRIS CON NEGRO","Bueno en Uso"]
["03348","NEUROCIRUGIA","2do","MESA PARA MEDICAR","N/A","N/A","N/A","ACERO INOX.","Bueno en Uso"]
["03349","NEUROCIRUGIA","2do","NEGATOSCOPIO","GRAFCO","INSERT FILM HERE","N/A","GRIS","Bueno en Uso"]
["03350","NEUROCIRUGIA","2do","ENSEFALOGRAFO","BWIII","BWIIIEEGA MPLLFLER","BWIII2019539","GRIS","Bueno en Uso"]
["03351","NEUROCIRUGIA","2do","LAMPARA DE FOTO ESTIMULACION","BWIII","BWIIIEEGA MPLLFLER","BWIII20195239","GRIS","Bueno en Uso"]
["03352","NEUROCIRUGIA","2do","MONITOR","DELL","N/A",223275,"NEGRO","Bueno en Uso"]
["03353","NEUROCIRUGIA","2do","CAMARA DE VIDEO","BLUE FISH CAM","N/A","N/A","GRIS","Bueno en Uso"]
["03354","NEUROCIRUGIA","2do","IMPRESORA","HP","HP LACER JET PRO M15W","VNB3D92261","BLANCO","Bueno en Uso"]
["03355","NEUROCIRUGIA","2do","SILLON","N/A","N/A","N/A","GRIS","Bueno en Uso"]
["03356","NEUROCIRUGIA","2do","CARRO DE TRANSPORTE","N/A","N/A","N/A","GRIS","Bueno en Uso"]
["03357","NEUROCIRUGIA","2do","ESFIGMOMANOMETRO","MENDLINE","N/A","N/A","GRIS","Bueno en Uso"]
["03358","NEUROCIRUGIA","2do","NEGATOSCOPIO","GRAFCO","N/A","N/A","GRIS","Bueno en Uso"]
["03359","NEUROCIRUGIA","2do","CAMILLA DE TRASPORTE PACIENTE","N/A","N/A","N/A","BLANCO","Bueno en Uso"]
["03360","NEUROCIRUGIA","2do","LAMPARA CUELLO DE GANZO","YDO1A LED","N/A","N/A","BLANCO","Bueno en Uso"]
["03361","NEUROCIRUGIA","2do","BALANZA","RICE LAKE","RMP",15091800177,"GRIS","Bueno en Uso"]
["03362","NEUROCIRUGIA","2do","BALANZA","RICE LAKE","RMP",15091800453,"GRIS","Bueno en Uso"]
["03363","NEUROCIRUGIA","2do"," ESCALINATA DOS PELDAÑO","N/A","N/A","N/A","ACERO INOX.","Bueno en Uso"]
["03364","NEUROCIRUGIA","2do","IMPRESORA","HP","LASER JET PRO M15W","VNB3D44341","BLANCO","Bueno en Uso"]
["03365","NEUROCIRUGIA","2do","CARRO DE TRANSPORTE","CAOLVELL","N/A","N/A","GRIS","Bueno en Uso"]
["03366","NEUROCIRUGIA","2do","VIDEO GRABADOR","CAOLVELL","SIERRAS SUMMNIT",30092019,"GRIS","Bueno en Uso"]
["03367","NEUROCIRUGIA","2do","COMPUTADORA","HP","RTL8821CE","CND0259XG6","GRIS","Bueno en Uso"]
["03368","NEUROCIRUGIA","2do","CABEZAL","CADWELL","SIERRAS SUMMNIT","AA0919008","GRIS","Bueno en Uso"]
["03369","NEUROCIRUGIA","2do","ESTABILIZADOR DE LUZ","CADWELL","SIERRAS SUMMNIT","19091X0603032","GRIS","Bueno en Uso"]
["03370","NEUROCIRUGIA","2do","TABURETE","N/A","N/A","N/A","NEGRO","Bueno en Uso"]
["03371","NEUROCIRUGIA","2do","AIRE ACONDICIONADO","INNOVAIR","N/A","N/A","BLANCO","Bueno en Uso"]
["03372","NEUROCIRUGIA","2do","AIRE ACONDICIONADO","INNOVAIR","N/A","N/A","BLANCO","Bueno en Uso"]
["03375","NEUROCIRUGIA","2do","CABEZAL","BWILL","BWEEG AMPLIFIER","BWILI20193292","GRIS","Bueno en Uso"]
["03376","NEUROCIRUGIA","2do","MONITOR","DELL","N/A","AZG0119A00","NEGRO","Bueno en Uso"]
["03377","NEUROCIRUGIA","2do","CABEZAL","BWILLL NEUROVIRTUAL","N/A","N/A","GRIS","Bueno en Uso"]
["03378","NEUROCIRUGIA","2do","CAMARA DE VIDEO","N/A","N/A","N/A","GRIS","Bueno en Uso"]
["03379","NEUROCIRUGIA","2do","CARRO DE TRANSPORTE","N/A","N/A","N/A","GRIS","Bueno en Uso"]
["03380","NEUROCIRUGIA","2do","CAMILLA TIPO DIVAN","N/A","N/A","N/A","AZUL","Bueno en Uso"]
["03381","NEUROCIRUGIA","2do","ESCALINATA 1 PELDAÑO","N/A","N/A","N/A","ACERO INOX.","Bueno en Uso"]
["03382","NEUROCIRUGIA","2do","MESA PARA MEDICAR","N/A","N/A","N/A","ACERO INOX.","Bueno en Uso"]
["03383","NEUROCIRUGIA","2do","BALANZA","RACE LAKE","RL MPS",15091800168,"GRIS CON NEGRO","Bueno en Uso"]
["03384","NEUROCIRUGIA","2do","ESPIGMOMANOMETRO","MENDLINE","N/A","N/A","AZUL","Bueno en Uso"]
["03385","NEUROCIRUGIA","2do","NEGATOSCOPIO","GRAFCO","N/A","N/A","GRIS CLARO","Bueno en Uso"]
["03386","NEUROCIRUGIA","2do","TABURETE","N/A","N/A","N/A","ACERO INOX.","Bueno en Uso"]
["03387","NEUROCIRUGIA","2do","ARMARIO","N/A","N/A","N/A","CREMA","Bueno en Uso"]
["03388","NEUROCIRUGIA","2do","LAMPARA CUELLO DE GANZO","N/A","N/A","N/A","BLANCO","Bueno en Uso"]
[]
["02788","CONSULTORIO 10","2do","NEGATOSCOPIO","HOSP TECH","N/A","N/A","GRIS CON AZUL","Bueno en Uso"]
["02789","CONSULTORIO 10","2do","ARMARIO","IBK SP","N/A","N/A","GRIS OSCURO","Bueno en Uso"]
["02790","CONSULTORIO 10","2do","MESA PARA MEDICAR","N/A","N/A","N/A","ACERO INOX.","Bueno en Uso"]
["02791","CONSULTORIO 10","2do","BALANZA ","RICE LAKE","RL MPS",15091800450,"NEGRO CON GRIS","Bueno en Uso"]
["02792","CONSULTORIO 10","2do","CAMILLA TIPO DIVAN","N/A","N/A","N/A","AZUL","Bueno en Uso"]
["02793","CONSULTORIO 10","2do","LAMPARA CUELLO DE GANZO","N/A","N/A","N/A","BLANCO","Bueno en Uso"]
["02794","CONSULTORIO 10","2do","SET DE DIGNASTICO","WELCH ALLYN","N/A","N/A","BLANCO","Bueno en Uso"]
["02795","CONSULTORIO 10","2do","ESPIGMOMANOMETRO","WELCH ALLYN","N/A","N/A","BLANCO","Bueno en Uso"]
["02796","CONSULTORIO 10","2do","DISPENSOR ELECTRICO","N/A","N/A","N/A","ACERO INOX.","Bueno en Uso"]
["02797","CONSULTORIO 10","2do","ESCALINATA","N/A","N/A","N/A","NEGRA","Bueno en Uso"]
["02798","CONSULTORIO 10","2do","ESCRITORIO","N/A","N/A","N/A","MELAMINA","Bueno en Uso"]
["02799","CONSULTORIO 10","2do","ARCHIVO PEQUEÑO","N/A","N/A","N/A","MELAMINA","Bueno en Uso"]
["02800","CONSULTORIO 10","2do","SILLA SECRETARIAL","N/A","N/A","N/A","NEGRO CON BLANCO","Bueno en Uso"]
["02801","CONSULTORIO 10","2do","SILLA PARA PACIENTES","N/A","N/A","N/A","NEGRO","Bueno en Uso"]
["02802","CONSULTORIO 10","2do","SILLA PARA PACIENTES","N/A","N/A","N/A","NEGRO","Bueno en Uso"]
["02803","CONSULTORIO 10","2do","ZAFACON","N/A","N/A","N/A","NIQUELADO","Bueno en Uso"]
["02804","CONSULTORIO 10","2do","AIRE ACONDICIONADO","INNOVAIR","N/A","N/A","BLANCO","Bueno en Uso"]
[]
["02805","CONSULTORIO 11","2do","NEGATOSCOPIO","HOSPITECH","N/A","N/A","N/A","Bueno en Uso"]
["02806","CONSULTORIO 11","2do","LAMPARA CUELLO DE GANZO","N/A","YD01AVECH","N/A","BLANCO","Bueno en Uso"]
["02807","CONSULTORIO 11","2do","MESA PARA MEDICAR","N/A","N/A","N/A","ACERO INOX.","Bueno en Uso"]
["02808","CONSULTORIO 11","2do","CAMILLA TIPO DIVAN","N/A","N/A","N/A","AZUL","Bueno en Uso"]
["02809","CONSULTORIO 11","2do","ESCALINATA UN PELDAÑO","N/A","N/A","N/A","N/A","Bueno en Uso"]
["02810","CONSULTORIO 11","2do","BALANZA","RICE LAKE","RL MPS",15091800266,"GRIS CON NEGRO","Bueno en Uso"]
["02811","CONSULTORIO 11","2do","ARMARIO","JBKSP","N/A","N/A","GRIS OSCURO","Bueno en Uso"]
["02812","CONSULTORIO 11","2do","SET DE DIAGNOSTICO","WELLCH ALLYN","N/A","N/A","BLANCO","Bueno en Uso"]
["02813","CONSULTORIO 11","2do","DISPENSADOR ELECTRICO","N/A","N/A","N/A","ACERO INOX.","Bueno en Uso"]
["02814","CONSULTORIO 11","2do","ESFIGMOMANOMETRO ","WELLCH ALLYN","N/A","N/A","GRIS","Bueno en Uso"]
["02815","CONSULTORIO 11","2do","ESCRITORIO CON TOPE DE MELAMINA","N/A","N/A","N/A","BLANCO","Bueno en Uso"]
["02816","CONSULTORIO 11","2do","ARCHIVO DE TRES GAVETAS","N/A","N/A","N/A","MELAMINA","Bueno en Uso"]
["02817","CONSULTORIO 11","2do","SILLA SECRETARIAL","N/A","N/A","N/A","GRIS CON NEGRO","Bueno en Uso"]
["02818","CONSULTORIO 11","2do","SILLA PARA PACIENTES","N/A","N/A","N/A","NEGRO","Bueno en Uso"]
["02819","CONSULTORIO 11","2do","SILLA PARA PACIENTES","N/A","N/A","N/A","NEGRO","Bueno en Uso"]
["02820","CONSULTORIO 11","2do","ZAFACON","N/A","N/A","N/A","ANIQUELADO","Bueno en Uso"]
["02821","CONSULTORIO 11","2do","AIRE ACONDICIONADO","N/A","N/A","N/A","BLANCO","Bueno en Uso"]
[]
["02822","CONSULTORIO GENERAL 12","2do","NEGATOSCOPIO","HOSPITEN","N/A","N/A","GRIS Y AZUL","Bueno en Uso"]
["02823","CONSULTORIO GENERAL 12","2do","SET DE DIAGNOSTICO","WELL ALLYN","N/A","N/A","BLANCO","Bueno en Uso"]
["02824","CONSULTORIO GENERAL 12","2do","ESGFIMOMANOMATRO","WELL ALLYN","N/A","N/A","BLANCO","Bueno en Uso"]
["02825","CONSULTORIO GENERAL 12","2do","LAMPARA","N/A","N/A","N/A","BLANCO","Bueno en Uso"]
["02826","CONSULTORIO GENERAL 12","2do","ARMARIO","YBKSP","N/A","N/A","BLANCO","Bueno en Uso"]
["02827","CONSULTORIO GENERAL 12","2do","MESA ","N/A","N/A","N/A","ACERO INOX","Bueno en Uso"]
["02828","CONSULTORIO GENERAL 12","2do","BALANZA","RICE LAKE","N/A","N/A","GRIS Y NEGRO","Bueno en Uso"]
["02829","CONSULTORIO GENERAL 12","2do","ESCALINATA","N/A","N/A","N/A","ACERO INOX","Bueno en Uso"]
["02830","CONSULTORIO GENERAL 12","2do","CAMILLA TIPO DIVAN","N/A","N/A","N/A","AZUL","Bueno en Uso"]
["02831","CONSULTORIO GENERAL 12","2do","DISPENSOR ELECTRICO","N/A","N/A","N/A","ACERO INOX","Bueno en Uso"]
["02832","CONSULTORIO GENERAL 12","2do","TABURETE ACERO INOXIDABLE","N/A","N/A","N/A","ACERO INOX","Bueno en Uso"]
["02833","CONSULTORIO GENERAL 12","2do","ESCRITORIO TOPE DE MELAMINA","N/A","N/A","N/A","BLANCO","Bueno en Uso"]
["02834","CONSULTORIO GENERAL 12","2do","SILLA SECRETARIAL","N/A","N/A","N/A","GRIS Y NEGRO","Bueno en Uso"]
["02835","CONSULTORIO GENERAL 12","2do","ARCHIVO DE 3 GAVETAS","N/A","N/A","N/A","MELAMINA","Bueno en Uso"]
["02836","CONSULTORIO GENERAL 12","2do","SILLA PARA PASIENTES","N/A","N/A","N/A","NEGRO","Bueno en Uso"]
["02840","CONSULTORIO GENERAL 12","2do","AIRES ACONDICIONADO","N/A","N/A","N/A","BLANCO","Bueno en Uso"]
["02837","CONSULTORIO GENERAL 12","2do","SILLA PARA VISITAS","N/A","N/A","N/A","NEGRO","Bueno en Uso"]
["02838","CONSULTORIO GENERAL 12","2do","SILLA PARA VISITAS","N/A","N/A","N/A","NEGRO","Bueno en Uso"]
["02840","CONSULTORIO GENERAL 12","2do","AIRES ACONDICIONADO","N/A","N/A","N/A","BLANCO","Bueno en Uso"]
[]
["02854","CONSULTORIO 15","2do","NEGATOSCOPIO","HOSPITECH","N/A","N/A","GRIS CON AZUL","Bueno en Uso"]
["02855","CONSULTORIO 15","2do","ARMARIO","IBKSP","N/A","N/A","CREMA","Bueno en Uso"]
["02856","CONSULTORIO 15","2do","MESA PARA MEDICAR","N/A","N/A","N/A","ACERO INOX","Bueno en Uso"]
["02857","CONSULTORIO 15","2do","LAMPARA CUELLO DE GANZO","N/A","YDOLA LED","N/A","BLANCO","Bueno en Uso"]
["02858","CONSULTORIO 15","2do","BALANZA","RICE LAKE","RL MPS",15091800466,"GRIS CON NEGRO","Bueno en Uso"]
["02859","CONSULTORIO 15","2do","DISPENZADOR ELECTRICO","N/A","N/A","N/A","ACERO INOX","Bueno en Uso"]
["02860","CONSULTORIO 15","2do","SET DE DIAGNOSTICOS","WELCH ALLYN","N/A","N/A","BLANCO","Bueno en Uso"]
["02884","CONSULTORIO 15","2do","ESFIGMOMANOGRAMO","WELCH ALLYN","N/A",19074121365,"BLANCO","Bueno en Uso"]
["02885","CONSULTORIO 15","2do","CAMILLA TIPO DIVAN","N/A","N/A","N/A","AZUL","Bueno en Uso"]
["02886","CONSULTORIO 15","2do","ESCRITORIO CON TOPE MELAMINA","N/A","N/A","N/A","BLANCO","Bueno en Uso"]
["02887","CONSULTORIO 15","2do","CPU","DELL","OCTIPLEX 5050",7510332386,"NEGRO","Bueno en Uso"]
["02888","CONSULTORIO 15","2do","MONITOR","HP","HPL19407","CNC70312 DP","NEGRO","Bueno en Uso"]
["02889","CONSULTORIO 15","2do","IMPRESORA","HP","HPLACER MFP 135W","NBLPCW8G8","BLANCO CON GRIS","Bueno en Uso"]
["02890","CONSULTORIO 15","2do","SILLA SECRETARIAL","N/A","N/A","N/A","NEGRO CON BLANCO","Bueno en Uso"]
["02891","CONSULTORIO 15","2do","ARCHIVO DE 3 GAVETAS","N/A","N/A","N/A","BLANCA","Bueno en Uso"]
["02892","CONSULTORIO 15","2do","ZAFACON","N/A","N/A","N/A","ACERO INOX","Bueno en Uso"]
["02893","CONSULTORIO 15","2do","SILLA PARA PACIENTES","N/A","N/A","N/A","NEGRO","Bueno en Uso"]
["02894","CONSULTORIO 15","2do","SILLA PARA PACIENTES","N/A","N/A","N/A","NEGRO","Bueno en Uso"]
["02895","CONSULTORIO 15","2do","TABURETE","N/A","N/A","N/A","ACERO INOX","Bueno en Uso"]
["02896","CONSULTORIO 15","2do","AIRE ACONDICIONADO","INNOVAIR","N/A","N/A","BLANCO","Bueno en Uso"]
["03195","CONSULTORIO 15","2do","TABURETE","N/A","N/A","N/A","ACERO INOX","Bueno en Uso"]
["03196","CONSULTORIO 15","2do","SILLA PARA PACIENTES","N/A","N/A","N/A","NEGRO","Bueno en Uso"]
["03197","CONSULTORIO 15","2do","SILLA PARA PACIENTES","N/A","N/A","N/A","NEGRO","Bueno en Uso"]
[]
["02841","CONSULTORIO 13","2do","NEGATOSCOPIO","HOSPLECH","N/A","N/A","GRIS CON AZUL","Bueno en Uso "]
["02842","CONSULTORIO 13","2do","ARMARIO","N/A","N/A","N/A","GRIS OSCURO","Bueno en Uso "]
["02843","CONSULTORIO 13","2do","LAMPARA CUELLO DE GANZO","N/A","N/A","N/A","BLANCO","Bueno en Uso "]
["02844","CONSULTORIO 13","2do","CAMILLA TIPO DIVAN","N/A","N/A","N/A","AZUL","Bueno en Uso "]
["02845","CONSULTORIO 13","2do","SET DE DIAGNOSTICO","WELLCH ALLYN","N/A","N/A","BLANCO","Bueno en Uso "]
["02846","CONSULTORIO 13","2do","ESFIGMOMANOMATRO","WELLCH ALLYN","N/A","N/A","BLANCO","Bueno en Uso "]
["02847","CONSULTORIO 13","2do","MESA PARA MEDICAR","N/A","N/A","N/A","ACERO INOX","Bueno en Uso "]
["02848","CONSULTORIO 13","2do","BALANZA","RICE LAKE","RL MPS",6151800135,"NEGRO CON GRIS","Bueno en Uso "]
["02849","CONSULTORIO 13","2do","ASPENSOR ELECTRICO","N/A","KW 1020","N/A","NIQUELADO","Bueno en Uso "]
["02850","CONSULTORIO 13","2do","ESCRITORIO CON TOPE DE MELAMINA","N/A","N/A","N/A","BLANCO","Bueno en Uso "]
["02851","CONSULTORIO 13","2do","ARCHIVO PEQUEÑO","N/A","N/A","N/A","MELAMINA","Bueno en Uso "]
["02852","CONSULTORIO 13","2do","SILLA SECRETARIAL","N/A","N/A","N/A","NEGRO CON CREMA","Bueno en Uso "]
["02861","CONSULTORIO 13","2do","ZAFACON","N/A","N/A","N/A","ACERO INOX","Bueno en Uso "]
["02862","CONSULTORIO 13","2do","SILLA PARA VISITA","N/A","N/A","N/A","NEGRO","Bueno en Uso "]
["02863","CONSULTORIO 13","2do","AIRE ACONDICIONADO","INNOVAIR","N/A","N/A","BLANCO","Bueno en Uso "]
[]
["02864","CONSULTORIO 14 ","2do","NEGATOSCOPIO","HOSPITECH","N/A","N/A","GRIS","Bueno en Uso"]
["02865","CONSULTORIO 14 ","2do","ARMARIO","IBKSP","N/A","N/A","CREMA","Bueno en Uso"]
["02866","CONSULTORIO 14 ","2do","MESA PARA MEDICAR","N/A","N/A","N/A","ACERO INOX","Bueno en Uso"]
["02867","CONSULTORIO 14 ","2do","LAMPARA CUELLO DE GANZO","N/A","YDOLACLECH","N/A","BLANCO","Bueno en Uso"]
["02868","CONSULTORIO 14 ","2do","ESFIMOMANOMETRO","WELL ALLYN","N/A","N/A","BLANCO","Bueno en Uso"]
["02869","CONSULTORIO 14 ","2do","SET DE DIAGNOSTICO","WELL ALLYN","N/A","N/A","BLANCO","Bueno en Uso"]
["02870","CONSULTORIO 14 ","2do","CAMILLA TIPO DIVAN","N/A","N/A","N/A","AZUL","Bueno en Uso"]
["02871","CONSULTORIO 14 ","2do","BALANZA","RICE LAKE","N/A",651518001,"CREMA","Bueno en Uso"]
["02872","CONSULTORIO 14 ","2do","ZAFACON","ROGER","N/A","N/A","GRIS OSCURO","Bueno en Uso"]
["02873","CONSULTORIO 14 ","2do","DISPENSADOR ELECTRICO","N/A","N/A","N/A","ACERO INOX","Bueno en Uso"]
["02874","CONSULTORIO 14 ","2do","AIRE ACONDICIONADO","INNOVAIR","N/A","N/A","BLANCO","Bueno en Uso"]
["02875","CONSULTORIO 14 ","2do","TABURETE","N/A","N/A","N/A","ACERO INOX","Bueno en Uso"]
["02876","CONSULTORIO 14 ","2do","ESCRITORIO","N/A","N/A","N/A","BLANCO","Bueno en Uso"]
["02877","CONSULTORIO 14 ","2do","SILLA SECRETARIAL","N/A","N/A","N/A","GRIS CON NEGRO","Bueno en Uso"]
["02878","CONSULTORIO 14 ","2do","ARCHIVO DE TRES GAVETAS","N/A","N/A","N/A","MELAMINA","Bueno en Uso"]
["02879","CONSULTORIO 14 ","2do","IMPRESORA","HP","LASER JET PRO 107 W","SNB2P30635","BLANCO","Bueno en Uso"]
["02880","CONSULTORIO 14 ","2do","MONITOR","DELL","N/A","CN00F0RP","NEGRO","Bueno en Uso"]
["02881","CONSULTORIO 14 ","2do","CPU","DELL","OPTIPLEX 3040",7483079990,"NEGRO","Bueno en Uso"]
["02882","CONSULTORIO 14 ","2do","SILLA PARA PACIENTE","N/A","N/A","N/A","NEGRO","Bueno en Uso"]
["02883","CONSULTORIO 14 ","2do","SILLA PARA PACIENTE","N/A","N/A","N/A","NEGRO","Bueno en Uso"]
[]
["02897","CONSULTORIO 16","2do","NEGATOSCOPIO","HOSPITECH","N/A","N/A","AZUL CON GRIS","Bueno en Uso"]
["02898","CONSULTORIO 16","2do","ARMARIO","IBK SP","N/A","N/A","CREMA","Bueno en Uso"]
["02899","CONSULTORIO 16","2do","LAMPARA CUELLO DE GANSO","N/A","TDO 1A (LED)","N/A","BLANCO","Bueno en Uso"]
["02900","CONSULTORIO 16","2do","MESA PARA MEDICAR","N/A","N/A","N/A","ACERO INOX.","Bueno en Uso"]
["02901","CONSULTORIO 16","2do","ESFIGMOMANOMETRO","WELCH ALLYN","N/A","N/A","BLANCO","Bueno en Uso"]
["02902","CONSULTORIO 16","2do","SET DE DIAGNOSTICO","WELCH ALLYN","N/A","N/A","BLANCO","Bueno en Uso"]
["02903","CONSULTORIO 16","2do","BALANZA","RICE LAKE","RL-MPS",15091800301,"GRIS CON NEGRO","Bueno en Uso"]
["02904","CONSULTORIO 16","2do","CAMILLA TIPO DIVAN","N/A","N/A","N/A","AZUL CON GRIS","Bueno en Uso"]
["02905","CONSULTORIO 16","2do","DISPENSADOR ELECTRICO","N/A","N/A","N/A","ACERO INOX.","Bueno en Uso"]
["02906","CONSULTORIO 16","2do","ESCRITORIO CON TOPE DE MELAMINA","N/A","N/A","N/A","BLANCO","Bueno en Uso"]
["02907","CONSULTORIO 16","2do","SILL SECRETARIAL","N/A","N/A","N/A","BLANCO CON NEGRO","Bueno en Uso"]
["02908","CONSULTORIO 16","2do","ARCHIVO PEQUEÑO","N/A","N/A","N/A","MENAMINA","Bueno en Uso"]
["02909","CONSULTORIO 16","2do","TABURETE ENRROSCADO","N/A","N/A","N/A","ACERO INOX.","Bueno en Uso"]
["02910","CONSULTORIO 16","2do","ZAFACON ","N/A","N/A","N/A","ACERO INOX.","Bueno en Uso"]
["02911","CONSULTORIO 16","2do","SILLA PARA PACIENTE","N/A","N/A","N/A","NEGRO","Bueno en Uso"]
["02912","CONSULTORIO 16","2do","SILLA PARA PACIENTE","N/A","N/A","N/A","NEGRO","Bueno en Uso"]
["02913","CONSULTORIO 16","2do","AIRE ACONDICIONADO","INNOVAIR","N/A","N/A","BLANCO","Bueno en Uso"]
[]
["02914","CONSULTORIO 17","2do","NEGATOSCOPIO","HOSPITECH","N/A","N/A","AZUL CON NEGRO","Bueno en Uso"]
["02915","CONSULTORIO 17","2do","ARMARIO","IBK SP","N/A","N/A","CREMA","Bueno en Uso"]
["02916","CONSULTORIO 17","2do","LAMPARA CUELLO DE GANSO","N/A","N/A","N/A","BLANCO","Bueno en Uso"]
["02917","CONSULTORIO 17","2do","MESA PARA MEDICAR","N/A","N/A","N/A","ACERO INOX.","Bueno en Uso"]
["02918","CONSULTORIO 17","2do","CAMILLA TIPO DIVAN","N/A","N/A","N/A","AZUL","Bueno en Uso"]
["02919","CONSULTORIO 17","2do","SET DE DIAGNOSTICO","WELCH ALLYN","N/A","N/A","BALNCO","Bueno en Uso"]
["02920","CONSULTORIO 17","2do","ESFIGMOMANOMETRO","WELCH ALLYN","N/A","N/A","BLANCO CON GRIS","Bueno en Uso"]
["02921","CONSULTORIO 17","2do","TABURETE ","N/A","N/A","N/A","ACERO INOX.","Bueno en Uso"]
["02922","CONSULTORIO 17","2do","DISPENSADOR ELECTRICO","N/A","N/A","N/A","ACERO INOX.","Bueno en Uso"]
["02923","CONSULTORIO 17","2do","SILLA PARA PACIENTE","N/A","N/A","N/A","NEGR0","Bueno en Uso"]
["02924","CONSULTORIO 17","2do","SILLA PARA PACIENTE","N/A","N/A","N/A","NEGR0","Bueno en Uso"]
["02925","CONSULTORIO 17","2do","BALANZA","RICE LAKE","N/A","N/A","NEGRO CON GRIS","Bueno en Uso"]
["02926","CONSULTORIO 17","2do","ESCRITORIO CON TOPE DE MELAMINA","N/A","N/A","N/A","BLANCO","Bueno en Uso"]
["02927","CONSULTORIO 17","2do","SILLA SECRETARIAL","N/A","N/A","N/A","NEGRO","Bueno en Uso"]
["02928","CONSULTORIO 17","2do","ARCHIVO PEQUEÑO","N/A","N/A","N/A","MELAMINA","Bueno en Uso"]
["02929","CONSULTORIO 17","2do","IMPRESORA","HP","LASER JET PRO M252DW","VNB3J22692","BLANCO","Bueno en Uso"]
["02930","CONSULTORIO 17","2do","SILLA PARA PACIENTE","N/A","N/A","N/A","NEGRO","Bueno en Uso"]
["02931","CONSULTORIO 17","2do","SILLA PARA PACIENTE","N/A","N/A","N/A","NEGRO","Bueno en Uso"]
["02932","CONSULTORIO 17","2do","MONITOR","DELL","N/A","CN0UW042-641807-A6-0N7L","GRIS CON NEGRO","Bueno en Uso"]
["02933","CONSULTORIO 17","2do","CPU","DELL","N/A",2844449725,"NEGRO","Bueno en Uso"]
["02934","CONSULTORIO 17","2do","ZAFACON","N/A","N/A","N/A","NEGRO","Bueno en Uso"]
["02935","CONSULTORIO 17","2do","AIRE ACONDICIONADO","INNOVAIR","N/A","N/A","BLANCO","Bueno en Uso"]
[]
["02936","CONSULTORIO 18","2do","NEGATOSCOPIO","HOSPITECH","N/A","N/A","AZUL CON GRIS","Bueno en Uso"]
["02937","CONSULTORIO 18","2do","ESFIGMOMANOMETRO","WELCH ALLYN","N/A",19070511175,"GRIS CON NEGRO","Bueno en Uso"]
["02938","CONSULTORIO 18","2do","SET DE DIAGNOSTICO","WELCH ALLYN","N/A","N/A","BLANCO","Bueno en Uso"]
["02939","CONSULTORIO 18","2do","ARMARIO","N/A","N/A","N/A","CREMA","Bueno en Uso"]
["02940","CONSULTORIO 18","2do","CAMILLA TIPO DIVAN","N/A","N/A","N/A","AZUL","Bueno en Uso"]
["02941","CONSULTORIO 18","2do","LAMPARA CUELLO DE GANSO","N/A","N/A","N/A","BLANCO","Bueno en Uso"]
["02942","CONSULTORIO 18","2do","BALANZA ","RICE LAKE","RL-MPS",15091800438,"CREMA","Bueno en Uso"]
["02943","CONSULTORIO 18","2do","MESA PARA MEDICAR","N/A","N/A","N/A","ACERO INOX.","Bueno en Uso"]
["02944","CONSULTORIO 18","2do","DISPENSADOR CON TOPE DE MELAMINA","N/A","KW-1020",24395,"ACERO INOX.","Bueno en Uso"]
["02945","CONSULTORIO 18","2do","ESCRITORIO CON TOPE EN MELAMINA","N/A","N/A","N/A","BLANCO","Bueno en Uso"]
["02946","CONSULTORIO 18","2do","ARCHIVO PEQUEÑO","N/A","N/A","N/A","BLANCO","Bueno en Uso"]
["02947","CONSULTORIO 18","2do","SILLA PARA PACIENTE","N/A","N/A","N/A","NEGRO","Bueno en Uso"]
["02948","CONSULTORIO 18","2do","SILLA PARA SECRETARIAL","N/A","N/A","N/A","AZUL CON BLANCO","Bueno en Uso"]
["02949","CONSULTORIO 18","2do","AIRE ACONDICIONADO","INNAVAIR","N/A","N/A","BLANCO","Bueno en Uso"]
[]
["02951","CONSULTORIO 19","2do","ARMARIO","N/A","N/A","N/A","CREMA","Bueno en Uso"]
["02952","CONSULTORIO 19","2do","NEGATOSCOPIO","N/A","N/A","N/A","AZUL CON GRIS","Bueno en Uso"]
["02953","CONSULTORIO 19","2do","CAMILLA TIPO DIVAN","N/A","N/A","N/A","AZUL","Bueno en Uso"]
["02954","CONSULTORIO 19","2do","MESA PARA MEDICAR","N/A","N/A","N/A","ACERO INOX.","Bueno en Uso"]
["02955","CONSULTORIO 19","2do","LAMPARA CUELLO DE GANSO","N/A","N/A","N/A","BLANCO","Bueno en Uso"]
["02956","CONSULTORIO 19","2do","ESFIGMOMANOMETRO","WELCH ALLYN","N/A","N/A","BLANCO","Bueno en Uso"]
["02957","CONSULTORIO 19","2do","SET DE DIAGNOSTICO","WELCH ALLYN","N/A","N/A","BLANCO","Bueno en Uso"]
["02958","CONSULTORIO 19","2do","BALANZA","RICE LAKE","RL-MPS",6151800075,"GRIS CPN NEGRO","Bueno en Uso"]
["02959","CONSULTORIO 19","2do","DISPENSADOR ELECTRICO","N/A","N/A","N/A","ACERO INOX.","Bueno en Uso"]
["02961","CONSULTORIO 19","2do","ESCRITORIO CON TOPE DE MELAMINA","N/A","N/A","N/A","BLANCO","Bueno en Uso"]
["02962","CONSULTORIO 19","2do","TABURETE","N/A","N/A","N/A","ACERO INOX.","Bueno en Uso"]
["02963","CONSULTORIO 19","2do","SILLA PARA PACIENTE","N/A","N/A","N/A","NEGRO","Bueno en Uso"]
["02964","CONSULTORIO 19","2do","SILLA PARA PACIENTE","N/A","N/A","N/A","NEGRO","Bueno en Uso"]
["02965","CONSULTORIO 19","2do","SILLA SECRETARIAL","N/A","N/A","N/A","GRIS CON NEGRO","Bueno en Uso"]
["02966","CONSULTORIO 19","2do","IMPRESORA MULTIFUNCIONAL","HP","LASER JET PRO M252DW","UNB3J22686","BLANCO","Bueno en Uso"]
["02967","CONSULTORIO 19","2do","ARCHIVO PEQUEÑP","N/A","N/A","N/A","MELAMINA","Bueno en Uso"]
["02968","CONSULTORIO 19","2do","CPU","DELL","N/A",11321136541,"NEGRO","Bueno en Uso"]
["02969","CONSULTORIO 19","2do","MONITOR","DELL","N/A","CN0CC299-64","NEGRO","Bueno en Uso"]
["02970","CONSULTORIO 19","2do","AIRE ACONDIONADO","INNOVAIR","N/A","18065JID15","BLANCO","Bueno en Uso"]
[]
["02990","CONSULTORIO 20","2do","NEGATOSCOPIO ","HOSPITECH","N/A","N/A","AZUL CON GRIS","Bueno en Uso"]
["02991","CONSULTORIO 20","2do","ARMARIO","IBK SP","N/A","N/A","CREMA","Bueno en Uso"]
["02992","CONSULTORIO 20","2do","MESA PARA MEDICAR","N/A","N/A","N/A","ACERO INOX.","Bueno en Uso"]
["02993","CONSULTORIO 20","2do","ESFIGMOMANOMETRO","WELCH ALLYN","N/A","N/A","GRIS","Bueno en Uso"]
["02994","CONSULTORIO 20","2do","SET DE DIAGNOSTICO ","WELCH ALLYN","N/A","N/A","BLANCO","Bueno en Uso"]
["02995","CONSULTORIO 20","2do","LAMPARA CUELLO DE GANSO","N/A","YDO 1A (LED)","N/A","BLANCO","Bueno en Uso"]
["02996","CONSULTORIO 20","2do","CAMILLA TIPO DIVAN","N/A","N/A","N/A","AZUL","Bueno en Uso"]
["02997","CONSULTORIO 20","2do","BALANZA","RICE LAKE","RL-MPS","N/A","GRIS CON NEGRO","Bueno en Uso"]
["02998","CONSULTORIO 20","2do","DISPENSADOR ELECTRICO","N/A","N/A","N/A","ACERO INOX.","Bueno en Uso"]
["02999","CONSULTORIO 20","2do","TABURETE","N/A","N/A","N/A","ACERO INOX.","Bueno en Uso"]
["03000","CONSULTORIO 20","2do","ZAFACON ","TRASH BOX","N/A","N/A","GRIS","Bueno en Uso"]
["03001","CONSULTORIO 20","2do","ESCRITORIO CON TOPE DE MELAMINA","N/A","N/A","N/A","BLANCO","Bueno en Uso"]
["03002","CONSULTORIO 20","2do","SILLA SECRETARIAL","N/A","N/A","N/A","NEGRO","Bueno en Uso"]
["03003","CONSULTORIO 20","2do","ARCHIVO PEQUEÑO","N/A","N/A","N/A","MELAMINA","Bueno en Uso"]
["03004","CONSULTORIO 20","2do","SILLA PARA VISITAS","N/A","N/A","N/A","NEGRO","Bueno en Uso"]
["03005","CONSULTORIO 20","2do","SILLA PARA VISITAS","N/A","N/A","N/A","NEGRO","Bueno en Uso"]
["03006","CONSULTORIO 20","2do","AIRE ACONDICIONADO","INNOVAIR","N/A","N/A","BLANCO","Bueno en Uso"]
[]
["02971","CONSULTORIO 21","2do","NEGATOSCOPIO ","HOSPITECH","N/A","N/A","AZUL CON GRIS","Bueno en Uso"]
["02972","CONSULTORIO 21","2do","ARMARIO","IBK SP","N/A","N/A","CREMA","Bueno en Uso"]
["02973","CONSULTORIO 21","2do","ESFIGMOMANOMETRO","WELCH ALLYN","N/A","N/A","GRIS","Bueno en Uso"]
["02974","CONSULTORIO 21","2do","SET DE DIAGNOSTICO","WELCH ALLYN","N/A","N/A","BLANCO","Bueno en Uso"]
["02975","CONSULTORIO 21","2do","BALANZA","RICE LAKE","RE-MPS",1151600213,"GRIS CON NEGRO","Bueno en Uso"]
["02976","CONSULTORIO 21","2do","CASILLERO DE 6 GAVETAS","IBK SP","N/A","N/A","CREMA","Bueno en Uso"]
["02977","CONSULTORIO 21","2do","MESA PARA MEDICAR","N/A","N/A","N/A","ACERO INOX.","Bueno en Uso"]
["02978","CONSULTORIO 21","2do","DISPENSADOR ELECTRICO","N/A","N/A","N/A","ACERO INOX.","Bueno en Uso"]
["02979","CONSULTORIO 21","2do","TABURE","N/A","N/A","N/A","ACERO INOX.","Bueno en Uso"]
["02980","CONSULTORIO 21","2do","LAMPARA CUELLO DE GANSO","N/A","YDO A1 (LED)","N/A","BLANCO","Bueno en Uso"]
["02981","CONSULTORIO 21","2do","SILLA DE RUEDAS","N/A","N/A","N/A","NEGRO","Bueno en Uso"]
["02982","CONSULTORIO 21","2do","CAMILLA TIPO DIVAN","N/A","N/A","N/A","AZUL","Bueno en Uso"]
["02983","CONSULTORIO 21","2do","SILLA PARA PACIENTE","N/A","N/A","N/A","NEGRO","Bueno en Uso"]
["02984","CONSULTORIO 21","2do","ESCRITORIO CON TOPE DE MELAMINA","N/A","N/A","N/A","BLANCO","Bueno en Uso"]
["02985","CONSULTORIO 21","2do","ARCHIVO PEQUEÑO","N/A","N/A","N/A","MELAMINA","Bueno en Uso"]
["02986","CONSULTORIO 21","2do","SILLA SECRETARIAL","N/A","N/A","N/A","NEGRO","Bueno en Uso"]
["02987","CONSULTORIO 21","2do","TABURETE","N/A","N/A","N/A","ACERO INOX.","Bueno en Uso"]
["02988","CONSULTORIO 21","2do","AIRE ACONDIONADO","INNOVAIR","N/A","N/A","BLANCO","Bueno en Uso"]
["02989","CONSULTORIO 21","2do","SILLA PARA PACIENTE","N/A","N/A","N/A","NEGRO","Bueno en Uso"]
[]
["03007","CONSULTORIO 22","2do","ARMARIO","IBK SP","N/A","N/A","CREMA ","Bueno en Uso"]
["03008","CONSULTORIO 22","2do","NEGATOSCOPIO","HOSPITECH","N/A","N/A","AZUL CON GRIS","Bueno en Uso"]
["03009","CONSULTORIO 22","2do","MESA PARA MEDICAR","N/A","N/A","N/A","ACERO INOX.","Bueno en Uso"]
["03010","CONSULTORIO 22","2do","DISPENSADOR ELECTRICO","N/A","KW-1020","N/A","ACERO INOX.","Bueno en Uso"]
["03011","CONSULTORIO 22","2do","SET DE DIANOSTICO","WELCH ALLYN","N/A","N/A","BLANCO","Bueno en Uso"]
["03012","CONSULTORIO 22","2do","ESFIGMOMANOMETRO","WELCH ALLYN","N/A","N/A","GRIS","Bueno en Uso"]
["03013","CONSULTORIO 22","2do","LAMPARA CUELLO DE GANSO","N/A","N/A","N/A","BLANCO","Bueno en Uso"]
["03014","CONSULTORIO 22","2do","BALANZA","RICE LAKE","RL-MPS",6151000391,"GRIS","Bueno en Uso"]
["03015","CONSULTORIO 22","2do","CAMILLLA TIPO DIVAN","N/A","N/A","N/A","AZUL","Bueno en Uso"]
["03016","CONSULTORIO 22","2do","TABURETE","N/A","N/A","N/A","ACERO INOX.","Bueno en Uso"]
["03017","CONSULTORIO 22","2do","ESCRITORIO CON TOPE DE MELAMINA","N/A","N/A","N/A","BLANCO","Bueno en Uso"]
["03018","CONSULTORIO 22","2do","ARCHIVO","N/A","N/A","N/A","MELAMINA","Bueno en Uso"]
["03019","CONSULTORIO 22","2do","ZAFACON ","N/A","N/A","N/A","PLATEADO","Bueno en Uso"]
["03020","CONSULTORIO 22","2do","SILLA PARA PACIENTE","N/A","N/A","N/A","NEGRO","Bueno en Uso"]
["03021","CONSULTORIO 22","2do","SILLA PARA PACIENTE","N/A","N/A","N/A","NEGRO","Bueno en Uso"]
["03022","CONSULTORIO 22","2do","AIRE ACONDICIONADO","INNOVAIR","N/A","N/A","BLANCO","Bueno en Uso"]
["02960","CONSULTORIO 22","2do","SILLA SECRETARIAL","N/A","N/A","N/A","NEGRO","Bueno en Uso"]
[]
["03113","CONSULTORIO 23","2do","ARMARIO","IBK SP","N/A","N/A","GRIS","Bueno en Uso"]
["03114","CONSULTORIO 23","2do","NEGATOSCOPIO","HOSPITECH","N/A","N/A","GRIS","Bueno en Uso"]
["03115","CONSULTORIO 23","2do","LAMPARA CUELLO DE GANSO","N/A","YDO 1A (LED)","N/A","BLANCO","Bueno en Uso"]
["03116","CONSULTORIO 23","2do","CAMILLA TIPO DIVAN","N/A","N/A","N/A","AZUL","Bueno en Uso"]
["03117","CONSULTORIO 23","2do","TABURETE","N/A","N/A","N/A","ACERO INOX.","Bueno en Uso"]
["03118","CONSULTORIO 23","2do","SET DE DIAGNOSTICO","WELCH ALLYN","N/A","N/A","BLANCO","Bueno en Uso"]
["03119","CONSULTORIO 23","2do","ESFIGMOMANOMETRO","WELCH ALLYN","N/A","N/A","BLANCO","Bueno en Uso"]
["03120","CONSULTORIO 23","2do","ARCHIVO 3 GAVETAS","N/A","N/A","N/A","MELAMINA","Bueno en Uso"]
["03121","CONSULTORIO 23","2do","ESCRITORIO CON TOPE DE MELAMINA","N/A","N/A","N/A","BLANCO","Bueno en Uso"]
["03122","CONSULTORIO 23","2do","SILLA SECRETARIAL","N/A","N/A","N/A","CREMA","Bueno en Uso"]
["03123","CONSULTORIO 23","2do","DISPENSADOR ELECTRICO","N/A","N/A","N/A","ACERO INOX.","Bueno en Uso"]
["03124","CONSULTORIO 23","2do","BALANZA","RICE LAKE","RL-MPS",615800041,"NEGRO CON GRIS","Bueno en Uso"]
["03125","CONSULTORIO 23","2do","MESA PARA MEDICAR","N/A","N/A","N/A","ACERO INOX.","Bueno en Uso"]
["03126","CONSULTORIO 23","2do","SILLA PARA VISITAS","N/A","N/A","N/A","NEGRO ","Bueno en Uso"]
["03127","CONSULTORIO 23","2do","SILLA SECRETARIAL","N/A","N/A","N/A","AZUL CON NEGRO","Bueno en Uso"]
["03128","CONSULTORIO 23","2do","SILLA PARA VISITAS","N/A","N/A","N/A","NEGRO","Bueno en Uso"]
["03129","CONSULTORIO 23","2do","AVANICO","LASKO","N/A","N/A","NEGRO","Bueno en Uso"]
["03130","CONSULTORIO 23","2do"," MESA DE COMPUTADORA CON TOPE AMARILLO","N/A","N/A","N/A","AMARILLO","Bueno en Uso"]
["03131","CONSULTORIO 23","2do","MONITOR","HP","HP-L1950",7121911,"GRIS","Bueno en Uso"]
["03132","CONSULTORIO 23","2do","CPU","HP","PAVILION 6000","4CW122BQK","NEGRO","Bueno en Uso"]
["03133","CONSULTORIO 23","2do","IMPRESORA","CANON","N/A","NWQ27096","CREMA","Bueno en Uso"]
["03134","CONSULTORIO 23","2do","MESA DE COMPUTADORA CON TOPE AMARILLO","N/A","N/A","N/A","AMARILLO","Bueno en Uso"]
["03135","CONSULTORIO 23","2do","SILLA PARA PACIENTE","N/A","N/A","N/A","TOPE DE MADERA","Bueno en Uso"]
["03136","CONSULTORIO 23","2do","SILLA PARA VISITAS","N/A","N/A","N/A","NEGRO","Bueno en Uso"]
["03137","CONSULTORIO 23","2do","AIRE ACONDICIONADO","INNOVAIR","N/A","N/A","BLANCO","Bueno en Uso"]
["03138","CONSULTORIO 23","2do","BANCO DE HIERRO","N/A","N/A","N/A","GRIS","Bueno en Uso"]
[]
["03176","CONSULTORIO 24","2do","ESCRITORIO","N/A","N/A","N/A","MELAMINA","Bueno en Uso"]
["03177","CONSULTORIO 24","2do","ARCHIVO 3 GAVETAS","N/A","N/A","N/A","MELAMINA","Bueno en Uso"]
["03178","CONSULTORIO 24","2do","SILLA PARA PACIENTE","N/A","N/A","N/A","NEGRO","Bueno en Uso"]
["03179","CONSULTORIO 24","2do","IMPRESORA","HP","LASER JET PRO MFP-M428","MXBPMC711F","BLANCO","Bueno en Uso"]
["03180","CONSULTORIO 24","2do","TABURETE","N/A","N/A","N/A","ACERO INOX.","Bueno en Uso"]
["03181","CONSULTORIO 24","2do","MONITOR","HP","N/A","8CC64619WF","BLANCO","Bueno en Uso"]
["03182","CONSULTORIO 24","2do","TELEFONO","CISCO","3844-13-1086","WZP18490VPJ","GRIS","Bueno en Uso"]
["03183","CONSULTORIO 24","2do","MESA PARA MEDICAR","N/A","N/A","N/A","ACERO INOX.","Bueno en Uso"]
["03184","CONSULTORIO 24","2do","DISPENSADOR ELECTRICO","N/A","N/A","N/A","ACERO INOX.","Bueno en Uso"]
["03185","CONSULTORIO 24","2do","ARMARIO","IBK PS","N/A","N/A","GRIS OSCURO","Bueno en Uso"]
["03186","CONSULTORIO 24","2do","SET DE DIAGNOSTICO","WELCH ALLYN","N/A","N/A","GRIS","Bueno en Uso"]
["03187","CONSULTORIO 24","2do","ESFIGMO MANOMETRO","WELCH ALLYN","N/A","N/A","CREMA","Bueno en Uso"]
["03188","CONSULTORIO 24","2do","CAMILLA TIPO DIVAN","N/A","N/A","N/A","AZUL CON CREMA","Bueno en Uso"]
["03189","CONSULTORIO 24","2do","BALANZA","RICE LAKE","RL-MPS",15091800437,"ACERO INOX.","Bueno en Uso"]
["03190","CONSULTORIO 24","2do","NEGATOSCOPIO","HOSPITECH","N/A","N/A","GRIS OSCURO","Bueno en Uso"]
["03191","CONSULTORIO 24","2do","LAMPARA CUELLO DE GANZO","YDO1A LED","N/A","N/A","BLANCO","Bueno en Uso"]
["03192","CONSULTORIO 24","2do","SILLA PARA PACIENTE","N/A","N/A","N/A","NEGRO","Bueno en Uso"]
["03193","CONSULTORIO 24","2do","SILLA SECRETARIAL","N/A","N/A","N/A","CREMACON NEGRO","Bueno en Uso"]
["03194","CONSULTORIO 24","2do","AIRE ACONDICIONADO","INNOVAIR","N/A","N/A","BLANCO","Bueno en Uso"]
[]
["03139","CONSULTORIO(ADMINISTRACION)","2do","CASILLERO 4 GAVETAS","TDS ACIOL","N/A","N/A","GRIS","Bueno en Uso"]
["03140","CONSULTORIO(ADMINISTRACION)","2do","NEVERA","TECNO MASTER","N/A","D2105140148","NEGRO","Bueno en Uso"]
["03141","CONSULTORIO(ADMINISTRACION)","2do","ESCRITORIO","N/A","N/A","N/A","MELAMINA","Bueno en Uso"]
["03142","CONSULTORIO(ADMINISTRACION)","2do","MESA DE COMEDOR PEQUEÑA","N/A","N/A","N/A","CREMA","Bueno en Uso"]
["03143","CONSULTORIO(ADMINISTRACION)","2do","ESCRITORIO","N/A","N/A","N/A","MELAMINA","Bueno en Uso"]
["03144","CONSULTORIO(ADMINISTRACION)","2do","ARCHIVO DE 3 GAVETAS","N/A","N/A","N/A","MELAMINA","Bueno en Uso"]
["03145","CONSULTORIO(ADMINISTRACION)","2do","BEBEDERO","GENERAL ELECTRIC","N/A","ST0910100680","BLANCO","Bueno en Uso"]
["03146","CONSULTORIO(ADMINISTRACION)","2do","AVANICO","KDK","N/A",784100335,"BLANCO","Bueno en Uso"]
["03147","CONSULTORIO(ADMINISTRACION)","2do","MESA DE COMPUTADORA","N/A","N/A","N/A","NEGRO","Bueno en Uso"]
["03148","CONSULTORIO(ADMINISTRACION)","2do","IMPRESORA","HP","LASER JET P1102W","VND3G35932","NEGRO","Bueno en Uso"]
["03149","CONSULTORIO(ADMINISTRACION)","2do","SILLA SECRETARIAL","N/A","N/A","N/A","AZUL CON NEGRO","Bueno en Uso"]
["03150","CONSULTORIO(ADMINISTRACION)","2do","MONITOR","DELL","N/A","N/A","NEGRO","Bueno en Uso"]
["03151","CONSULTORIO(ADMINISTRACION)","2do","CPU","DELL","VOSTRO","N/A","NEGRO","Bueno en Uso"]
["03152","CONSULTORIO(ADMINISTRACION)","2do","SILLA PARA VISITA","N/A","N/A","N/A","GRIS OSCURO","Bueno en Uso"]
["03153","CONSULTORIO(ADMINISTRACION)","2do","SILLA SECRETARIAL SIN RUEDAS","N/A","N/A","N/A","AZUL CON NEGRO","Bueno en Uso"]
["03154","CONSULTORIO(ADMINISTRACION)","2do","SILLA PARA VISITA","N/A","N/A","N/A","VERDE","Bueno en Uso"]
["03155","CONSULTORIO(ADMINISTRACION)","2do","SILLA SECRETARIAL","N/A","N/A","N/A","CREMA","Bueno en Uso"]
["03156","CONSULTORIO(ADMINISTRACION)","2do","SILLA SECRETARIAL","N/A","N/A","N/A","AZUL ","Bueno en Uso"]
["03175","CONSULTORIO(ADMINISTRACION)","2do","AIRE ACONDICIONADO","N/A","N/A","N/A","BLANCO","Bueno en Uso"]
[]
["03157","SERVITIENDA(SERTIFICACION)","2do","ARCHIVO 4 GAVETAS","N/A","N/A","N/A","GRIS ","Bueno en Uso"]
["03158","SERVITIENDA(SERTIFICACION)","2do","MESA PARA COMPUTADORA","N/A","N/A","N/A","CAOBA","Bueno en Uso"]
["03159","SERVITIENDA(SERTIFICACION)","2do","MESA DE NOCHE","N/A","N/A","N/A","BLANCO","Bueno en Uso"]
["03160","SERVITIENDA(SERTIFICACION)","2do","ESCRITORIO","N/A","N/A","N/A","MADERA","Bueno en Uso"]
["03161","SERVITIENDA(SERTIFICACION)","2do","IMPRESO MULTI FUNCIONAL","HP","LASER JET PROM252DW","VNB3122759","BLANCO","Bueno en Uso"]
["03162","SERVITIENDA(SERTIFICACION)","2do","MONITOR","HP","L1950G","CNK84331FDW","GRIS CON NEGRO","Bueno en Uso"]
["03163","SERVITIENDA(SERTIFICACION)","2do","TELEFONO","CISCO","384413D86","WZP18500NRS","NEGRO","Bueno en Uso"]
["03164","SERVITIENDA(SERTIFICACION)","2do","SILLA SECRETARIAL","N/A","N/A","N/A","AZUL CON BLANCO","Bueno en Uso"]
["03165","SERVITIENDA(SERTIFICACION)","2do","SILLA SECRETARIAL","N/A","N/A","N/A","NEGRO ","Bueno en Uso"]
["03166","SERVITIENDA(SERTIFICACION)","2do","CPU","DELL","N/A","TATDJYFK02","NEGRO","Bueno en Uso"]
["03167","SERVITIENDA(SERTIFICACION)","2do","ESCRITORIO","N/A","N/A","N/A","AMARILLO","Bueno en Uso"]
["03168","SERVITIENDA(SERTIFICACION)","2do","SILLA PARA VISITA","N/A","N/A","N/A","MOSTAZA","Bueno en Uso"]
["03170","SERVITIENDA(SERTIFICACION)","2do","COUNTER","N/A","N/A","N/A","BLANCO","Bueno en Uso"]
["03171","SERVITIENDA(SERTIFICACION)","2do","MAQUINA DE ESCRIBIR","SWINTEC","2416DM",9806,"GRIS","Bueno en Uso"]
["03172","SERVITIENDA(SERTIFICACION)","2do","BEBEDERO","GENERAL ELECTRIC","GXF03E2","ST910J00790","BLANCO","Bueno en Uso"]
["03173","SERVITIENDA(SERTIFICACION)","2do","AIRE ACONDICIONADO","N/A","N/A","N/A","BLANCO","Bueno en Uso"]
["03169","SERVITIENDA(SERTIFICACION)","2do","ARMARIO","N/A","N/A","N/A","MARRON","Bueno en Uso"]
["03174","SERVITIENDA(SERTIFICACION)","2do","ZAFACON","N/A","N/A","N/A","AZUL","Bueno en Uso"]
[]
["0328","PASILLO ","2do","SILLON","N/A","N/A","N/A","MAMEL","Bueno en Uso"]
["0329","PASILLO ","2do","SILLON","N/A","N/A","N/A","MAMEL","Bueno en Uso"]
["0330","PASILLO ","2do","SILLON","N/A","N/A","N/A","MAMEL","Bueno en Uso"]
["0331","PASILLO ","2do","SILLON","N/A","N/A","N/A","MAMEL","Bueno en Uso"]
["0332","PASILLO ","2do","SILLON","N/A","N/A","N/A","MAMEL","Bueno en Uso"]
["0333","PASILLO ","2do","SILLON","N/A","N/A","N/A","AZUL","Bueno en Uso"]
["0334","PASILLO ","2do","SILLON","N/A","N/A","N/A","AZUL","Bueno en Uso"]
["0335","PASILLO ","2do","SILLON","N/A","N/A","N/A","VERDE","Bueno en Uso"]
["0336","PASILLO ","2do","SILLON","N/A","N/A","N/A","VERDE","Bueno en Uso"]
["0337","PASILLO ","2do","SILLON","N/A","N/A","N/A","MAMEL","Bueno en Uso"]
["0338","PASILLO ","2do","SILLON","N/A","N/A","N/A","VERDE","Bueno en Uso"]
["0339","PASILLO ","2do","SILLON","N/A","N/A","N/A","MAMEL","Bueno en Uso"]
["0340","PASILLO ","2do","SILLON","N/A","N/A","N/A","VERDE","Bueno en Uso"]
["0341","PASILLO ","2do","SILLON","N/A","N/A","N/A","MAMEL","Bueno en Uso"]
["0342","PASILLO ","2do","SILLON","N/A","N/A","N/A","MAMEI","Bueno en Uso"]
["03343","PASILLO ","2do","SILLON","N/A","N/A","N/A","MAMEI","Bueno en Uso"]
["03344","PASILLO ","2do","SILLON","N/A","N/A","N/A","AZUL","Bueno en Uso"]
["03345","PASILLO ","2do","SILLON","N/A","N/A","N/A","AZUL","Bueno en Uso"]
["03346","PASILLO ","2do","SILLON DE 3 ASIENTO","N/A","N/A","N/A","GRIS","Bueno en Uso"]
["03347","PASILLO ","2do","SILLON DE 3 ASIENTO","N/A","N/A","N/A","GRIS","Bueno en Uso"]
["03348","PASILLO ","2do","SILLON DE 3 ASIENTO","N/A","N/A","N/A","GRIS","Bueno en Uso"]
["03349","PASILLO ","2do","SILLON DE 3 ASIENTO","N/A","N/A","N/A","GRIS","Bueno en Uso"]
["03350","PASILLO ","2do","SILLON DE 3 ASIENTO","N/A","N/A","N/A","GRIS","Bueno en Uso"]
["03351","PASILLO ","2do","SILLON DE 3 ASIENTO","N/A","N/A","N/A","GRIS","Bueno en Uso"]
["03352","PASILLO ","2do","SILLON DE 3 ASIENTO","N/A","N/A","N/A","GRIS","Bueno en Uso"]
["03353","PASILLO ","2do","SILLON DE 3 ASIENTO","N/A","N/A","N/A","GRIS","Bueno en Uso"]
["03354","PASILLO ","2do","SILLON DE 3 ASIENTO","N/A","N/A","N/A","GRIS","Bueno en Uso"]
["03355","PASILLO ","2do","SILLON DE 3 ASIENTO","N/A","N/A","N/A","GRIS","Bueno en Uso"]
["03356","PASILLO ","2do","SILLON DE 3 ASIENTO","N/A","N/A","N/A","GRIS","Bueno en Uso"]
["03357","PASILLO ","2do","SILLON DE 3 ASIENTO","N/A","N/A","N/A","GRIS","Bueno en Uso"]
["03358","PASILLO ","2do","SILLON DE 3 ASIENTO","N/A","N/A","N/A","GRIS","Bueno en Uso"]
["03359","PASILLO ","2do","SILLON DE 3 ASIENTO","N/A","N/A","N/A","GRIS","Bueno en Uso"]
["03360","PASILLO ","2do","SILLON DE 3 ASIENTO","N/A","N/A","N/A","GRIS","Bueno en Uso"]
["03361","PASILLO ","2do","SILLON DE 3 ASIENTO","N/A","N/A","N/A","GRIS","Bueno en Uso"]
["03362","PASILLO ","2do","SILLON DE 3 ASIENTO","N/A","N/A","N/A","GRIS","Bueno en Uso"]
["03363","PASILLO ","2do","SILLON DE 3 ASIENTO","N/A","N/A","N/A","GRIS","Bueno en Uso"]
["03364","PASILLO ","2do","SILLON DE 3 ASIENTO","N/A","N/A","N/A","GRIS","Bueno en Uso"]
["03365","PASILLO ","2do","SILLON DE 3 ASIENTO","N/A","N/A","N/A","GRIS","Bueno en Uso"]
["03366","PASILLO ","2do","SILLON DE 3 ASIENTO","N/A","N/A","N/A","GRIS","Bueno en Uso"]
["03367","PASILLO ","2do","SILLON DE 3 ASIENTO","N/A","N/A","N/A","GRIS","Bueno en Uso"]
["03368","PASILLO ","2do","SILLON DE 3 ASIENTO","N/A","N/A","N/A","GRIS","Bueno en Uso"]
["03369","PASILLO ","2do","SILLON DE 3 ASIENTO","N/A","N/A","N/A","GRIS","Bueno en Uso"]
["03370","PASILLO ","2do","SILLON DE 3 ASIENTO","N/A","N/A","N/A","GRIS","Bueno en Uso"]
["03371","PASILLO ","2do","SILLON DE 3 ASIENTO","N/A","N/A","N/A","GRIS","Bueno en Uso"]
["03372","PASILLO ","2do","SILLON DE 3 ASIENTO","N/A","N/A","N/A","GRIS","Bueno en Uso"]
["03373","PASILLO ","2do","SILLON DE 3 ASIENTO","N/A","N/A","N/A","GRIS","Bueno en Uso"]
["03374","PASILLO ","2do","SILLON DE 3 ASIENTO","N/A","N/A","N/A","GRIS","Bueno en Uso"]
["03375","PASILLO ","2do","SILLON DE 3 ASIENTO","N/A","N/A","N/A","GRIS","Bueno en Uso"]
["03376","PASILLO ","2do","SILLON DE 3 ASIENTO","N/A","N/A","N/A","GRIS","Bueno en Uso"]
["03377","PASILLO ","2do","SILLON DE 3 ASIENTO","N/A","N/A","N/A","GRIS","Bueno en Uso"]
["03378","PASILLO ","2do","SILLON DE 3 ASIENTO","N/A","N/A","N/A","GRIS","Bueno en Uso"]
["03379","PASILLO ","2do","SILLON DE 3 ASIENTO","N/A","N/A","N/A","GRIS","Bueno en Uso"]
["03380","PASILLO ","2do","SILLON DE 3 ASIENTO","N/A","N/A","N/A","GRIS","Bueno en Uso"]
["03381","PASILLO ","2do","SILLON DE 2 ASIENTO","N/A","N/A","N/A","GRIS","Bueno en Uso"]
["03382","PASILLO ","2do","SILLON DE 2 ASIENTO","N/A","N/A","N/A","GRIS","Bueno en Uso"]
["03383","PASILLO ","2do","SILLON DE 2 ASIENTO","N/A","N/A","N/A","GRIS","Bueno en Uso"]
["03384","PASILLO ","2do","SILLON DE 2 ASIENTO","N/A","N/A","N/A","GRIS","Bueno en Uso"]
["03385","PASILLO ","2do","SILLON DE 2 ASIENTO","N/A","N/A","N/A","GRIS","Bueno en Uso"]
["03386","PASILLO ","2do","SILLON DE 2 ASIENTO","N/A","N/A","N/A","GRIS","Bueno en Uso"]
["03387","PASILLO ","2do","SILLON DE 2 ASIENTO","N/A","N/A","N/A","GRIS","Bueno en Uso"]
["03388","PASILLO ","2do","SILLON DE 2 ASIENTO","N/A","N/A","N/A","GRIS","Bueno en Uso"]
[]
["03198","STRAR DE PASIENTE","2do","CUADRO PARA  DECORACION ","N/A","N/A","N/A","N/A","Bueno en Uso"]
["03199","STRAR DE PASIENTE","2do","CUADRO PARA  DECORACION ","N/A","N/A","N/A","N/A","Bueno en Uso"]
["03201","STRAR DE PASIENTE","2do","CUADRO PARA  DECORACION ","N/A","N/A","N/A","N/A","Bueno en Uso"]
["03202","STRAR DE PASIENTE","2do","CUADRO PARA  DECORACION ","N/A","N/A","N/A","N/A","Bueno en Uso"]
["03203","STRAR DE PASIENTE","2do","CUADRO PARA  DECORACION ","N/A","N/A","N/A","N/A","Bueno en Uso"]
["03204","STRAR DE PASIENTE","2do","CUADRO PARA  DECORACION ","N/A","N/A","N/A","N/A","Bueno en Uso"]
["03205","STRAR DE PASIENTE","2do","CUADRO PARA  DECORACION ","N/A","N/A","N/A","N/A","Bueno en Uso"]
["03206","STRAR DE PASIENTE","2do","CUADRO PARA  DECORACION ","N/A","N/A","N/A","N/A","Bueno en Uso"]
["03207","STRAR DE PASIENTE","2do","CUADRO PARA  DECORACION ","N/A","N/A","N/A","N/A","Bueno en Uso"]
["03208","STRAR DE PASIENTE","2do","CUADRO PARA  DECORACION ","N/A","N/A","N/A","N/A","Bueno en Uso"]
["03209","STRAR DE PASIENTE","2do","CUADRO PARA  DECORACION ","N/A","N/A","N/A","N/A","Bueno en Uso"]
["03210","STRAR DE PASIENTE","2do","CUADRO PARA  DECORACION ","N/A","N/A","N/A","N/A","Bueno en Uso"]
["03211","STRAR DE PASIENTE","2do","CUADRO PARA  DECORACION ","N/A","N/A","N/A","N/A","Bueno en Uso"]
["03212","STRAR DE PASIENTE","2do","CUADRO PARA  DECORACION ","N/A","N/A","N/A","N/A","Bueno en Uso"]
[]
[]
["03310","PASILLO DE INFORMACION","2do","BANCADA DE TRES ASIENTOS","N/A","N/A","N/A","GRIS","Bueno en Uso"]
["03311","PASILLO DE INFORMACION","2do","BANCADA DE TRES ASIENTOS","N/A","N/A","N/A","GRIS","Bueno en Uso"]
["03312","PASILLO DE INFORMACION","2do","BANCADA DE TRES ASIENTOS","N/A","N/A","N/A","GRIS","Bueno en Uso"]
["03313","PASILLO DE INFORMACION","2do","BANCADA DE DOS ASIENTOS","N/A","N/A","N/A","GRIS","Bueno en Uso"]
["03314","PASILLO DE INFORMACION","2do","BANCADA DE DOS ASIENTOS","N/A","N/A","N/A","GRIS","Bueno en Uso"]
["03315","PASILLO DE INFORMACION","2do","BANCADA DE DOS ASIENTOS","N/A","N/A","N/A","GRIS","Bueno en Uso"]
["03316","PASILLO DE INFORMACION","2do","SILLON","N/A","N/A","N/A","AZUL","Bueno en Uso"]
["03317","PASILLO DE INFORMACION","2do","ZAFACON","N/A","N/A","N/A","GRIS","Bueno en Uso"]
["03318","PASILLO DE INFORMACION","2do","CAUNTER","N/A","N/A","N/A","BLANCO","Bueno en Uso"]
["03319","PASILLO DE INFORMACION","2do","MONITOR","HP","HP-L1950","CN6825P79X","NEGRO","Bueno en Uso"]
["03320","PASILLO DE INFORMACION","2do","CPU","HP","PAVILION 6000","KN642AAR ARA 4CWY15","N/A","Bueno en Uso"]
["03321","PASILLO DE INFORMACION","2do","MONITOR","HP",null,"1T88252",null,"Bueno en Uso"]
["03322","PASILLO DE INFORMACION","2do","CPU","DELL","OPTIPEX-3020","00186-240-151","NEGRO","Bueno en Uso"]
["03323","PASILLO DE INFORMACION","2do","TELEFONO","CISCO","3842-131086","CNUZP18240 WFP","GRIS","Bueno en Uso"]
["03324","PASILLO DE INFORMACION","2do","SILLA SECRETARIAL","N/A","N/A","N/A","AZUL CON GRIS","Bueno en Uso"]
["03325","PASILLO DE INFORMACION","2do","SILLA SECRETARIAL","N/A","N/A","N/A","AZUL CON GRIS","Bueno en Uso"]
["03326","PASILLO DE INFORMACION","2do","CPU PEQUEÑO","FORZA","NTS11D",201011502624,"NEGRO","Bueno en Uso"]
["03327","PASILLO DE INFORMACION","2do","EXTINTOR","N/A","N/A","N/A","ROJO","Bueno en Uso"]
[]
["03213","PASILLO","2do","SILLON","N/A","N/A","N/A","AZUL","Bueno en Uso"]
["03214","PASILLO","2do","SILLON","N/A","N/A","N/A","AZUL","Bueno en Uso"]
["03215","PASILLO","2do","SILLON","N/A","N/A","N/A","AZUL","Bueno en Uso"]
["03216","PASILLO","2do","SILLON","N/A","N/A","N/A","VERDE","Bueno en Uso"]
["03217","PASILLO","2do","SILLON","N/A","N/A","N/A","AZUL","Bueno en Uso"]
["03218","PASILLO","2do","SILLON","N/A","N/A","N/A","VERDE","Bueno en Uso"]
["03219","PASILLO","2do","SILLON","N/A","N/A","N/A","VERDE","Bueno en Uso"]
["03220","PASILLO","2do","SILLON","N/A","N/A","N/A","VERDE","Bueno en Uso"]
["03221","PASILLO","2do","SILLON","N/A","N/A","N/A","AZUL","Bueno en Uso"]
["03222","PASILLO","2do","SILLON","N/A","N/A","N/A","AZUL","Bueno en Uso"]
["03223","PASILLO","2do","SILLON","N/A","N/A","N/A","AZUL","Bueno en Uso"]
["03224","PASILLO","2do","SILLON","N/A","N/A","N/A","VERDE","Bueno en Uso"]
["03225","PASILLO","2do","SILLON","N/A","N/A","N/A","VERDE","Bueno en Uso"]
["03226","PASILLO","2do","SILLON","N/A","N/A","N/A","AZUL","Bueno en Uso"]
["03227","PASILLO","2do","SILLON","N/A","N/A","N/A","AZUL","Bueno en Uso"]
[]
["03289","ESTAR DE PASIENTE","2do","TELEVISOR","SANKEY","N/A","T775V627A502","NEGRO","Bueno en Uso"]
["03290","ESTAR DE PASIENTE (INFO.FRENTE AL CONSULTORIO 17)","2do","CAUNTER","N/A","N/A","N/A","BLANCO","Bueno en Uso"]
["03291","ESTAR DE PASIENTE(INFO.FRENTE AL CONSULTORIO 17)","2do","SILLA SECRETARIAL","N/A","N/A","N/A","AZUL","Bueno en Uso"]
["03292","ESTAR DE PASIENTE","2do","SILLA SECRETARIAL","N/A","N/A","N/A","AZUL","Bueno en Uso"]
["03293","ESTAR DE PASIENTE","2do","SILLA SECRETARIAL","N/A","N/A","N/A","AZUL","Bueno en Uso"]
["03294","ESTAR DE PASIENTE","2do","SILLA SECRETARIAL","N/A","N/A","N/A","AZUL","Bueno en Uso"]
["03295","ESTAR DE PASIENTE","2do","ZAFACON","N/A","N/A","N/A","BLANCO","Bueno en Uso"]
["03296","ESTAR DE PASIENTE","2do","ZAFACON CON RUEDAS","N/A","N/A","N/A","GRIS","Bueno en Uso"]
["03297","ESTAR DE PASIENTE","2do","TELEVISOR","SANKEY","N/A","T985J084AA04","NEGRO","Bueno en Uso"]
["03298","ESTAR DE PASIENTE","2do","SILLA SECRETARIAL","N/A","N/A","N/A","AZUL","Bueno en Uso"]
["03299","ESTAR DE PASIENTE","2do","SILLA SECRETARIAL","N/A","N/A","N/A","AZUL","Bueno en Uso"]
["03300","ESTAR DE PASIENTE","2do","SILLA SECRETARIAL","N/A","N/A","N/A","AZUL","Bueno en Uso"]
["03301","ESTAR DE PASIENTE","2do","MESITA DE CARTON","N/A","N/A","N/A","MARRON","Bueno en Uso"]
["03302","ESTAR DE PASIENTE","2do","MICROFONO","1BL","CPM4","CA31190-001742",null,"Bueno en Uso"]
["03303","ESTAR DE PASIENTE","2do","ZAFACON","N/A","N/A","N/A","GRIS","Bueno en Uso"]
["03304","ESTAR DE PASIENTE","2do","EXTINTOR","N/A","N/A","N/A","ROJO","Bueno en Uso"]
["03305","ESTAR DE PASIENTE","2do","EXTINTOR","N/A","N/A","N/A","ROJO","Bueno en Uso"]
["03306","ESTAR DE PASIENTE","2do","EXTINTOR","N/A","N/A","N/A","ROJO","Bueno en Uso"]
["03307","ESTAR DE PASIENTE","2do","EXTINTOR","N/A","N/A","N/A","ROJO","Bueno en Uso"]
["03308","ESTAR DE PASIENTE","2do","EXTINTOR","N/A","N/A","N/A","ROJO","Bueno en Uso"]
["03309","ESTAR DE PASIENTE","2do","EXTINTOR","N/A","N/A","N/A","ROJO","Bueno en Uso"]
[]
["01815","UCI INTERNARIO (01)","3ro","MONITOR","ECLAN","IM80",1480014,"BLANCO","Bueno en Uso"]
["01816","UCI INTERNARIO (01)","3ro","ZAFACON","N/A","N/A","N/A","NIQUELADO","Bueno en Uso"]
["01817","UCI INTERNARIO (01)","3ro","ASPIRADOR","COVIDIEN","WCORM TOUCH","SP20090213","AZUL","Bueno en Uso"]
["01818","UCI INTERNARIO (01)","3ro","VENTILADOR","NEWPORT","HT70",321886,"AZUL","Bueno en Uso"]
["01819","UCI INTERNARIO (01)","3ro","BOMBA DE INFUSION","ADVANCED","IIP-200",70210134439,"CREMA","Bueno en Uso"]
["01820","UCI INTERNARIO (01)","3ro","BOMBA DE INFUSION","ADVANCED","IIP-200",70210234880,"CREMA","Bueno en Uso"]
["01821","UCI INTERNARIO (01)","3ro","BOMBA DE INFUSION","ADVANCED","IIP-200",70210234879,"CREMA","Bueno en Uso"]
["01822","UCI INTERNARIO (01)","3ro","CAMA HOSPITALARIA","HILLRCEN","N/A","HRP004191276","BLANCO HUESO","Bueno en Uso"]
["01823","UCI INTERNARIO (01)","3ro","ESALINATA UN PELDAÑO","N/A","N/A","N/A","NEGRO","Bueno en Uso"]
["01824","UCI INTERNARIO (01)","3ro","PIE DE SUERO","N/A","N/A","N/A","ACERO INOX.","Bueno en Uso"]
["01825","UCI INTERNARIO (01)","3ro","MESA PARA MEDICAR","N/A","N/A","N/A","ACERO INOX.","Bueno en Uso"]
["01854","UCI INTERNARIO (01)","3ro","VACUOMETRO","N/A","22-131111","N/A","CREMA","Bueno en Uso"]
[]
["01826","UCI INTERMEDIO (02)","3ro","MONITOR","EDAN","IM80",1480016,"CREMA","Bueno en Uso"]
["01827","UCI INTERMEDIO (02)","3ro","VENTILADOR","NEWPORT","HT70",20321940,"AZUL","Bueno en Uso"]
["01828","UCI INTERMEDIO (02)","3ro","ESCALINATA UN PELDAÑO","N/A","N/A","N/A","NEGRO","Bueno en Uso"]
["01829","UCI INTERMEDIO (02)","3ro","CAMA HOSPITALARIA","HILBROM","N/A","HRP004191304","BLANCO HUESO","Bueno en Uso"]
["01830","UCI INTERMEDIO (02)","3ro","PIE DE SUERO","N/A","N/A","N/A","ACERO INOX.","Bueno en Uso"]
["01831","UCI INTERMEDIO (02)","3ro","BOMBA DE INFUSION","ADVANCED","IP-200",70210134406,"CREMA","Bueno en Uso"]
["01832","UCI INTERMEDIO (02)","3ro","BOMBA DE INFUSION","ADVANCED","N/A",70210134427,"CREMA","Bueno en Uso"]
["01833","UCI INTERMEDIO (02)","3ro","BOMBA DE INFUSION","ADVANCED","N/A",70210234907,"CREMA","Bueno en Uso"]
["01834","UCI INTERMEDIO (02)","3ro","ASPIRADOR","COVIDIEN","WARM TOUCH","SP20090210","AZUL","Bueno en Uso"]
["01835","UCI INTERMEDIO (02)","3ro","ZAFACON ","N/A","N/A","N/A","NIQUELADO","Bueno en Uso"]
["01855","UCI INTERMEDIO (02)","3ro","VACUOMETRO","N/A","N/A","N/A","CREMA","Bueno en Uso"]
[]
["01836","UCI INTERMEDIO (03)","3ro","MONITOR","EDAN","IM80",1480013,"CREMA","Bueno en Uso"]
["01837","UCI INTERMEDIO (03)","3ro","ASPIRADOR","COVIDIEN","WARM TOUCH","SP20090242","AZUL","Bueno en Uso"]
["01838","UCI INTERMEDIO (03)","3ro","MESA PARA MEDICAR","N/A","N/A","N/A","ACERO INOX.","Bueno en Uso"]
["01839","UCI INTERMEDIO (03)","3ro","CAMA HOSPITALARIA","HILLBROM","N/A","HRP004191327","BLANCO HUESO","Bueno en Uso"]
["01840","UCI INTERMEDIO (03)","3ro","ZAFACON","N/A","N/A","N/A","NIQUELADO","Bueno en Uso"]
["01841","UCI INTERMEDIO (03)","3ro","ESCALINATA UN PELDAÑO","N/A","N/A","N/A","NEGRO","Bueno en Uso"]
["01842","UCI INTERMEDIO (03)","3ro","BOMBA DE INFUSION","ADVANCE","IP-200",70210134432,"CREMA","Bueno en Uso"]
["01843","UCI INTERMEDIO (03)","3ro","BOMBA DE INFUSION","ADVANCE","IP200",70210234895,"CREMA","Bueno en Uso"]
["01844","UCI INTERMEDIO (03)","3ro","BOMBA DE INFUSION","ADVANCE","IP-200",70210234915,"CREMA","Bueno en Uso"]
["0185","UCI INTERMEDIO (03)","3ro","VACUOMETRO",{"$nulls":3},"CREMA","Bueno en Uso"]
[]
["01845","UCI INTERMADIO (INFORMACION)","3ro","SILLA SECRETARIAL","N/A","N/A","N/A","NEGRO","Bueno en Uso"]
["01846","UCI INTERMADIO (INFORMACION)","3ro","SILLA SECRETARIAL","N/A","N/A","N/A","NEGRO","Bueno en Uso"]
["01847","UCI INTERMADIO (INFORMACION)","3ro","SILLA SECRETARIAL","N/A","N/A","N/A","NEGRO","Bueno en Uso"]
["01848","UCI INTERMADIO (INFORMACION)","3ro","ZAFACON","N/A","N/A","N/A","NIQUELADO","Bueno en Uso"]
["01849","UCI INTERMADIO (INFORMACION)","3ro","ZAFACON","N/A","N/A","N/A","ROJO","Bueno en Uso"]
["01850","UCI INTERMADIO (INFORMACION)","3ro","MONITOR","HP","PRODISPLAY P17A","3CQ9120J9K","NEGRO","Bueno en Uso"]
["01851","UCI INTERMADIO (INFORMACION)","3ro","CPU","DELL","OPTIPLEX-XE3","N/A","NEGRO","Bueno en Uso"]
["01852","UCI INTERMADIO (INFORMACION)","3ro","USP","ABLEREX","AB-ES750C",19370380,"NEGRO","Bueno en Uso"]
["01853","UCI INTERMADIO (INFORMACION)","3ro","ZAFACON","N/A","N/A","N/A","NIQUELADO","Bueno en Uso"]
["01856","UCI INTERMADIO (INFORMACION)","3ro","NEGATOSCOPIO","N/A","N/A","N/A","BLANCO","Bueno en Uso"]
["01858","UCI INTERMADIO (INFORMACION)","3ro","CUADRO DE DECORACION","N/A","N/A","N/A","N/A","Bueno en Uso"]
["01859","UCI INTERMADIO (INFORMACION)","3ro","CARRO DE PARO","METRO","SXR","WSX20060202","CREMA","Bueno en Uso"]
[]
["03507","UCI-01","3ro","BOMBA DE INFUSION","ADVANCED 1 CANAL","IP200",70210134409,"N/A","Bueno en Uso"]
["03508","UCI-01","3ro","BOMBA DE INFUSION","ADVANCED 1 CANAL","IP200","N/A","N/A","Bueno en Uso"]
["03509","UCI-01","3ro","BOMBA DE INFUSION","ADVANCED 1 CANAL","IP200",70210234935,"N/A","Bueno en Uso"]
["03510","UCI-01","3ro","PIE DE SUERO","N/A","GF70121","JAW184PR","ACERO INOX.","Bueno en Uso"]
["03511","UCI-01","3ro","PIE DE SUERO","N/A","GF70121","J9W184PR","ACERO INOX.","Bueno en Uso"]
["03512","UCI-01","3ro","BACOMETRO","N/A",22131111,20210202,"GRIS","Bueno en Uso"]
["03513","UCI-01","3ro","ZAFACON","N/A","N/A","N/A","ACERO INOX.","Bueno en Uso"]
["03514","UCI-0","3ro","MESA PARA MEDICAR PACIENTE","N/A","N/A","N/A","ACERO INOX.","Bueno en Uso"]
["03515","UCI-01","3ro","BOMBA DE INFUSION","ADVANCED 1 CANAL","IP200",7021013440047,"N/A","Bueno en Uso"]
["03516","UCI-01","3ro","BOMBA DE INFUSION","ADVANCED 1 CANAL","IP200",70210134414,"N/A","Bueno en Uso"]
["03517","UCI-01","3ro","BOMBA DE INFUSION","ADVANCED 1 CANAL","IP200",70210234928,"N/A","Bueno en Uso"]
["03518","UCI-01","3ro","MONITOR DE SIGNOS VITALES","EDAM","IM80","360068M221301480026","GRIS","Bueno en Uso"]
["03519","UCI-01","3ro","PIE DE SUERO","N/A","GF70121","JAW299PR","ACERO INOX.","Bueno en Uso"]
["03520","UCI-01","3ro","PIE DE SUERO","N/A","GF70121","JAV149PR","ACERO INOX.","Bueno en Uso"]
["03521","UCI-01","3ro","CAMA","HILL-ROM","NF","HRP004202103","CREMA CON BLANCO","Bueno en Uso"]
["03522","UCI-01","3ro","ESCALINATA","N/A","N/A","N/A","ACERO INOX.","Bueno en Uso"]
["03523","UCI-01","3ro","CALENTADOR DE PACIENTE","COVIDIEN","WARM TOUCH","SP17080263","N/A","Bueno en Uso"]
[]
["03524","UCI-02","3ro","VENTILADOR","DRAGER","SAVINA301","ASPB0260","BLANCO,AZUL Y GRIS","Bueno en Uso"]
["03525","UCI-02","3ro","ZAFACON","N/A","N/A","N/A","N/A","Bueno en Uso"]
["03526","UCI-02","3ro","BACOMETRO","BACUTROM",221311,20210119,"N/A","Bueno en Uso"]
[]
["03527","UCI-3","3ro","ZAFACON","N/A","N/A","N/A","N/A"]
["03528","UCI-3","3ro","MESA PARA MEDICAR",null,null,"N/A",null,"Bueno en Uso"]
["03529","UCI-3","3ro","MONITOR DE SIGNOS VITALES","EDAN","IM80","360068-21301480009",null,"Bueno en Uso"]
["03530","UCI-3","3ro","BOMBA DE INFUSION","ADUANCED","IP200",70210134454,"N/A","Bueno en Uso"]
["03531","UCI-3","3ro","BOMBA DE INFUSION","ADUANCED","IP200",70210134456,"N/A","Bueno en Uso"]
["03532","UCI-3","3ro","BOMBA DE INFUSION","ADUANCED","IP200",70210234902,"N/A","Bueno en Uso"]
["03533","UCI-3","3ro","PIE DE SUERO",null,"GF70121","JAW299PR","ACERO INOX.","Bueno en Uso"]
["03534","UCI-3","3ro","CAMA","HILL-ROOM","NF","HRP004202100",null,"Bueno en Uso"]
["03535","UCI-3","3ro","VENTILADOR","NEWPORT","HT700","NI8Ht7203321884","AZUL CON BLANCO","Bueno en Uso"]
["03536","UCI-3","3ro","PIE DE SUERO",null,"GF70121","JAW299PR","ACERO INOX.","Bueno en Uso"]
["03537","UCI-3","3ro","ESCALINATA",null,null,"N/A","NEGRO, ACERO INOX.","Bueno en Uso"]
["03538","UCI-3","3ro","CALENTADOR","COVIDIEN","WARM TOUCH","SP20121037","AZUL CON BLANCO","Bueno en Uso"]
["03539","UCI-3","3ro","BACOMETRO","BACOUTRAN",221311,20210202,"GRIS","Bueno en Uso"]
[]
["03540","UCI-04","3ro","CAMA","HILL-ROM","NF","HRPC0420254","BLANCO","Bueno en Uso"]
["03541","UCI-04","3ro","BOMBA DE INFUSION","ADVANCED","IP200",70210134405,"BLANCO CON GRIS","Bueno en Uso"]
["03542","UCI-04","3ro","BOMBA DE INFUSION","ADVANCED","IP200",70210134365,"BLANCO CON GRIS","Bueno en Uso"]
["03543","UCI-04","3ro","BOMBA DE INFUSION","ADVANCED","IP200",70210234890,"BLANCO CON GRIS","Bueno en Uso"]
["03544","UCI-04","3ro","CALENTADOR","COVIDIEN","WARM TP-VCH","SP20090174","AZUL CON BLANCO","Bueno en Uso"]
["03545","UCI-04","3ro","ESCALINATA ACERO INOX.","N/A","N/A","N/A","NEGRO CON ACERO INOX.","Bueno en Uso"]
["03546","UCI-04","3ro","MONITOR DE SIGNOS VITALES","EDAN","IM80","360068-M21301480029","GRIS","Bueno en Uso"]
["03547","UCI-04","3ro","PIE DE SUERO","N/A","GF70121","JAW299PR","ACERO INOX.","Bueno en Uso"]
["03548","UCI-04","3ro","PIE DE SUERO","N/A","GF70121","JAW299PR","ACERO INOX.","Bueno en Uso"]
["03549","UCI-04","3ro","VENTILADOR","NEWPORT","HT70","NI8HT720321907","AZUL CON BLANCO","Bueno en Uso"]
["03550","UCI-04","3ro","VACUOMETRO","BACUTROM",221311,20201116,"GRIS","Bueno en Uso"]
["03551","UCI-04","3ro","ZAFACON","N/A","N/A","N/A","ACERO INOX.","Bueno en Uso"]
[]
["03552","UCI-05","3ro","MONITOR DE SIGNOS VITALES","EDAN","YM80","360068M21301480001","GRIS","Bueno en Uso"]
["03553","UCI-05","3ro","BOMBA DE INFUSION","ADVAND","YP20",70210134397,"GRIS","Bueno en Uso"]
["03554","UCI-05","3ro","BOMBA DE INFUSION","ADVAND","YP20","N/A","GRIS","Bueno en Uso"]
["03555","UCI-05","3ro","BOMBA DE INFUSION","ADVAND","YP20",70210234063,"GRIS","Bueno en Uso"]
["03556","UCI-05","3ro","PIE DE SUERO","N/A","F70121","JAW184PR","N/A","Bueno en Uso"]
["03557","UCI-05","3ro","CAMA PARA PACIENTE","HILL ROM","NF","HRP004202101","N/A","Bueno en Uso"]
["03558","UCI-05","3ro","CALENTADOR","COVIDEN","WARMTOURCH","SP20121026","AZUL Y CREMA","Bueno en Uso"]
["03559","UCI-05","3ro","VENTILADOR NIUPOR","NEUPAW","HT70","CL18HT720321953","AZUL Y BLANCO","Bueno en Uso"]
["03560","UCI-05","3ro","VACUOMETRO","BACUTRON",221311,20210119,"CREMA","Bueno en Uso"]
["03561","UCI-05","3ro","ESCALINATA","N/A","N/A","N/A","NEGRO, ACERO INOX.","Bueno en Uso"]
["03562","UCI-05","3ro","ZAFACON","N/A","N/A","N/A","ACERO INOX.","Bueno en Uso"]
["03563","UCI-05","3ro","MESA PARA MEDICAR","N/A","N/A","N/A","ACERO INOX.","Bueno en Uso"]
[]
["01178","SALA DE REUNION","3ro","SILLA PARA VISITAS","N/A","N/A ","N/A","NEGRO","Bueno en Uso"]
["01179","SALA DE REUNION","3ro","SILLA PARA VISITAS","N/A","N/A ","N/A","NEGRO","Bueno en Uso"]
["01180","SALA DE REUNION","3ro","SILLA PARA VISITAS","N/A","N/A ","N/A","NEGRO","Bueno en Uso"]
["01181","SALA DE REUNION","3ro","SILLA PARA VISITAS","N/A","N/A ","N/A","NEGRO","Bueno en Uso"]
["01182","SALA DE REUNION","3ro","SILLA PARA VISITAS","N/A","N/A ","N/A","NEGRO","Bueno en Uso"]
["01183","SALA DE REUNION","3ro","SILLA PARA VISITAS","N/A","N/A ","N/A","NEGRO","Bueno en Uso"]
["01184","SALA DE REUNION","3ro","SILLA PARA VISITAS","N/A","N/A ","N/A","NEGRO","Bueno en Uso"]
["01185","SALA DE REUNION","3ro","SILLA PARA VISITAS","N/A","N/A ","N/A","NEGRO","Bueno en Uso"]
["01186","SALA DE REUNION","3ro","SILLA PARA VISITAS","N/A","N/A ","N/A","NEGRO","Bueno en Uso"]
["01187","SALA DE REUNION","3ro","SILLA PARA VISITAS","N/A","N/A ","N/A","NEGRO","Bueno en Uso"]
["03589","SALA DE REUNION","3ro","SILLA PARA VISITAS","N/A","N/A ","N/A","NEGRO","Bueno en Uso"]
["03590","SALA DE REUNION","3ro","SILLA PARA VISITAS","N/A","N/A ","N/A","NEGRO","Bueno en Uso"]
["03591","SALA DE REUNION","3ro","SILLA PARA VISITAS","N/A","N/A ","N/A","NEGRO","Bueno en Uso"]
["03592","SALA DE REUNION","3ro","SILLA PARA VISITAS","N/A","N/A ","N/A","NEGRO","Bueno en Uso"]
["03593","SALA DE REUNION","3ro","SILLA PARA VISITAS","N/A","N/A ","N/A","NEGRO","Bueno en Uso"]
["03594","SALA DE REUNION","3ro","SILLA PARA VISITAS","N/A","N/A ","N/A","NEGRO","Bueno en Uso"]
["03595","SALA DE REUNION","3ro","SILLA PARA VISITAS","N/A","N/A ","N/A","NEGRO","Bueno en Uso"]
["03596","SALA DE REUNION","3ro","SILLA PARA VISITAS","N/A","N/A ","N/A","NEGRO","Bueno en Uso"]
["03597","SALA DE REUNION","3ro","SILLA PARA VISITAS","N/A","N/A ","N/A","NEGRO","Bueno en Uso"]
["03598","SALA DE REUNION","3ro","SILLA PARA VISITAS","N/A","N/A ","N/A","NEGRO","Bueno en Uso"]
["03599","SALA DE REUNION","3ro","SOFA","N/A","N/A ","N/A","GRIS OSCURO","Bueno en Uso"]
["03600","SALA DE REUNION","3ro","MESA RECTANGULAR","N/A","N/A ","N/A","TOPE DE MELAMINA","Bueno en Uso"]
[]
["01164","INFORMACION (AL LADO DE UCI-12)","3ro","CARINTER","N/A","N/A","N/A","GRIS","Bueno en Uso"]
["01165","INFORMACION (AL LADO DE UCI-12)","3ro","SILLA SECRETARIAL","N/A","N/A","N/A","NEGRO","Bueno en Uso"]
["01166","INFORMACION (AL LADO DE UCI-12)","3ro","SILLA SECRETARIAL","N/A","N/A","N/A","NEGRO","Bueno en Uso"]
["01167","INFORMACION (AL LADO DE UCI-12)","3ro","UPS","ABLEREX","N/A","N/A","NEGRO","Bueno en Uso"]
["01168","INFORMACION (AL LADO DE UCI-12)","3ro","CPU","DELL","OPTIPLEX 7020","N/A","NEGRO","Bueno en Uso"]
["01169","INFORMACION (AL LADO DE UCI-12)","3ro","MONITOR","HP","PROPISPLAYP17A","13Q90116SZ","NEGRO","Bueno en Uso"]
[]
["01988","PASILLO DE CARDIOLOGIA ","3ro","CUADRO DE DECORACION","N/A","N/A","N/A","N/A","Bueno en Uso"]
["01989","PASILLO DE CARDIOLOGIA ","3ro","CUADRO DE DECORACION","N/A","N/A","N/A","N/A","Bueno en Uso"]
["01990","PASILLO DE CARDIOLOGIA ","3ro","CUADRO DE DECORACION","N/A","N/A","N/A","N/A","Bueno en Uso"]
["01991","PASILLO DE CARDIOLOGIA ","3ro","CUADRO DE DECORACION","N/A","N/A","N/A","N/A","Bueno en Uso"]
["01992","PASILLO DE CARDIOLOGIA (ENFERMERIA)","3ro","SILLA SECRETARIAL ","N/A","N/A","N/A","NEGRO","Bueno en Uso"]
["01993","PASILLO DE CARDIOLOGIA (ENFERMERIA)","3ro","SILLA SECRETARIAL ","N/A","N/A","N/A","NEGRO","Bueno en Uso"]
["01994","PASILLO DE CARDIOLOGIA (ENFERMERIA)","3ro","SILLA SECRETARIAL","N/A","N/A","N/A","NEGRO","Bueno en Uso"]
[]
["01170","CORONARIO (PASILLO)","3ro","CARRO PARA ROPA SUCIA","METRO","N/A","N/A","AZUL","Bueno en Uso"]
["01171","CORONARIO (PASILLO)","3ro","SILLA DE RUEDAS","PROBESICS","N/A","N/A","NEGRO","Bueno en Uso"]
["01172","CORONARIO (PASILLO)","3ro","SILLA DE RUEDAS","PROBESICS","N/A","N/A","NEGRO","Bueno en Uso"]
["01173","CORONARIO (PASILLO)","3ro","CAMAROTE","N/A","N/A","N/A","BLANCO","Bueno en Uso"]
["01174","CORONARIO (PASILLO)","3ro","CAMAROTE","N/A","N/A","N/A","BLANCO","Bueno en Uso"]
["01175","CORONARIO (PASILLO)","3ro","LOCKER","JBK SP","N/A","N/A","CREMA","Bueno en Uso"]
["01176","CORONARIO (PASILLO)","3ro","LOCKER","JBK SP","N/A","N/A","CREMA","Bueno en Uso"]
["01177","CORONARIO (PASILLO)","3ro","AIRE ACANDICIONADO","LENNOX","N/A","N/A","BLANCO","Bueno en Uso"]
[]
["01155","INFORMACION (FRENTE AL UCI-01)","3ro","SILLA SECRETARIAL","N/A","N/A","N/A","NEGRO","Bueno en Uso"]
["01156","INFORMACION (FRENTE AL UCI-01)","3ro","UPS","FORZA","N/A","N/A","NEGRO","Bueno en Uso"]
["01157","INFORMACION (FRENTE AL UCI-01)","3ro","CPU","DELL","OPTIPLEX 7020","N/A","NEGRO","Bueno en Uso"]
["01158","INFORMACION (FRENTE AL UCI-01)","3ro","MONITOR","HP","PROPISPLAY P17A","3CQ9120J90","NEGRO","Bueno en Uso"]
["01159","INFORMACION (FRENTE AL UCI-01)","3ro","ZAFACON","N/A","N/A","N/A","NIQUELADO","Bueno en Uso"]
["01160","INFORMACION (FRENTE AL UCI-01)","3ro","CENTRAL DE MONITOR","EDAN","UBS15701","V0C204760566","GRIS CON BLANCO","Bueno en Uso"]
["01161","INFORMACION (FRENTE AL UCI-01)","3ro","CARRO DE PARO","METRO","SXR","WSK200602016","CREMA","Bueno en Uso"]
["01162","INFORMACION (FRENTE AL UCI-01)","3ro","SONOGRAFO","GENERAL ELECTIC","VERSANA PREMIER","6139719WX0","BLANCO CON GRIS","Bueno en Uso"]
["01163","INFORMACION (FRENTE AL UCI-01)","3ro","IMPRESORA ","SONY","N/A","N/A","BLANCO   ","Bueno en Uso"]
[]
["01940","UCI CORONARIO (INFORMACION)","3ro","SILLA SECRETARIAL","N/A","N/A","N/A","NEGRO","Bueno en Uso"]
["01941","UCI CORONARIO (INFORMACION)","3ro","SILLA SECRETARIAL","N/A","N/A","N/A","NEGRO","Bueno en Uso"]
["01942","UCI CORONARIO (INFORMACION)","3ro","SILLA SECRETARIAL","N/A","N/A","N/A","NEGRO","Bueno en Uso"]
["01943","UCI CORONARIO (INFORMACION)","3ro","CAUNTER","N/A","N/A","N/A","GRIS","Bueno en Uso"]
["01944","UCI CORONARIO (INFORMACION)","3ro","UPS","FORZA","N/A","N/A","NEGRO","Bueno en Uso"]
["01945","UCI CORONARIO (INFORMACION)","3ro","CPU","DELL","OPTIPLEX7020","N/A","NEGRO","Bueno en Uso"]
["01946","UCI CORONARIO (INFORMACION)","3ro","MONITOR","HP","PRODISPLAY P17A","3CQ90116NC","NEGRO","Bueno en Uso"]
["01947","UCI CORONARIO (INFORMACION)","3ro","IMPRESORA","HP","N/A","CL8215H0B5","NEGRO CON AZUL","Bueno en Uso"]
["01948","UCI CORONARIO (INFORMACION)","3ro","ZAFACON","N/A","N/A","N/A","ROJO","Bueno en Uso"]
["01949","UCI CORONARIO (INFORMACION) FRENTE A UCI-09","3ro","ESFIGMOMANOMATRO PORTATIL ","EDAN","M3","M18804720005-01","GRIS","Bueno en Uso"]
["01950","UCI CORONARIO (INFORMACION) FRENTE A UCI-09","3ro","ASPIRADORA","GOMCO",3040,"N/A","NARANJA","Bueno en Uso"]
["01951","UCI CORONARIO (INFORMACION) FRENTE A UCI-09","3ro","TELEVISION","TECNOMASTER","N/A","N/A","NEGRO","Bueno en Uso"]
["01952","UCI CORONARIO (INFORMACION) FRENTE A UCI-09","3ro","NEGATOSCOPIO","KANEX","N/A","N/A","BLANCO","Bueno en Uso"]
["01953","UCI CORONARIO (INFORMACION) FRENTE A UCI-01","3ro","CAUNTER","N/A","N/A","N/A","GRIS","Bueno en Uso"]
["01954","UCI CORONARIO (INFORMACION) FRENTE A UCI-01","3ro","SILLA SECRETARIAL","N/A","N/A","N/A","NEGRO","Bueno en Uso"]
[]
["03600","INFORMACION","3ro","SILLA SECRETARIAL","N/A","N/A","N/A","NEGRO","Bueno en Uso"]
["03601","INFORMACION","3ro","SOFA","N/A","N/A","N/A","CREMA","Bueno en Uso"]
[]
["03602","HABITACION SUR 304","3ro","SOFA","N/A","N/A","N/A","CREMA","Bueno en Uso"]
["03603","HABITACION SUR 304","3ro","CAMA PARA PACIENTE","N/A","N/A","N/A","BLANCO","Bueno en Uso"]
["03604","HABITACION SUR 304","3ro","CAMA PARA PACIENTE","N/A","N/A","N/A","MELAMINA","Bueno en Uso"]
["03605","HABITACION SUR 304","3ro","CAMA PARA PACIENTE","N/A","N/A","N/A","CREMA","Bueno en Uso"]
["03606","HABITACION SUR 304","3ro","CAMA PARA PACIENTE","N/A","N/A","N/A","CREMA","Bueno en Uso"]
["03607","HABITACION SUR 304","3ro","SOFA","N/A","N/A","N/A","CREMA","Bueno en Uso"]
["03608","HABITACION SUR 304","3ro","MESA PARA COMER","N/A","N/A","N/A","MELAMINA","Bueno en Uso"]
["03609","HABITACION SUR 304","3ro","CAMA PARA PACIENTE","N/A","N/A","N/A","BLANCO","Bueno en Uso"]
[]
["03579","ESTAR DE ENFERMERIA","3ro","MONITOR","DELL","N/A",26197097979,"NEGRO","Bueno en Uso"]
["03580","ESTAR DE ENFERMERIA","3ro","LAMPARA SATELITAL","DRAGER","POLARISO","24WDC3957WA","BLANCO","Bueno en Uso"]
["03581","ESTAR DE ENFERMERIA","3ro","CAMILLA DE TRANSPORTE","N/A","RXIPX2","N/A","AZUL","Bueno en Uso"]
["03582","ESTAR DE ENFERMERIA","3ro","MONITOR DE SISTEMA","COVIDEN","GF70121","WT55897","CREMA","Bueno en Uso"]
["03583","ESTAR DE ENFERMERIA","3ro","PIES DE SUERO","N/A","N/A","JAW184PR","ACERO INOX.","Bueno en Uso"]
["03584","ESTAR DE ENFERMERIA","3ro","CAMA PARA PACIENTE","N/A","N/A","N/A","NEGRO","Bueno en Uso"]
["03585","ESTAR DE ENFERMERIA","3ro","CAMA PARA PACIENTE","N/A","N/A","N/A","NEGRO","Bueno en Uso"]
["03586","ESTAR DE ENFERMERIA","3ro","CASILLERO DE 4 GABETA","IBK SP","N/A","N/A","CREMA","Bueno en Uso"]
["03587","ESTAR DE ENFERMERIA","3ro","CASILLERO DE 4 GABETA","IBK SP","N/A","N/A","CREMA","Bueno en Uso"]
["03588","ESTAR DE ENFERMERIA","3ro","CAMAROTE","N/A","N/A","N/A","BLANCO","Bueno en Uso"]
["03589","ESTAR DE ENFERMERIA","3ro","MESITA DE NOCHE","N/A","N/A","N/A","BLANCO","Bueno en Uso"]
[]
["03564","ESTAR MEDICO","3ro","REVELADORA DE IMAGEN","CAMESTRIAM","DRYVIEW5950","CA5809-1470","NEGRO Y GRIS","Bueno en Uso"]
["03565","ESTAR MEDICO","3ro","CPU","DELL","APTIPLEX",28846188038,"NEGRO","Bueno en Uso"]
["03566","ESTAR MEDICO","3ro","MONITOR","HP","N/A","3CCQU116SW","NEGRO","Bueno en Uso"]
["03567","ESTAR MEDICO","3ro","UPS","LARZA","NT-5004O",1910115068,"NEGRO","Bueno en Uso"]
["03568","ESTAR MEDICO","3ro","PORTATIL DE RAYOS X","CARESTREAM","MOTION","EMTN21492","BLANCO Y NARANJA","Bueno en Uso"]
["03569","ESTAR MEDICO","3ro","SILLA SECRETARIAL","N/A","N/A","N/A","NEGRO","Bueno en Uso"]
["03570","ESTAR MEDICO","3ro","SILLA SECRETARIAL","N/A","N/A","N/A","NEGRO","Bueno en Uso"]
["03571","ESTAR MEDICO","3ro","ZAFACON","N/A","N/A","N/A","ACERO INOX.","Bueno en Uso"]
["03572","ESTAR MEDICO","3ro","ELECTRO CARDIOGRAFO","EDAN","SE-1200 EXPRE","M20314901013","BLANCO Y NARANJA","Bueno en Uso"]
["03573","ESTAR MEDICO","3ro","CUADRO","N/A","N/A","N/A","N/A","Bueno en Uso"]
["03574","ESTAR MEDICO","3ro","CABEZAL ESEFALOGRAFO","NEUROVITUAR","BSWY-VACION","BWIII2021-3582","BLANCO Y GRIS","Bueno en Uso"]
["03575","ESTAR MEDICO","3ro","LAMPARA DE ILUMINACION","NEUROVITUAR","UWIII FLAH ESTIMUADOR","BWI2021-5474","BLANCO","Bueno en Uso"]
["03576","ESTAR MEDICO","3ro","IMPRESORA","HP","HP LACER 107W","CNB2NCHHNS","BLANCO Y GRIS","Bueno en Uso"]
["03577","ESTAR MEDICO","3ro","MESA PARA COMPUTADORA","N/A","N/A","N/A","NEGRO","Bueno en Uso"]
["03578","ESTAR MEDICO","3ro","COMPUTADORA","DELL","HOTIPLE 7080",36795980487,"NEGRO","Bueno en Uso"]
[]
["03488","SALA DE REUNION","3ro","SILLA SECRETARIAL","N/A","N/A","N/A","NEGRO","Bueno en Uso"]
["03489","SALA DE REUNION","3ro","SILLA SECRETARIAL","N/A","N/A","N/A","NEGRO","Bueno en Uso"]
["03490","SALA DE REUNION","3ro","SILLA SECRETARIAL","N/A","N/A","N/A","NEGRO","Bueno en Uso"]
["03491","SALA DE REUNION","3ro","SILLA SECRETARIAL","N/A","N/A","N/A","NEGRO","Bueno en Uso"]
["03493","SALA DE REUNION","3ro","MESA CON TOPE DE MELAMINA","N/A","N/A","N/A","MELAMINA","Bueno en Uso"]
["03494","SALA DE REUNION","3ro","MEDICAMENTO","N/A","N/A","N/A","MELAMINA","Bueno en Uso"]
["03495","SALA DE REUNION","3ro","ANAQUEL","METRO","MAXQ","N/A","GRIS","Bueno en Uso"]
["03496","SALA DE REUNION","3ro","FRISER (CONGELADOR) SANGRE","INDREL","SCIENTIFIC","N/A","GRIS","Bueno en Uso"]
["03497","SALA DE REUNION","3ro","TELEVISION (TV)","TECNOMASTER","43KUAWB","43KRWBCNM1708AT102001527","NEGRO ","Bueno en Uso"]
["03498","SALA DE REUNION","3ro","LARINGOSCOPIO","N/A","N/A",3478200223,"METALICO","Bueno en Uso"]
["03499","SALA DE REUNION","3ro","LARINGOSCOPIO","N/A","N/A",3478200223,"METALICO","Bueno en Uso"]
["03500","SALA DE REUNION","3ro","LARINGOSCOPIO","N/A","N/A",3478200223,"METALICO","Bueno en Uso"]
["03501","SALA DE REUNION","3ro","MESA EN ACERO INOXIDABLE VCI-02 MEDICAR PASANTE","N/A","N/A","N/A","ACERO INOX.","Bueno en Uso"]
["03502","SALA DE REUNION","3ro","MONITOR DE SIGNOS VITALES","EDAM","IM80","360068-M2 1301480012","GRIS","Bueno en Uso"]
["03503","SALA DE REUNION","3ro","CAMA","HILL-ROM","N/A","HRP004202148","BLANCO","Bueno en Uso"]
["03504","SALA DE REUNION","3ro","VENTILADOR","NEWPORT","HT70","NHI8HT72032180087","AZUL Y BLANCO","Bueno en Uso"]
["03505","SALA DE REUNION","3ro","ESCARINATA","N/A","N/A",200227710231,"NEGRO CON ACERO INOX.","Bueno en Uso"]
["03506","SALA DE REUNION","3ro","ASPIRADORA (CALENTADOR)","COVIDEN","WARM TOU","SP20090195","AZUL ","Bueno en Uso"]
[]
["03457","UCI-04","3ro","VACUOMETRO","VACUTRON","22-131111","2021C119","GRIS","Bueno en Uso"]
["03459","UCI-04","3ro","CALENTADOR DE PACIENTE","COVIDEN","WARM TWCH","SP200090214","AZUL","Bueno en Uso"]
["03460","UCI-04","3ro","BOMBA DE INFUSION","AVAND","YP200",70210134408,"GRIS","Bueno en Uso"]
["03461","UCI-04","3ro","BOMBA DE INFUSION","AVAND","YP200",70210234944,"GRIS","Bueno en Uso"]
["03462","UCI-04","3ro","BOMBA DE INFUSION","AVAND","YP200",70210234914,"GRIS","Bueno en Uso"]
["03463","UCI-04","3ro","PIES DE SUERO","N/A","N/A","N/A","ACERO INOX.","Bueno en Uso"]
["03464","UCI-04","3ro","ESCALINATA","N/A","N/A","19081614230-629","ACERO INOX.","Bueno en Uso"]
["03465","UCI-04","3ro","ZAFACON","N/A","N/A","N/A","ACERO INOX.","Bueno en Uso"]
[]
["03466","ESTAR MEDICO","3ro","CARRO DE PARO","METRO","LIFELINE","LE200525059","AZUL Y GRIS","Bueno en Uso"]
["03467","ESTAR MEDICO","3ro","DESFIBILADOR","ADVANCED","D100","S-1205680087","GRIS","Bueno en Uso"]
["03468","ESTAR MEDICO","3ro","ELECTRO CARDIOGRAFO","EDAN","Y15","N/A","GRIS","Bueno en Uso"]
["03469","ESTAR MEDICO","3ro","CARRO DE PARO","METRO","FLEXLINE","MFL200610-040","N/A","Bueno en Uso"]
["03470","ESTAR MEDICO","3ro","LAMPARA PORTATIL","N/A","N/A",1106572022,"CREMA","Bueno en Uso"]
["03471","ESTAR MEDICO","3ro","FIGMOMANOMETRO","EDAN","M3","360124-M18804727","GRIS","Bueno en Uso"]
["03472","ESTAR MEDICO","3ro","ASPIRADOR PORTATIL","GOMCO","N/A","N/A","MAMEY","Bueno en Uso"]
["03473","ESTAR MEDICO","3ro","MONITOR DE SISTEMA DE SENSOR","COVIDEN","N/A","BT55899","N/A","Bueno en Uso"]
[]
["03474","ESTAR MEDICO","3ro","SAFACON","N/A","N/A","N/A","GRIS","Bueno en Uso"]
["03475","ESTAR MEDICO","3ro","SAFACON","N/A","N/A","N/A","GRIS","Bueno en Uso"]
["03476","ESTAR MEDICO","3ro","SAFACON","N/A","N/A","N/A","ACERO INOX.","Bueno en Uso"]
[]
[null,"ESCLUSA MADICA","3ro","ESTANTERIA","N/A","N/A"]
["03477","ESCLUSA MADICA","3ro","CARRO DE TRANSPORTE DE ROPA","N/A","N/A","N/A","GRIS CON CREMA","Bueno en Uso"]
["03478","ESCLUSA MADICA","3ro","CARRO DE TRANSPORTE DE ROPA","N/A","N/A","N/A","ACERO INOX.","Bueno en Uso"]
[]
[]
["03479","SALA DE REUNION ","3ro","SILLA SECRETARIAL","N/A","N/A","N/A","NEGRO","Bueno en Uso"]
["03480","SALA DE REUNION ","3ro","SILLA SECRETARIAL","N/A","N/A","N/A","NEGRO","Bueno en Uso"]
["03481","SALA DE REUNION ","3ro","SILLA SECRETARIAL","N/A","N/A","N/A","NEGRO","Bueno en Uso"]
["03482","SALA DE REUNION ","3ro","SILLA SECRETARIAL","N/A","N/A","N/A","NEGRO","Bueno en Uso"]
["03483","SALA DE REUNION ","3ro","SILLA SECRETARIAL","N/A","N/A","N/A","NEGRO","Bueno en Uso"]
["03484","SALA DE REUNION ","3ro","SILLA SECRETARIAL","N/A","N/A","N/A","NEGRO","Bueno en Uso"]
["03485","SALA DE REUNION ","3ro","MESA REDONDA ","N/A","N/A","N/A","BLANCO","Bueno en Uso"]
["03486","SALA DE REUNION ","3ro","CUADRO","N/A","N/A","N/A","N/A","Bueno en Uso"]
[]
["03443","UCI CORONARIO INTERMEDIO (HAB.05)","3ro","MONITOR DE SIGNO VITALES","EDAN","M80","360068M2149001","GRIS","Bueno en Uso"]
["03444","UCI CORONARIO INTERMEDIO (HAB.05)","3ro","MESA PARA MEDICAR","N/A","N/A","N/A","ACERO INOX.","Bueno en Uso"]
["03445","UCI CORONARIO INTERMEDIO (HAB.05)","3ro","CAMA PARA PACIENTE 3 POSICIONES ","HILL-ROMA","N/A","HPP004191306","BLANCO","Bueno en Uso"]
["03446","UCI CORONARIO INTERMEDIO (HAB.05)","3ro","PIE DE SUERO","N/A","N/A","JAW299PR","ACERO INOX.","Bueno en Uso"]
["03447","UCI CORONARIO INTERMEDIO (HAB.05)","3ro","BOMBA DE INFUSION ","N/A","YP200","N/A","BLANCO","Bueno en Uso"]
["03448","UCI CORONARIO INTERMEDIO (HAB.05)","3ro","BOMBA DE INFUSION ","N/A","YP200","N/A","BLANCO","Bueno en Uso"]
["03449","UCI CORONARIO INTERMEDIO (HAB.05)","3ro","BOMBA DE INFUSION ","N/A","YP200","N/A","BLANCO","Bueno en Uso"]
["03450","UCI CORONARIO INTERMEDIO (HAB.05)","3ro","PIE DE SUERO","N/A","N/A","N/A","ACERO INOX.","Bueno en Uso"]
["03451","UCI CORONARIO INTERMEDIO (HAB.05)","3ro","ESCALINATA UN PELDAÑO","N/A","N/A","N/A","ACERO INOX.","Bueno en Uso"]
["03452","UCI CORONARIO INTERMEDIO (HAB.05)","3ro","ASPIRADOR ","N/A","COBIDIEN","SP200090239","AZUL","Bueno en Uso"]
["03453","UCI CORONARIO INTERMEDIO (HAB.05)","3ro","ZAFACON ","N/A","N/A","N/A","ACERO INOX.","Bueno en Uso"]
[]
["03454","UCI  INTERMEDIO (HAB. 04)","3ro","MESA PARAMEDICAR","N/A","N/A","N/A","ACERO INOX.","Bueno en Uso"]
["03455","UCI  INTERMEDIO (HAB. 04)","3ro","MONITOR DE SIGNO VITALES","EDAN","IM80","360068-M21301480010","GRIS","Bueno en Uso"]
["03456","UCI  INTERMEDIO (HAB. 04)","3ro","CAMA PARA PACIENTE","HILL-ROM","N/A","HRP004305","N/A","Bueno en Uso"]
["03458","UCI  INTERMEDIO (HAB. 04)","3ro","VACUOMETRO","N/A","N/A","N/A","N/A","Bueno en Uso"]
[]
["01929","UCI CORANARIO (HAB.06)","3ro","MESA PARA MEIDCAR","N/A","N/A","N/A","ACERO INOX.","Bueno en Uso"]
["01930","UCI CORANARIO (HAB.06)","3ro","ZAFACON ","N/A","N/A","N/A","NIQUELADO","Bueno en Uso"]
["01931","UCI CORANARIO (HAB.06)","3ro","ESCALINATA UN PELDAÑO","N/A","N/A","N/A","NEGRO","Bueno en Uso"]
["01932","UCI CORANARIO (HAB.06)","3ro","CAMA HOSPITALARIA","HILL-ROM","N/A","HRP004202252","BLANCO","Bueno en Uso"]
["01933","UCI CORANARIO (HAB.06)","3ro","MONITOR","EDAN","IM80",1480025,"CREMA","Bueno en Uso"]
["01934","UCI CORANARIO (HAB.06)","3ro","VACUOMETRO","N/A","N/A","N/A","CREMA","Bueno en Uso"]
["01935","UCI CORANARIO (HAB.06)","3ro","ASPIRADOR","COVIDEN","WARMTORICH","SP17080369","AZUL","Bueno en Uso"]
["01936","UCI CORANARIO (HAB.06)","3ro","BOMBA DE INFUSION ","ADVANCED","IP-200",70210234372,"CREMA","Bueno en Uso"]
["01937","UCI CORANARIO (HAB.06)","3ro","BOMBA DE INFUSION ","ADVANCED","IP-200",70011333319,"CREMA","Bueno en Uso"]
["01938","UCI CORANARIO (HAB.06)","3ro","BOMBA DE INFUSION ","ADVANCED","IP-200",70210234953,"CREMA","Bueno en Uso"]
["01939","UCI CORANARIO (HAB.06)","3ro","VENTILADOR","NEWPORT","HT70",700817004,"AZUL","Bueno en Uso"]
[]
["01918","UCI CORANARIO (HAB.07)","3ro","CAMA HOSPITALARIA"]
["01919","UCI CORANARIO (HAB.07)","3ro","MESA PARA MEDICAR","HILL-ROM","N/A","HRP004202127","BLANCO","Bueno en Uso"]
["01920","UCI CORANARIO (HAB.07)","3ro","BOMBA DE INFUSION","N/A","N/A","N/A","ACERO INOX.","Bueno en Uso"]
["01921","UCI CORANARIO (HAB.07)","3ro","BOMBA DE INFUSION","ADVANCED","IP-200",7021013445,"CREMA","Bueno en Uso"]
["01922","UCI CORANARIO (HAB.07)","3ro","BOMBA DE INFUSION","ADVANCED","IP-200",70210134891,"CREMA","Bueno en Uso"]
["01923","UCI CORANARIO (HAB.07)","3ro","MONITOR ","ADVANCED","IP-200",70210234891,"CREMA","Bueno en Uso"]
["01924","UCI CORANARIO (HAB.07)","3ro","ZAFACON","EDAN","IM80",1480008,"CREMA","Bueno en Uso"]
["01925","UCI CORANARIO (HAB.07)","3ro","ESCALINATA UN PELDAÑO","N/A","N/A","N/A","NIQUELADO","Bueno en Uso"]
["01926","UCI CORANARIO (HAB.07)","3ro","VACUOMETRO","N/A","N/A","N/A","CREMA","Bueno en Uso"]
["01927","UCI CORANARIO (HAB.07)","3ro","ASPIRADOR","COVIDEN","WARMTORICH","SP20121033","AZUL","Bueno en Uso"]
["01928","UCI CORANARIO (HAB.07)","3ro","VENTILADOR","DRAGER","SAVINA 300","ASPB-0253","CREMA","Bueno en Uso"]
[]
["01907","UCI CORANARIO (HAB.08)","3ro","MESA PARA MEDICAR","N/A","N/A","N/A","ACERO INOX.","Bueno en Uso"]
["01908","UCI CORANARIO (HAB.08)","3ro","ZAFACON","N/A","N/A","N/A","NIQUELADO","Bueno en Uso"]
["01909","UCI CORANARIO (HAB.08)","3ro","ESCALINATA UN PELDAÑO",null,null,"HRP0041913007","NEGRO","Bueno en Uso"]
["01910","UCI CORANARIO (HAB.08)","3ro","CAMA HOSPITALARIA","HILL-ROM",null,null,"BLANCO HUESO","Bueno en Uso"]
["01911","UCI CORANARIO (HAB.08)","3ro","ASPIRADOR","COVIDEN","WARMTOUCH","SP20090236","AZUL","Bueno en Uso"]
["01912","UCI CORANARIO (HAB.08)","3ro","VENTILADOR","NEWPORT","HT70",720321879,"AZUL","Bueno en Uso"]
["01913","UCI CORANARIO (HAB.08)","3ro","MONITOR","EDAN","IM80",1380004,"CREMA","Bueno en Uso"]
["01914","UCI CORANARIO (HAB.08)","3ro","VACUOMETRO",{"$nulls":3},"CREMA","Bueno en Uso"]
["01915","UCI CORANARIO (HAB.08)","3ro","BOMBA DE INFUCION","ADVANCED","IP-200",7021034390,"CREMA","Bueno en Uso"]
["01916","UCI CORANARIO (HAB.08)","3ro","BOMBA DE INFUCION","ADVANCED","IP-201",70210134404,"CREMA","Bueno en Uso"]
["01917","UCI CORANARIO (HAB.08)","3ro","BOMBA DE INFUCION","ADVANCED","IP-202",70210234934,"CREMA","Bueno en Uso"]
[]
["01895","UCI CORANARIO (HAB.09)","3ro","MESA PARA MEDICAR",{"$nulls":3},"ACERO INOX.","Bueno en Uso"]
["01896","UCI CORANARIO (HAB.09)","3ro","VENTILADOR","NEWPORT","HT70",720321883,"AZUL","Bueno en Uso"]
["01897","UCI CORANARIO (HAB.09)","3ro","MONITOR","EDAN","IM80",1480028,"CREMA","Bueno en Uso"]
["01898","UCI CORANARIO (HAB.09)","3ro","CAMA HOSPITALARIA","HILL-ROM","N/A","HRP004202180","BLANCO HUESO","Bueno en Uso"]
["01899","UCI CORANARIO (HAB.09)","3ro","ESCALINATA UN PELDAÑO","N/A","N/A","N/A","NEGRO","Bueno en Uso"]
["01900","UCI CORANARIO (HAB.09)","3ro","PIE DE SUERO","N/A","N/A","N/A","ACERO INOX.","Bueno en Uso"]
["01901","UCI CORANARIO (HAB.09)","3ro","ZAFACON","N/A","N/A","N/A","NIQUELADO","Bueno en Uso"]
["01902","UCI CORANARIO (HAB.09)","3ro","ASPIRADOR","COVIDEN","WARMTOUCH","SP20121039","AZUL","Bueno en Uso"]
["01903","UCI CORANARIO (HAB.09)","3ro","BOMBA DE INFUCION","ADVANCED","IP-200",70210134388,"CREMA","Bueno en Uso"]
["01904","UCI CORANARIO (HAB.09)","3ro","BOMBA DE INFUCION","ADVANCED","IP-200",70210134448,"CREMA","Bueno en Uso"]
["01905","UCI CORANARIO (HAB.09)","3ro","BOMBA DE INFUCION","ADVANCED","IP-200",90210234938,"CREMA","Bueno en Uso"]
["01906","UCI CORANARIO (HAB.09)","3ro","VACUOMETRO","N/A","N/A","N/A","CREMA","Bueno en Uso"]
[]
["01883","UCI CORANARIO (HAB.10)","3ro","ZAFACON","N/A","N/A","N/A","NIQUELADO","Bueno en Uso"]
["01884","UCI CORANARIO (HAB.10)","3ro","MESA PARA MEDICAR","N/A","N/A","N/A","ACERO INOX.","Bueno en Uso"]
["01885","UCI CORANARIO (HAB.10)","3ro","PIE DE SUERO","N/A","N/A","N/A","ACERO INOX.","Bueno en Uso"]
["01886","UCI CORANARIO (HAB.10)","3ro","MONITOR","EDAN","IM80",1480015,"CREMA","Bueno en Uso"]
["01887","UCI CORANARIO (HAB.10)","3ro","BOMBA DE INFUCION","ADVANCED","IP-200",70210134385,"CREMA","Bueno en Uso"]
["01888","UCI CORANARIO (HAB.10)","3ro","BOMBA DE INFUCION","ADVANCED","IP-200",702013492,"CREMA","Bueno en Uso"]
["01889","UCI CORANARIO (HAB.10)","3ro","BOMBA DE INFUCION","ADVANCED","IP-200",70210234900,"CREMA","Bueno en Uso"]
["01890","UCI CORANARIO (HAB.10)","3ro","CAMA HOSPITALARIA","HILL-ROM","N/A","HRP004202170","BLANCO HUESO","Bueno en Uso"]
["01891","UCI CORANARIO (HAB.10)","3ro","VACUOMETRO","N/A","N/A","N/A","CREMA","Bueno en Uso"]
["01892","UCI CORANARIO (HAB.10)","3ro","ASPIRADOR","COVIDEN","WARMTOUCH","SP20090222","AZUL","Bueno en Uso"]
["01893","UCI CORANARIO (HAB.10)","3ro","ESCALINATA UN PELDAÑO","N/A","N/A","N/A","NEGRO","Bueno en Uso"]
["01894","UCI CORANARIO (HAB.10)","3ro","VENTILADOR","DRAGER","SAVINA300","ASPB-0239","AZUL","Bueno en Uso"]
[]
["01871","UCI CORANARIO (HAB.11)","3ro","ASPIRADOR","COVIDEN","WARMTOUCH","SP20090211","AZUL","Bueno en Uso"]
["01872","UCI CORANARIO (HAB.11)","3ro","MESA PARA MEDICAR","N/A","N/A","N/A","ACERO INOX.","Bueno en Uso"]
["01873","UCI CORANARIO (HAB.11)","3ro","ESCALINATA UN PELDAÑO","N/A","N/A","N/A","NEGRO","Bueno en Uso"]
["01874","UCI CORANARIO (HAB.11)","3ro","CAMA HOSPITALARIA","HILL-ROM","N/A","HRP004141328","BLANCO HUESO","Bueno en Uso"]
["01875","UCI CORANARIO (HAB.11)","3ro","PIE DE SUERO","N/A","N/A","N/A","ACERO INOX.","Bueno en Uso"]
["01876","UCI CORANARIO (HAB.11)","3ro","VENTILADOR","DRAGER","SAVINA300","ASPB-054","CREMA","Bueno en Uso"]
["01877","UCI CORANARIO (HAB.11)","3ro","MONITOR","EDAN","IM80",1480002,"CREMA","Bueno en Uso"]
["01878","UCI CORANARIO (HAB.11)","3ro","VACUOMETRO","N/A","N/A","N/A","CREMA","Bueno en Uso"]
["01879","UCI CORANARIO (HAB.11)","3ro","ZAFACON","N/A","N/A","N/A","NIQUELADO","Bueno en Uso"]
["01880","UCI CORANARIO (HAB.11)","3ro","BOMBA DE INFUCION","ADVANCED","IP-200",70210134379,"CREMA","Bueno en Uso"]
["01881","UCI CORANARIO (HAB.11)","3ro","BOMBA DE INFUCION","ADVANCED","IP-200",70210134402,"CREMA","Bueno en Uso"]
["01882","UCI CORANARIO (HAB.11)","3ro","BOMBA DE INFUCION","ADVANCED","IP-200",70210234931,"CREMA","Bueno en Uso"]
[]
["01860","UCI CORANARIO (HAB.12)","3ro","CAMA HOSPITALARIA","HILL-ROM",null,"HRP004202253","BLANCO HUESO","Bueno en Uso"]
["01861","UCI CORANARIO (HAB.12)","3ro","VENTILADOR","DRAGER","SAVINA300","ASPB-0258","CREMA","Bueno en Uso"]
["01862","UCI CORANARIO (HAB.12)","3ro","PIE DE SUERO","N/A","N/A","N/A","ACERO INOX.","Bueno en Uso"]
["01863","UCI CORANARIO (HAB.12)","3ro","MONITOR ","EDAN","IM80",1480021,"CREMA","Bueno en Uso"]
["01864","UCI CORANARIO (HAB.12)","3ro","VACUOMETRO","N/A","N/A","N/A","CREMA","Bueno en Uso"]
["01865","UCI CORANARIO (HAB.12)","3ro","ASPIRADOR","COVIDEN","WARMTOUCH","SP20090221","AZUL","Bueno en Uso"]
["01866","UCI CORANARIO (HAB.12)","3ro","ESCALINATA UN PELDAÑO","N/A","N/A","N/A","NEGRO","Bueno en Uso"]
["01867","UCI CORANARIO (HAB.12)","3ro","BOMBA DE INFUCION","ADVANCED","IP-200",70210232158,"CREMA","Bueno en Uso"]
["01868","UCI CORANARIO (HAB.12)","3ro","BOMBA DE INFUCION","ADVANCED","IP-200",70210134399,"CREMA","Bueno en Uso"]
["01869","UCI CORANARIO (HAB.12)","3ro","BOMBA DE INFUCION","ADVANCED","IP-200",70210134416,"CREMA","Bueno en Uso"]
["01870","UCI CORANARIO (HAB.12)","3ro","ZAFACON","N/A","N/A","N/A","NIQUELADO","Bueno en Uso"]
[]
["03610","LABORATORIO DE LA MORGUE","1er","CAMPANA DE FLUJO LAMINAR","N/A","130AA",300403555,"GRIS","Bueno en Uso"]
["03611","LABORATORIO DE LA MORGUE","1er","PROCEDADOR DE TEJIDO","N/A","LUPETECL",210496,"BLANCO","Bueno en Uso"]
["03612","LABORATORIO DE LA MORGUE","1er","DISPENSADOR  DE PARAFINA","N/A","LUPETECL","21066Z","BLANCO","Bueno en Uso"]
["03613","LABORATORIO DE LA MORGUE","1er","PLACA CALIENTE CON PORTA PINZA","N/A","LUPETECL LUPETEC","PA-20TZZI0295","BLANCO","Bueno en Uso"]
["03614","LABORATORIO DE LA MORGUE","1er","MICRO TOMO ROTATIVO/M","N/A","MRPSA 2016",210077,"BLANCO","Bueno en Uso"]
["03615","LABORATORIO DE LA MORGUE","1er","BAÑO MARIA ","N/A","LUPETECL VH 2015",210687,"BLANCO","Bueno en Uso"]
["03616","LABORATORIO DE LA MORGUE","1er","HORNO ","FANEM","S15LACK-S","RAQ080304","GRIS","Bueno en Uso"]
["03617","LABORATORIO DE LA MORGUE","1er","PHACHIMETRO ","OHAUS","PX139","CLOS102462","BLANCO CON ROJO","Bueno en Uso"]
["03618","LABORATORIO DE LA MORGUE","1er","BALANZA","ALREADR","D12KLA","WD200068768","ACERO INOX.","Bueno en Uso"]
["03619","LABORATORIO DE LA MORGUE","1er","CENTRIFUGA ","ALREADR","DSC-30CZD","CD3-20020026","GRIS","Bueno en Uso"]
["03620","LABORATORIO DE LA MORGUE","1er","CENTRIFUGA ","N/A","DSC-30ZSD","CD3-20020029","GRIS","Bueno en Uso"]
["03621","LABORATORIO DE LA MORGUE","1er","BALANZA","N/A","DE24KZA","WD-20035993","ACERO INOX.","Bueno en Uso"]
["03622","LABORATORIO DE LA MORGUE","1er","PLACA REFRIGERADA DIGITAL","N/A","LUPETECL PR LOT",210455,"BLANCO","Bueno en Uso"]
["03623","LABORATORIO DE LA MORGUE","1er","FREEZE","FALCO","UR-ISGL",20200501556,"BLANCO CON NEGRO","Bueno en Uso"]
["03624","LABORATORIO DE LA MORGUE","1er","ZAFACON","N/A","N/A","N/A","ACERO INOX.","Bueno en Uso"]
["03625","LABORATORIO DE LA MORGUE","1er","ZAFACON","N/A","N/A","N/A","ACERO INOX.","Bueno en Uso"]
["03626","LABORATORIO DE LA MORGUE","1er","TABURETE","N/A","N/A","N/A","ACERO INOX.","Bueno en Uso"]
["03627","LABORATORIO DE LA MORGUE","1er","TABURETE","N/A","N/A","N/A","ACERO INOX.","Bueno en Uso"]
["03628","LABORATORIO DE LA MORGUE","1er","MESA CUADRADA","N/A","N/A","N/A","N/C","Bueno en Uso"]
["03629","LABORATORIO DE LA MORGUE","1er","GABINETE EN U","N/A","N/A","N/A","BLANCO","Bueno en Uso"]
[]
["03630","OFICINA DE LA MORGUE","1er","ESCRITORIO EN L CON TOPE DE CRISTAL",{"$nulls":3},"BLANCO","Bueno en Uso"]
["03631","OFICINA DE LA MORGUE","1er","CPU","DELL","N/A","N/A","NEGRO","Bueno en Uso"]
["03632","OFICINA DE LA MORGUE","1er","MONITOR","AOC","OFIPLEX3080","13279754F03","NEGRO","Bueno en Uso"]
["03633","OFICINA DE LA MORGUE","1er","TECCADO","DELL","ZOERH","PRGM1HAD10750","NEGRO","Bueno en Uso"]
["03634","OFICINA DE LA MORGUE","1er","IMPRESORA ","HP/NESRO","N/A","R4001163449","NEGRO","Bueno en Uso"]
["03635","OFICINA DE LA MORGUE","1er","UPC","FORZA","HP","CN81USH35Z","NEGRO","Bueno en Uso"]
["03636","OFICINA DE LA MORGUE","1er","ARCHIVO PEQUEÑO DE 3 GAVETAS","N/A","NT-11D","Z10211500066","N/A","Bueno en Uso"]
["03637","OFICINA DE LA MORGUE","1er","SILLA SECRETARIAL","N/A","N/A","N/A","NEGRO","Bueno en Uso"]
["03638","OFICINA DE LA MORGUE","1er","SILLA SECRETARIAL","N/A","N/A","N/A","NEGRO","Bueno en Uso"]
["03639","OFICINA DE LA MORGUE","1er","SILLA SECRETARIAL","N/A","N/A","N/A","NEGRO","Bueno en Uso"]
[]
["03662","SALA DE AUTOPCIA","1er","MESA PARA REALIZAR AUTOPCIA","N/A","N/A","N/A","ACERO INOX.","Bueno en Uso"]
["03663","SALA DE AUTOPCIA","1er","MESA PARA REALIZAR AUTOPCIA","N/A","N/A","N/A","ACERO INOX.","Bueno en Uso"]
["03664","SALA DE AUTOPCIA","1er","VITRINA","N/A","N/A","N/A","ACERO INOX.","Bueno en Uso"]
["03665","SALA DE AUTOPCIA","1er","FREGADERO DOBLE","N/A","N/A","N/A","ACERO INOX.","Bueno en Uso"]
["03666","SALA DE AUTOPCIA","1er","TABURETE","N/A","N/A","N/A","ACERO INOX.","Bueno en Uso"]
["03667","SALA DE AUTOPCIA","1er","ANAQUEL","MAX","N/A","N/A","CREMA","Bueno en Uso"]
["03668","SALA DE AUTOPCIA","1er","ANAQUEL","MAX","N/A","N/A","CREMA","Bueno en Uso"]
["03669","SALA DE AUTOPCIA","1er","CAMILLA PARA REALIZAR AUTOPCIA","N/A","N/A","N/A","ACERO INOX.","Bueno en Uso"]
["03670","SALA DE AUTOPCIA","1er","CAMILLA PARA REALIZAR AUTOPCIA","CEABIS","N/A","N/A","ACERO INOX.","Bueno en Uso"]
["03671","SALA DE AUTOPCIA","1er","VITRINA","N/A","N/A","N/A","ACERO INOX.","Bueno en Uso"]
["03672","SALA DE AUTOPCIA","1er","FREGADERO","N/A","N/A","N/A","ACERO INOX.","Bueno en Uso"]
["03673","SALA DE AUTOPCIA","1er","ZAFACON","N/A","N/A","N/A","ACERO INOX.","Bueno en Uso"]
["03674","SALA DE AUTOPCIA","1er","TABURETE","N/A","N/A","N/A","ACERO INOX.","Bueno en Uso"]
["03675","SALA DE AUTOPCIA","1er","TABURETE","N/A","N/A","N/A","ACERO INOX.","Bueno en Uso"]
["03676","SALA DE AUTOPCIA","1er","ESCRITORIO CON TOPE MELAMINA","N/A","N/A","N/A","CREMA","Bueno en Uso"]
["03677","SALA DE AUTOPCIA","1er","MONITOR","DELL","E1709WC PAVILUN","MX-0H880H7071589","NEGRO","Bueno en Uso"]
["03678","SALA DE AUTOPCIA","1er","CPU","HP","DELL-PAVILLON","4CW12815MA","NEGRO","Bueno en Uso"]
["03679","SALA DE AUTOPCIA","1er","ARCHIVO DE 4 GAVETAS","HP","N/A","N/A","GRIS","Bueno en Uso"]
["03680","SALA DE AUTOPCIA","1er","ARCHIVO DE 4 GAVETAS","N/A","N/A","N/A","GRIS","Bueno en Uso"]
["03681","SALA DE AUTOPCIA","1er","NEVERITA","N/A","N/A","N/A","CREMA","Bueno en Uso"]
["03682","SALA DE AUTOPCIA","1er","ZAFACON","DAIWA","N/A","N/A","ACERO INOX.","Bueno en Uso"]
["03683","SALA DE AUTOPCIA","1er","SILLA SECRETARIAL","N/A","N/A","N/A","NEGRO","Bueno en Uso"]
["03684","SALA DE AUTOPCIA","1er","BANCO DE DOS ACIENTOS","N/A","N/A","N/A","N/A","Bueno en Uso"]
["03685","SALA DE AUTOPCIA","1er","BANCO DE DOS ACIENTOS","N/A","N/A","N/A","NEGRO","Bueno en Uso"]
["03686","SALA DE AUTOPCIA","1er","ARCHIVO DE 3 GAVETAS","N/A","N/A","N/A","BLANCO","Bueno en Uso"]
["03687","SALA DE AUTOPCIA","1er","VANDER LAB","N/A","DCA-M102","N/A","CREMA","Bueno en Uso"]
["03688","SALA DE AUTOPCIA","1er","VANDER LAB","N/A","DCA-M102","N/A","CREMA CON NEGRO","Bueno en Uso"]
[]
["03655","QUIROFANO","1er","FREGADERO","N/A","N/A","N/A","ACERO INOX.","Bueno en Uso"]
["03656","QUIROFANO","1er","LAMPARA SATELITAL","DRAGER","G16980","ASNE-0040","CREMA","Bueno en Uso"]
["03657","QUIROFANO","1er","CAMILLA PARA REALIZAR TRANSPLANTE DE ORGANO","CEABIS","TAVOLO AUTOPCIA","TC022I102","ACERO INOX.","Bueno en Uso"]
["03658","QUIROFANO","1er","MESA DE MARO","N/A","N/A","N/A","ACERO INOX.","Bueno en Uso"]
["03659","QUIROFANO","1er","TABURETE ","N/A","N/A","N/A","ACERO INOX.","Bueno en Uso"]
["03660","QUIROFANO","1er","VITRINA","N/A","N/A","N/A","ACERO INOX.","Bueno en Uso"]
["03661","QUIROFANO","1er","TABURETE ","N/A","N/A","N/A","ACERO INOX.","Bueno en Uso"]
[null,","]
["03649","VESTIDOR ","1er","CASILLERO","N/A","N/A","N/A","GRIS","Bueno en Uso"]
["03650","VESTIDOR ","1er","CARRO DE TRANSPORTE DE ROPA SUCIA","N/A","N/A","N/A","ACERO INOX.","Bueno en Uso"]
["03651","VESTIDOR ","1er","ZAFACON","N/A","N/A","N/A","ACERO INOX.","Bueno en Uso"]
["03652","VESTIDOR ","1er","CASILLERO","N/A","N/A","N/A","ACERO INOX.","Bueno en Uso"]
["03653","VESTIDOR ","1er","CARRO DE TRANSPORTE DE ROPA SUCIA","N/A","N/A","N/A","ACERO INOX.","Bueno en Uso"]
["03654","VESTIDOR ","1er","ZAFACON","N/A","N/A","N/A","ACERO INOX.","Bueno en Uso"]
[]
["03640","DEPOSITO DE CADAVERES","1er","FREEZE","CEABIS","COLD ROOM","CL20167","GRIS","Bueno en Uso"]
["03641","DEPOSITO DE CADAVERES","1er","FREEZE","CEABIS","COLD ROOM","CL20172","GRIS","Bueno en Uso"]
["03642","DEPOSITO DE CADAVERES","1er","FREEZE","CEABIS","COLD ROOM","CL212006","GRIS","Bueno en Uso"]
["03643","DEPOSITO DE CADAVERES","1er","FREEZE","CEABIS","COLD ROOM","CL212008","GRIS","Bueno en Uso"]
["03644","DEPOSITO DE CADAVERES","1er","FREEZE","CEABIS","COLD ROOM","CL212008CL212005","GRIS","Bueno en Uso"]
["03645","DEPOSITO DE CADAVERES","1er","FREEZE","CEABIS","COLD ROOM","CL212008CL212005","GRIS","Bueno en Uso"]
["03646","DEPOSITO DE CADAVERES","1er","FREEZE","CEABIS","COLD ROOM","CL212008CL212005","GRIS","Bueno en Uso"]
["03647","DEPOSITO DE CADAVERES","1er","CAMILLA","CEABIS","COLD ROOM","N/A","ACERO INOX.","Bueno en Uso"]
["03648","DEPOSITO DE CADAVERES","1er","CAMILLA","CEABIS","N/A","N/A","ACERO INOX.","Bueno en Uso"]
[]
["03388","LABORATORIO (MICROBIOLOGIA)","2do","LAMPARA DE FLUJO LAMINAL","LABCONCO","N/A","110B16054E","CREMA","Bueno en Uso"]
["03389","LABORATORIO (MICROBIOLOGIA)","2do","AUTOCLAVE","AMERICAN ","75 X",2605,"ALUMINIO","Bueno en Uso"]
["03390","LABORATORIO (MICROBIOLOGIA)","2do","INCUBADORA","PRECISION","SELECTA","22AJ-10","MARRON CON CREMA","Bueno en Uso"]
["03391","LABORATORIO (MICROBIOLOGIA)","2do","MESA","N/A","N/A","N/A","NEGRO","Bueno en Uso"]
["03392","LABORATORIO (MICROBIOLOGIA)","2do","NEVERA","SUMMIT","SCR1400W","SCR1400W20120300101","BLANCO","Bueno en Uso"]
["03393","LABORATORIO (MICROBIOLOGIA)","2do","NEVERA","TENKO","TK-2750","14236000b01hLG0JDS","BLANCO","Bueno en Uso"]
["03395","LABORATORIO (MICROBIOLOGIA)","2do","INCUBADORA","LAB-LINE",177630,6010206,"CREMA","Bueno en Uso"]
["03396","LABORATORIO (MICROBIOLOGIA)","2do","GABINETE","N/A","N/A","N/A","BLANCO","Bueno en Uso"]
["03397","LABORATORIO (MICROBIOLOGIA)","2do","MESETA COMPLETA","N/A","N/A","N/A","NEGRO","Bueno en Uso"]
["03398","LABORATORIO (MICROBIOLOGIA)","2do","GABINETE","N/A","N/A","N/A","BLANCO","Bueno en Uso"]
["03399","LABORATORIO (MICROBIOLOGIA)","2do","GABINETE","N/A","N/A","N/A","NEGRO","Bueno en Uso"]
["03400","LABORATORIO (MICROBIOLOGIA)","2do","TABURETE GIRATORIO","N/A","N/A","N/A","NEGRO","Bueno en Uso"]
["03401","LABORATORIO (MICROBIOLOGIA)","2do","TABURETE GIRATORIO","N/A","N/A","N/A","NEGRO","Bueno en Uso"]
["03402","LABORATORIO (MICROBIOLOGIA)","2do","TABURETE ","N/A","N/A","N/A","NEGRO","Bueno en Uso"]
["03403","LABORATORIO (MICROBIOLOGIA)","2do","TABURETE ","N/A","N/A","N/A","CREMA","Bueno en Uso"]
["03404","LABORATORIO (MICROBIOLOGIA)","2do","ZAFACON ","N/A","N/A","N/A","ACERO INOX.","Bueno en Uso"]
["03405","LABORATORIO (MICROBIOLOGIA)","2do","ZAFACON ","N/A","N/A",3405,"BLANCO","Bueno en Uso"]
["03406","LABORATORIO (MICROBIOLOGIA)","2do","PLATO CALIENTE","TECA","N/A","N/A","ACERO INOX.","Bueno en Uso"]
["03407","LABORATORIO (MICROBIOLOGIA)","2do","PEACHIMETRO","OHAUS","ST3100","B615342107","BLANCO","Bueno en Uso"]
["03408","LABORATORIO (MICROBIOLOGIA)","2do","SILLA SECRETARIAL","N/A","N/A","N/A","AZUL","Bueno en Uso"]
["03409","LABORATORIO (MICROBIOLOGIA)","2do","ESCRITARIO","N/A","N/A","N/A","TOPE AMARILLO","Bueno en Uso"]
["03410","LABORATORIO (MICROBIOLOGIA)","2do","RELOJ","N/A","N/A","N/A","ROJO VINO CON GRIS","Bueno en Uso"]
["03411","LABORATORIO (MICROBIOLOGIA)","2do","ARMARIO DOS PUERTA","N/A","N/A","N/A","GRIS CON BLANCO","Bueno en Uso"]
["03412","LABORATORIO (MICROBIOLOGIA)","2do","VITRINA DOS PUERTA","N/A","N/A","N/A","AZUL CON BLANCO","Bueno en Uso"]
["03413","LABORATORIO (MICROBIOLOGIA)","2do","BALANZA","N/A","N/A","N/A","MADERA","Bueno en Uso"]
["03414","LABORATORIO (MICROBIOLOGIA)","2do","BALANZA","OHAUS","N/A","B229121778","BLANCO","Bueno en Uso"]
["03415","LABORATORIO (MICROBIOLOGIA)","2do","CPU","HP","HP CAMPAP","MXL11822SL","NEGRO","Bueno en Uso"]
["03416","LABORATORIO (MICROBIOLOGIA)","2do","MESA PARA COMPUTADORA","N/A","N/A","N/A","AMARILLO","Bueno en Uso"]
["03417","LABORATORIO (MICROBIOLOGIA)","2do","MONITOR","N/A","HPL1706","N/A","GRIS CON NEGRO","Bueno en Uso"]
["03418","LABORATORIO (MICROBIOLOGIA)","2do","ESCRITORIO","N/A","N/A","N/A","GRIS","Bueno en Uso"]
["03419","LABORATORIO (MICROBIOLOGIA)","2do","IMPRESORA","HP","HPCFFICET4500","N/A","NEGRO","Bueno en Uso"]
["03420","LABORATORIO (MICROBIOLOGIA)","2do","CPU","DELL","CTIPLEX","8045-35-4-327-960","NEGRO","Bueno en Uso"]
["03421","LABORATORIO (MICROBIOLOGIA)","2do","SILLA","N/A","N/A","N/A","AZUL CON NEGRO","Bueno en Uso"]
["03422","LABORATORIO (MICROBIOLOGIA)","2do","SILLA","N/A","N/A","N/A","AZUL CON NEGRO","Bueno en Uso"]
["03423","LABORATORIO (MICROBIOLOGIA)","2do","SILLA SECRETARIAL","N/A","N/A","N/A","NEGRO","Bueno en Uso"]
["03424","LABORATORIO (MICROBIOLOGIA)","2do","PEDESTAL","N/A","N/A","N/A","ACERO INOX.","Bueno en Uso"]
[]
["03707","LABORATORIO (BACTERIOLOGIA)","2do","PROCESADOR","GINEX PENT","GINE XPEN IV",810790,"BLANCO","Bueno en Uso"]
["03708","LABORATORIO (BACTERIOLOGIA)","2do","PROCESADOR","GINEX PENT","GINE XPEN IV","N/A","BLANCO","Bueno en Uso"]
["03709","LABORATORIO (BACTERIOLOGIA)","2do","MONITOR","LG","HPZ230","603NTTQDL689","NEGRO","Bueno en Uso"]
["03710","LABORATORIO (BACTERIOLOGIA)","2do","MESA DE TRABAJO","N/A","N/A","N/A","BLANCO","Bueno en Uso"]
["03711","LABORATORIO (BACTERIOLOGIA)","2do","GABINETE","N/A","N/A","N/A","GRIS","Bueno en Uso"]
["03712","LABORATORIO (BACTERIOLOGIA)","2do","GABINETE","N/A","N/A","N/A","GRIS","Bueno en Uso"]
["03713","LABORATORIO (BACTERIOLOGIA)","2do","MICROSCOPIO","OLYMPUS","CX21FS1","4F00933","CREMA","Bueno en Uso"]
["03714","LABORATORIO (BACTERIOLOGIA)","2do","MICROSCOPIO","OLYMPUS","CX21","4F01034","CREA CON NEGRO","Bueno en Uso"]
["03715","LABORATORIO (BACTERIOLOGIA)","2do","BAÑO DE MARIA","FANEM",60461,"YAF60461","CRREMA","Bueno en Uso"]
["03716","LABORATORIO (BACTERIOLOGIA)","2do","BALANZA","OHAUS","N/A","N/A","CREMA","Bueno en Uso"]
["03717","LABORATORIO (BACTERIOLOGIA)","2do","MICROSCOPIO","GALEN",317547,"1260LN","CREMA","Bueno en Uso"]
["03718","LABORATORIO (BACTERIOLOGIA)","2do","TABURETE","N/A","N/A","N/A","ACERO INOX.","Bueno en Uso"]
["03719","LABORATORIO (BACTERIOLOGIA)","2do","TABURETE","N/A","N/A","N/A","NEGRO","Bueno en Uso"]
["03720","LABORATORIO (BACTERIOLOGIA)","2do","TABURETE","N/A","N/A","N/A","NEGRO","Bueno en Uso"]
["03721","LABORATORIO (BACTERIOLOGIA)","2do","MICROSCOPIO","OLYMPUS","CX21FS1","9A81475","GRIS","Bueno en Uso"]
["03722","LABORATORIO (BACTERIOLOGIA)","2do","MESA DE TRABAJO","N/A","N/A","N/A","BLANCO","Bueno en Uso"]
["03723","LABORATORIO (BACTERIOLOGIA)","2do","TABURETE GURATORIO","N/A","N/A","N/A","NEGRO","Bueno en Uso"]
["03724","LABORATORIO (BACTERIOLOGIA)","2do","ZAFACON METALICO","N/A","N/A","N/A","ACERO INOX.","Bueno en Uso"]
["03725","LABORATORIO (BACTERIOLOGIA)","2do","MESA DE COMPUTADORA","N/A","N/A","N/A","MARRON","Bueno en Uso"]
["03726","LABORATORIO (BACTERIOLOGIA)","2do","MONITOR","HP","HPS1933","CNC119RDCZ","NEGRO","Bueno en Uso"]
["03727","LABORATORIO (BACTERIOLOGIA)","2do","CPU","HP","PAVILION 6000","C4W1201FC2","NEGRO","Bueno en Uso"]
["03728","LABORATORIO (BACTERIOLOGIA)","2do","TABURETE","N/A","N/A","N/A","ACERO INOX.","Bueno en Uso"]
["03729","LABORATORIO (BACTERIOLOGIA)","2do","SILLA SECRETARIAL","N/A","N/A","N/A","NEGRO","Bueno en Uso"]
["03730","LABORATORIO (BACTERIOLOGIA)","2do","ZAFACON METALICO","N/A","N/A","N/A","ACERO INOX.","Bueno en Uso"]
["03731","LABORATORIO (BACTERIOLOGIA)","2do","MESA","N/A","N/A","N/A","ACERO INOX.","Bueno en Uso"]
["03732","LABORATORIO (BACTERIOLOGIA)","2do","MESA DE NOCHE","N/A","N/A","N/A","AZUL CON CEMA","Bueno en Uso"]
["03733","LABORATORIO (BACTERIOLOGIA)","2do","MESA","N/A","N/A","N/A","ACERO INOX.","Bueno en Uso"]
["03734","LABORATORIO (BACTERIOLOGIA)","2do","MESA","N/A","N/A","N/A","BLANCO","Bueno en Uso"]
["03692","LABORATORIO (BACTERIOLOGIA)","2do","ARCHIVO DE 5 GAVETAS","N/A","N/A","N/A","CREMA","Bueno en Uso"]
["03693","LABORATORIO (BACTERIOLOGIA)","2do","ARCHIVO DE 4 GAVETAS","N/A","N/A","N/A","GRIS","Bueno en Uso"]
["03694","LABORATORIO (BACTERIOLOGIA)","2do","NEVERA","MABE","RMA1025",1738572432,"BLANCO","Bueno en Uso"]
["03695","LABORATORIO (BACTERIOLOGIA)","2do","NEVERA","LG","GM1473QC","087MRtti2337","BLANCO","Bueno en Uso"]
["03696","LABORATORIO (BACTERIOLOGIA)","2do","CENTRIFUGA REFRIGERADA","SIGMA","SIGMA3-18-K",120664,"CREMA","Bueno en Uso"]
["03697","LABORATORIO (BACTERIOLOGIA)","2do","INCUNBADORA 37° GRADOS","BINDER","YAF60461",1201053620110,"CREMA","Bueno en Uso"]
["03698","LABORATORIO (BACTERIOLOGIA)","2do","CARRO DE PARO","N/A","N/A","N/A","ACERO INOX.","Bueno en Uso"]
["03699","LABORATORIO (BACTERIOLOGIA)","2do","COMAPANA DE FLUJO LAMINAL","LABCONCO","LOGIC",80688258,"CREMA CON GRIS","Bueno en Uso"]
["03700","LABORATORIO (BACTERIOLOGIA)","2do","INCUNBADORA 37° GRADOS","FISHER",6500,"107N0264","GRIS","Bueno en Uso"]
["03701","LABORATORIO (BACTERIOLOGIA)","2do","INCUNBADORA 37° GRADOS","FANER",51,"NAF64507","BLANCO","Bueno en Uso"]
["03702","LABORATORIO (BACTERIOLOGIA)","2do","AUNTOCLAVE","N/A","75X","H0004761","ALUMINIO","Bueno en Uso"]
["03703","LABORATORIO (BACTERIOLOGIA)","2do","IMPRESORA","HP","SDG0B-1501","F0V64-80014","NEGRO","Bueno en Uso"]
["03704","LABORATORIO (BACTERIOLOGIA)","2do","UPS","APC","PAWEL 1500120-V","7A1620L32316","NEGRO","Bueno en Uso"]
["03705","LABORATORIO (BACTERIOLOGIA)","2do","UPS","APC","PAWEL 1500120-V","4B1623P34455","NEGRO","Bueno en Uso"]
["03706","LABORATORIO (BACTERIOLOGIA)","2do","CPU","HP","603NTT","2UA6211LQX","NEGRO","Bueno en Uso"]
[]
["03394","LABORATORIO (PRUEBAS ESPECIALES)","2do","EQUIPO DE PRUEBAS ESPECIALES","MAGILUMI800",800,230200321500369,"CREMa","Bueno en Uso"]
["03425","LABORATORIO (PRUEBAS ESPECIALES)","2do","CPU","HP",7230,"6CR536WB3F","NEGRO","Bueno en Uso"]
["03426","LABORATORIO (PRUEBAS ESPECIALES)","2do","MONITOR","HP","HP CAMPAPL 22","CNC518009SF","NEGRO","Bueno en Uso"]
["03427","LABORATORIO (PRUEBAS ESPECIALES)","2do","LECTOR DE ELISA","BIOTEK","EXL508",12082210,"PLATEADO","Bueno en Uso"]
["03428","LABORATORIO (PRUEBAS ESPECIALES)","2do","MESA","METACHA","N/A","N/A","ACERO INOX.","Bueno en Uso"]
["03429","LABORATORIO (PRUEBAS ESPECIALES)","2do","CENTRIFUGA","N/A","N/A","N/A","BLANCO","Bueno en Uso"]
["03430","LABORATORIO (PRUEBAS ESPECIALES)","2do","INCUBADORA PARA PRUBEAS ESPECIALES","COMMDNDER","DYNAMIC","in653536","CREMA","Bueno en Uso"]
["03431","LABORATORIO (PRUEBAS ESPECIALES)","2do","GABINETE","N/A","N/A","N/A","GRIS","Bueno en Uso"]
["03432","LABORATORIO (PRUEBAS ESPECIALES)","2do","MESA DE TRABAJO","N/A","N/A","N/A","BLANCO","Bueno en Uso"]
["03433","LABORATORIO (PRUEBAS ESPECIALES)","2do","CENTRIFUGA","UNICO","POWER SPIN","NJ08810","CREMA","Bueno en Uso"]
["03434","LABORATORIO (PRUEBAS ESPECIALES)","2do","CPU","DELL","GASTRO 220","0100103205-01","NEGRO","Bueno en Uso"]
["03435","LABORATORIO (PRUEBAS ESPECIALES)","2do","IMPRESORA","HP","HP LASER JET P1102W","VLB3M94290","NEGRO","Bueno en Uso"]
["03436","LABORATORIO (PRUEBAS ESPECIALES)","2do","MONITOR","HP","HP L1950","CNC8115PN3P","GRIS CON NEGRO","Bueno en Uso"]
["03437","LABORATORIO (PRUEBAS ESPECIALES)","2do","GABINETE","N/A","N/A","N/A","GRIS CON NEGRO","Bueno en Uso"]
["03438","LABORATORIO (PRUEBAS ESPECIALES)","2do","CPU","HP","PAVILION 6000","4W1210FGD","NEGRO","Bueno en Uso"]
["03439","LABORATORIO (PRUEBAS ESPECIALES)","2do","TABURETE GIRATORIO","N/A","N/A","N/A","AZUL","Bueno en Uso"]
["03440","LABORATORIO (PRUEBAS ESPECIALES)","2do","TABURETE GIRATORIO","N/A","N/A","N/A","NEGRO","Bueno en Uso"]
["03441","LABORATORIO (PRUEBAS ESPECIALES)","2do","SILLA ERGONOMICA GIRATORIA ","N/A","N/A","N/A","NEGRO","Bueno en Uso"]
["03689","LABORATORIO (PRUEBAS ESPECIALES)","2do","ZAFACON","N/A","N/A","N/A","METALICO","Bueno en Uso"]
["03690","LABORATORIO (PRUEBAS ESPECIALES)","2do","ZAFACON","N/A","N/A","N/A","METALICO","Bueno en Uso"]
["03691","LABORATORIO (PRUEBAS ESPECIALES)","2do","ZAFACON PLASTICO","TRASH BOX","N/A","N/A","BLANCO","Bueno en Uso"]
[]
["03772","LABORATORIO (TOMA DE MUESTRA)","2do","MESA DE COMPUTADORA","N/A","N/A","N/A","MADERA","Bueno en Uso"]
["03773","LABORATORIO (TOMA DE MUESTRA)","2do","SILLA SECRETARIAL","N/A","N/A","N/A","NEGRO","Bueno en Uso"]
["03774","LABORATORIO (TOMA DE MUESTRA)","2do","PORTA ROPA","N/A","N/A","N/A","CREMA","Bueno en Uso"]
["03775","LABORATORIO (TOMA DE MUESTRA)","2do","ZAFACON PLASTICO","N/A","N/A","N/A","GRIS","Bueno en Uso"]
["03776","LABORATORIO (TOMA DE MUESTRA)","2do","SILLA PARA TOMA DE MUESTRA","N/A","N/A","N/A","BLANCO CON AZUL","Bueno en Uso"]
["03777","LABORATORIO (TOMA DE MUESTRA)","2do","SILLA SECRETARIAL","N/A","N/A","N/A","NEGRO","Bueno en Uso"]
["03778","LABORATORIO (TOMA DE MUESTRA)","2do","ZAFACON ","N/A","N/A","N/A","METALICO","Bueno en Uso"]
["03779","LABORATORIO (TOMA DE MUESTRA)","2do","SILLA SECRETARIAL","N/A","N/A","N/A","NEGRO","Bueno en Uso"]
["03780","LABORATORIO (TOMA DE MUESTRA)","2do","SILLA PARA TOMA DE MUESTRA","N/A","N/A","N/A","BLANCO CON GRIS","Bueno en Uso"]
["03781","LABORATORIO (TOMA DE MUESTRA)","2do","ZAFACON","N/A","N/A","N/A","METALICO","Bueno en Uso"]
["03782","LABORATORIO (TOMA DE MUESTRA)","2do","SILLA PARA TOMA DE MUESTRA","N/A","N/A","N/A","BLANCO CON ZUL","Bueno en Uso"]
["03783","LABORATORIO (TOMA DE MUESTRA)","2do","SILLA SECRETARIAL","N/A","N/A","N/A","NEGRO","Bueno en Uso"]
["03784","LABORATORIO (TOMA DE MUESTRA)","2do","ZAFACON","N/A","N/A","N/A","METALICO","Bueno en Uso"]
["03785","LABORATORIO (TOMA DE MUESTRA)","2do","SILLA PARA TOMA DE MUESTRA","N/A","N/A","N/A","NEGRO CON GRIS","Bueno en Uso"]
["03789","LABORATORIO (TOMA DE MUESTRA)","2do","ZAFACON","N/A","N/A","N/A","METALICO","Bueno en Uso"]
["03787","LABORATORIO (TOMA DE MUESTRA)","2do","MESA PARA MEDICAR","N/A","N/A","N/A","METALICO","Bueno en Uso"]
["03788","LABORATORIO (TOMA DE MUESTRA)","2do","SILLA SECRETARIAL","N/A","N/A","N/A","NEGRO","Bueno en Uso"]
["03790","LABORATORIO (TOMA DE MUESTRA)","2do","TABURETE","N/A","N/A","N/A","NEGRO","Bueno en Uso"]
["03791","LABORATORIO (TOMA DE MUESTRA)","2do","MESITA DE NOCHE","N/A","N/A","N/A","CREMA","Bueno en Uso"]
["03792","LABORATORIO (TOMA DE MUESTRA)","2do","MESA DE TRABAJO","N/A","N/A","N/A","MODERA","Bueno en Uso"]
["03793","LABORATORIO (TOMA DE MUESTRA)","2do","IMPRESORA","SEBRA","LP2824 PLUS","36J1539901607","GRIS","Bueno en Uso"]
["03794","LABORATORIO (TOMA DE MUESTRA)","2do","MONITOR","HP","HP LP965","CNN7285DXF","NEGRO","Bueno en Uso"]
["03795","LABORATORIO (TOMA DE MUESTRA)","2do","SILLA SECRETARIAL","N/A","N/A","N/A","NEGRO","Bueno en Uso"]
["03796","LABORATORIO (TOMA DE MUESTRA)","2do","SILLA SECRETARIAL","N/A","N/A","N/A","NEGRO","Bueno en Uso"]
["03813","LABORATORIO (TOMA DE MUESTRA)","2do","BANCO DE STAR","N/A","N/A","N/A","GRIS","Bueno en Uso"]
["03814","LABORATORIO (TOMA DE MUESTRA)","2do","BANCO DE STAR","N/A","N/A","N/A","GRIS","Bueno en Uso"]
["03815","LABORATORIO (TOMA DE MUESTRA)","2do","BANCO DE STAR","N/A","N/A","N/A","GRIS","Bueno en Uso"]
["03812","LABORATORIO (TOMA DE MUESTRA)","2do","SILLA SECRETARIAL","N/A","N/A","N/A","NEGRO","Bueno en Uso"]
[]
["03797","LABORATORIO (CAJA)","2do","MONITOR","ACET","X83bb",94702177943,"NEGRO","Bueno en Uso"]
["03798","LABORATORIO (CAJA)","2do","CPU","DELL","480X3VI","C0186165559345","NEGRO","Bueno en Uso"]
["03799","LABORATORIO (CAJA)","2do","MONITOR","HP","HP L1940t",4242111,"GRKIS","Bueno en Uso"]
["03800","LABORATORIO (CAJA)","2do","CPU","HP","PABILIUN 6000","QN642AAR#ADA","NEGRO","Bueno en Uso"]
["03801","LABORATORIO (CAJA)","2do","IMPRESORA","CANON","MF455DW","3RD133304","GRIS","Bueno en Uso"]
["03802","LABORATORIO (CAJA)","2do","MONITOR","HP","HP L194CT","N/A","GRIS","Bueno en Uso"]
["03803","LABORATORIO (CAJA)","2do","CPU","HP","PABILIUN 6000","4CW1182C28","NEGRO","Bueno en Uso"]
["03804","LABORATORIO (CAJA)","2do","MESA DE TRABAJO COMPLETA","N/A","N/A","N/A","GRIS CON NEGRO","Bueno en Uso"]
["03805","LABORATORIO (CAJA)","2do","ZAFCAON","N/A","N/A","N/A","GRIS","Bueno en Uso"]
["03806","LABORATORIO (CAJA)","2do","ARCHIVO DE 3 GAVETAS","N/A","N/A","N/A","NEGRO","Bueno en Uso"]
["03807","LABORATORIO (CAJA)","2do","ARCHIVO DE 3 GAVETAS","N/A","N/A","N/A","NEGRO","Bueno en Uso"]
["03808","LABORATORIO (CAJA)","2do","IMPRESORA PEQUEÑA","SEBRA","ZD410","50N210500330","GRIS CON NEGRO","Bueno en Uso"]
["03809","LABORATORIO (CAJA)","2do","SILLA SECRETARIAL","N/A","N/A","N/A","NEGRO","Bueno en Uso"]
["03810","LABORATORIO (CAJA)","2do","SILLA SECRETARIAL","N/A","N/A","N/A","NEGRO","Bueno en Uso"]
["03811","LABORATORIO (CAJA)","2do","SILLA SECRETARIAL","N/A","N/A","N/A","NEGRO","Bueno en Uso"]
[]
["03835","LABORATORIO (STAR)","2do","BANCODA DE 4 ASINETO","N/A","N/A","N/A","GRIS","Bueno en Uso"]
["03836","LABORATORIO (STAR)","2do","BANCODA DE 4 ASINETO","N/A","N/A","N/A","GRIS","Bueno en Uso"]
["03837","LABORATORIO (STAR)","2do","BANCODA DE 4 ASINETO","N/A","N/A","N/A","GRIS","Bueno en Uso"]
["03838","LABORATORIO (STAR)","2do","BANCODA DE 3 ASINETO","N/A","N/A","N/A","GRIS","Bueno en Uso"]
["03839","LABORATORIO (STAR)","2do","BANCODA DE 3 ASINETO","N/A","N/A","N/A","GRIS","Bueno en Uso"]
["03840","LABORATORIO (STAR)","2do","BANCODA DE 3 ASINETO","N/A","N/A","N/A","GRIS","Bueno en Uso"]
[]
["03750","LABORATORIO ","2do","INCUBADORA","FANEM",502,"NAS74514","BLANCO","Bueno en Uso"]
["03751","LABORATORIO ","2do","MICROCENTRIFUGA","BENCHMARK","C2000","A01210011","GRIS","Bueno en Uso"]
["03752","LABORATORIO ","2do","MICROCENTRIFUGA","LASBFORCE","C2409","A140-01416","GRIS","Bueno en Uso"]
["03753","LABORATORIO ","2do","MICROCENTRIFUGA","LASBFORCE","C2410","A140-01417","GRIS","Bueno en Uso"]
["03754","LABORATORIO ","2do","TABURETE GIRATORIO","N/A","N/A","N/S","AZUL CON NEGRO","Bueno en Uso"]
["03755","LABORATORIO ","2do","NEVERA ","FARCO","UR-22TM",2019090978,"ACERO INOX.","Bueno en Uso"]
["03756","LABORATORIO ","2do","NEVERA ","FARCO","UR-22TM",2019090966,"ACERO INOX.","Bueno en Uso"]
[]
["03735","LABORATORIO (EPIDEMIOLOGIA)","2do","MESA DE TRABAJO","N/A","N/A","N/A","BLANCO","Bueno en Uso"]
["03736","LABORATORIO (EPIDEMIOLOGIA)","2do","FREGADO INTEGRADO","N/A","N/A","N/A","BLANCO","Bueno en Uso"]
["03737","LABORATORIO (EPIDEMIOLOGIA)","2do","CENTRIFUGA REFRUGERADA","THERMO","IECCL30R",308110088,"CREMA","Bueno en Uso"]
["03738","LABORATORIO (EPIDEMIOLOGIA)","2do","NEVERA","FARCO","BT-40GL",2010040041,"BLANCO CON NEGRO","Bueno en Uso"]
["03739","LABORATORIO (EPIDEMIOLOGIA)","2do","NEVERA","AMERICAN","NEX25","M89146020895000052","GRIS","Bueno en Uso"]
["03740","LABORATORIO (EPIDEMIOLOGIA)","2do","MESA DE TRABAJO","N/A","N/A","N/A","BLANCO","Bueno en Uso"]
["03741","LABORATORIO (EPIDEMIOLOGIA)","2do","TABURETE GIRARTORIO","N/A","N/A","N/A","NEGRO","Bueno en Uso"]
["03742","LABORATORIO (EPIDEMIOLOGIA)","2do","SILLA PARA VISITA","N/A","N/A","N/A","AZUL","Bueno en Uso"]
["03743","LABORATORIO (EPIDEMIOLOGIA)","2do","MESA DE COMPUTADORA","N/A","N/A","N/A","TOPE DE CRISTAL Y MELAMINA","Bueno en Uso"]
["03744","LABORATORIO (EPIDEMIOLOGIA)","2do","SILLA SECRETARIAL","N/A","N/A","N/A","NEGRO","Bueno en Uso"]
["03745","LABORATORIO (EPIDEMIOLOGIA)","2do","ARMARIO","MECURY","N/A",1001030771,"GRIS","Bueno en Uso"]
["03746","LABORATORIO (EPIDEMIOLOGIA)","2do","CAMPANA DE FLUJO LAMINAL","NVAIRE","NU-425-300",126805110300,"GRIS CON CREMA","Bueno en Uso"]
["03747","LABORATORIO (EPIDEMIOLOGIA)","2do","ZAFACON","N/A","N/A","N/A","METALICO","Bueno en Uso"]
["03748","LABORATORIO (EPIDEMIOLOGIA)","2do","CPU","DELL",636606468,26228093043,"NEGRO","Bueno en Uso"]
["03749","LABORATORIO (EPIDEMIOLOGIA)","2do","MONITOR","DELL",633352553,"FBIV2","NEGRO","Bueno en Uso"]
[]
["03816","LABORATORIO (OFICINA ENCARGADA)","2do","ARCHIVO 4 DE GAVETAS","N/A","N/A","N/A","CREMA","Bueno en Uso"]
["03817","LABORATORIO (OFICINA ENCARGADA)","2do","NEVERA SEMI-EJECUTIVA","NEDOCA","TRS0500OMD","N/A","BLANCO","Bueno en Uso"]
["03818","LABORATORIO (OFICINA ENCARGADA)","2do","ARCHIVOS 3 GAVETAS","N/A","N/A","N/A","NEGRO CON TOPE DE MELAMINA","Bueno en Uso"]
["03819","LABORATORIO (OFICINA ENCARGADA)","2do","SILLON EJECUTIVO","N/A","N/A","N/A","NEGRO ","Bueno en Uso"]
["03820","LABORATORIO (OFICINA ENCARGADA)","2do","ESCRITORIO","N/A","N/A","N/A","TOPE ENE MELAMINA","Bueno en Uso"]
["03821","LABORATORIO (OFICINA ENCARGADA)","2do","MONITOR","ACER","X163W","SNID02403076342","NEGRO","Bueno en Uso"]
["03822","LABORATORIO (OFICINA ENCARGADA)","2do","SILLA SECRETARIAL","N/A","N/A","N/A","AZUL OSCURO","Bueno en Uso"]
["03823","LABORATORIO (OFICINA ENCARGADA)","2do","SILLA SECRETARIAL","N/A","N/A","N/A","AZUL OSCURO","Bueno en Uso"]
["03824","LABORATORIO (OFICINA ENCARGADA)","2do","CUADRO PARA DECORACION ","N/A","N/A","N/A","N/A","Bueno en Uso"]
["03825","LABORATORIO (OFICINA ENCARGADA)","2do","RELOJ","N/A","N/A","N/A","NEGRO CON BLANCO","Bueno en Uso"]
["03826","LABORATORIO (OFICINA ENCARGADA)","2do","ESCRITORIO","N/A","N/A","N/A","BLANCO","Bueno en Uso"]
["03827","LABORATORIO (OFICINA ENCARGADA)","2do","ARCHIVO 4 DE GAVETAS","N/A","N/A","N/A","GRIS","Bueno en Uso"]
["03828","LABORATORIO (OFICINA ENCARGADA)","2do","IMPRESORA","HP","LASER JET PRO","VNB3J22763","BLANCO","Bueno en Uso"]
["03829","LABORATORIO (OFICINA ENCARGADA)","2do","MONITOR","HP","HP LP1965","418598-001","NEGRO","Bueno en Uso"]
["03830","LABORATORIO (OFICINA ENCARGADA)","2do","MESAPARA COMPUTADORA","N/A","N/A","N/A","MELAMINA","Bueno en Uso"]
["03831","LABORATORIO (OFICINA ENCARGADA)","2do","SILLA SECRETARIAL","N/A","N/A","N/A","NEGRO","Bueno en Uso"]
["03832","LABORATORIO (OFICINA ENCARGADA)","2do","SILLA SECRETARIAL","N/A","N/A","N/A","NEGRO","Bueno en Uso"]
["03833","LABORATORIO (OFICINA ENCARGADA)","2do","CPU","DELL","OTIPLEX 3040",77167369,"NEGRO","Bueno en Uso"]
["03834","LABORATORIO (OFICINA ENCARGADA)","2do","UPS","FORZA","NT-7610",221409303979,"NEGRO","Bueno en Uso"]
[]
["03757","LABORATORIO (TOMA DE MUESTRA)","2do","ESCRITORIO","N/A","N/A","N/A","GRIS","Bueno en Uso"]
["03758","LABORATORIO (TOMA DE MUESTRA)","2do","SILLA PARA TOMA DE MUESTRA","N/A","N/A","N/A","BLANCO CON MARRON","Bueno en Uso"]
["03759","LABORATORIO (TOMA DE MUESTRA)","2do","SILLA PARA TOMA DE MUESTRA","N/A","N/A","N/A","NEGRO CON GRIS","Bueno en Uso"]
["03760","LABORATORIO (TOMA DE MUESTRA)","2do","ZAFACON ","N/A","N/A","N/A","ACERO INOX.","Bueno en Uso"]
["03761","LABORATORIO (TOMA DE MUESTRA)","2do","SILLA SECRETARIAL","N/A","N/A","N/A","NEGRO","Bueno en Uso"]
["03762","LABORATORIO (TOMA DE MUESTRA)","2do","ZAFACON ","N/A","N/A","N/A","ACERO INOX.","Bueno en Uso"]
["03763","LABORATORIO (TOMA DE MUESTRA)","2do","BAÑO DE MARIA","ISOTEMP",2230,120310130,"CREMA","Bueno en Uso"]
["03764","LABORATORIO (TOMA DE MUESTRA)","2do","SILLA SECRETARIAL","N/A","N/A","N/A","NEGRO","Bueno en Uso"]
["03765","LABORATORIO (TOMA DE MUESTRA)","2do","MESA PARA MEDICAR","N/A","N/A","N/A","ACERO INOX.","Bueno en Uso"]
["03766","LABORATORIO (TOMA DE MUESTRA)","2do","TABURETE","N/A","N/A","N/A","ACERO INOX.","Bueno en Uso"]
["03767","LABORATORIO (TOMA DE MUESTRA)","2do","TABURETE GERATORIO","N/A","N/A","N/A","NEGRO","Bueno en Uso"]
["03768","LABORATORIO (TOMA DE MUESTRA)","2do","TABURETE GERATORIO","N/A","N/A","N/A","NEGRO","Bueno en Uso"]
["03769","LABORATORIO (TOMA DE MUESTRA)","2do","MESA DE TRABAJO","N/A","N/A","N/A","AZUL CON BLANCO","Bueno en Uso"]
["03770","LABORATORIO (TOMA DE MUESTRA)","2do","MESA DE TRABAJO","N/A","N/A","N/A","AZUL CON BLANCO","Bueno en Uso"]
["03771","LABORATORIO (TOMA DE MUESTRA)","2do","TABURETE GIRATORIO","N/A","N/A","N/A","AZUL CON BLANCO","Bueno en Uso"]
[]
["03841","  BANCO DE SANGRE (RECEPCION)","2do","IMPRESORA","HP","LASER JET M25 2DW","VNB3354735","BLANCO","Bueno en Uso"]
["03842","  BANCO DE SANGRE (RECEPCION)","2do","COMPUTADORA","DELL","OPTIPLEX 3020",5799036422,"NEGRO","Bueno en Uso"]
["03843","  BANCO DE SANGRE (RECEPCION)","2do","MANITOR","DELL","E1914HC","CN04FF47-64180-564-5651","NEGRO","Bueno en Uso"]
["03844","  BANCO DE SANGRE (RECEPCION)","2do","CAUNTER","N/A","N/A","N/A","CAOBA","Bueno en Uso"]
["03845","  BANCO DE SANGRE (RECEPCION)","2do","SILLA SECRETARIAL","N/A","N/A","N/A","NEGRO","Bueno en Uso"]
["03846","  BANCO DE SANGRE (RECEPCION)","2do","BANCADA 4 ASIENTOS","N/A","N/A","N/A","NEGRO","Bueno en Uso"]
["03847","  BANCO DE SANGRE (RECEPCION)","2do","BANCADA 4 ASIENTOS","N/A","N/A","N/A","GRIS","Bueno en Uso"]
["03848","  BANCO DE SANGRE (RECEPCION)","2do","BANCADA 2 ASIENTOS","N/A","N/A","N/A","GRIS","Bueno en Uso"]
["03849","  BANCO DE SANGRE (RECEPCION)","2do","BANCADA 2 ASIENTOS","N/A","N/A","N/A","GRIS","Bueno en Uso"]
["03850","  BANCO DE SANGRE (RECEPCION)","2do","BANCADA 2 ASIENTOS","N/A","N/A","N/A","GRIS","Bueno en Uso"]
["03851","  BANCO DE SANGRE (RECEPCION)","2do","BANCADA 2 ASIENTOS","N/A","N/A","N/A","GRIS","Bueno en Uso"]
["03852","  BANCO DE SANGRE (RECEPCION)","2do","TELEVISOR","TOSHIBA","BS036","19LB505","NEGRO","Bueno en Uso"]
["03853","  BANCO DE SANGRE (RECEPCION)","2do","ZAFACON","N/A","N/A","N/A","ACERO INOX.","Bueno en Uso"]
[]
["03854","  BANCO DE SANGRE (EVALUACION DEL DONANTE)","2do","CUADRO PARA DECORACION","N/A","N/A","N/A","N/A","Bueno en Uso"]
["03855","  BANCO DE SANGRE (EVALUACION DEL DONANTE)","2do","BANCADA 4 ASIENTOS","N/A","N/A","N/A","ROJO VINO","Bueno en Uso"]
["03856","  BANCO DE SANGRE (EVALUACION DEL DONANTE)","2do","BANCADA 2 ASIENTOS","N/A","N/A","N/A","GRIS","Bueno en Uso"]
["03857","  BANCO DE SANGRE (EVALUACION DEL DONANTE)","2do","ESCRITORIO","N/A","N/A","N/A","TOPE DE MELAMINA","Bueno en Uso"]
["03858","  BANCO DE SANGRE (EVALUACION DEL DONANTE)","2do","ZAFACON","N/A","N/A","N/A","METALICO","Bueno en Uso"]
[]
["03859","  BANCO DE SANGRE (SANGRE MENOR)","2do","SILLA PARA TOMA DE MUESTRA DE SANGRE","N/A","N/A","N/A","GRIS CON NEGRO","Bueno en Uso"]
["03860","  BANCO DE SANGRE (SANGRE MENOR)","2do","SILLA PARA TOMA DE MUESTRA DE SANGRE","N/A","N/A","N/A","BLANCO CON NEGRO","Bueno en Uso"]
["03861","  BANCO DE SANGRE (SANGRE MENOR)","2do","MESA PARA MEDICAR PACIENTES","N/A","N/A","N/A","ACERO INOX.","Bueno en Uso"]
["03862","  BANCO DE SANGRE (SANGRE MENOR)","2do","BALANZA","DETECTO","N/A","N/A","CREMA","Bueno en Uso"]
["03863","  BANCO DE SANGRE (SANGRE MENOR)","2do","ESFIGAMOMANOMETRO ","ADC","N/A","N/A","NEGRO CON CREMA","Bueno en Uso"]
["03864","  BANCO DE SANGRE (SANGRE MENOR)","2do","BALANZA","SECA","N/A",1714007045755,"GRIS CON NEGRO","Bueno en Uso"]
["03865","  BANCO DE SANGRE (SANGRE MENOR)","2do","ESFIGAMOMANOMETRO DE PEDESTAL","NINGBA","N/A","N/A","GRIS CON AZUL","Bueno en Uso"]
["03866","  BANCO DE SANGRE (SANGRE MENOR)","2do","SILLA SECRETARIAL","N/A","N/A","N/A","AZUL MARINO","Bueno en Uso"]
["03867","  BANCO DE SANGRE (SANGRE MENOR)","2do","SILLA TOMA DE MUESTRA","N/A","N/A","N/A","VERDE CON GRIS","Bueno en Uso"]
["03868","  BANCO DE SANGRE (SANGRE MENOR)","2do","MESA PARA MEDICAR ","N/A","N/A","N/A","ACERO INOX.","Bueno en Uso"]
["03869","  BANCO DE SANGRE (SANGRE MENOR)","2do","UPS","SMARTONLINE","PS7193","9920Y1CPS7193042","NEGRO","Bueno en Uso"]
["03870","  BANCO DE SANGRE (SANGRE MENOR)","2do"]
["03871","  BANCO DE SANGRE (SANGRE MENOR)","2do","ZAFACON","N/A","N/A","N/A","METALICO","Bueno en Uso"]
["03872","  BANCO DE SANGRE (SANGRE MENOR)","2do","SILLA SECRETARIAL","N/A","N/A","N/A","NEGRO","Bueno en Uso"]
["03873","  BANCO DE SANGRE (SANGRE MENOR)","2do","SILLON RECLINABLE","N/A","N/A","N/A","AZUL MARINO","Bueno en Uso"]
["03874","  BANCO DE SANGRE (SANGRE MENOR)","2do","MESA PARA MEDICAR ","N/A","BS0035","19LV505","ACERO INOX.","Bueno en Uso"]
["03875","  BANCO DE SANGRE (SANGRE MENOR)","2do","TELEVISOR","TOSHIBA","N/A","N/A","NEGRO","Bueno en Uso"]
["03876","  BANCO DE SANGRE (SANGRE MENOR)","2do","BANCADA DE 4 ASIENTOS","N/A","N/A","N/A","GRIS CON BLANCO","Bueno en Uso"]
["03877","  BANCO DE SANGRE (SANGRE MENOR)","2do","ZAFACON","N/A","N/A","N/A","METALICO","Bueno en Uso"]
["03878","  BANCO DE SANGRE (SANGRE MENOR)","2do","BANCO RECLINABLE","N/A","N/A","N/A","AZUL MARINO","Bueno en Uso"]
["03879","  BANCO DE SANGRE (SANGRE MENOR)","2do","BANCO RECLINABLE","N/A","N/A","N/A","AZUL MARINO","Bueno en Uso"]
["03880","  BANCO DE SANGRE (SANGRE MENOR)","2do","BANCO RECLINABLE","N/A","N/A","N/A","AZUL MARINO","Bueno en Uso"]
["03881","  BANCO DE SANGRE (SANGRE MENOR)","2do","BANCO RECLINABLE","N/A","N/A","N/A","VERDE","Bueno en Uso"]
["03882","  BANCO DE SANGRE (SANGRE MENOR)","2do","MEZCALDOR DE BOLSA DE SANGRE","HEMOMATC","BS0029","N/A","AZUL","Bueno en Uso"]
["03883","  BANCO DE SANGRE (SANGRE MENOR)","2do","MEZCALDOR DE BOLSA DE SANGRE",null,"BS00032","N/A","AZUL","Bueno en Uso"]
["03884","  BANCO DE SANGRE (SANGRE MENOR)","2do","MEZCALDOR DE BOLSA DE SANGRE","BIOMIXEN","S23-1","N/A","CREMA","Bueno en Uso"]
["03885","  BANCO DE SANGRE (SANGRE MENOR)","2do","ZAFACON","N/A","N/A","N/A","GRIS","Bueno en Uso"]
["03886","  BANCO DE SANGRE (SANGRE MENOR)","2do","MEZCALDOR DE BOLSA DE SANGRE","HEMOMATC","BS0031",243207,"AZUL","Bueno en Uso"]
["03887","  BANCO DE SANGRE (SANGRE MENOR)","2do","BOTIQUIN","N/A","N/A","N/A","BLANCO","Bueno en Uso"]
[]
["03888","  BANCO DE SANGRE (SEPARACION DE COMPONENTES)","2do","GABINETE DE UNA PUERTA","N/A","N/A","N/A","BLANCO","Bueno en Uso"]
["03889","  BANCO DE SANGRE (SEPARACION DE COMPONENTES)","2do","MESA DE TRABAJO","N/A","N/A","N/A","BLANCO","Bueno en Uso"]
["03890","  BANCO DE SANGRE (SEPARACION DE COMPONENTES)","2do","CPU","HP","HP COMPAQ","MXJ43103RD","GRIS CON NEGRO","Bueno en Uso"]
["03891","  BANCO DE SANGRE (SEPARACION DE COMPONENTES)","2do","MONITOR ","DELL","N/A","0D176P64180-0137-33YS","NEGRO","Bueno en Uso"]
["03892","  BANCO DE SANGRE (SEPARACION DE COMPONENTES)","2do","CENTRIFUGA REFRIGERADA","N/A","N/A","N/A","CREMA CON GRIS","Bueno en Uso"]
["03893","  BANCO DE SANGRE (SEPARACION DE COMPONENTES)","2do","CENTRIFUGA ","VENDERLAB","DSC8730152",1003553,"CREMA","Bueno en Uso"]
["03894","  BANCO DE SANGRE (SEPARACION DE COMPONENTES)","2do","CENTRIFUGA ","N/A","CL2",45996,"CREMA CON GRIS","Bueno en Uso"]
["03895","  BANCO DE SANGRE (SEPARACION DE COMPONENTES)","2do","CENTRIFUGA ","N/A","BS005",4750020,"CREMA","Bueno en Uso"]
["03896","  BANCO DE SANGRE (SEPARACION DE COMPONENTES)","2do","TABURETE GORATORIO","N/A","N/A","N/A","NEGRO","Bueno en Uso"]
["03897","  BANCO DE SANGRE (SEPARACION DE COMPONENTES)","2do","ARCHIVO DE 3 GAVETAS","N/A","N/A","N/A","NEGRO","Bueno en Uso"]
["03898","  BANCO DE SANGRE (SEPARACION DE COMPONENTES)","2do","RELOJ","N/A","BS0021","501N004","GRIS CON NEGRO","Bueno en Uso"]
["03899","  BANCO DE SANGRE (SEPARACION DE COMPONENTES)","2do","CENTRIFUGA","ADAMS","ADAMS0225",265208,"CREMA","Bueno en Uso"]
["03900","  BANCO DE SANGRE (SEPARACION DE COMPONENTES)","2do","SEPARADOR DE PLASMA","FANEN","FANEN 233","GAD28320","BLANCO","Bueno en Uso"]
["03901","  BANCO DE SANGRE (SEPARACION DE COMPONENTES)","2do","CENTRIFUGA","LABCARP","6U2E","130314-34","BLANCO","Bueno en Uso"]
["03902","  BANCO DE SANGRE (SEPARACION DE COMPONENTES)","2do","ZAFACON","N/A","N/A","N/A","GRIS","Bueno en Uso"]
["03903","  BANCO DE SANGRE (SEPARACION DE COMPONENTES)","2do"]
["03904","  BANCO DE SANGRE (SEPARACION DE COMPONENTES)","2do","ZAFACON","N/A","N/A","N/A","GRIS","Bueno en Uso"]
["03905","  BANCO DE SANGRE (SEPARACION DE COMPONENTES)","2do","CPU","HP","PAPILIUP","USU121YO4","NEGRO","Bueno en Uso"]
["03906","  BANCO DE SANGRE (SEPARACION DE COMPONENTES)","2do","CPU","AOC","8528B0","42185BA027689","NEGRO","Bueno en Uso"]
["03907","  BANCO DE SANGRE (SEPARACION DE COMPONENTES)","2do","MESA DE COMPUTADORA","N/A","N/A","N/A","MADERA","Bueno en Uso"]
["03908","  BANCO DE SANGRE (SEPARACION DE COMPONENTES)","2do","TABURETE","N/A","N/A","N/A","NEGRO","Bueno en Uso"]
["03909","  BANCO DE SANGRE (SEPARACION DE COMPONENTES)","2do","TABURETE","N/A","N/A","N/A","NEGRO","Bueno en Uso"]
["03910","  BANCO DE SANGRE (SEPARACION DE COMPONENTES)","2do","SILLA PARA PACIENTES","N/A","N/A","N/A","NEGRO","Bueno en Uso"]
[]
["03911","  BANCO DE SANGRE (ALMACEN DE HEMODERIVADOS)","2do","MEZCLADOR DE PLAQUETAS","HELMES","BS006",996580,"GRIS","Bueno en Uso"]
["03912","  BANCO DE SANGRE (ALMACEN DE HEMODERIVADOS)","2do","MESA DE TRABAJO ","N/A","N/A","N/A","BLANCO","Bueno en Uso"]
["03913","  BANCO DE SANGRE (ALMACEN DE HEMODERIVADOS)","2do","REFRIGERADOR","ISOTEMP PLUS","N/A","107-N0025","ACEO INOX.","Bueno en Uso"]
["03914","  BANCO DE SANGRE (ALMACEN DE HEMODERIVADOS)","2do","NEVERA","ELECTROLUX","BS0045",258304,"BLANCO Y AZUL","Bueno en Uso"]
["03915","  BANCO DE SANGRE (ALMACEN DE HEMODERIVADOS)","2do","REFRIGERADOR","REVCO","THERMO","N/A","CREMA","Bueno en Uso"]
["044019","  BANCO DE SANGRE (ALMACEN DE HEMODERIVADOS)","2do","REFRIGERADOR","HELMER","BS0042",979131,"GRIS","Bueno en Uso"]
["044020","  BANCO DE SANGRE (ALMACEN DE HEMODERIVADOS)","2do","NEVERA","HKEEFRITE","RS003",2966180,"BLANCO","Bueno en Uso"]
["044021","  BANCO DE SANGRE (ALMACEN DE HEMODERIVADOS)","2do","BALANZA","OHAUS","N/A","N/A","CREMA","Bueno en Uso"]
["044022","  BANCO DE SANGRE (ALMACEN DE HEMODERIVADOS)","2do","HORNO","BOCKEL",107800,"N/A","N/A","Bueno en Uso"]
["044023","  BANCO DE SANGRE (ALMACEN DE HEMODERIVADOS)","2do","ZAFACON","N/A","N/A","N/A","METALICO","Bueno en Uso"]
["044024","  BANCO DE SANGRE (ALMACEN DE HEMODERIVADOS)","2do","SILLA SECRETARIAL","N/A","N/A","N/A","NEGRO","Bueno en Uso"]
["044025","  BANCO DE SANGRE (ALMACEN DE HEMODERIVADOS)","2do","ZAFACON","N/A","N/A","N/A","METALICO","Bueno en Uso"]
["044026","  BANCO DE SANGRE (ALMACEN DE HEMODERIVADOS)","2do","SILLA SECRETARIAL","N/A","N/A","N/A","NEGRO","Bueno en Uso"]
["044027","  BANCO DE SANGRE (ALMACEN DE HEMODERIVADOS)","2do","VACULA","N/A","N/A","N/A","ROJO","Bueno en Uso"]
[]
["03959","OFICINA DE BANCO DE SANGRE","2do","MESA PARA MEDICAR","N/A","N/A","N/A","ACERO INOX.","Bueno en Uso"]
["03960","OFICINA DE BANCO DE SANGRE","2do","ARCHIVO","N/A","N/A","N/A","CREMA OSCURO","Bueno en Uso"]
["03961","OFICINA DE BANCO DE SANGRE","2do","ESCRITORIO","N/A","N/A","N/A","BLANCO CON GRIS","Bueno en Uso"]
["03962","OFICINA DE BANCO DE SANGRE","2do","NEVERA EJECUTIVA","TECNOMASTER","N/A","N/A","GRIS","Bueno en Uso"]
["03963","OFICINA DE BANCO DE SANGRE","2do","EQUIPO DE GASES","EDAN","N/A","960360-M142C9100008","GRIS","Bueno en Uso"]
["03964","OFICINA DE BANCO DE SANGRE","2do","ANALIZADOR DE HEMATOLOGICO","URIT","RIT 300 PULS","300PE0592","CREMA","Bueno en Uso"]
["03965","OFICINA DE BANCO DE SANGRE","2do","TABURETE","N/A","N/A","N/A","ACERO INOX.","Bueno en Uso"]
["03966","OFICINA DE BANCO DE SANGRE","2do","MESA DE NOCHE","N/A","N/A","N/A","CREMA","Bueno en Uso"]
["03967","OFICINA DE BANCO DE SANGRE","2do","SILLA SECRETARIAL","N/A","N/A","N/A","NEGRO","Bueno en Uso"]
["03968","OFICINA DE BANCO DE SANGRE","2do","SILLA SECRETARIAL","N/A","N/A","N/A","NEGRO","Bueno en Uso"]
["03969","OFICINA DE BANCO DE SANGRE","2do","MONITOR","HP","HP L1950","CNK8080L27","GRIS CON NEGRO","Bueno en Uso"]
["03970","OFICINA DE BANCO DE SANGRE","2do","MICROSCOPIO","BANDESLAB","DCA-Mi02","NF11203071","CREMA","Bueno en Uso"]
["03971","OFICINA DE BANCO DE SANGRE","2do","MICROSCOPIO","CETI","N/A","N/A","BLANCO","Bueno en Uso"]
["03972","OFICINA DE BANCO DE SANGRE","2do","ANALIZADOR DE HEMATOLOGICO","SRMEX","KX-21N","B9441","CREMA","Bueno en Uso"]
["03973","OFICINA DE BANCO DE SANGRE","2do","UPS","TRIPPUTE","AGPS5180","9921ELCPS719100","NEGRO","Bueno en Uso"]
["03974","OFICINA DE BANCO DE SANGRE","2do","CENTRIFUGA","THERMO","GP10",140300217370,"CREMA CON AZUL","Bueno en Uso"]
[]
["04028","LABORATORIO (ARA DE REFIRGERACION)","2do","REFIRGERADOR","ELECTROLUX","MRP402","N/A","BLANCO","Bueno en Uso"]
["04029","LABORATORIO (ARA DE REFIRGERACION)","2do","CASILLERO EN MADERA","N/A","N/A","N/A","GRIS CON BLANCO","Bueno en Uso"]
["04030","LABORATORIO (ARA DE REFIRGERACION)","2do","GABINETE DE DOS PUERTAS","N/A","N/A","N/A","GRIS CON BLANCO","Bueno en Uso"]
["04031","LABORATORIO (ARA DE REFIRGERACION)","2do","NEVERA","MABE","N/A","N/A","GRIS CON NEGRO","Bueno en Uso"]
["04032","LABORATORIO (ARA DE REFIRGERACION)","2do","E-MEN","N/A","05R0140FEMNS","N/A","AZUL CON CREMA","Bueno en Uso"]
["04033","LABORATORIO (ARA DE REFIRGERACION)","2do","CASILLERO EN MADERA","N/A","N/A","N/A","GRIS CON BLANCO","Bueno en Uso"]
["04034","LABORATORIO (ARA DE REFIRGERACION)","2do","NEVERA","TENKO",2750,105002,"GRI CON BLANCO","Bueno en Uso"]
["04035","LABORATORIO (ARA DE REFIRGERACION)","2do","CENTRIFUGA","N/A","600RPM","B2004063BQS","CREMA","Bueno en Uso"]
[]
[]
["03916","LABORATORIO (HEMOTOLOGIA)","2do","MICROSCOPIO","RAELATICON LW","LA 865",30046,"BALNCO","Bueno en Uso"]
["03917","LABORATORIO (HEMOTOLOGIA)","2do","ERITROSEDIMENTACION","LENA",8390,2155,"BLANCO","Bueno en Uso"]
["03918","LABORATORIO (HEMOTOLOGIA)","2do"]
["03919","LABORATORIO (HEMOTOLOGIA)","2do","MONITOR","HP","HP L1940T","N/A","GRIS","Bueno en Uso"]
["03920","LABORATORIO (HEMOTOLOGIA)","2do","MINITOR","HP","EM869A","CNC71148N2","GRIS","Bueno en Uso"]
["03921","LABORATORIO (HEMOTOLOGIA)","2do","CENTRIFUGA","LW SCURTIBE","LW","V100502","GRIS","Bueno en Uso"]
[]
["03922","LABORATORIO (HEMOTOLOGIA)","2do","CENTRIFUGA","LW SCURTIBE","LW","V100502","GRIS"]
["03923","LABORATORIO (HEMOTOLOGIA)","2do","SILLA","N/A","N/A","N/A","NEGRO","Bueno en Uso"]
["03924","LABORATORIO (HEMOTOLOGIA)","2do","SILLA","N/A","N/A","N/A","AZUL","Bueno en Uso"]
["03925","LABORATORIO (HEMOTOLOGIA)","2do","SILLA","N/A","N/A","N/A","CROMADA","Bueno en Uso"]
["03926","LABORATORIO (HEMOTOLOGIA)","2do","EQUIPOS DE GASES ARTERIALES","ELX800","UNIVERSAL MICROPLATEL",159961,"GRIS","Bueno en Uso"]
["03927","LABORATORIO (HEMOTOLOGIA)","2do","CPU","DELL",122305,"CDDH291","GRIS","Bueno en Uso"]
["03928","LABORATORIO (HEMOTOLOGIA)","2do","UPS","TRIPPLETE","AGP5180","9921ELLPS719100130","NEGRO","Bueno en Uso"]
["03929","LABORATORIO (HEMOTOLOGIA)","2do","MONITOR","SYSMEX","A70-CPU","IT16802069","NEGRO","Bueno en Uso"]
["03930","LABORATORIO (HEMOTOLOGIA)","2do","UPS","APC","PRO01000","APC","NEGRO","Bueno en Uso"]
[]
["04087","LABORATORIO","2do","CENTRIFUGA","HUMAX","3X HUMAN","LD2144BA000720","BLANCO","Bueno en Uso"]
["04088","LABORATORIO","2do","COMPUTADORA","HP","PAVILION ","4CW12606N","NEGRO","Bueno en Uso"]
["04089","LABORATORIO","2do","MONITOR","DELL","N/A","CN-014413-72201-4BE-2YEL","NEGRO","Bueno en Uso"]
["04090","LABORATORIO","2do","MESA DE TRABAJO","N/A","N/A","N/A","BLANCO","Bueno en Uso"]
["04091","LABORATORIO","2do","ZAFACON","N/A","N/A","N/A","BLANCO","Bueno en Uso"]
["04092","LABORATORIO","2do","SILLA SECRETARIAL","N/A","N/A","N/A","NEGRO","Bueno en Uso"]
["04093","LABORATORIO","2do","SILLA SECRETARIAL","N/A","N/A","N/A","NEGRO","Bueno en Uso"]
["04094","LABORATORIO","2do","SILLA SECRETARIAL","N/A","N/A","N/A","NEGRO","Bueno en Uso"]
["04095","LABORATORIO","2do","SILLA SECRETARIAL","N/A","N/A","N/A","NEGRO","Bueno en Uso"]
["04096","LABORATORIO","2do","SILLA SECRETARIAL","N/A","N/A","N/A","NEGRO","Bueno en Uso"]
["04097","LABORATORIO","2do","ZAFACON","N/A","N/A","N/A","GRIS","Bueno en Uso"]
["04098","LABORATORIO","2do","ZAFACON","N/A","N/A","N/A","BLANCO","Bueno en Uso"]
["04099","LABORATORIO","2do","ZAFACON","N/A","N/A","N/A","BLANCO","Bueno en Uso"]
["04100","LABORATORIO","2do","ZAFACON","N/A","N/A","N/A","METALICO","Bueno en Uso"]
["04101","LABORATORIO","2do","ZAFACON","N/A","N/A","N/A","BLANCO","Bueno en Uso"]
["04102","LABORATORIO","2do","ZAFACON","N/A","N/A","N/A","GRIS","Bueno en Uso"]
[]
["04064","OFICINA DE LABORATORIO","2do","ESCRITORIO","N/A","N/A","N/A","MELAMINA","Bueno en Uso"]
["04065","OFICINA DE LABORATORIO","2do","MESA DE CUMPUTADORA","N/A","N/A","N/A","MELAMINA","Bueno en Uso"]
["04066","OFICINA DE LABORATORIO","2do","ANAQUEL","N/A","N/A","N/A","CREMA","Bueno en Uso"]
["04067","OFICINA DE LABORATORIO","2do","ANAQUEL","N/A","N/A","N/A","CREMA","Bueno en Uso"]
["04068","OFICINA DE LABORATORIO","2do","IMPRESORA","CANON","MF1445","2TC36282","GRIS CLARO","Bueno en Uso"]
["04069","OFICINA DE LABORATORIO","2do","COMPUTADORA","HP","PAVILION DW","4CW1181L3L","NEGRO","Bueno en Uso"]
["04070","OFICINA DE LABORATORIO","2do","COMPUTADORA","HP","PAVILION 6000P","4CM140LAL","NEGRO","Bueno en Uso"]
["04071","OFICINA DE LABORATORIO","2do","MONITOR","AOC","6000P","FERCAJA001934","NEGRO","Bueno en Uso"]
["04072","OFICINA DE LABORATORIO","2do","MONITOR","AOC","RONS","T57VRONQQIA2N","NEGRO","Bueno en Uso"]
["04073","OFICINA DE LABORATORIO","2do","ESCRITORIO","N/A","N/A","N/A","CREMA","Bueno en Uso"]
["04074","OFICINA DE LABORATORIO","2do","ESTABILIZADOR DE LUZ","N/A","XR209B","N/A","CREMA","Bueno en Uso"]
["04075","OFICINA DE LABORATORIO","2do","LAVADOR DE OJOS","N/A","N/A","N/A","MELAMINA","Bueno en Uso"]
["04076","OFICINA DE LABORATORIO","2do","MINI-CENTRIFUGA","FUSHER","MICRO D","M001967","GRIS","Bueno en Uso"]
["04077","OFICINA DE LABORATORIO","2do","MINI-CENTRIFUGA","FUSHER","GANCOX Y50",22181,"GRIS","Bueno en Uso"]
["04078","OFICINA DE LABORATORIO","2do","MEZCLADORA","VECTOX","BABNEJ","Z0977147","GRIS","Bueno en Uso"]
["04079","OFICINA DE LABORATORIO","2do","MEZCLADORA","MKER","UNICO L-WM100",510430,"CREMA","Bueno en Uso"]
[]
["040780","ALMACEN DE LABORATORIO","2do","NEVERA","FRIGIDAIRE","FFHT2126LS2","4A1300481","ACERO INOX.","Bueno en Uso"]
["040781","ALMACEN DE LABORATORIO","2do","ANAQUEL","N/A","N/A","N/A","CREMA","Bueno en Uso"]
["040782","ALMACEN DE LABORATORIO","2do","ANAQUEL","N/A","N/A","N/A","CREMA","Bueno en Uso"]
["040783","ALMACEN DE LABORATORIO","2do","ANAQUEL","N/A","N/A","N/A","CREMA","Bueno en Uso"]
["040784","ALMACEN DE LABORATORIO","2do","ANAQUEL","N/A","N/A","N/A","CREMA","Bueno en Uso"]
["040785","ALMACEN DE LABORATORIO","2do","SILLA","N/A","N/A","N/A","CREMA","Bueno en Uso"]
["040786","ALMACEN DE LABORATORIO","2do","ARCHIVO PEQUEÑA","N/A","N/A","N/A","NEGRO","Bueno en Uso"]
["040787","ALMACEN DE LABORATORIO","2do","MESA DE NOCHE","N/A","N/A","N/A","CREMA","Bueno en Uso"]
["040788","ALMACEN DE LABORATORIO","2do","ZAFACON","N/A","N/A","N/A","CREMA","Bueno en Uso"]
[]
["04056","LABORATORIO (DPTO. ORINA)","2do","COMPUTADORA","HP","PAVILION ","4CW1240B","NEGRO","Bueno en Uso"]
["04057","LABORATORIO (DPTO. ORINA)","2do","MONITOR","HP L1950","6000P","RYCNC815V28B","NEGRO","Bueno en Uso"]
["04058","LABORATORIO (DPTO. ORINA)","2do","UPS","FORZA","NT-7610",221505300588,"NEGRO","Bueno en Uso"]
["04059","LABORATORIO (DPTO. ORINA)","2do","MICROSCOPIO","OLYMPUS","CX23",5886160,"GRIS CLARO","Bueno en Uso"]
["04060","LABORATORIO (DPTO. ORINA)","2do","UPS","APC","BACKPLUS",33112597,"CREMA","Bueno en Uso"]
["04061","LABORATORIO (DPTO. ORINA)","2do","MEZCLADORA","MULTE MIX","R10004300","MYR22","GRIS","Bueno en Uso"]
["04062","LABORATORIO (DPTO. ORINA)","2do","COMPUTADORA","HP","N/A","4CW1240008","NEGRO","Bueno en Uso"]
["04063","LABORATORIO (DPTO. ORINA)","2do","MONITOR","HP","HP L1940","CNC11NTGF","NEGRO","Bueno en Uso"]
[]
["03931","LABORATORIO (DPTO. SEROLOGIA)","2do","ANALIZADOR QUIMICO","MINDRAY","BS380","ES5B002480","GRIS","Bueno en Uso"]
["04036","LABORATORIO (DPTO. SEROLOGIA)","2do","MICROSCOPIO","SCEINTIFICA","LW",158132,"BLANCO","Bueno en Uso"]
["04037","LABORATORIO (DPTO. SEROLOGIA)","2do","MICROSCOPIO","SCEINTIFICA","LW",156726,"BLANCO","Bueno en Uso"]
["04038","LABORATORIO (DPTO. SEROLOGIA)","2do","MICROSCOPIO","N/A","N/A",11302071,"GRIS CLARO","Bueno en Uso"]
["04039","LABORATORIO (DPTO. SEROLOGIA)","2do","CENTRIFUGA","UNICO","C8724X",140012,"GRIS CLARO","Bueno en Uso"]
["04040","LABORATORIO (DPTO. SEROLOGIA)","2do","CENTRIFUGA","CENTRIFUGE","802B",117,"CREMA CON VERDE","Bueno en Uso"]
["04041","LABORATORIO (DPTO. SEROLOGIA)","2do","ROTADOR LAB","CHENENDEX","DSR3300W",307001,"CREMA","Bueno en Uso"]
["04042","LABORATORIO (DPTO. SEROLOGIA)","2do","CENTRIFUGA","HUMAX","3K HUMAR","LD214BA","BLANCO","Bueno en Uso"]
["04043","LABORATORIO (DPTO. SEROLOGIA)","2do","ROTADOR ","SHA KIEN ORBITAL","KJ-201BS","N/A","AZUL","Bueno en Uso"]
["04044","LABORATORIO (DPTO. SEROLOGIA)","2do","UPS","FORZA","FX-2200LCD","8114B00272","NEGRO","Bueno en Uso"]
["04045","LABORATORIO (DPTO. SEROLOGIA)","2do","MESA DE TRABAJO","N/A","N/A","N/A","BLANCO","Bueno en Uso"]
["04046","LABORATORIO (DPTO. SEROLOGIA)","2do","MESA DE TRABAJO","N/A","N/A","N/A","BLANCO","Bueno en Uso"]
["04047","LABORATORIO (DPTO. SEROLOGIA)","2do","MESA DE TRABAJO","N/A","N/A","N/A","BLANCO","Bueno en Uso"]
["04048","LABORATORIO (DPTO. SEROLOGIA)","2do","TABURETE GIRATORIO","N/A","N/A","N/A","ACERO INOX.","Bueno en Uso"]
["04049","LABORATORIO (DPTO. SEROLOGIA)","2do","TABURETE GIRATORIO","N/A","N/A","N/A","NEGRO","Bueno en Uso"]
["04050","LABORATORIO (DPTO. SEROLOGIA)","2do","IMPRESORA","ZEBRA","LP2848PLUS","36J1538008001","CREMA","Bueno en Uso"]
["04051","LABORATORIO (DPTO. SEROLOGIA)","2do","COMPUTADORA","HP","PAVILION 6000","607816-001","NEGRO","Bueno en Uso"]
["04052","LABORATORIO (DPTO. SEROLOGIA)","2do","MONITOR","HP","HP LP1965 ","CNN8140425","NEGRO","Bueno en Uso"]
["04053","LABORATORIO (DPTO. SEROLOGIA)","2do","UPS","APC","PRO 700","N/A","N/A","Bueno en Uso"]
["04054","LABORATORIO (DPTO. SEROLOGIA)","2do","ZAFACON","N/A","N/A","N/A","BLANCO","Bueno en Uso"]
["04055","LABORATORIO (DPTO. SEROLOGIA)","2do","CENTRIFUGA","CIENTIFICA","LMSM24",911327,"CREMA","Bueno en Uso"]
[]
["03932","LAB. (AREA DE ESTERILIZACION)","2do","AUTOCLAVE","AMERICAN","75X",1909,"ALUMINIO","Bueno en Uso"]
["03933","LAB. (AREA DE ESTERILIZACION)","2do","AUTOCLAVE","AMERICAN","25X1",1005,"ALUMINIO","Bueno en Uso"]
["03934","LAB. (AREA DE ESTERILIZACION)","2do","HORNO","FISHER","N/A","N/A","GRIS","Bueno en Uso"]
["03935","LAB. (AREA DE ESTERILIZACION)","2do","HORNO","CIENTIFIC",6506,"50N0167","GRIS","Bueno en Uso"]
["03936","LAB. (AREA DE ESTERILIZACION)","2do","NEVERA SEMI-EJECUTIVO","NEDOCA","TRS05000M0",10223893032,"BLANCO","Bueno en Uso"]
["03937","LAB. (AREA DE ESTERILIZACION)","2do","NEVERA SEMI-EJECUTIVO","N/A","N/A","N/A","GRIS","Bueno en Uso"]
["03938","LAB. (AREA DE ESTERILIZACION)","2do","MESA DE TRABAJO","N/A","N/A","N/A","ACERO INOX.","Bueno en Uso"]
["03939","LAB. (AREA DE ESTERILIZACION)","2do","MESA DE NOCHE","N/A","N/A","N/A","AZUL CON CREMA","Bueno en Uso"]
["03940","LAB. (AREA DE ESTERILIZACION)","2do","ESCRITORIO","N/A","N/A","N/A","GRIS CON AZUL","Bueno en Uso"]
["03941","LAB. (AREA DE ESTERILIZACION)","2do","SILLA SECRETARIAL","N/A","N/A","N/A","NEGRO","Bueno en Uso"]
["03942","LAB. (AREA DE ESTERILIZACION)","2do","MESA PARA CAFETERIA","N/A","N/A","N/A","MELAMINA","Bueno en Uso"]
["03943","LAB. (AREA DE ESTERILIZACION)","2do","ZAFACON","N/A","N/A","N/A","GRIS","Bueno en Uso"]
[]
["03944","COCINA DE LABORATORIO","2do","GABINETE","N/A","N/A","N/A","GRIS","Bueno en Uso"]
["03945","COCINA DE LABORATORIO","2do","MESATA EN L","N/A","N/A","N/A","GRIS","Bueno en Uso"]
["03946","COCINA DE LABORATORIO","2do","MESA","N/A","N/A","N/A","BLANCO","Bueno en Uso"]
["03947","COCINA DE LABORATORIO","2do","BANCADA DE 4 ASIENTO","N/A","N/A","N/A","GRIS","Bueno en Uso"]
["03948","COCINA DE LABORATORIO","2do","SILLA PLEGADIZA","N/A","N/A","N/A","CREMA","Bueno en Uso"]
["03949","COCINA DE LABORATORIO","2do","NEVERA","NEDOCA","N/A",12726,"BLANCO","Bueno en Uso"]
["03950","COCINA DE LABORATORIO","2do","MICROONDA","N/A","N/A",3406292130382410,"GRIS","Bueno en Uso"]
["03951","COCINA DE LABORATORIO","2do","BEBEDERO","DAIWA","DW2-6","N/A","CREMA","Bueno en Uso"]
["03952","COCINA DE LABORATORIO","2do","BANCADA","N/A","N/A","N/A","GRIS","Bueno en Uso"]
["03953","COCINA DE LABORATORIO","2do","ZAFACON","N/A","N/A","N/A","GRIS","Bueno en Uso"]
["03954","COCINA DE LABORATORIO","2do","ESTUFA","N/A","N/A","N/A","NEGRO","Bueno en Uso"]
["03955","COCINA DE LABORATORIO","2do","SILLA SECRETARIAL","N/A","N/A","N/A","NEGRO","Bueno en Uso"]
["03956","COCINA DE LABORATORIO","2do","SILLA SECRETARIAL","N/A","N/A","N/A","NEGRO","Bueno en Uso"]
["03957","COCINA DE LABORATORIO","2do","PORTA ROPA","N/A","N/A","N/A","CAOBA","Bueno en Uso"]
["03958","COCINA DE LABORATORIO","2do","ARCHIVO","N/A","N/A","N/A","GRIS","Bueno en Uso"]
[]
["04103","CIRUGIA GENERAL PRE-QUIROFANO","4to","VITRINA","N/A","N/A","N/A","ACERO INOX.","Bueno en Uso"]
["04104","CIRUGIA GENERAL PRE-QUIROFANO","4to","ESCRITORIO","N/A","N/A","N/A","TOPE DE CRISTAL","Bueno en Uso"]
["04105","CIRUGIA GENERAL PRE-QUIROFANO","4to","SILLA SECRETARIAL","N/A","N/A","N/A","NEGRO","Bueno en Uso"]
["04106","CIRUGIA GENERAL PRE-QUIROFANO","4to","SILLA SECRETARIAL","N/A","N/A","N/A","NEGRO","Bueno en Uso"]
["04107","CIRUGIA GENERAL PRE-QUIROFANO","4to","PIE DE SUERO","N/A","N/A","N/A","ACERO INOX.","Bueno en Uso"]
["04108","CIRUGIA GENERAL PRE-QUIROFANO","4to","TABURETE","N/A","N/A","N/A","ACERO INOX.","Bueno en Uso"]
["04109","CIRUGIA GENERAL PRE-QUIROFANO","4to","PIE DE SUERO","N/A","N/A","N/A","ACERO INOX.","Bueno en Uso"]
["04110","CIRUGIA GENERAL PRE-QUIROFANO","4to","CAMILLA DE TRANSPORTE","N/A","N/A","N/A","CREMA","Bueno en Uso"]
["04111","CIRUGIA GENERAL PRE-QUIROFANO","4to","PIE DE SUERO","N/A","N/A","N/A","ACERO INOX.","Bueno en Uso"]
["04112","CIRUGIA GENERAL PRE-QUIROFANO","4to","PIE DE SUERO","N/A","N/A","N/A","ACERO INOX.","Bueno en Uso"]
["04113","CIRUGIA GENERAL PRE-QUIROFANO","4to","ZAFACON","N/A","N/A","N/A","GRIS","Bueno en Uso"]
["04114","CIRUGIA GENERAL PRE-QUIROFANO","4to","ZAFACON","N/A","N/A","N/A","BLANCO","Bueno en Uso"]
[]
["04115","CIRUGIA GENERAL ( SALA DE RECUPERACION)","4to","VETRINA","N/A","N/A","N/A","ACERO INOX.","Bueno en Uso"]
["04116","CIRUGIA GENERAL ( SALA DE RECUPERACION)","4to","MESITA DE NOCHE","N/A","N/A","N/A","CREMA","Bueno en Uso"]
["04117","CIRUGIA GENERAL ( SALA DE RECUPERACION)","4to","CAUNTER","N/A","N/A","N/A","TOPE EN MELAMINA","Bueno en Uso"]
["04118","CIRUGIA GENERAL ( SALA DE RECUPERACION)","4to","SILL A PARA VISITAS","N/A","N/A","N/A","NEGRO","Bueno en Uso"]
["04119","CIRUGIA GENERAL ( SALA DE RECUPERACION)","4to","SILLA PARA PACIENTE","N/A","N/A","N/A","NEGRO","Bueno en Uso"]
["04120","CIRUGIA GENERAL ( SALA DE RECUPERACION)","4to","SILLA PARA VISITAS","N/A","N/A","N/A","NEGRO","Bueno en Uso"]
["04121","CIRUGIA GENERAL ( SALA DE RECUPERACION)","4to","PORTE RECORD","N/A","N/A","N/A","AZUL CON CREMA","Bueno en Uso"]
["04122","CIRUGIA GENERAL ( SALA DE RECUPERACION)","4to","CARRO DE PARO","METRO","COS99B03",48701,"CREMA CON MORADO","Bueno en Uso"]
["04123","CIRUGIA GENERAL ( SALA DE RECUPERACION)","4to","ESFIGMOMANOMETRO DE PEDESTAL","N/A","N/A","N/A","ACERO INOX.","Bueno en Uso"]
["04124","CIRUGIA GENERAL ( SALA DE RECUPERACION)","4to","MESETA CON FREGADERO","N/A","N/A","N/A","ACERO INOX.","Bueno en Uso"]
["04125","CIRUGIA GENERAL ( SALA DE RECUPERACION)","4to","MESETA CON FREGADERO","N/A","N/A","N/A","ACERO INOX.","Bueno en Uso"]
["04126","CIRUGIA GENERAL ( SALA DE RECUPERACION)","4to","CARRO PARA MEDICAR","N/A","N/A","N/A","ACERO INOX.","Bueno en Uso"]
["04127","CIRUGIA GENERAL ( SALA DE RECUPERACION)","4to","ZAFACON","N/A","N/A","N/A","ROJO","Bueno en Uso"]
["04128","CIRUGIA GENERAL ( SALA DE RECUPERACION)","4to","MESA DE NOCHE","N/A","N/A","N/A","CREMA CON BLANCO","Bueno en Uso"]
["04129","CIRUGIA GENERAL ( SALA DE RECUPERACION)","4to","CAMA PARA PACIENTES","JASON CARE",201510,1510068968,"CREMA","Bueno en Uso"]
["04130","CIRUGIA GENERAL ( SALA DE RECUPERACION)","4to","CAMA PARA PACIENTES","JASON CARE",201510,1510068969,"CREMA","Bueno en Uso"]
["04131","CIRUGIA GENERAL ( SALA DE RECUPERACION)","4to","CAMA PARA PACIENTES","JASON CARE",201510,1510068967,"CREMA","Bueno en Uso"]
["04132","CIRUGIA GENERAL ( SALA DE RECUPERACION)","4to","CAMA PARA PACIENTES","JASON CARE",201510,1510068963,"CREMA","Bueno en Uso"]
["04133","CIRUGIA GENERAL ( SALA DE RECUPERACION)","4to","CAMA PARA PACIENTES","JASON CARE",201510,1510068972,"CREMA","Bueno en Uso"]
["04134","CIRUGIA GENERAL ( SALA DE RECUPERACION)","4to","MESA DE NOCHE","N/A","N/A","N/A","CREMA CON BLANCO","Bueno en Uso"]
["04135","CIRUGIA GENERAL ( SALA DE RECUPERACION)","4to","MONITOR DE SIGNOS VITALES","ADVANCED","PM-200 APRO","3014-1009","AZUL CON BLANCO","Bueno en Uso"]
["04136","CIRUGIA GENERAL ( SALA DE RECUPERACION)","4to","MONITOR DE SIGNOS VITALES","MEK","PM-200 APRO","NTPQAEE0142","GRIS","Bueno en Uso"]
["04137","CIRUGIA GENERAL ( SALA DE RECUPERACION)","4to","MESA DE NOCHE","N/A","N/A","N/A","CREMA","Bueno en Uso"]
["04138","CIRUGIA GENERAL ( SALA DE RECUPERACION)","4to","PIE DE SUERO","N/A","N/A","N/A","ACERO INOX.","Bueno en Uso"]
["04139","CIRUGIA GENERAL ( SALA DE RECUPERACION)","4to","MONITOR DE SIGNOS VITALES","MEK","VT","NTPQAE0146","BLANCO CON AZUL","Bueno en Uso"]
["04140","CIRUGIA GENERAL ( SALA DE RECUPERACION)","4to","VENTILADOR","MAQUEL",6862000,13723,"BLANCO COLONIAL","Bueno en Uso"]
["04141","CIRUGIA GENERAL ( SALA DE RECUPERACION)","4to","MESA DE NOCHE","N/A","N/A","N/A","BLANCO","Bueno en Uso"]
["04142","CIRUGIA GENERAL ( SALA DE RECUPERACION)","4to","MONITOR DE SIGNOS VITALES","N/A","N/A","NTQA2E0133","AZUL CON BLANCO","Bueno en Uso"]
["04143","CIRUGIA GENERAL ( SALA DE RECUPERACION)","4to","MESA DE NOCHE","N/A","N/A","N/A","CREMA CON BLANCO","Bueno en Uso"]
["04144","CIRUGIA GENERAL ( SALA DE RECUPERACION)","4to","TABURETE","N/A","N/A","N/A","ACERO INOX.","Bueno en Uso"]

{"sheet":"Listas","index":1,"n_rows":1900,"n_cols":6,"rows_kept":1900}
[]
["EESS","SRS","Representantes Activo Fijo","Nivel","Descripción del Bien"]
["SERVICIO NACIONAL DE SALUD EDIFICIO 1","0- Metropolitano","Milagros Karina Moya","1er","Aparatos telegráficos"]
["SERVICIO NACIONAL DE SALUD EDIFICIO 2","1- Valdesia","Dawil Antonio González","2do","Centrales y aparatos telefónicos"]
["SERVICIO NACIONAL DE SALUD EDIFICIO 1 Y EDIFICIO 2","2- Norcentral","Clara Virginia Alies","3ro","Equipo de computación"]
["ACOPRO","3- Nordeste","Floro B. Mercedes","4to","Equipo de comunicación y señalamiento, plantas y torres de transmisión"]
["ACTIVO 20-30 (SAI)","4- Enriquillo","Leonardo Pereyra","5to","Equipo de señalización"]
["AEROPUERTO EL HIGUERO","5- Este","Rafael Checo","6to","Equipo de televisión"]
["ALBERGUE INFANTIL EL ALMENDRO","6- El Valle","Luis Silverio","7mo","Equipo de transporte, tracción y elevación"]
["ALCARRIZOS I","7- Cibao Occidental","Nelson Rojas Mejía","8vo","Equipo educacional y recreativo"]
["ALCARRIZOS II","8- Cibao Central","José J. Martínez","9no","Equipo médico y sanitario"]
["ALDEAS INFANTILES S.O.S",null,null,"10mo","Equipos"]
["ALMIRANTE",{"$nulls":3},"Equipos de aeronavegación y marítimo"]
["AMERICA LATINA",{"$nulls":3},"Equipos de seguridad"]
["AMICO",{"$nulls":3},"Equipos varios"]
["ANA Y JOAQUIN",{"$nulls":3},"Equipos y muebles de oficina"]
["ANTI TUBERCULOSO INFANTIL",{"$nulls":3},"Herramientas y repuestos mayores"]
["ANTITUBERCULOSO DE ADULTO",{"$nulls":3},"Maquinarias y equipos de producción"]
["ANTON SANCHEZ",{"$nulls":3},"Mobiliario"]
["ANTONCI",{"$nulls":3},"Otros equipos de comunicación"]
["APRODEGUA",{"$nulls":3},"Otros equipos similares"]
["APRODEMIS",{"$nulls":3},"Receptora de radio"]
["ARS- COLEGIO MEDICO DOMINICANO",{"$nulls":3},"Tele tipos"]
["ASCENSION DEL SEÑOR",{"$nulls":3},""]
["ASCOM",{"$nulls":3},"",{"$f":"LOWER(E25)","v":""}]
["ASOCIACION DOMINICANA DE REHABILITACION",{"$nulls":3},"",""]
["AUXILIO MUTUO",{"$nulls":3},"",""]
["AUXILIO MUTUO",{"$nulls":3},"",""]
["AVE MARIA",{"$nulls":3},"",""]
["BARRIO DUARTE",{"$nulls":3},"",""]
["BARRIO ENRIQUILLO",{"$nulls":3},"",""]
["BARRIO ENRIQUILLO",{"$nulls":3},"",""]
["BASE NAVAL 27 DE FEBRERO (MARINA DE GUERRA)",{"$nulls":3},"",""]
["BAYONA",{"$nulls":3},"",""]
["BELLAS COLINAS",{"$nulls":3},"",""]
["BENITO JUAREZ",{"$nulls":3},"",""]
["BIENVENIDO",{"$nulls":3},"",""]
["BOCA CHICA",{"$nulls":3},"",""]
["BOCA CHICA I",{"$nulls":3},"",""]
["BOCA CHICA II",{"$nulls":3},"",""]
["BOYA",{"$nulls":3},"",""]
["BRISAS DEL ESTE",{"$nulls":3},"",""]
["CABALLONA",{"$nulls":3},"",""]
["CABEZA DE TORO",{"$nulls":3},"",""]
["CAMPAMENTO 16 DE AGOSTO",{"$nulls":3},"",""]
["CAMPO LINDO I",{"$nulls":3},"",""]
["CAMPO LINDO II",{"$nulls":3},"",""]
["CANCINO ADENTRO",{"$nulls":3},"",""]
["CANILLITAS CON DON BOSCO",{"$nulls":3},"",""]
["CARDENAL SANCHA",{"$nulls":3},"",""]
["CARITA DOMINICANAS",{"$nulls":3},"",""]
["CARITAS ARQUIDIOCESANA DE SANTO DOMINGO",{"$nulls":3},"",""]
["CASA EMAUS",{"$nulls":3},"",""]
["CASA ROSADA",{"$nulls":3},"",""]
["CECANOT",{"$nulls":3},"",""]
["CENCENT",{"$nulls":3},"",""]
["CENSI",{"$nulls":3},"",""]
["CENTRO CLINICO DIGNOSTICO BAYAGUANA",{"$nulls":3},"",""]
["CENTRO CLINICO Y DE DIAGNOSTICO DE ATENCION PRIMARIA VILLA LIBREACION",{"$nulls":3},"",""]
["CENTRO CLINICO Y DIAGNOSTICO DE ATENCION PRIMARIA LA FERIA",{"$nulls":3},"",""]
["CENTRO CLÍNICO Y DIAGNOSTICO DE ATENCIÓN PRIMARIA ZONA D.",{"$nulls":3},"",""]
["CENTRO CLÍNICO Y DIAGNOSTICO DE ATENCIÓN PRIMARIA ZONA G.",{"$nulls":3},"",""]
["CENTRO CRISTIANO DE SERVICIOS MEDICOS",{"$nulls":3},"",""]
["CENTRO DE ATENCION INTEGRAL A LAS DEPENDENCIAS",{"$nulls":3},"",""]
["CENTRO DE ATENCION Y ESPECILIDADES (CAE)",{"$nulls":3},"",""]
["CENTRO DE DIAGNOSTICO BARNEY MORGAN DNE",{"$nulls":3},"",""]
["CENTRO DE EDUCACION MEDICA DE AMISTAD DOMINICO JAPONESA (CEMADOJA)",{"$nulls":3},"",""]
["CENTRO DE GASTROENTEROLOGIA",{"$nulls":3},"",""]
["CENTRO DE PRIMER NIVEL  DE ATENCIÓN JOSE CONTRERAS",{"$nulls":3},"",""]
["CENTRO DE PRIMER NIVEL  DE ATENCIÓN LOS PERALEJOS",{"$nulls":3},"",""]
["CENTRO DE PRIMER NIVEL DE ATENCIÓN  LA AGUSTINITA",{"$nulls":3},"",""]
["CENTRO DE PRIMER NIVEL DE ATENCIÓN  PEDRO MIR",{"$nulls":3},"",""]
["CENTRO DE PRIMER NIVEL DE ATENCIÓN 30 DE MAYO",{"$nulls":3},"",""]
["CENTRO DE PRIMER NIVEL DE ATENCIÓN CARMEN RENATA",{"$nulls":3},"",""]
["CENTRO DE PRIMER NIVEL DE ATENCIÓN EL CALICHE DE LOS RÍOS",{"$nulls":3},"",""]
["CENTRO DE PRIMER NIVEL DE ATENCION EL FERNANDEZ",{"$nulls":3},"",""]
["CENTRO DE PRIMER NIVEL DE ATENCIÓN GREGORIO LUPERON",{"$nulls":3},"",""]
["CENTRO DE PRIMER NIVEL DE ATENCION PALMA REAL",{"$nulls":3},"",""]
["CENTRO DE PRIMER NIVEL EVANGELINA RODRIGUEZ (INTEC)",{"$nulls":3},"",""]
["CENTRO DE PRIMER NIVEL MANGANAGUA",{"$nulls":3},"",""]
["CENTRO DE PRIMER NIVEL PUERTO ISABELA",{"$nulls":3},"",""]
["CENTRO DE RECURSOS EDUCATIVOS PARA LA DISCAPACIDAD VISUAL OLGA ESTRELLA",{"$nulls":3},"",""]
["CENTRO DE REHABILITACIÓN PSICOSOCIAL PADRE BILLINI",{"$nulls":3},"",""]
["CENTRO DE SALUD COMUNITARIO (CESAC)",{"$nulls":3},"",""]
["CENTRO DE SALUD COMUNITARIO CIUDAD DEL ESTE SEGUNDA",{"$nulls":3},"",""]
["CENTRO DE SALUD PADRE JUAN LAMBERT",{"$nulls":3},"",""]
["CENTRO DE SALUD PARROQUIAL SANTA MARIA REINA",{"$nulls":3},"",""]
["CENTRO DIAGNOSTICO GREGORIO LUPERON",{"$nulls":3},"",""]
["CENTRO DIAGNOSTICO HATO NUEVO MANOGUAYABO",{"$nulls":3},"",{"$f":"LOWER(E89)","v":""}]
["CENTRO DIAGNOSTICO MONTE PLATA",{"$nulls":3},"",""]
["CENTRO DIAGNOSTICO PEDRO BRAND",{"$nulls":3},"",""]
["CENTRO DIAGNOSTICO Y CLÍNICO MATA HAMBRE",{"$nulls":3},"",""]
["CENTRO INTEGRAL DE ATENCIÓN PRIMARIA EN SALUD DR. MANUEL TEJADA FLORENTINO",{"$nulls":3},"",""]
["CENTRO MEDICO COMUNITARIO LOS CORALES CAÑA",{"$nulls":3},"",""]
["CENTRO MEDICO NUESTRA SENORA DE LAS MERCEDES",{"$nulls":3},"",""]
["CENTRO MEDICO TRANSFERENCIA",{"$nulls":3},"",""]
["CENTRO PARROQUIAL SANTO TOMAS DE VILLANUEVA",{"$nulls":3},"",""]
["CENTRO SANITARIO",{"$nulls":3},"",""]
["CHIRINO",{"$nulls":3},"",""]
["CLUB 16 DE AGOSTO",{"$nulls":3},"",""]
["CLUB DE MADRE LA ZURZA",{"$nulls":3},"",""]
["CLUB LEONIDAS SOLANO",{"$nulls":3},"",""]
["CODIA",{"$nulls":3},"",""]
["COIN",{"$nulls":3},"",""]
["COLEGIO EVANGÉLICO CRISTIANO LA TRINIDAD",{"$nulls":3},"",""]
["COLEGIO QUISQUEYA",{"$nulls":3},"",""]
["COMUNAL EL CAFÉ",{"$nulls":3},"",""]
["COMUNAL LAS PALMAS",{"$nulls":3},"",""]
["CONAVIHSIDA (ALMACEN NACIONAL DE VIH)",{"$nulls":3},"",""]
["CONGREGACION HERMANITAS DE LOS ANCIANOS DESAMPARADOS HOGAR SAN FRANCISCO DE ASIS",{"$nulls":3},"",""]
["CONSULTORIO MEDICO ESC. COLEGIO LOYOLA",{"$nulls":3},"",""]
["CONSULTORIO MEDICO ESCOLAR DIVINA PROVIDENCIA",{"$nulls":3},"",""]
["CONSULTORIO MEDICO ESCUELA AMELIA RICART CALVENTI",{"$nulls":3},"",""]
["CONSULTORIO MEDICO ESCUELA ANTONIO DUVERGE",{"$nulls":3},"",""]
["CONSULTORIO MEDICO ESCUELA CASA DE LA PROVIDENCIA",{"$nulls":3},"",""]
["CONSULTORIO MEDICO ESCUELA CLARET",{"$nulls":3},"",""]
["CONSULTORIO MEDICO ESCUELA ENRIQUE JIMENEZ MOYA",{"$nulls":3},"",""]
["CONSULTORIO MEDICO ESCUELA FRANCISCO ULISES DOMINGUEZ",{"$nulls":3},"",""]
["CONSULTORIO MEDICO ESCUELA FRAY RAMON PANE",{"$nulls":3},"",""]
["CONSULTORIO MEDICO ESCUELA MALAQUIAS GIL",{"$nulls":3},"",""]
["CONSULTORIO MEDICO ESCUELA MARIA FANIA ENCARNACION",{"$nulls":3},"",""]
["CONSULTORIO MEDICO ESCUELA MARILLAC",{"$nulls":3},"",""]
["CONSULTORIO MEDICO ESCUELA NACIONAL ARTE Y OFICIO (ENAO)",{"$nulls":3},"",""]
["CONSULTORIO MEDICO ESCUELA NUESTRA SEÑORA DE LA FE",{"$nulls":3},"",""]
["CONSULTORIO MEDICO ESCUELA PROFESOR JUAN BOSCH",{"$nulls":3},"",""]
["CONSULTORIO MEDICO ESCUELA ROSA DUARTE",{"$nulls":3},"",""]
["CONSULTORIO MEDICO ESCUELA VICTOR ESTRELLA LIZ",{"$nulls":3},"",""]
["CONSULTORIO MEDICO ESCUELA VICTOR GARRIDO",{"$nulls":3},"",""]
["CONSULTORIO MEDICO EUCARISTIA Y VISITACION",{"$nulls":3},"",""]
["CONSULTORIO MEDICO FIDEL FERRER",{"$nulls":3},"",""]
["CONSULTORIO MEDICO GUACHUPITA",{"$nulls":3},"",""]
["CONSULTORIO MEDICO SANTISIMA TRINIDAD",{"$nulls":3},"",""]
["CONSULTORIO MEDICO TECNICO PROFESIONAL (MOVEARTE)",{"$nulls":3},"",""]
["CONSULTORIO PARROQUIAL SANTA GEMMA",{"$nulls":3},"",""]
["CONTRIBUYENTE NO EXISTE EN EL PADRÓN DE RNC",{"$nulls":3},"",""]
["COPRESIDA SAN LUIS",{"$nulls":3},"",""]
["CORALES CAÑA",{"$nulls":3},"",""]
["COSALUP",{"$nulls":3},"",""]
["CPN LAS CINCO CASAS",{"$nulls":3},"",""]
["CPN LOS SOSA",{"$nulls":3},"",""]
["CPN MARÍA MATILDE ESTÉVEZ",{"$nulls":3},"",""]
["CPN MARTINA GOMEZ",{"$nulls":3},"",""]
["CPN REFORMA DE DAJAO",{"$nulls":3},"",""]
["CPN SIERRA DE AGUA",{"$nulls":3},"",""]
["CRUZ ROJA DOMINICANA",{"$nulls":3},"",""]
["CTU",{"$nulls":3},"",""]
["DARIO CONTRERAS",{"$nulls":3},"",""]
["DAVID SANTIAGO",{"$nulls":3},"",""]
["DE LA MANO CON JESUS",{"$nulls":3},"",""]
["DIRECCION DE AREA  DE SALUD I (DPS)",{"$nulls":3},"",""]
["DIRECCION DE AREA DE SALUD II (DPS)",{"$nulls":3},"",""]
["DIRECCION DE AREA DE SALUD III (DPS)",{"$nulls":3},"",""]
["DIRECCION DE ÁREA DE SALUD IV (DPS)",{"$nulls":3},"",{"$f":"LOWER(E153)","v":""}]
["DIRECCION DE AREA DE SALUD V (DPS)",{"$nulls":3},"",""]
["DIRECCION DE AREA DE SALUD VI (DPS)",{"$nulls":3},"",""]
["DIRECCION DE AREA DE SALUD VII (DPS)",{"$nulls":3},"",""]
["DIRECCION DE AREA DE SALUD VIII (DPS)",{"$nulls":3},"",""]
["DIRECCION DE AREA V DE SALUD",{"$nulls":3},"",""]
["DIRECCION GENERAL DE CONTROL DE LAS INFECCIONES SEXUALES(DIGECITSS)",{"$nulls":3},"",""]
["DIRECCION PROVINCIAL DE SALUD MONTE PLATA",{"$nulls":3},"",""]
["DISPENSARIO MÉDICO CRISTO OBRERO",{"$nulls":3},"",""]
["DISPENSARIO MEDICO DR. OCTAVIANO LEROUX PARROQUIA CRISTO REY",{"$nulls":3},"",""]
["DISPENSARIO MEDICO EL BONITO",{"$nulls":3},"",""]
["DISPENSARIO MEDICO HERMANOS QUINTERO",{"$nulls":3},"",""]
["DISPENSARIO MEDICO INMACULADA CONCEPCION",{"$nulls":3},"",""]
["DISPENSARIO MEDICO LA ESPERILLA",{"$nulls":3},"",""]
["DISPENSARIO MEDICO NUESTRA SEÑORA DE LA ALTAGRACIA",{"$nulls":3},"",""]
["DISPENSARIO MEDICO NUESTRA SEÑORA DE LA SALUD SIERVAS DE MARIA",{"$nulls":3},"",""]
["DISPENSARIO MEDICO PARROQUIAL SAN PABLO APOSTOL",{"$nulls":3},"",""]
["DISPENSARIO MEDICO SAN JOSE",{"$nulls":3},"",""]
["DISPENSARIO MEDICO SANTA MONICA",{"$nulls":3},"",""]
["DISPENSARIO MEDICO SANTO TOMAS DE AQUINO",{"$nulls":3},"",""]
["DISPENSARIO PARROQUIAL MARIA AUXILIADORA",{"$nulls":3},"",""]
["DISPENSARIO PARROQUIAL NUESTRA SEÑORA DEL ROSARIO",{"$nulls":3},"",""]
["DISPENSARIO SAN JOSE DE CALASANZ",{"$nulls":3},"",""]
["DOCENTE PADRE BILLINI",{"$nulls":3},"",""]
["DOCTOR ANGEL CONTRERAS",{"$nulls":3},"",""]
["DOCTOR PEDRO HEREDIA ROJAS",{"$nulls":3},"",""]
["DON ESMERALDO DIAZ",{"$nulls":3},"",""]
["DON JUAN",{"$nulls":3},"",""]
["DR FRANCISCO E MOSCOSO PUELLO",{"$nulls":3},"",""]
["DR MARCELINO VELEZ SANTANA",{"$nulls":3},"",""]
["DR. INOCENCIO DIAZ PIÑEIRO",{"$nulls":3},"",""]
["DR. LUIS EDUARDO AYBAR",{"$nulls":3},"",""]
["EL CABRETO",{"$nulls":3},"",""]
["EL CABRETO II",{"$nulls":3},"",""]
["EL CACIQUE",{"$nulls":3},"",""]
["EL CHACARO",{"$nulls":3},"",""]
["EL COPEY",{"$nulls":3},"",""]
["EL DEAN",{"$nulls":3},"",""]
["EL DIQUE",{"$nulls":3},"",""]
["EL DIQUE",{"$nulls":3},"",""]
["EL GUANITO",{"$nulls":3},"",""]
["EL GUINEO",{"$nulls":3},"",""]
["EL MAMON",{"$nulls":3},"",""]
["EL MILLONCITO (AMERICA LATINA II)",{"$nulls":3},"",""]
["EL PALMAR DE HERRERA",{"$nulls":3},"",""]
["EL PEDREGAL",{"$nulls":3},"",""]
["ELVIRA ECHAVARRIA VDA CASTILLO (GUERRA)",{"$nulls":3},"",""]
["EMMA BALAGUER",{"$nulls":3},"",""]
["ENFERMEDADES RESPIRATORIAS",{"$nulls":3},"",""]
["ENGOMBE",{"$nulls":3},"",""]
["ENSANCHE LUPERON",{"$nulls":3},"",""]
["ESCOLAR ECUADOR",{"$nulls":3},"",""]
["ESCUELA  JUAN BAUTISTA ZAFRA",{"$nulls":3},"",""]
["ESCUELA  PILAR CONSTANZO",{"$nulls":3},"",""]
["ESCUELA AIDA CARTAGENA PORTALATIN",{"$nulls":3},"",""]
["ESCUELA BARTOLOME",{"$nulls":3},"",""]
["ESCUELA CARDENAL SANCHAZ",{"$nulls":3},"",""]
["ESCUELA COLOMBIA",{"$nulls":3},"",""]
["ESCUELA CRISTOBALINA BATISTA",{"$nulls":3},"",""]
["ESCUELA CURAZAO (LIBERTADOR)",{"$nulls":3},"",""]
["ESCUELA DUARTE",{"$nulls":3},"",""]
["ESCUELA ENMA BALAGUER",{"$nulls":3},"",""]
["ESCUELA ESPAÑA",{"$nulls":3},"",""]
["ESCUELA FRANCISCO XAVIER BILLINI",{"$nulls":3},"",""]
["ESCUELA HAITI",{"$nulls":3},"",{"$f":"LOWER(E217)","v":""}]
["ESCUELA ISVNA GUZMAN KLANG",{"$nulls":3},"",""]
["ESCUELA LAS MERCEDES",{"$nulls":3},"",""]
["ESCUELA LAURA CON VIZCUÑA",{"$nulls":3},"",""]
["ESCUELA LEONCIO MANZUETA (ANTIGUA SANTA CRUZ)",{"$nulls":3},"",""]
["ESCUELA LOMA DEL CHIVO",{"$nulls":3},"",""]
["ESCUELA PERU",{"$nulls":3},"",""]
["ESCUELA PRIMARIA CELINA PELLIER",{"$nulls":3},"",""]
["ESCUELA PRIMARIA PUERTO RICO",{"$nulls":3},"",""]
["ESCUELA PUERTO ISABELA",{"$nulls":3},"",""]
["ESCUELA RAFAELA SANTA ELLA",{"$nulls":3},"",""]
["ESCUELA RAMON MATIAS MELLA",{"$nulls":3},"",""]
["ESCUELA REPÚBLICA DE BRASIL",{"$nulls":3},"",""]
["ESCUELA REPÚBLICA DE CHILE",{"$nulls":3},"",""]
["ESCUELA REPÚBLICA DE HONDURAS",{"$nulls":3},"",""]
["ESCUELA REPUBLICA DE PANAMA",{"$nulls":3},"",""]
["ESCUELA REPUBLICA DOMINICANA",{"$nulls":3},"",""]
["ESCUELA SALOME UREÑA DE HENRIQUEZ",{"$nulls":3},"",""]
["ESCUELA SAN JOSE",{"$nulls":3},"",""]
["ESCUELA SAN LEONARDO",{"$nulls":3},"",""]
["ESCUELA SAN PABLO APOSTOL",{"$nulls":3},"",""]
["ESCUELA SANTA TERESITA DE JESUS",{"$nulls":3},"",""]
["ESCUELA SOCORRO SANCHEZ",{"$nulls":3},"",""]
["ESCUELA SORDO MUDOS",{"$nulls":3},"",""]
["ESCUELA URUGUAY",{"$nulls":3},"",""]
["ESCUELA VARIAS LUCES",{"$nulls":3},"",""]
["ESCUELA VEDRUNA",{"$nulls":3},"",""]
["ESPIRITU SANTO",{"$nulls":3},"",""]
["ESTANCIA NUEVA",{"$nulls":3},"",""]
["EVANGELINA RODRIGUEZ (PRO FAMILIA)",{"$nulls":3},"",""]
["EXPERIMENTAL DE LA UASD",{"$nulls":3},"",""]
["FE Y ALABANZA",{"$nulls":3},"",""]
["FE Y ALEGRIA",{"$nulls":3},"",""]
["FEDOPO",{"$nulls":3},"",""]
["FERNANDO ARTURO DE MERIÑO",{"$nulls":3},"",""]
["FUNDACION ACCION SOLIDARIA (ASOLI)",{"$nulls":3},"",""]
["FUNDACION ANGEL ARIEL INC,",{"$nulls":3},"",""]
["FUNDACIÓN CLEO SANCHEZ",{"$nulls":3},"",""]
["FUNDACIÓN COMPROMISO SIGLO XXI (FUNDACOSI)",{"$nulls":3},"",""]
["FUNDACIÓN DOÑA MARTHA",{"$nulls":3},"",""]
["FUNDACION FAMILIAS UNIDAS",{"$nulls":3},"",""]
["FUNDACION MONSEÑOR GOMEZ",{"$nulls":3},"",""]
["FUNDACIÓN NTRA. SRA. DE LA DIVINA PROVIDENCIA",{"$nulls":3},"",""]
["FUNDACIÓN NUESTRA SEÑORA DEL CARMEN",{"$nulls":3},"",""]
["FUNDACIÓN PADRE FERMIN",{"$nulls":3},"",""]
["FUNDACION PRIVADA VIDA Y ESPERANZA DOMINICANA",{"$nulls":3},"",""]
["FUNDACION SOL NACIENTE",{"$nulls":3},"",""]
["FUNDAMUSA",{"$nulls":3},"",""]
["GENERAL DOCTOR VINICIO CALVENTI",{"$nulls":3},"",""]
["GERENCIA DE AREA DE SALUD SANTO DOMINGO NORTE (AREA II)",{"$nulls":3},"",""]
["GERENCIA DE AREA DE SALUD SANTO DOMINGO OESTE (AREA V)",{"$nulls":3},"",""]
["GERENCIA DE AREA DE SALUD, PROVINCIA MONTE PLATA (AREA VI)",{"$nulls":3},"",""]
["GERENCIA DE AREA DISTRITO NACIONAL ESTE (AREA VI)",{"$nulls":3},"",""]
["GERENCIA DE AREA DISTRITO NACIONAL OESTE (AREA IV)",{"$nulls":3},"",""]
["GERENCIA DE AREA DISTRITO SANTO DOMINGO ESTE (AREA I)",{"$nulls":3},"",""]
["GONZALO",{"$nulls":3},"",""]
["GUANDULES I",{"$nulls":3},"",""]
["GUANDULES II",{"$nulls":3},"",""]
["GUANUMA",{"$nulls":3},"",""]
["GUARDERIA INFANTIL SAN VICENTE DE PAUL",{"$nulls":3},"",""]
["GUARDERIA NAZARET PAZ Y BIEN",{"$nulls":3},"",""]
["GUARICANO",{"$nulls":3},"",""]
["GUARICANO AFUERA",{"$nulls":3},"",""]
["GUERRA",{"$nulls":3},"",""]
["HACIENDA ESTRELLA",{"$nulls":3},"",{"$f":"LOWER(E281)","v":""}]
["HAINAMOSA",{"$nulls":3},"",""]
["HALIMA",{"$nulls":3},"",""]
["HATO NUEVO MANOGUAYABO",{"$nulls":3},"",""]
["HATO SAN PEDRO",{"$nulls":3},"",""]
["HATO VIEJO",{"$nulls":3},"",""]
["HOGAR DE  ANCIANOS ESTANCIA DE DIA 24 DE ABRIL",{"$nulls":3},"",""]
["HOGAR DE ANCIANO BET ELI",{"$nulls":3},"",""]
["HOGAR DE ANCIANOS PADRE BILLINI",{"$nulls":3},"",""]
["HOGAR DE DIA SABANA PERDIDA (ANCIANOS)",{"$nulls":3},"",""]
["HOGAR DE DIA SIERRA PRIETA",{"$nulls":3},"",""]
["HOGAR DE NIÑAS DOÑA CHUCHA",{"$nulls":3},"",""]
["HOGAR DE NIÑOS CASA DE LUZ",{"$nulls":3},"",""]
["HOGAR ESCUELA SANTO DOMINGO SAVIO",{"$nulls":3},"",""]
["HOGAR MADRE AMADOR",{"$nulls":3},"",""]
["HOGAR MEDICO MADRE CANDIDA",{"$nulls":3},"",""]
["HOGAR VIDA Y ESPERANZA",{"$nulls":3},"",""]
["HOSPIAL MUNICIPAL DE YAMASA",{"$nulls":3},"",""]
["HOSPITAL CENTRAL FUERZA ARMADA",{"$nulls":3},"",""]
["HOSPITAL DRA EVANGELINA RODRIGUEZ PEROZO",{"$nulls":3},"",""]
["HOSPITAL GENERAL DE LA POLICÍA NACIONAL (HOSGEPOL)",{"$nulls":3},"",""]
["HOSPITAL GENERAL PLAZA DE LA SALUD",{"$nulls":3},"",""]
["HOSPITAL INFANTIL DR. ROBERT REID CABRAL",{"$nulls":3},"",""]
["HOSPITAL INFANTIL SANTO SOCORRO",{"$nulls":3},"",""]
["HOSPITAL MUNICIPAL DR.JACINTO IGNACIO MAÑON",{"$nulls":3},"",""]
["HOSPITAL MUNICIPAL ONCOLOGICO DR. HERIBERTO PIETER",{"$nulls":3},"",""]
["HOSPITAL SALVADOR B GAUTIER (IDSS)",{"$nulls":3},"",""]
["IDSS ZONA F",{"$nulls":3},"",""]
["IDSS ZONA FRANCA LOS ALCARRIZOS",{"$nulls":3},"",""]
["INGENIO OZAMA",{"$nulls":3},"",""]
["INSTITUTO AYUDA AL SORDO",{"$nulls":3},"",""]
["INSTITUTO CONTRA LA CEGUERA POR GLAUCOMA",{"$nulls":3},"",""]
["INSTITUTO DE SEÑORITAS SALOME UREÑA",{"$nulls":3},"",""]
["INSTITUTO DE SEXUALIDAD HUMANA",{"$nulls":3},"",""]
["INSTITUTO DERMATOLOGICO DOMINICANO",{"$nulls":3},"",""]
["INSTITUTO DOMINICANO DE ESTUDIOS VIROLOGICO (IDEV)",{"$nulls":3},"",""]
["INSTITUTO HOSPITAL DOMINICANO DE CARDIOLOGIA",{"$nulls":3},"",""]
["INSTITUTO NACIONAL DE DIABETES, ENDOCRINOLOGÍA, Y NUTRICIÓN INDEN",{"$nulls":3},"",""]
["INSTITUTO NACIONAL DEL CANCER ROSA EMILIA SANCHEZ PEREZ DE TAVARE",{"$nulls":3},"",""]
["INSTITUTO PATOLOGIA FORENSE",{"$nulls":3},"",""]
["INSTUTUTO REFORMATORIO DE NIÑAS",{"$nulls":3},"",""]
["ISABELITA",{"$nulls":3},"",""]
["JESUS EN TI CONFIO",{"$nulls":3},"",""]
["JOSE FRANCISCO PEÑA GÓMEZ",{"$nulls":3},"",""]
["JUAN PABLO II",{"$nulls":3},"",""]
["JUAN SANCHEZ",{"$nulls":3},"",""]
["JUVENTUD DINAMICA",{"$nulls":3},"",""]
["LA ALTAGRACIA",{"$nulls":3},"",""]
["LA CARIDAD",{"$nulls":3},"",""]
["LA CIENAGA",{"$nulls":3},"",""]
["LA CIENEGA",{"$nulls":3},"",""]
["LA COLORADA",{"$nulls":3},"",""]
["LA CUABA",{"$nulls":3},"",""]
["LA CUABA",{"$nulls":3},"",""]
["LA GINA",{"$nulls":3},"",""]
["LA GUAYIGA",{"$nulls":3},"",""]
["LA GUAZUMA",{"$nulls":3},"",""]
["LA HORA DE DIOS",{"$nulls":3},"",""]
["LA JAVILLA",{"$nulls":3},"",""]
["LA JOYA",{"$nulls":3},"",""]
["LA LUISA",{"$nulls":3},"",""]
["LA NUEVA BARQUITA",{"$nulls":3},"",""]
["LA PALMILLA",{"$nulls":3},"",""]
["LA UNION",{"$nulls":3},"",""]
["LA UREÑA",{"$nulls":3},"",{"$f":"LOWER(E345)","v":""}]
["LA VICTORIA",{"$nulls":3},"",""]
["LA ZURZA",{"$nulls":3},"",""]
["LABORATORIO NACIONAL DR.DEFILLO",{"$nulls":3},"",""]
["LAS  LILAS",{"$nulls":3},"",""]
["LAS CAOBAS",{"$nulls":3},"",""]
["LIBERTADOR DE HERRERA",{"$nulls":3},"",""]
["LICEO ESTADOS UNIDOS DE AMERICA",{"$nulls":3},"",""]
["LICEO PANAMERICANO",{"$nulls":3},"",""]
["LICEO RAMON EMILIO JIMENEZ",{"$nulls":3},"",""]
["LICEO Y CENTRO DE ARTES DR. FABIO AMABLE MOTA",{"$nulls":3},"",""]
["LOS ALCARRIZOS II",{"$nulls":3},"",""]
["LOS BOTADOS",{"$nulls":3},"",""]
["LOS CASABES",{"$nulls":3},"",""]
["LOS COCOS",{"$nulls":3},"",""]
["LOS COROZOS",{"$nulls":3},"",""]
["LOS FRAILES I",{"$nulls":3},"",""]
["LOS FRAILES II",{"$nulls":3},"",""]
["LOS FRAILES III",{"$nulls":3},"",""]
["LOS HAITISES",{"$nulls":3},"",""]
["LOS JAVIELES",{"$nulls":3},"",""]
["LOS MAMEYES",{"$nulls":3},"",""]
["LOS MANGUITOS",{"$nulls":3},"",""]
["LOS MINA",{"$nulls":3},"",""]
["LOS TANQUESITOS",{"$nulls":3},"",""]
["LOTES Y SERVICIOS",{"$nulls":3},"",""]
["MADRE LAURA",{"$nulls":3},"",""]
["MAJAGUAL",{"$nulls":3},"",""]
["MANOGUAYABO",{"$nulls":3},"",""]
["MARCELINITO LAS PALMAS",{"$nulls":3},"",""]
["MARCELINITO LIBERTADOR",{"$nulls":3},"",""]
["MARGARA (EL TAMARINDO ADENTRO)",{"$nulls":3},"",""]
["MATA DE PALMA",{"$nulls":3},"",""]
["MATA MAMON",{"$nulls":3},"",""]
["MATERNIDAD NUESTRA SEÑORA DE LA ALTAGRACIA",{"$nulls":3},"",""]
["MATERNO DR. REYNALDO ALMANZAR",{"$nulls":3},"",""]
["MATERNO INFANTIL DE VILLA MELLA",{"$nulls":3},"",""]
["MAURICIO BAEZ",{"$nulls":3},"",""]
["MENDOZA",{"$nulls":3},"",""]
["MINISTERIO DE SALUD PUBLICA(MISPAS)",{"$nulls":3},"",""]
["MONTE ADENTRO",{"$nulls":3},"",""]
["MOVIMIENTO SOCIOCULTURAL (MOSCTHA)",{"$nulls":3},"",""]
["MUNICIPAL",{"$nulls":3},"",""]
["NUESTRA SEÑORA DE GUADALUPE",{"$nulls":3},"",""]
["NUESTRA SEÑORA DE LA NATIVIDAD",{"$nulls":3},"",""]
["NUESTRA SEÑORA DE LOURDES PASTORAL DE LA SALUD (SALUD MENTAL)",{"$nulls":3},"",""]
["NUESTRA SEÑORA DEL BUEN CONSEJO FE Y ALEGRÍA BATEY LECHERIA",{"$nulls":3},"",""]
["NUESTRA SEÑORA DEL CARMEN",{"$nulls":3},"",""]
["NUEVA ESPERANZA",{"$nulls":3},"",""]
["NUEVA ISABELA",{"$nulls":3},"",""]
["OBRAS SOCIALES NUESTRA SEÑORA DE LA ALTAGRACIA",{"$nulls":3},"",""]
["OFICINAS GUBERNAMENTALES",{"$nulls":3},"",""]
["ORDEN DE MALTA",{"$nulls":3},"",""]
["ORDEN DE MALTA",{"$nulls":3},"",""]
["OSCAR SANTANA",{"$nulls":3},"",""]
["PADRE MARCILLA",{"$nulls":3},"",""]
["PALAMARA",{"$nulls":3},"",""]
["PALAVE",{"$nulls":3},"",""]
["PAN Y VINO",{"$nulls":3},"",""]
["PARQUE MIRADOR NORTE",{"$nulls":3},"",""]
["PARROQUIA DOMINGO SAVIO",{"$nulls":3},"",""]
["PARROQUIA SAN FELIPE DIACONO",{"$nulls":3},"",""]
["PARROQUIAL SANTA CRUZ",{"$nulls":3},"",""]
["PATRONATRO DE CIEGO",{"$nulls":3},"",""]
["PEDIATRICO DR. HUGO MENDOZA",{"$nulls":3},"",{"$f":"LOWER(E409)","v":""}]
["PENAL LA VICTORIA",{"$nulls":3},"",""]
["PERALVILLO",{"$nulls":3},"",""]
["PLAN SOCIAL DE LA PRESIDENCIA",{"$nulls":3},"",""]
["POASIS",{"$nulls":3},"",""]
["POLICLINICA ZONA E IDSS",{"$nulls":3},"",""]
["POLITECNICO FABIO AMABLE MOTA",{"$nulls":3},"",""]
["POLITECNICO FABIO MOTA",{"$nulls":3},"",""]
["POLITECNICO RAFAELA IBARRA",{"$nulls":3},"",""]
["PONCE ADENTRO",{"$nulls":3},"",""]
["PRO-FAMILIA (SABANA PERDIDA)",{"$nulls":3},"",""]
["PROGRAMA DE MEDICAMENTOS ESENCIALES (PROMESE)",{"$nulls":3},"",""]
["PROLONGACIÓN VENEZUELA",{"$nulls":3},"",""]
["PUEBLO NUEVO",{"$nulls":3},"",""]
["RAFAEL BARIAS",{"$nulls":3},"",""]
["RALMA",{"$nulls":3},"",""]
["RAMON DE LARA",{"$nulls":3},"",""]
["RED SOCIAL DE MUJERES CRISTIANAS RESDMUC / ENSANCHE KENNEDY",{"$nulls":3},"",""]
["RINCON CLARO",{"$nulls":3},"",""]
["RIO VERDE",{"$nulls":3},"",""]
["RODOLFO DE LA CRUZ LORA",{"$nulls":3},"",""]
["RUBEN DARIO CABRERA MENA",{"$nulls":3},"",""]
["SAN ANDRES",{"$nulls":3},"",""]
["SAN ANTONIO DE PADUA",{"$nulls":3},"",""]
["SAN BARTOLO",{"$nulls":3},"",""]
["SAN CARLOS",{"$nulls":3},"",""]
["SAN ELIAS PROFETA (PARROQUIA)",{"$nulls":3},"",""]
["SAN FELIPE",{"$nulls":3},"",""]
["SAN GABRIEL",{"$nulls":3},"",""]
["SAN ISIDRO",{"$nulls":3},"",""]
["SAN JOSE (LA BARQUITA)",{"$nulls":3},"",""]
["SAN JUAN BAUTISTA",{"$nulls":3},"",""]
["SAN LAZARO",{"$nulls":3},"",""]
["SAN LORENZO DE LOS MINA (MATERNO-INFANTIL)",{"$nulls":3},"",""]
["SAN MARTIN DE PORRES",{"$nulls":3},"",""]
["SAN PEDRO APOSTOL",{"$nulls":3},"",""]
["SAN RAFAEL",{"$nulls":3},"",""]
["SAN VALERO",{"$nulls":3},"",""]
["SANTA LUISA DE MARILLAC",{"$nulls":3},"",""]
["SANTA ROSA",{"$nulls":3},"",""]
["SANTO CRISTO DE LOS MILAGROS",{"$nulls":3},"",""]
["SEMMA",{"$nulls":3},"",""]
["SERVICIO REGIONAL DE SALUD METROPOLITANO",{"$nulls":3},"",""]
["SIERRA PRIETA",{"$nulls":3},"",""]
["SOCIEDAD PARA EL DESARROLLO DEL CALICHE SODECA",{"$nulls":3},"",""]
["TEATRO NACIONAL",{"$nulls":3},"",""]
["TENEDORA XAVILONE, S A (CENTRO DE ATENCION AMBULATORIA ALMA ATA)",{"$nulls":3},"",""]
["TRAUMATOLOGICO DOCTOR NEY ARIAS LORA",{"$nulls":3},"",""]
["TU MUJER",{"$nulls":3},"",""]
["UNIDAD DE QUEMADOS",{"$nulls":3},"",""]
["UNIDAD HOSPITALARIA DE SALUD MENTAL PROFESOR RAMON REY ARDID",{"$nulls":3},"",""]
["UNIDAD MEDICA EMBELLECIMIENTO",{"$nulls":3},"",""]
["UNION Y ESPERANZA",{"$nulls":3},"",""]
["VALENTIN BUTTEN",{"$nulls":3},"",""]
["VALIENTE",{"$nulls":3},"",""]
["VALPIANA",{"$nulls":3},"",""]
["VIDA Y SALUD",{"$nulls":3},"",""]
["VIETNAM",{"$nulls":3},"",""]
["VILLA CARMELA",{"$nulls":3},"",""]
["VILLA DUARTE",{"$nulls":3},"",""]
["VILLA ESFUERZO",{"$nulls":3},"",""]
["VILLA FRANCISCA",{"$nulls":3},"",""]
["VILLA MELLA",{"$nulls":3},"",""]
["VILLAS AGRICOLAS",{"$nulls":3},"",""]
["YOLANDA GUZMAN",{"$nulls":3},"",{"$f":"LOWER(E473)","v":""}]
["ZONA A IDSS SALUD SEGURA",{"$nulls":3},"",""]
["ZONA B IDSS SALUD SEGURA",{"$nulls":3},"",""]
["5 DE ABRIL",{"$nulls":3},"",""]
["ARROYO CAÑAS",{"$nulls":3},"",""]
["ARROYO HONDO",{"$nulls":3},"",""]
["ARROYO MAMEY",{"$nulls":3},"",""]
["BANILEJO",{"$nulls":3},"",""]
["BARRIO DUARTE",{"$nulls":3},"",""]
["BASIMA",{"$nulls":3},"",""]
["BENDAÑO",{"$nulls":3},"",""]
["BOCA CANASTA",{"$nulls":3},"",""]
["CALLE BONITA",{"$nulls":3},"",""]
["CAMBITA CRUCE",{"$nulls":3},"",""]
["CAMBITA GARABITO",{"$nulls":3},"",""]
["CAMBITA PUEBLO",{"$nulls":3},"",""]
["CAMBITA STERLING",{"$nulls":3},"",""]
["CAMBOYA",{"$nulls":3},"",""]
["CANASTICA",{"$nulls":3},"",""]
["CAÑAFISTOL",{"$nulls":3},"",""]
["CARRETON",{"$nulls":3},"",""]
["CARVAJAL",{"$nulls":3},"",""]
["CATALINA",{"$nulls":3},"",""]
["CATAREY",{"$nulls":3},"",""]
["CENTRO CLÍNICO DIAGNOSTICO BELLA VISTA",{"$nulls":3},"",""]
["CENTRO CLÍNICO Y DIAGNOSTICO EL CARRIL DE HAINA",{"$nulls":3},"",""]
["CENTRO CLÍNICO Y DIAGNOSTICO MADRE VIEJA",{"$nulls":3},"",""]
["CENTRO CLÍNICO Y DIAGNOSTICO VILLA FUNDACIÓN",{"$nulls":3},"",""]
["CENTRO DE PRIMER NIVEL MAXIMO GOMEZ (EL FUNDO)",{"$nulls":3},"",""]
["CENTRO DIAGNOSTICO VILLA ALTAGRACIA",{"$nulls":3},"",""]
["CEPAE",{"$nulls":3},"",""]
["CONANI",{"$nulls":3},"",""]
["DIRECCIÓN PROVINCIAL DE SALUD PERAVIA",{"$nulls":3},"",""]
["DIRECCION PROVINCIAL DE SALUD SAN CRISTOBAL",{"$nulls":3},"",""]
["DIRECCION PROVINCIAL DE SALUD SAN JOSE DE OCOA",{"$nulls":3},"",""]
["DON GREGORIO",{"$nulls":3},"",""]
["DOÑA ANA",{"$nulls":3},"",""]
["DR GUARIONEX ALCANTARA",{"$nulls":3},"",""]
["DR. RAFAEL GALLARDO",{"$nulls":3},"",""]
["EL CAJUILITO",{"$nulls":3},"",""]
["EL CAOBAL",{"$nulls":3},"",""]
["EL CARRIL",{"$nulls":3},"",""]
["EL CERCADO",{"$nulls":3},"",""]
["EL LIMONAL",{"$nulls":3},"",""]
["EL LIMONAL",{"$nulls":3},"",""]
["EL LLANO",{"$nulls":3},"",""]
["EL MAIZAL",{"$nulls":3},"",""]
["EL NARANJAL",{"$nulls":3},"",""]
["EL PINAR",{"$nulls":3},"",""]
["EL POMIER",{"$nulls":3},"",""]
["EL PUEBLECITO",{"$nulls":3},"",""]
["EL SILENCIO",{"$nulls":3},"",""]
["ESCONDIDO",{"$nulls":3},"",""]
["ESTEBANIA BORINQUE",{"$nulls":3},"",""]
["FUNDACIÓN DE PERAVIA",{"$nulls":3},"",""]
["GERONIMO PINALES",{"$nulls":3},"",""]
["GUANANITO",{"$nulls":3},"",""]
["HATILLO",{"$nulls":3},"",""]
["HERIBERTO PETER (LA COLONIA)",{"$nulls":3},"",""]
["HERMANAS MIRABAL",{"$nulls":3},"",""]
["HONDURAS",{"$nulls":3},"",""]
["HOSPITAL MUNICIPAL BARSEQUILLO HAINA",{"$nulls":3},"",""]
["HOSPITAL MUNICIPAL MARIA PANIAGUA (BOBITA)",{"$nulls":3},"",""]
["HOSPITAL MUNICIPAL TOMASINA VALDEZ PALENQUE",{"$nulls":3},"",""]
["HOSPITAL NUESTRA SEÑORA DE LA ALTAGRACIA (VILLA ALTAGRACIA)",{"$nulls":3},"",{"$f":"LOWER(E537)","v":""}]
["HOSPITAL PROVINCIAL DR. RAFAEL J. MAÑON",{"$nulls":3},"",""]
["HOSPITAL REGIONAL Y DOCENTE JUAN PABLO PINA",{"$nulls":3},"",""]
["JAMEY",{"$nulls":3},"",""]
["JUAN BARON",{"$nulls":3},"",""]
["KM 59",{"$nulls":3},"",""]
["LA ALTAGRACIA",{"$nulls":3},"",""]
["LA ALTAGRACIA ( VILLA ALTAGRACIA)",{"$nulls":3},"",""]
["LA CANELA",{"$nulls":3},"",""]
["LA CIENAGA",{"$nulls":3},"",""]
["LA CRUZ",{"$nulls":3},"",""]
["LA CUCHILLA",{"$nulls":3},"",""]
["LA FLORIDA",{"$nulls":3},"",""]
["LA HORMA",{"$nulls":3},"",""]
["LA PALMITA",{"$nulls":3},"",""]
["LA PARED",{"$nulls":3},"",""]
["LA PISCINA",{"$nulls":3},"",""]
["LA PLENA",{"$nulls":3},"",""]
["LA REPRESA",{"$nulls":3},"",""]
["LAS AUYAMAS",{"$nulls":3},"",""]
["LAS BARIAS",{"$nulls":3},"",""]
["LAS CALDERAS",{"$nulls":3},"",""]
["LAS CARRERAS",{"$nulls":3},"",""]
["LAS FLORES",{"$nulls":3},"",""]
["LAS SALINAS",{"$nulls":3},"",""]
["LAS TABLAS",{"$nulls":3},"",""]
["LAVAPIES",{"$nulls":3},"",""]
["LEPROCOMIO NUESTRA SEÑORA DE LAS MERCEDES",{"$nulls":3},"",""]
["LOS ANONES",{"$nulls":3},"",""]
["LOS BOTAO (SAGRADO CORAZON DE JESUS)",{"$nulls":3},"",""]
["LOS CACAOS",{"$nulls":3},"",""]
["LOS COROZOS",{"$nulls":3},"",""]
["LOS MARTINEZ",{"$nulls":3},"",""]
["LOS MOGOTES",{"$nulls":3},"",""]
["LOS MOLINA",{"$nulls":3},"",""]
["LOS MONTONES",{"$nulls":3},"",""]
["LOS PARCELEROS",{"$nulls":3},"",""]
["LOS RANCHITOS",{"$nulls":3},"",""]
["LOS TOROS",{"$nulls":3},"",""]
["LOS TUMBAOS",{"$nulls":3},"",""]
["LOS YAGUARIZOS",{"$nulls":3},"",""]
["LUCIOLO BAEZ",{"$nulls":3},"",""]
["MADRE VIEJA NORTE CENTRO",{"$nulls":3},"",""]
["MAHOMA",{"$nulls":3},"",""]
["MALPAEZ",{"$nulls":3},"",""]
["MANA",{"$nulls":3},"",""]
["MARCELINO PEÑA (EL RAMON)",{"$nulls":3},"",""]
["MATA GORDA",{"$nulls":3},"",""]
["MATANZAS",{"$nulls":3},"",""]
["MEDINA",{"$nulls":3},"",""]
["MIRA CIELO",{"$nulls":3},"",""]
["MODESTO OGANDO",{"$nulls":3},"",""]
["MONTAÑO",{"$nulls":3},"",""]
["MONTE NEGRO",{"$nulls":3},"",""]
["MOSCU",{"$nulls":3},"",""]
["MUCHA AGUA",{"$nulls":3},"",""]
["NAJAYO ARRIBA",{"$nulls":3},"",""]
["NIZAO",{"$nulls":3},"",""]
["NIZAO",{"$nulls":3},"",""]
["NORMAN RUIZ",{"$nulls":3},"",""]
["NUESTRA SENORA DE REGLA",{"$nulls":3},"",""]
["OJO DE AGUA",{"$nulls":3},"",""]
["PAJARITO (VILLA ALTAGRACIA)",{"$nulls":3},"",""]
["PAJARITO (YAGUATE)",{"$nulls":3},"",""]
["PALO DE CAJA",{"$nulls":3},"",{"$f":"LOWER(E601)","v":""}]
["PARAISO DE DIOS",{"$nulls":3},"",""]
["PAYA",{"$nulls":3},"",""]
["PINO HERRADO",{"$nulls":3},"",""]
["PIZARRETE",{"$nulls":3},"",""]
["POLI CLINICA NUESTA SEÑORA DE LAS MERCEDES",{"$nulls":3},"",""]
["PUEBLO ABAJO",{"$nulls":3},"",""]
["PUEBLO ARRIBA",{"$nulls":3},"",""]
["PUEBLO NUEVO",{"$nulls":3},"",""]
["PUERTO RICO",{"$nulls":3},"",""]
["QUIJA QUIETA",{"$nulls":3},"",""]
["QUITA SUEÑO",{"$nulls":3},"",""]
["RIO ARRIBA",{"$nulls":3},"",""]
["SABANA BUEY",{"$nulls":3},"",""]
["SABANA GRANDE",{"$nulls":3},"",""]
["SABANA LARGA ABAJO",{"$nulls":3},"",""]
["SABANA LARGA CENTRO",{"$nulls":3},"",""]
["SABANA TORO",{"$nulls":3},"",""]
["SAN ANTONIO",{"$nulls":3},"",""]
["SAN ANTONIO",{"$nulls":3},"",""]
["SAN JOSE",{"$nulls":3},"",""]
["SAN JOSE",{"$nulls":3},"",""]
["SAN LUIS",{"$nulls":3},"",""]
["SAN MIGUEL",{"$nulls":3},"",""]
["SAN RAFAEL",{"$nulls":3},"",""]
["SANTA MARIA",{"$nulls":3},"",""]
["SANTA MONICA",{"$nulls":3},"",""]
["SANTA ROSA",{"$nulls":3},"",""]
["SANTANA",{"$nulls":3},"",""]
["SAONA 1",{"$nulls":3},"",""]
["SAONA 2 (ELIZABETH ZETON)",{"$nulls":3},"",""]
["SEMANA SANTA",{"$nulls":3},"",""]
["SERVICIO REGIONAL DE SALUD VALDESIA",{"$nulls":3},"",""]
["V. CENTENARIO",{"$nulls":3},"",""]
["VALDESIA",{"$nulls":3},"",""]
["VILLA ALTAGRACIA",{"$nulls":3},"",""]
["VILLA CENTRO DEL PUEBLO",{"$nulls":3},"",""]
["VILLA DAVID",{"$nulls":3},"",""]
["VILLA FEDERICO",{"$nulls":3},"",""]
["VILLA FUNDACION",{"$nulls":3},"",""]
["VILLA FUNDACION",{"$nulls":3},"",""]
["VILLA GUERA",{"$nulls":3},"",""]
["VILLA MAJEGA",{"$nulls":3},"",""]
["VILLA SOMBRERO",{"$nulls":3},"",""]
["VILLEGAS",{"$nulls":3},"",""]
["WILSON BELLO",{"$nulls":3},"",""]
["YAGUATE",{"$nulls":3},"",""]
["ACCION CALLEJERA",{"$nulls":3},"",""]
["ANA CRUZ DE GURABO",{"$nulls":3},"",""]
["ANGELES DE CONANI (HOGARES LUBBY)",{"$nulls":3},"",""]
["ANTONIO FERNANDEZ (BAITOA)",{"$nulls":3},"",""]
["ARROYO HONDO",{"$nulls":3},"",""]
["ARROYO TORO",{"$nulls":3},"",""]
["ARTURO GRULLON",{"$nulls":3},"",""]
["BAITOA",{"$nulls":3},"",""]
["BAJABONICO ARRIBA",{"$nulls":3},"",""]
["BANEGAS",{"$nulls":3},"",""]
["BARRANCON",{"$nulls":3},"",""]
["BARRIO  VIEJO PUERTO RICO",{"$nulls":3},"",""]
["BARRIO LINDO",{"$nulls":3},"",""]
["BARRIO NUEVO LA HERRADURA",{"$nulls":3},"",""]
["BARRIO NUEVO PUERTO RICO",{"$nulls":3},"",""]
["BARRIO OBRERO",{"$nulls":3},"",""]
["BATEY GINEBRA",{"$nulls":3},"",""]
["BEJUCAL",{"$nulls":3},"",{"$f":"LOWER(E665)","v":""}]
["BOCA FERREA",{"$nulls":3},"",""]
["BONAGUA",{"$nulls":3},"",""]
["BUEN PASTOR",{"$nulls":3},"",""]
["BUENOS AIRES",{"$nulls":3},"",""]
["CABARETE",{"$nulls":3},"",""]
["CAIMITO PUESTO GRANDE",{"$nulls":3},"",""]
["CANCA LA PIEDRA",{"$nulls":3},"",""]
["CANCA LA REYNA",{"$nulls":3},"",""]
["CARCEL DE RAFEY HOMBRES",{"$nulls":3},"",""]
["CARCEL DE RAFEY MUJERES",{"$nulls":3},"",""]
["CEIBA DE MADERA",{"$nulls":3},"",""]
["CENTRO DE ATENCION PRIMARIA Y DIAGNOSTICO JUNCALITO",{"$nulls":3},"",""]
["CENTRO DE DIAGNOSTICO CARLOS MARÍA  ROJAS BADIA",{"$nulls":3},"",""]
["CENTRO DE DIAGNOSTICO GURABO",{"$nulls":3},"",""]
["CENTRO DE PROMOCION  Y SOLIDARIDAD HUMANA(CEPROSH)",{"$nulls":3},"",""]
["CENTRO DE SALUD INTEGRAL BELLA VISTA",{"$nulls":3},"",""]
["CENTRO DIAGNOSTICO BELLA VISTA",{"$nulls":3},"",""]
["CENTRO DIAGNOSTICO CIEN FUEGO",{"$nulls":3},"",""]
["CENTRO DIAGNOSTICO LOS CIRUELITOS",{"$nulls":3},"",""]
["CENTRO DIAGNOSTICO LOS LOPEZ",{"$nulls":3},"",""]
["CENTRO ESPECIALIZADO DE ATENCION DE SALUD JUAN XXIII",{"$nulls":3},"",""]
["CENTRO SANITARIO",{"$nulls":3},"",""]
["CIEN FUEGOS",{"$nulls":3},"",""]
["CJC DE CIEN FUEGOS",{"$nulls":3},"",""]
["CLINICA MOVIL PUERTO PLATA (CEPROSH)",{"$nulls":3},"",""]
["COLORADO",{"$nulls":3},"",""]
["CONSULTORIO AERUPUERTO INTERNACIONAL CIBAO",{"$nulls":3},"",""]
["CONSULTORIO CURSA - UASD",{"$nulls":3},"",""]
["CONSULTORIO INTABACO",{"$nulls":3},"",""]
["CONSULTORIO ZONA FRANCA MODELO",{"$nulls":3},"",""]
["CONSULTORIO ZONA FRANCA TAMBORIL",{"$nulls":3},"",""]
["CPN BELLA VISTA",{"$nulls":3},"",""]
["CUERO DURO",{"$nulls":3},"",""]
["Departamento de salud grupo M IDSS",{"$nulls":3},"",""]
["DIPENSARIO MEDICO LEON JIMENEZ",{"$nulls":3},"",""]
["DIRECCIÓN DE AREA  DE SALUD III, SANTIAGO (DPS III)",{"$nulls":3},"",""]
["DIRECCION PROVINCIAL DE SALUD DE PUERTO PLATA (DPS)",{"$nulls":3},"",""]
["DIRECCION PROVINCIAL DE SALUD ESPAILLAT (DPS)",{"$nulls":3},"",""]
["DIRECCIÓN PROVINCIAL DE SALUD I, SANTIAGO (DPS I)",{"$nulls":3},"",""]
["DIRECCIÓN PROVINCIAL DE SALUD II, SANTIAGO (DPS II)",{"$nulls":3},"",""]
["DISPENSARIO LA ALTAGRACIA",{"$nulls":3},"",""]
["DOCTOR RAFAEL CANTISANO ARIAS",{"$nulls":3},"",""]
["DOLORES DE LA CRUZ",{"$nulls":3},"",""]
["DON JUAN",{"$nulls":3},"",""]
["EL AGUACATE",{"$nulls":3},"",""]
["EL ALGARROBO",{"$nulls":3},"",""]
["EL CAIMITO, JANICO",{"$nulls":3},"",""]
["EL CASTILLO",{"$nulls":3},"",""]
["EL COROZO",{"$nulls":3},"",""]
["EL CUPEY",{"$nulls":3},"",""]
["EL GUANO",{"$nulls":3},"",""]
["EL HIGUERITO",{"$nulls":3},"",""]
["EL JAVILLAR",{"$nulls":3},"",""]
["EL LIMON",{"$nulls":3},"",""]
["EL MANGO",{"$nulls":3},"",""]
["EL RUBIO",{"$nulls":3},"",""]
["EL TORO",{"$nulls":3},"",""]
["ENSANCHE BERMUDEZ",{"$nulls":3},"",""]
["ENSANCHE ESPAILLAT",{"$nulls":3},"",""]
["ESCALERA ARRIBA",{"$nulls":3},"",""]
["ESCUELA GENARO PEREZ",{"$nulls":3},"",""]
["ESTANCIA DEL YAQUE",{"$nulls":3},"",""]
["ESTANCIA NUEVa",{"$nulls":3},"",""]
["ESTERO HONDO",{"$nulls":3},"",{"$f":"LOWER(E729)","v":""}]
["FUNDACION",{"$nulls":3},"",""]
["FUNDACION RED DE MISERICORDIA",{"$nulls":3},"",""]
["FUNDAMBIENTE",{"$nulls":3},"",""]
["GREGORIO LUPERON",{"$nulls":3},"",""]
["GREGORIO LUPERON MONTELLANO",{"$nulls":3},"",""]
["GUALETE",{"$nulls":3},"",""]
["GUAUCI",{"$nulls":3},"",""]
["GUAYABAL",{"$nulls":3},"",""]
["GURABITO DE YAROA",{"$nulls":3},"",""]
["HATO DEL YAQUE",{"$nulls":3},"",""]
["HATO MAYOR",{"$nulls":3},"",""]
["HOGAR INFANTIL SANTIAGO APOSTOL",{"$nulls":3},"",""]
["HOSPITAL MUNICIPAL DE GUANANICO",{"$nulls":3},"",""]
["HOSPITAL MUNICIPAL DE NAVARRETE",{"$nulls":3},"",""]
["HOSPITAL MUNICIPAL DE SABANA IGLESIA",{"$nulls":3},"",""]
["HOSPITAL MUNICIPAL HATO DEL YAQUE",{"$nulls":3},"",""]
["HOSPITAL MUNICIPAL SAN JOSE DE LAS MATAS",{"$nulls":3},"",""]
["HOSPITAL NAPIER DIAZ",{"$nulls":3},"",""]
["HOSPITAL PERIFERICO MONTE ADENTRO",{"$nulls":3},"",""]
["HOSPITAL RAFAEL CASTRO",{"$nulls":3},"",""]
["HOSPITAL YRENE FERNANDEZ",{"$nulls":3},"",""]
["HOYA DE CAIMITO",{"$nulls":3},"",""]
["HOYO DE BARTOLA",{"$nulls":3},"",""]
["IMBERT",{"$nulls":3},"",""]
["INGENIO ABAJO",{"$nulls":3},"",""]
["INOA",{"$nulls":3},"",""]
["JACAGUA ADENTRO",{"$nulls":3},"",""]
["JACAGUA ARRIBA",{"$nulls":3},"",""]
["JAMAO AL NORTE",{"$nulls":3},"",""]
["JANEY",{"$nulls":3},"",""]
["JOBA ARRIBA",{"$nulls":3},"",""]
["JORGE ARMANDO MARTINEZ ''ICO''",{"$nulls":3},"",""]
["JOSE CONTRERAS",{"$nulls":3},"",""]
["JOSE DE JESUS JIMENEZ ALMONTE",{"$nulls":3},"",""]
["JOSE MARIA CABRAL Y BAEZ",{"$nulls":3},"",""]
["JOSUE",{"$nulls":3},"",""]
["JUAN LOPEZ",{"$nulls":3},"",""]
["KOREA",{"$nulls":3},"",""]
["LA CANELA",{"$nulls":3},"",""]
["LA CATALINA",{"$nulls":3},"",""]
["LA CEIBITA",{"$nulls":3},"",""]
["LA CIDRA",{"$nulls":3},"",""]
["LA CIENAGA",{"$nulls":3},"",""]
["LA CUESTA",{"$nulls":3},"",""]
["LA CUMBRE",{"$nulls":3},"",""]
["LA DELGADA",{"$nulls":3},"",""]
["LA ERMITA",{"$nulls":3},"",""]
["LA ESCALERETA",{"$nulls":3},"",""]
["LA GLORIA",{"$nulls":3},"",""]
["LA GUAMA",{"$nulls":3},"",""]
["LA ISLETA",{"$nulls":3},"",""]
["LA JAIBA",{"$nulls":3},"",""]
["LA JOYA",{"$nulls":3},"",""]
["LA LOMOTA",{"$nulls":3},"",""]
["LA MANZANA",{"$nulls":3},"",""]
["LA OTRA BANDA",{"$nulls":3},"",""]
["LA UNION",{"$nulls":3},"",""]
["LA YAGUA",{"$nulls":3},"",""]
["LAGUNA GRANDE",{"$nulls":3},"",""]
["LAS CHARCAS",{"$nulls":3},"",""]
["LAS FLORES",{"$nulls":3},"",""]
["LAS GUAZUMAS",{"$nulls":3},"",""]
["LAS LAGUNAS",{"$nulls":3},"",""]
["LAS MANACLAS",{"$nulls":3},"",{"$f":"LOWER(E793)","v":""}]
["LAS PALOMAS",{"$nulls":3},"",""]
["LAS PLACETAS",{"$nulls":3},"",""]
["LICEY AL MEDIO",{"$nulls":3},"",""]
["LLANO DE PEREZ",{"$nulls":3},"",""]
["LLANOS DEL INGENIO",{"$nulls":3},"",""]
["LOS BRAZOS",{"$nulls":3},"",""]
["LOS CIRUELITOS",{"$nulls":3},"",""]
["LOS CIRUELOS",{"$nulls":3},"",""]
["LOS GUANDULES",{"$nulls":3},"",""]
["LOS HARQUIES",{"$nulls":3},"",""]
["LOS LOPEZ",{"$nulls":3},"",""]
["LOS MARTIRES",{"$nulls":3},"",""]
["LOS MONTONES",{"$nulls":3},"",""]
["LOS PANCHOS",{"$nulls":3},"",""]
["LOS PEREZ",{"$nulls":3},"",""]
["LOS PILONES",{"$nulls":3},"",""]
["LOS TOCONES",{"$nulls":3},"",""]
["MADRE VIEJA",{"$nulls":3},"",""]
["MAIMON",{"$nulls":3},"",""]
["MAMA CHEN",{"$nulls":3},"",""]
["MAMA TINGO",{"$nulls":3},"",""]
["MANUEL DE LUNA",{"$nulls":3},"",""]
["MANUEL JOAQUIN MENDOZA CASTILLO",{"$nulls":3},"",""]
["MANUEL RODRIGUEZ",{"$nulls":3},"",""]
["MATANZAS",{"$nulls":3},"",""]
["MATERNIDAD DOÑA RENEE KLANG VIUDA GUZMAN",{"$nulls":3},"",""]
["MERCEDES NAVARRO",{"$nulls":3},"",""]
["MONTE DE LA JAGUA",{"$nulls":3},"",""]
["MUÑOZ",{"$nulls":3},"",""]
["NAVAS",{"$nulls":3},"",""]
["ONG CHILDREN INTERNACIONAL",{"$nulls":3},"",""]
["PABLO MORROBEL JIMENEZ",{"$nulls":3},"",""]
["PADRE GRANERO",{"$nulls":3},"",""]
["PADRE LAS CASAS",{"$nulls":3},"",""]
["PALMA HERRADA",{"$nulls":3},"",""]
["PALMAR ARRIBA",{"$nulls":3},"",""]
["PALMAR GRANDE",{"$nulls":3},"",""]
["PALMARITO LOS COCOS",{"$nulls":3},"",""]
["PALO AMARILLO",{"$nulls":3},"",""]
["PEDREGAL(COCODESI)",{"$nulls":3},"",""]
["PEDRO GARCIA",{"$nulls":3},"",""]
["PINALITO",{"$nulls":3},"",""]
["PLATANAL",{"$nulls":3},"",""]
["PRESIDENTE ESTRELLA UREÑA (IDSS)",{"$nulls":3},"",""]
["PUESTO GRANDE",{"$nulls":3},"",""]
["PUNAL ADENTRO",{"$nulls":3},"",""]
["QUEBRADA HONDA",{"$nulls":3},"",""]
["RAFAEL GUTIERREZ",{"$nulls":3},"",""]
["RANCHITO DE JACAGUA",{"$nulls":3},"",""]
["RANCHITO DE LOS VARGAS",{"$nulls":3},"",""]
["RANCHITO DE PICHE",{"$nulls":3},"",""]
["REPARADERO",{"$nulls":3},"",""]
["RICARDO LIMARDO",{"$nulls":3},"",""]
["RINCON DE PIEDRA",{"$nulls":3},"",""]
["RIO GRANDE",{"$nulls":3},"",""]
["SABANETA DE YASICA",{"$nulls":3},"",""]
["SAL SI PUEDES",{"$nulls":3},"",""]
["SAN FRANCISCO",{"$nulls":3},"",""]
["SAN JOSE AFUERA",{"$nulls":3},"",""]
["SAN NICOLAS",{"$nulls":3},"",""]
["SAN VICTOR",{"$nulls":3},"",""]
["SANTA LUCIA",{"$nulls":3},"",""]
["SANTA ROSA",{"$nulls":3},"",""]
["SERVICIO REGIONAL DE SALUD NORCENTRAL",{"$nulls":3},"",{"$f":"LOWER(E857)","v":""}]
["SOSUA",{"$nulls":3},"",""]
["THELMA ROSARIO, UNIDAD DE QUEMADOS",{"$nulls":3},"",""]
["TIERRA DURA",{"$nulls":3},"",""]
["TORIBIO BENCOSME",{"$nulls":3},"",""]
["UASD (ERCILIA PEPIN)",{"$nulls":3},"",""]
["VERAGUA",{"$nulls":3},"",""]
["VILLA BAO",{"$nulls":3},"",""]
["VILLA CAFETALERA",{"$nulls":3},"",""]
["VILLA ISABELA",{"$nulls":3},"",""]
["VILLA LIBERACION",{"$nulls":3},"",""]
["VILLA NUEVA, NAVARRETE",{"$nulls":3},"",""]
["VILLA PROGRESO",{"$nulls":3},"",""]
["VILLA TABACALERA SANTIAGO",{"$nulls":3},"",""]
["VILLA TABACALERA, NAVARRETE",{"$nulls":3},"",""]
["YAGUITA DE PASTOR",{"$nulls":3},"",""]
["YASICA ARRIBA",{"$nulls":3},"",""]
["ZAFARRAYA",{"$nulls":3},"",""]
["MUNICIPAL DE ARENOSO",{"$nulls":3},"",""]
["ARENOSO",{"$nulls":3},"",""]
["EL AGUACATE",{"$nulls":3},"",""]
["LAS CARRERAS",{"$nulls":3},"",""]
["LAS COLES",{"$nulls":3},"",""]
["LA JAGUA",{"$nulls":3},"",""]
["MUNICIPAL DE CABRERA (DR.VIRGILIO A GARCIA)",{"$nulls":3},"",""]
["URBANA CABRERA",{"$nulls":3},"",""]
["PAYITA",{"$nulls":3},"",""]
["BAOBA DEL PIÑAL",{"$nulls":3},"",""]
["LA ENTRADA",{"$nulls":3},"",""]
["SAN RAFAEL",{"$nulls":3},"",""]
["LA CAPILLA",{"$nulls":3},"",""]
["ABREU",{"$nulls":3},"",""]
["LOMA ALTA",{"$nulls":3},"",""]
["MUNICIPAL DE CASTILLO",{"$nulls":3},"",""]
["EL FIRME",{"$nulls":3},"",""]
["CASTILLO URBANO",{"$nulls":3},"",""]
["JOSE FERREIRA (EL RUCIO)",{"$nulls":3},"",""]
["LOS NARANJOS",{"$nulls":3},"",""]
["RINCON HONDO",{"$nulls":3},"",""]
["MUNICIPAL EL FACTOR",{"$nulls":3},"",""]
["URBANA EL FACTOR",{"$nulls":3},"",""]
["LOS LIMONES",{"$nulls":3},"",""]
["LA FACTORIA",{"$nulls":3},"",""]
["EL PAPAYO",{"$nulls":3},"",""]
["LA PICHINGA",{"$nulls":3},"",""]
["HOSTOS",{"$nulls":3},"",""]
["ISLETA DE CERREJON",{"$nulls":3},"",""]
["SABANA GRANDE DE HOSTOS",{"$nulls":3},"",""]
["MUNICIPAL LAS GUARANAS",{"$nulls":3},"",""]
["LAS GUARANAS",{"$nulls":3},"",""]
["NUESTRA SEÑORA DEL CARMEN",{"$nulls":3},"",""]
["PABLO ANTONIO PAULINO",{"$nulls":3},"",""]
["URBANA LAS TERRENAS",{"$nulls":3},"",""]
["LOS PUENTES",{"$nulls":3},"",""]
["DR. ANTONIO YAPOUR HEDDED",{"$nulls":3},"",""]
["URBANA SUR",{"$nulls":3},"",""]
["LAS CORCOBAS",{"$nulls":3},"",""]
["EL YAYAL",{"$nulls":3},"",""]
["LAS GORDAS",{"$nulls":3},"",""]
["MATA BONITA",{"$nulls":3},"",""]
["MATANCITAS",{"$nulls":3},"",""]
["LOS YAYALES",{"$nulls":3},"",""]
["LAS CEJAS",{"$nulls":3},"",""]
["LAS GARZAS",{"$nulls":3},"",""]
["ARROYO AL MEDIO",{"$nulls":3},"",{"$f":"LOWER(E921)","v":""}]
["DIRECCIÓN PROVINCIAL DE SALUD MARIA TRINIDAD SANCHEZ (DPS)",{"$nulls":3},"",""]
["DR. LUIS BONILLA CASTILLO",{"$nulls":3},"",""]
["FORTALEZA OLEGARIO TENARES",{"$nulls":3},"",""]
["LICEO MERCEDES BELLO",{"$nulls":3},"",""]
["CENTRO UNIVERSITARIO DE NAGUA",{"$nulls":3},"",""]
["EL GUAYABO",{"$nulls":3},"",""]
["CENTRO CLINICO Y DIAGNOSTICO NAGUA (CECLIDINA)",{"$nulls":3},"",""]
["FELIPE J. ACHECAR",{"$nulls":3},"",""]
["LOS LIMONES DE PIMENTEL",{"$nulls":3},"",""]
["PIMENTEL URBANO",{"$nulls":3},"",""]
["SAN FELIPE",{"$nulls":3},"",""]
["ACAPULCO",{"$nulls":3},"",""]
["BEJUCO ALAMBRE",{"$nulls":3},"",""]
["COPEYITO",{"$nulls":3},"",""]
["BOBITA",{"$nulls":3},"",""]
["DESIDERIO ACOSTA",{"$nulls":3},"",""]
["PASCASIO TORIBIO",{"$nulls":3},"",""]
["SAN JUAN EVANGELISTA",{"$nulls":3},"",""]
["OJO DE AGUA",{"$nulls":3},"",""]
["MARINA GIL (MONTE ADENTRO)",{"$nulls":3},"",""]
["MIREYA LANTIGUA",{"$nulls":3},"",""]
["DR. FRANCISCO MENA PANTALEON",{"$nulls":3},"",""]
["EL RANCHO",{"$nulls":3},"",""]
["FE VIOLETA ORTEGA",{"$nulls":3},"",""]
["JOSE A. PANTALEON",{"$nulls":3},"",""]
["BUEN PASTOR",{"$nulls":3},"",""]
["ANTONIO MANUEL NUÑEZ",{"$nulls":3},"",""]
["ANA MERCEDES RODRIGUEZ (INVI)",{"$nulls":3},"",""]
["DIRECCIÓN PROVINCIAL DE SALUD HERMANAS MIRABAL (DPS)",{"$nulls":3},"",""]
["NATIVIDAD ALCALA",{"$nulls":3},"",""]
["LEOPOLDO POU",{"$nulls":3},"",""]
["LA PASCUALA",{"$nulls":3},"",""]
["JUANA VICENTA",{"$nulls":3},"",""]
["RANCHO ESPAÑOL",{"$nulls":3},"",""]
["HONDURAS",{"$nulls":3},"",""]
["LOS CACAOS",{"$nulls":3},"",""]
["EL VALLE",{"$nulls":3},"",""]
["DANIEL WILLMORE",{"$nulls":3},"",""]
["ARROYO BARRIL",{"$nulls":3},"",""]
["RINCON",{"$nulls":3},"",""]
["LAS GALERAS",{"$nulls":3},"",""]
["LICENCIADA PATRIA MULLIX",{"$nulls":3},"",""]
["DIRECCIÓN PROVINCIAL DE SALUD SAMANA (DPS)",{"$nulls":3},"",""]
["CENTRO CLINICO DIAGNOSTICO SAMANA",{"$nulls":3},"",""]
["HOSPITAL REGIONAL SAN VICENTE DE PAUL",{"$nulls":3},"",""]
["SERVICIO REGIONAL DE SALUD NORDESTE",{"$nulls":3},"",""]
["DR. MARIO FERNANDEZ MENA",{"$nulls":3},"",""]
["VISTA AL VALLE",{"$nulls":3},"",""]
["DIRECCIÓN PROVINCIAL DE SALUD DUARTE (DPS)",{"$nulls":3},"",""]
["HERMANAS MIRABAL",{"$nulls":3},"",""]
["SANTA ROSA DE LIMA",{"$nulls":3},"",""]
["AZLOR",{"$nulls":3},"",""]
["CUABA CENTRO",{"$nulls":3},"",""]
["DAMAJAGUAL",{"$nulls":3},"",""]
["EL CERCADO",{"$nulls":3},"",""]
["EL RAMONAL",{"$nulls":3},"",""]
["GUIZA",{"$nulls":3},"",""]
["LA BAJADA",{"$nulls":3},"",""]
["LOS BRACITOS",{"$nulls":3},"",""]
["LA PEÑA",{"$nulls":3},"",""]
["LAS GUAZUMAS",{"$nulls":3},"",""]
["LICEO ERCILIA PEPIN",{"$nulls":3},"",""]
["LOMA QUITA ESPUELA",{"$nulls":3},"",""]
["VENTURA GRULLON",{"$nulls":3},"",{"$f":"LOWER(E985)","v":""}]
["ATABALERO",{"$nulls":3},"",""]
["CRISTO REY",{"$nulls":3},"",""]
["EL GUINEAL",{"$nulls":3},"",""]
["HOYO DE JAYA",{"$nulls":3},"",""]
["JUAN ALBERTO ESPINOLA",{"$nulls":3},"",""]
["LA COLONIA",{"$nulls":3},"",""]
["LA JOYA",{"$nulls":3},"",""]
["LA MALENA",{"$nulls":3},"",""]
["LA MALENITA",{"$nulls":3},"",""]
["LAS COLINAS",{"$nulls":3},"",""]
["LOMA DE LA JOYA",{"$nulls":3},"",""]
["NARANJO DULCE",{"$nulls":3},"",""]
["SAN VICENTE DE PAUL",{"$nulls":3},"",""]
["UNIVERSIDAD CATOLICA NORDESTANA (UCNE)",{"$nulls":3},"",""]
["LA YAGUIZA",{"$nulls":3},"",""]
["AGRUPACION MADRE SANTA ANA",{"$nulls":3},"",""]
["AGUAYO",{"$nulls":3},"",""]
["CARCEL PUBLICA VISTA AL VALLE",{"$nulls":3},"",""]
["CRUZ DE CENOVI",{"$nulls":3},"",""]
["LA AMARGA",{"$nulls":3},"",""]
["LA ROSA DE CENOVI",{"$nulls":3},"",""]
["LA SEQUIA",{"$nulls":3},"",""]
["PORQUERO",{"$nulls":3},"",""]
["SAN FRANCISCO DE ASIS",{"$nulls":3},"",""]
["SANTA ANA",{"$nulls":3},"",""]
["EL CAIMITO",{"$nulls":3},"",""]
["GENIMILLO",{"$nulls":3},"",""]
["GENIMO",{"$nulls":3},"",""]
["GREGORIO LUPERON 1",{"$nulls":3},"",""]
["LICEO MANUEL MARIA CASTILLO",{"$nulls":3},"",""]
["LOS BOMBEROS",{"$nulls":3},"",""]
["LOS RIELITOS",{"$nulls":3},"",""]
["MARIA MADRE",{"$nulls":3},"",""]
["NUESTRA SEÑORA DE FATIMA",{"$nulls":3},"",""]
["IGLESIA SANTA ANA",{"$nulls":3},"",""]
["FORTALEZA DUARTE",{"$nulls":3},"",""]
["BARRIO 27 DE FEBRERO",{"$nulls":3},"",""]
["SANTA LUISA DE MARILLAT",{"$nulls":3},"",""]
["PARROQUIA SAN MARTIN DE PORRES",{"$nulls":3},"",""]
["EMILIANO TARDIFF",{"$nulls":3},"",""]
["IGLESIA SAGRADA FAMILIA",{"$nulls":3},"",""]
["SAN PABLO APOSTOL",{"$nulls":3},"",""]
["ANTITUBERCULOSO DR. YUN PERALTA (LIC. ISIS DUARTE, PROFAMILIA)",{"$nulls":3},"",""]
["CENTRO UNIVERSITARIO REGIONAL DEL NORDESTE (CURNE)",{"$nulls":3},"",""]
["DR. EMILIANO TEJADA (HATILLO)",{"$nulls":3},"",""]
["EL MADRIGAL",{"$nulls":3},"",""]
["ALBERTO GAUTREAUX",{"$nulls":3},"",""]
["JUAN A. JACQUEZ BERNARD (URB SANCHEZ)",{"$nulls":3},"",""]
["LA LOMETA",{"$nulls":3},"",""]
["LAS GARITAS",{"$nulls":3},"",""]
["LA MAJAGUA",{"$nulls":3},"",""]
["EL CATEY",{"$nulls":3},"",""]
["BATEY HORMIGA",{"$nulls":3},"",""]
["DR. ANGEL CONCEPCION LAJARA",{"$nulls":3},"",""]
["EL COROZAL",{"$nulls":3},"",""]
["EULALIA PEÑA(MAMA PICHA) URBANA TENARES",{"$nulls":3},"",""]
["LOS CACAOS",{"$nulls":3},"",""]
["LA JIBARA",{"$nulls":3},"",""]
["LA GUAMA",{"$nulls":3},"",""]
["BLANCO ARRIBA",{"$nulls":3},"",""]
["GRAN PARADA (DR. CASTILLO VARGAS) 1",{"$nulls":3},"",""]
["ALICIA DE LEGENDRE",{"$nulls":3},"",""]
["BARRAQUITO",{"$nulls":3},"",""]
["BOMBA DE YAIBA",{"$nulls":3},"",{"$f":"LOWER(E1049)","v":""}]
["CEIBA DE LOS PAJAROS",{"$nulls":3},"",""]
["GUARAGUAO",{"$nulls":3},"",""]
["LA REFORMA",{"$nulls":3},"",""]
["JOBOBAN",{"$nulls":3},"",""]
["LAS TARANAS",{"$nulls":3},"",""]
["VILLA RIVA",{"$nulls":3},"",""]
["BARRIO DAVID",{"$nulls":3},"",""]
["MUNICIPAL VILLA TAPIA",{"$nulls":3},"",""]
["URBANA VILLA TAPIA",{"$nulls":3},"",""]
["LOS LIMONES",{"$nulls":3},"",""]
["HATO PALMAR",{"$nulls":3},"",""]
["SANTA ANA",{"$nulls":3},"",""]
["EL COCO",{"$nulls":3},"",""]
["SAN JOSE DE CONUCO",{"$nulls":3},"",""]
["LAS AROMAS",{"$nulls":3},"",""]
["EL TABLON",{"$nulls":3},"",""]
["CENTRO COMUNAL ALTO ALEGRE",{"$nulls":3},"",""]
["CENTRO CLINICO DIAGNOSTICO VILLA TAPIA",{"$nulls":3},"",""]
["30 DE MAYO",{"$nulls":3},"",""]
["AGUAS NEGRAS",{"$nulls":3},"",""]
["ALTAMIRA",{"$nulls":3},"",""]
["ALTO VELO",{"$nulls":3},"",""]
["ANDREA EVANGELINA RODRIGUEZ",{"$nulls":3},"",""]
["ANGOSTURA",{"$nulls":3},"",""]
["APOLINAR PERDOMO",{"$nulls":3},"",""]
["ARROYO DULCE",{"$nulls":3},"",""]
["ARROYO GRANDE",{"$nulls":3},"",""]
["BAHORUCO",{"$nulls":3},"",""]
["BAITOITA",{"$nulls":3},"",""]
["BARRIO LINDO",{"$nulls":3},"",""]
["BARTOLOME",{"$nulls":3},"",""]
["BATEY  2",{"$nulls":3},"",""]
["BATEY  6",{"$nulls":3},"",""]
["BATEY 5",{"$nulls":3},"",""]
["BATEY 8",{"$nulls":3},"",""]
["BATEY SANTANA",{"$nulls":3},"",""]
["BOCA DE CACHON",{"$nulls":3},"",""]
["BOMBITA",{"$nulls":3},"",""]
["CAAMAÑO",{"$nulls":3},"",""]
["CABEZA DE TORO",{"$nulls":3},"",""]
["CABRAL CENTRO",{"$nulls":3},"",""]
["CACHON",{"$nulls":3},"",""]
["CANOA",{"$nulls":3},"",""]
["CAÑADA DEL AGUA",{"$nulls":3},"",""]
["CAPOTILLO",{"$nulls":3},"",""]
["CARCEL PUBLICA",{"$nulls":3},"",""]
["CASANDRA",{"$nulls":3},"",""]
["CENTRO CLÍNICO Y DIAGNOSTICO DE ATENCIÓN PRIMARIA DE ENRIQUILLO",{"$nulls":3},"",""]
["CENTRO CLÍNICO Y DIAGNOSTICO DE ATENCIÓN PRIMARIA DE NEIBA",{"$nulls":3},"",""]
["CENTRO CLÍNICO Y DIAGNOSTICO DE ATENCIÓN PRIMARIA JIMANI",{"$nulls":3},"",""]
["CENTRO CLÍNICO Y DIAGNOSTICO DE ATENCIÓN PRIMARIA SANTA CRUZ",{"$nulls":3},"",""]
["CERRO  AL  MEDIO",{"$nulls":3},"",""]
["COLONIA MIXTA",{"$nulls":3},"",""]
["CRISTOBAL",{"$nulls":3},"",""]
["DESCUBIERTA CENTRO",{"$nulls":3},"",""]
["DESCUBIERTA PALMITO",{"$nulls":3},"",""]
["DESCUBIERTA PUEBLO",{"$nulls":3},"",""]
["DIRECCION PROVINCIAL DE SALUD BAHORUCO",{"$nulls":3},"",""]
["DIRECCION PROVINCIAL DE SALUD BARAHONA",{"$nulls":3},"",""]
["DIRECCION PROVINCIAL DE SALUD EL SEIBO",{"$nulls":3},"",""]
["DIRECCION PROVINCIAL DE SALUD HATO MAYOR",{"$nulls":3},"",""]
["DIRECCION PROVINCIAL DE SALUD INDEPENDENCIA",{"$nulls":3},"",""]
["DIRECCION PROVINCIAL DE SALUD PEDERNALES",{"$nulls":3},"",""]
["EL CEDRO",{"$nulls":3},"",{"$f":"LOWER(E1113)","v":""}]
["EL CERCADO",{"$nulls":3},"",""]
["EL CERRITO",{"$nulls":3},"",""]
["EL CUEY",{"$nulls":3},"",""]
["EL GUARAL",{"$nulls":3},"",""]
["EL LIMON",{"$nulls":3},"",""]
["EL MAMON",{"$nulls":3},"",""]
["EL PALMAR",{"$nulls":3},"",""]
["EL PINTADO",{"$nulls":3},"",""]
["EL SALADO",{"$nulls":3},"",""]
["EL TANQUE",{"$nulls":3},"",""]
["ENRIQUILLO URBANO",{"$nulls":3},"",""]
["FONDO NEGRO",{"$nulls":3},"",""]
["FUNDACION",{"$nulls":3},"",""]
["GALVAN CENTRO",{"$nulls":3},"",""]
["GINANDIANA",{"$nulls":3},"",""]
["GUALEY",{"$nulls":3},"",""]
["GUAYABAL",{"$nulls":3},"",""]
["GUAYABO DULCE",{"$nulls":3},"",""]
["HOSPITAL ALFREDO GONZALEZ GIL ROLDAN",{"$nulls":3},"",""]
["HOSPITAL CABRAL",{"$nulls":3},"",""]
["HOSPITAL DR TEOFILO HERNANDEZ",{"$nulls":3},"",""]
["HOSPITAL ELIO FIALLO",{"$nulls":3},"",""]
["HOSPITAL ENRIQUILLO",{"$nulls":3},"",""]
["HOSPITAL GENERAL MELENCIANO",{"$nulls":3},"",""]
["HOSPITAL JAIME MOTA",{"$nulls":3},"",""]
["HOSPITAL JAIME SANCHEZ",{"$nulls":3},"",""]
["HOSPITAL JOSE PEREZ",{"$nulls":3},"",""]
["HOSPITAL JULIA SANTANA",{"$nulls":3},"",""]
["HOSPITAL LA DESCUBIERTA",{"$nulls":3},"",""]
["HOSPITAL LOS RIOS",{"$nulls":3},"",""]
["HOSPITAL MUNICIPAL EL VALLE",{"$nulls":3},"",""]
["HOSPITAL POLO",{"$nulls":3},"",""]
["HOSPITAL SAN BARTOLOME",{"$nulls":3},"",""]
["HOSPITAL TEOFILO GAUTIER",{"$nulls":3},"",""]
["HOSPITAL VICENTE NOBLE",{"$nulls":3},"",""]
["INVI-CEA",{"$nulls":3},"",""]
["JALONGA",{"$nulls":3},"",""]
["JAQUIMEYES",{"$nulls":3},"",""]
["JIMANI CENTRO",{"$nulls":3},"",""]
["JIMANI VIEJO",{"$nulls":3},"",""]
["JUANCHO",{"$nulls":3},"",""]
["KM 15",{"$nulls":3},"",""]
["LA  MONTAÑITA",{"$nulls":3},"",""]
["LA CIENAGA",{"$nulls":3},"",""]
["LA CUABA",{"$nulls":3},"",""]
["LA GINA",{"$nulls":3},"",""]
["LA GUAZARA",{"$nulls":3},"",""]
["LA HIGUERA",{"$nulls":3},"",""]
["LA HOYA",{"$nulls":3},"",""]
["LA JAVILLA",{"$nulls":3},"",""]
["LA LANZA",{"$nulls":3},"",""]
["LA LISTA",{"$nulls":3},"",""]
["LA MINA",{"$nulls":3},"",""]
["LA PEÑUELA",{"$nulls":3},"",""]
["LA PLAYA",{"$nulls":3},"",""]
["LA RAQUETA",{"$nulls":3},"",""]
["LA SIERRA",{"$nulls":3},"",""]
["LAS BAITOAS",{"$nulls":3},"",""]
["LAS CAÑITAS",{"$nulls":3},"",""]
["LAS CAÑITAS",{"$nulls":3},"",""]
["LAS CHINAS",{"$nulls":3},"",""]
["LAS CLAVELLINAS",{"$nulls":3},"",""]
["LAS CUCHILLAS",{"$nulls":3},"",""]
["LAS GUAJABAS",{"$nulls":3},"",{"$f":"LOWER(E1177)","v":""}]
["LAS GUAMAS",{"$nulls":3},"",""]
["LAS MALVINAS",{"$nulls":3},"",""]
["LAS MERCEDES",{"$nulls":3},"",""]
["LAS QUINIENTAS",{"$nulls":3},"",""]
["LAS SALINAS",{"$nulls":3},"",""]
["LAS YAGUITAS",{"$nulls":3},"",""]
["LEOPOLDO MARTINEZ",{"$nulls":3},"",""]
["LOS ARROYOS",{"$nulls":3},"",""]
["LOS BLANCOS",{"$nulls":3},"",""]
["LOS BOLOS",{"$nulls":3},"",""]
["LOS BOTADOS",{"$nulls":3},"",""]
["LOS COCOS",{"$nulls":3},"",""]
["LOS FRANCESES",{"$nulls":3},"",""]
["LOS HATILLOS",{"$nulls":3},"",""]
["LOS PATOS",{"$nulls":3},"",""]
["LOS PINOS DEL EDEN",{"$nulls":3},"",""]
["LOS RIOS 18",{"$nulls":3},"",""]
["LOS RIOS 19",{"$nulls":3},"",""]
["LOS ROBLES",{"$nulls":3},"",""]
["LOS SALADILLOS",{"$nulls":3},"",""]
["LUCHA  Y  PROGRESO",{"$nulls":3},"",""]
["MAGARIN",{"$nulls":3},"",""]
["MAGUA",{"$nulls":3},"",""]
["MAJAGUAL",{"$nulls":3},"",""]
["MANCHADO",{"$nulls":3},"",""]
["MARIA MONTES",{"$nulls":3},"",""]
["MELLA",{"$nulls":3},"",""]
["MENA ARRIBA",{"$nulls":3},"",""]
["MENCIA",{"$nulls":3},"",""]
["MIRADOR SUR",{"$nulls":3},"",""]
["MONSERRATE",{"$nulls":3},"",""]
["MONTE COCA",{"$nulls":3},"",""]
["MORQUECHO",{"$nulls":3},"",""]
["MUNICIPAL DE MICHES",{"$nulls":3},"",""]
["NUEVA  ESPERANZA",{"$nulls":3},"",""]
["ONDINA",{"$nulls":3},"",""]
["OVIEDO",{"$nulls":3},"",""]
["PALMARITO",{"$nulls":3},"",""]
["PALO ALTO",{"$nulls":3},"",""]
["PALOMA MENSAJERA",{"$nulls":3},"",""]
["PARAISO 1-2",{"$nulls":3},"",""]
["PARAISO CENTRO DEL PUEBLO",{"$nulls":3},"",""]
["PEDERNALES I (5-6)",{"$nulls":3},"",""]
["PEDERNALES II (3-4)",{"$nulls":3},"",""]
["PEDRO SANCHEZ",{"$nulls":3},"",""]
["PEÑON",{"$nulls":3},"",""]
["PESCADERIA",{"$nulls":3},"",""]
["PLACER BONITO",{"$nulls":3},"",""]
["POLO URBANO 35",{"$nulls":3},"",""]
["POLO URBANO 36",{"$nulls":3},"",""]
["POSTRER RÍO",{"$nulls":3},"",""]
["PRINGAMOSA",{"$nulls":3},"",""]
["PUEBLO NUEVO",{"$nulls":3},"",""]
["PUERTO PLATA",{"$nulls":3},"",""]
["PUERTO RICO",{"$nulls":3},"",""]
["PUESTO ESCONDIDO",{"$nulls":3},"",""]
["PUNTA DE GARZA",{"$nulls":3},"",""]
["QUITA CORAZA",{"$nulls":3},"",""]
["SABANA DE NISIBON",{"$nulls":3},"",""]
["SAN ANTONIO DE PADUA",{"$nulls":3},"",""]
["SAN ISIDRO",{"$nulls":3},"",""]
["SAN JOSE",{"$nulls":3},"",""]
["SANTA ELENA",{"$nulls":3},"",""]
["SAVICA",{"$nulls":3},"",{"$f":"LOWER(E1241)","v":""}]
["SERVICIO REGIONAL DE SALUD ENRIQUILLO",{"$nulls":3},"",""]
["SRTA ELUPINA CORDERO",{"$nulls":3},"",""]
["TIERRA NUEVA",{"$nulls":3},"",""]
["UCATEBA",{"$nulls":3},"",""]
["UVILLA",{"$nulls":3},"",""]
["VENGAN A VER",{"$nulls":3},"",""]
["VICENTE NOBLE I (1,2,5)",{"$nulls":3},"",""]
["VICENTE NOBLE II (3,4)",{"$nulls":3},"",""]
["VICENTILLO",{"$nulls":3},"",""]
["VILLA CANTO",{"$nulls":3},"",""]
["VILLA ESTELA",{"$nulls":3},"",""]
["VILLA GUERRERO",{"$nulls":3},"",""]
["VILLA JARAGUA 31-33",{"$nulls":3},"",""]
["VILLA JARAGUA 32",{"$nulls":3},"",""]
["VILLA NAVARRO",{"$nulls":3},"",""]
["VILLA ORTEGA",{"$nulls":3},"",""]
["VUELTA GRANDE",{"$nulls":3},"",""]
["YANIGUA",{"$nulls":3},"",""]
["YERBA BUENA",{"$nulls":3},"",""]
["ALEJANDRO BASS",{"$nulls":3},"",""]
["AMELIA",{"$nulls":3},"",""]
["ANAMUYA",{"$nulls":3},"",""]
["ANAMUYITA",{"$nulls":3},"",""]
["ANGEL PONCE (CONSUELO)",{"$nulls":3},"",""]
["ANGELINA",{"$nulls":3},"",""]
["ASILO JOSE MARIA",{"$nulls":3},"",""]
["BARRIO BLANCO",{"$nulls":3},"",""]
["BARRIO LINDO",{"$nulls":3},"",""]
["BARRIO MEXICO",{"$nulls":3},"",""]
["BATEY ALEMAN",{"$nulls":3},"",""]
["BATEY ESPERANZA",{"$nulls":3},"",""]
["BATEY JAGUAL",{"$nulls":3},"",""]
["BATEY MARGARITA",{"$nulls":3},"",""]
["BATEY SOCO",{"$nulls":3},"",""]
["BAYAHIBE",{"$nulls":3},"",""]
["BENERITO",{"$nulls":3},"",""]
["BOCA DE CHAVON",{"$nulls":3},"",""]
["BOCA DE SOCO",{"$nulls":3},"",""]
["BOCA DE YUMA",{"$nulls":3},"",""]
["BOTIQUIN",{"$nulls":3},"",""]
["BUEN PASTOR",{"$nulls":3},"",""]
["CACHENA",{"$nulls":3},"",""]
["CALETA",{"$nulls":3},"",""]
["CAMARA JUNIOR",{"$nulls":3},"",""]
["CAÑADA HONDA",{"$nulls":3},"",""]
["CARCEL PUBLICA",{"$nulls":3},"",""]
["CARCEL PUBLICA",{"$nulls":3},"",""]
["CARCEL PUBLICA",{"$nulls":3},"",""]
["CAYACOA",{"$nulls":3},"",""]
["CENTRO COMUNAL",{"$nulls":3},"",""]
["CENTRO DE APOYO DIAGNOSTICO, SPM",{"$nulls":3},"",""]
["CENTRO DE DIAGNOSTICO CALETA",{"$nulls":3},"",""]
["CENTRO DE REHABILITACION ANAMUYA",{"$nulls":3},"",""]
["CLINICA DE FAMILIA LA ROMANA",{"$nulls":3},"",""]
["CLINICA RURAL HIGUERAL",{"$nulls":3},"",""]
["CONANI",{"$nulls":3},"",""]
["CONANI",{"$nulls":3},"",""]
["CONSUELITO",{"$nulls":3},"",""]
["CONTADOR",{"$nulls":3},"",""]
["CPN EXPERIENCIA",{"$nulls":3},"",""]
["CUCAMA",{"$nulls":3},"",""]
["CUMAYASA",{"$nulls":3},"",""]
["DANDOLE LA MANO AL POBRE",{"$nulls":3},"",""]
["DERMATOLOGICO",{"$nulls":3},"",{"$f":"LOWER(E1305)","v":""}]
["DIRECCION PROVINCIAL DE SALUD LA ALTAGRACIA",{"$nulls":3},"",""]
["DIRECCION PROVINCIAL DE SALUD LA ROMANA",{"$nulls":3},"",""]
["DIRECCION PROVINCIAL DE SALUD SAN PEDRO DE MACORIS",{"$nulls":3},"",""]
["DIVINA PROVIDENCIA",{"$nulls":3},"",""]
["DR ALEJO MARTINEZ",{"$nulls":3},"",""]
["DR ANTONIO MUSA",{"$nulls":3},"",""]
["DR FRANCISCO ANTONIO GONZALVO",{"$nulls":3},"",""]
["DR PEDRO MARIA SANTANA",{"$nulls":3},"",""]
["EL BONAO",{"$nulls":3},"",""]
["EL BRISAL",{"$nulls":3},"",""]
["EL PEÑON DE LOS REYES",{"$nulls":3},"",""]
["EL PUERTO",{"$nulls":3},"",""]
["EL SALADO",{"$nulls":3},"",""]
["EL VERON",{"$nulls":3},"",""]
["ESC. PAULINA JIMENEZ",{"$nulls":3},"",""]
["ESCUELA PAULINA JIMENEZ",{"$nulls":3},"",""]
["ESCUELA VOCACIONAL",{"$nulls":3},"",""]
["ESCUELA VOCACIONAL DE FF.AA Y PN",{"$nulls":3},"",""]
["ESPERANZA Y CARIDAD",{"$nulls":3},"",""]
["EVANGELINA RODRIGUEZ PEROZO",{"$nulls":3},"",""]
["GAUTIER",{"$nulls":3},"",""]
["GUANIABANO",{"$nulls":3},"",""]
["GUAYABAL",{"$nulls":3},"",""]
["GUAYACANES",{"$nulls":3},"",""]
["GUAYMATE",{"$nulls":3},"",""]
["HATO DE MANA",{"$nulls":3},"",""]
["HONDURAS",{"$nulls":3},"",""]
["Hospital Aristides Fiallo Cabral",{"$nulls":3},"",""]
["Hospital de Alta Especialidad de La Altagracia",{"$nulls":3},"",""]
["Hospital General Dr. Jaime Oliver Pino",{"$nulls":3},"",""]
["Hospital Municipal Luis N. Beras",{"$nulls":3},"",""]
["HOSPITAL NUESTRA SEÑORA DE LA ALTAGRACIA (HIGUEY)",{"$nulls":3},"",""]
["JAPON",{"$nulls":3},"",""]
["JINAJARAGUA",{"$nulls":3},"",""]
["JUAN DOLIO",{"$nulls":3},"",""]
["JUAN PABLO DUARTE",{"$nulls":3},"",""]
["KM 10",{"$nulls":3},"",""]
["KM 14 CUMAYASA",{"$nulls":3},"",""]
["LA CEIBA DE BLANDINO",{"$nulls":3},"",""]
["LA ENEA",{"$nulls":3},"",""]
["LA FLORIDA",{"$nulls":3},"",""]
["LA GUAZUMA",{"$nulls":3},"",""]
["LA LLANADA DEL CERRO\\t\\t\\t\\t\\t",{"$nulls":3},"",""]
["LA MALENA",{"$nulls":3},"",""]
["LA OTRA BANDA",{"$nulls":3},"",""]
["LAS GUAMAS",{"$nulls":3},"",""]
["LAS LAGUNAS NISIBON",{"$nulls":3},"",""]
["LAS MERCEDES",{"$nulls":3},"",""]
["LAS PAJAS",{"$nulls":3},"",""]
["LOS CERRITOS",{"$nulls":3},"",""]
["LOS COCOS",{"$nulls":3},"",""]
["LOS CONUCOS",{"$nulls":3},"",""]
["LOS GUINEOS\\t\\t\\t\\t\\t",{"$nulls":3},"",""]
["LOS NEGROS",{"$nulls":3},"",""]
["LOS PLATANITOS",{"$nulls":3},"",""]
["LOS ROSALES",{"$nulls":3},"",""]
["LOS SOTOS",{"$nulls":3},"",""]
["LUIS J SUAREZ",{"$nulls":3},"",""]
["MAGDALENA",{"$nulls":3},"",""]
["MAMA TINGO",{"$nulls":3},"",""]
["MARIA TRINIDAD SANCHEZ",{"$nulls":3},"",""]
["MATA CHALUPE\\t\\t\\t\\t\\t",{"$nulls":3},"",""]
["MONTE CRISTI",{"$nulls":3},"",""]
["NIÑOS DE CRISTO",{"$nulls":3},"",{"$f":"LOWER(E1369)","v":""}]
["PADRE CAVALOTTO",{"$nulls":3},"",""]
["PALOMA",{"$nulls":3},"",""]
["PEDRO JUSTO CARRION",{"$nulls":3},"",""]
["PEPE ROSARIO",{"$nulls":3},"",""]
["PIEDRA LINDA",{"$nulls":3},"",""]
["PLAZA 3030",{"$nulls":3},"",""]
["POLITUR",{"$nulls":3},"",""]
["PORTUARIA",{"$nulls":3},"",""]
["PORVENIR",{"$nulls":3},"",""]
["PUNTA DE GARZA",{"$nulls":3},"",""]
["PUNTA PESCADORA",{"$nulls":3},"",""]
["QUISQUEYA",{"$nulls":3},"",""]
["SAN FRANCISCO",{"$nulls":3},"",""]
["SAN MARTIN",{"$nulls":3},"",""]
["SAN MARTIN DE PORRES",{"$nulls":3},"",""]
["SAN PEDRO",{"$nulls":3},"",""]
["SANTA CLARA",{"$nulls":3},"",""]
["SANTA FE",{"$nulls":3},"",""]
["SANTANA",{"$nulls":3},"",""]
["SAONA",{"$nulls":3},"",""]
["SERVICIO REGIONAL DE SALUD ESTE",{"$nulls":3},"",""]
["THOMAS DESIR LEBRON",{"$nulls":3},"",""]
["THOMAS DESIR LEBRON",{"$nulls":3},"",""]
["UASD",{"$nulls":3},"",""]
["UCE",{"$nulls":3},"",""]
["ULLOA",{"$nulls":3},"",""]
["VICENTE HOSTALED",{"$nulls":3},"",""]
["VICTORIA",{"$nulls":3},"",""]
["VILLA CERRO",{"$nulls":3},"",""]
["VILLA FARO",{"$nulls":3},"",""]
["VILLA HERMOSA III",{"$nulls":3},"",""]
["VILLA HERMOSA IV",{"$nulls":3},"",""]
["VILLA HERMOSA IYII",{"$nulls":3},"",""]
["VILLA HERMOSA V",{"$nulls":3},"",""]
["VILLA REAL",{"$nulls":3},"",""]
["AMIAMA GOMEZ",{"$nulls":3},"",""]
["ANSONIA",{"$nulls":3},"",""]
["ARROYO CANO",{"$nulls":3},"",""]
["ARROYO COLORADO",{"$nulls":3},"",""]
["BANICA",{"$nulls":3},"",""]
["BARRANCA",{"$nulls":3},"",""]
["BARRERA",{"$nulls":3},"",""]
["BATISTA",{"$nulls":3},"",""]
["BOHECHIO",{"$nulls":3},"",""]
["BOHECHIO",{"$nulls":3},"",""]
["BOMBITA",{"$nulls":3},"",""]
["BUENA VISTA DE YAQUE",{"$nulls":3},"",""]
["CAPULIN",{"$nulls":3},"",""]
["CARDON",{"$nulls":3},"",""]
["CARRERA DE YEGUA",{"$nulls":3},"",""]
["CARRIZAL",{"$nulls":3},"",""]
["CENTRO CLÍNICO Y DIAGNOSTICO DE ATENCIÓN PRIMARIA LAS MATAS DE FARFAN",{"$nulls":3},"",""]
["CENTRO CLÍNICO Y DIAGNOSTICO DE ATENCIÓN PRIMARIA SAN JUAN DE LA MAGUANA",{"$nulls":3},"",""]
["CORBANO NORTE",{"$nulls":3},"",""]
["CORBANO SUR 1",{"$nulls":3},"",""]
["CORBANO SUR 2",{"$nulls":3},"",""]
["CORBANO SUR 3",{"$nulls":3},"",""]
["CRISTO REY",{"$nulls":3},"",""]
["CUCHILLA",{"$nulls":3},"",""]
["D-1 GANADERO",{"$nulls":3},"",""]
["DERRUMBADERO",{"$nulls":3},"",""]
["DIRECCION PROVINCIAL DE SALUD AZUA",{"$nulls":3},"",""]
["DIRECCION PROVINCIAL DE SALUD ELIAS PIÑA",{"$nulls":3},"",""]
["DIRECCION PROVINCIAL DE SALUD SAN JUAN",{"$nulls":3},"",{"$f":"LOWER(E1433)","v":""}]
["DISPENSARIO MEDICO MATERNO INFANTIL ACTIVO 20-30",{"$nulls":3},"",""]
["DR. ALEJANDRO CABRAL",{"$nulls":3},"",""]
["DR. FEDERICO ARMANDO AYBAR",{"$nulls":3},"",""]
["EL BARRO",{"$nulls":3},"",""]
["EL BATEY",{"$nulls":3},"",""]
["EL CACHEO",{"$nulls":3},"",""]
["EL CERCADO",{"$nulls":3},"",""]
["EL HIGUERO DE PERALTA",{"$nulls":3},"",""]
["EL HOYO",{"$nulls":3},"",""]
["EL JOVITO",{"$nulls":3},"",""]
["EL LLANO",{"$nulls":3},"",""]
["EL NARANJO",{"$nulls":3},"",""]
["EL ROSARIO",{"$nulls":3},"",""]
["EL ROSARIO",{"$nulls":3},"",""]
["ESTEBANIA",{"$nulls":3},"",""]
["FINCA 6",{"$nulls":3},"",""]
["GUANITO",{"$nulls":3},"",""]
["GUANITO",{"$nulls":3},"",""]
["GUAYABAL",{"$nulls":3},"",""]
["GUAYABAL",{"$nulls":3},"",""]
["GUAYABO",{"$nulls":3},"",""]
["HATILLO",{"$nulls":3},"",""]
["HATO DEL PADRE",{"$nulls":3},"",""]
["HATO NUEVO",{"$nulls":3},"",""]
["HATO NUEVO",{"$nulls":3},"",""]
["HATO VIEJO",{"$nulls":3},"",""]
["HIGUERITO",{"$nulls":3},"",""]
["HIGUERITO",{"$nulls":3},"",""]
["HONDO VALLE",{"$nulls":3},"",""]
["JINOVA",{"$nulls":3},"",""]
["JORGILLO",{"$nulls":3},"",""]
["JUAN DE HERRERA",{"$nulls":3},"",""]
["JUAN DE HERRERA",{"$nulls":3},"",""]
["JUAN SANTIAGO",{"$nulls":3},"",""]
["LA CAÑITA",{"$nulls":3},"",""]
["LA COLONIA",{"$nulls":3},"",""]
["LA ESTANCIA",{"$nulls":3},"",""]
["LA FLORIDA",{"$nulls":3},"",""]
["LA GALLERA",{"$nulls":3},"",""]
["LA GUAMA",{"$nulls":3},"",""]
["LA JAGUA",{"$nulls":3},"",""]
["LA NAVAJA",{"$nulls":3},"",""]
["LA RANCHA",{"$nulls":3},"",""]
["LA SIEMBRA",{"$nulls":3},"",""]
["LAS BARIAS",{"$nulls":3},"",""]
["LAS CHARCAS",{"$nulls":3},"",""]
["LAS CHARCAS DE GARABITO",{"$nulls":3},"",""]
["LAS CHARCAS DE MARÍA NOVA",{"$nulls":3},"",""]
["LAS DELICIAS",{"$nulls":3},"",""]
["LAS LAGUNAS",{"$nulls":3},"",""]
["LAS LOMAS",{"$nulls":3},"",""]
["LAS MAGUANAS",{"$nulls":3},"",""]
["LAS PALMAS",{"$nulls":3},"",""]
["LAS YAYAS",{"$nulls":3},"",""]
["LAS YAYAS ARRIBA",{"$nulls":3},"",""]
["LAS ZANJAS",{"$nulls":3},"",""]
["LOS BANCOS",{"$nulls":3},"",""]
["LOS CARTONES",{"$nulls":3},"",""]
["LOS COPEYES",{"$nulls":3},"",""]
["LOS FRIOS",{"$nulls":3},"",""]
["LOS GRINGOS",{"$nulls":3},"",""]
["LOS JOBOS",{"$nulls":3},"",""]
["LOS JOBOS",{"$nulls":3},"",""]
["LOS JOVILLOS",{"$nulls":3},"",{"$f":"LOWER(E1497)","v":""}]
["LOS MONTACITOS",{"$nulls":3},"",""]
["LOS NEGROS",{"$nulls":3},"",""]
["LOS PARCELEROS",{"$nulls":3},"",""]
["LOS TOROS",{"$nulls":3},"",""]
["LOS TRANSFORMADORES",{"$nulls":3},"",""]
["MACASIAS",{"$nulls":3},"",""]
["MAGUEYAL",{"$nulls":3},"",""]
["MAJAGUAL",{"$nulls":3},"",""]
["MATAYAYA",{"$nulls":3},"",""]
["MIRADOR NORTE",{"$nulls":3},"",""]
["MOGOLLON",{"$nulls":3},"",""]
["MONTE BONITO",{"$nulls":3},"",""]
["NUESTRA SEÑORA DEL CARMEN",{"$nulls":3},"",""]
["PALMAR DE OCOA",{"$nulls":3},"",""]
["PEDRO CORTO",{"$nulls":3},"",""]
["PEDRO SANTANA",{"$nulls":3},"",""]
["PERALTA",{"$nulls":3},"",""]
["PERPETUO SOCORRO",{"$nulls":3},"",""]
["PINZON",{"$nulls":3},"",""]
["POTROSO",{"$nulls":3},"",""]
["POZO HONDO",{"$nulls":3},"",""]
["PRADO COLONIA",{"$nulls":3},"",""]
["PROYECTO 2C",{"$nulls":3},"",""]
["PROYECTO 4",{"$nulls":3},"",""]
["PUEBLO VIEJO",{"$nulls":3},"",""]
["PUNTA CAÑA",{"$nulls":3},"",""]
["QUIJA QUIETA",{"$nulls":3},"",""]
["RANCHO LA GUARDIA",{"$nulls":3},"",""]
["RINCONCITO",{"$nulls":3},"",""]
["ROSA DUARTE",{"$nulls":3},"",""]
["ROSA LA PIEDRA",{"$nulls":3},"",""]
["SABANA ALTA",{"$nulls":3},"",""]
["SABANA CRUZ",{"$nulls":3},"",""]
["SABANA LARGA",{"$nulls":3},"",""]
["SABANA MULA",{"$nulls":3},"",""]
["SABANA YEGUA",{"$nulls":3},"",""]
["SABANETA",{"$nulls":3},"",""]
["SAJANOA",{"$nulls":3},"",""]
["SAN FRANCISCO",{"$nulls":3},"",""]
["SANTA ANA",{"$nulls":3},"",""]
["SERVICIO REGIONAL DE SALUD EL VALLE",{"$nulls":3},"",""]
["TABARA ABAJO",{"$nulls":3},"",""]
["TABARA ARRIBA",{"$nulls":3},"",""]
["TAIWAN 19 DE MARZO",{"$nulls":3},"",""]
["VALLECITO",{"$nulls":3},"",""]
["VALLEJUELO",{"$nulls":3},"",""]
["VALLEJUELO",{"$nulls":3},"",""]
["VIAJAMA",{"$nulls":3},"",""]
["VILLA CARMEN",{"$nulls":3},"",""]
["VILLA CORAZÓN DE JESUS",{"$nulls":3},"",""]
["VILLA ESPERANZA",{"$nulls":3},"",""]
["VILLA LIBERACION",{"$nulls":3},"",""]
["VILLA OCOA",{"$nulls":3},"",""]
["VILLARPANDO",{"$nulls":3},"",""]
["YABONICO",{"$nulls":3},"",""]
["AGRICULTURA",{"$nulls":3},"",""]
["AGUA CLARA",{"$nulls":3},"",""]
["AGUACATE",{"$nulls":3},"",""]
["ALBIMAR",{"$nulls":3},"",""]
["ALTO LA PALOMA",{"$nulls":3},"",""]
["AMINA",{"$nulls":3},"",""]
["ARROYO BLANCO",{"$nulls":3},"",""]
["ASIENTO FRIO",{"$nulls":3},"",""]
["BALDEMIRO CARRERAS",{"$nulls":3},"",{"$f":"LOWER(E1561)","v":""}]
["BARRIO LINDO",{"$nulls":3},"",""]
["BARRIO NORTE",{"$nulls":3},"",""]
["BARRIO PUERTO RICO",{"$nulls":3},"",""]
["BARRIO SUR (ESPERANZA)",{"$nulls":3},"",""]
["BARRIO SUR (VILLA VASQUEZ)",{"$nulls":3},"",""]
["BATEY MADRE",{"$nulls":3},"",""]
["BOCA DE MAO",{"$nulls":3},"",""]
["BOHIO VIEJO",{"$nulls":3},"",""]
["BORUCO",{"$nulls":3},"",""]
["CACHEO",{"$nulls":3},"",""]
["CAMBELEN",{"$nulls":3},"",""]
["CANA CHAPETON",{"$nulls":3},"",""]
["CAÑONGO",{"$nulls":3},"",""]
["CAPOTILLO",{"$nulls":3},"",""]
["CARBONERA",{"$nulls":3},"",""]
["CARLOS DANIEL",{"$nulls":3},"",""]
["CEIBA DE BONET",{"$nulls":3},"",""]
["CENTRO CLÍNICO Y  DIAGNOSTICO DE ATENCION PRIMARIA SAN FERNANDO DE MONTECRISTI",{"$nulls":3},"",""]
["CENTRO CLINICO Y DIAGNOSTICO DE ATENCION PRIMARIA DAJABON",{"$nulls":3},"",""]
["CENTRO DE DIAGNOSTICO Y ATENCION PRIMARIA ESPERANZA",{"$nulls":3},"",""]
["CENTRO DE DIAGNOSTICO Y ATENCION PRIMARIA MAO",{"$nulls":3},"",""]
["CENTRO DE DIAGNOSTICO Y ATENCION PRIMARIA SANTIAGO RODRIGUEZ",{"$nulls":3},"",""]
["CEPILLO",{"$nulls":3},"",""]
["CERRO GORDO",{"$nulls":3},"",""]
["CHACUEY",{"$nulls":3},"",""]
["CLAVIJO",{"$nulls":3},"",""]
["CLUB DE LEONES",{"$nulls":3},"",""]
["CONANI",{"$nulls":3},"",""]
["COPEY",{"$nulls":3},"",""]
["CRUCE DE GUAYACANES",{"$nulls":3},"",""]
["DAMAJAGUA",{"$nulls":3},"",""]
["DE CLASE",{"$nulls":3},"",""]
["DIRECCION PROVINCIAL DE SALUD DAJABON",{"$nulls":3},"",""]
["DIRECCION PROVINCIAL DE SALUD MONTECRISTI",{"$nulls":3},"",""]
["DIRECCION PROVINCIAL DE SALUD SANTIAGO RODRIGUEZ",{"$nulls":3},"",""]
["DIRECCION PROVINCIAL DE SALUD VALVERDE",{"$nulls":3},"",""]
["DOÑA ANTONIA",{"$nulls":3},"",""]
["EL AHOGADO",{"$nulls":3},"",""]
["EL COPEY",{"$nulls":3},"",""]
["EL CURNO",{"$nulls":3},"",""]
["EL JOBO",{"$nulls":3},"",""]
["EL PINO DAJABON",{"$nulls":3},"",""]
["EL PINO I",{"$nulls":3},"",""]
["EL POCITO",{"$nulls":3},"",""]
["EL SAMAN",{"$nulls":3},"",""]
["EL TAMARINDO",{"$nulls":3},"",""]
["EL VIGIADOR",{"$nulls":3},"",""]
["ENRIQUILLO",{"$nulls":3},"",""]
["ENRIQUILLO",{"$nulls":3},"",""]
["ENTRADA DE MAO",{"$nulls":3},"",""]
["FAUSTO JOSE OVALLE",{"$nulls":3},"",""]
["GENERAL SANTIAGO RODRIGUEZ",{"$nulls":3},"",""]
["GUAJAYAYUCO",{"$nulls":3},"",""]
["GUATAPANAL",{"$nulls":3},"",""]
["GUAYACANES ADENTRO",{"$nulls":3},"",""]
["GUAYUBIN",{"$nulls":3},"",""]
["GURABO",{"$nulls":3},"",""]
["HATILLO PALMA",{"$nulls":3},"",""]
["HERMANAS MIRABAL",{"$nulls":3},"",""]
["HIPOLITO BILLINI",{"$nulls":3},"",""]
["HOSPITAL LAS MATAS DE SANTA CRUZ",{"$nulls":3},"",""]
["ING LUIS L BOGAERT",{"$nulls":3},"",""]
["JAIBON LAGUNA SALADA",{"$nulls":3},"",""]
["JICOME",{"$nulls":3},"",{"$f":"LOWER(E1625)","v":""}]
["JICOME ESPERANZA",{"$nulls":3},"",""]
["JINAMAGAO",{"$nulls":3},"",""]
["JOSE FRANCISCO PEÑA GOMEZ",{"$nulls":3},"",""]
["JULIO ALVAREZ ACOSTA",{"$nulls":3},"",""]
["JULIO MORONTA",{"$nulls":3},"",""]
["LA CAPITALITA",{"$nulls":3},"",""]
["LA CAYA",{"$nulls":3},"",""]
["LA CURVA",{"$nulls":3},"",""]
["LA ESPERANZA",{"$nulls":3},"",""]
["LA FE",{"$nulls":3},"",""]
["LA GALLERA",{"$nulls":3},"",""]
["LA GORRA",{"$nulls":3},"",""]
["LA LEONOR",{"$nulls":3},"",""]
["LA MANICERA",{"$nulls":3},"",""]
["LA MINA",{"$nulls":3},"",""]
["LA PIÑA",{"$nulls":3},"",""]
["LA VIGIA",{"$nulls":3},"",""]
["LA YAGUA",{"$nulls":3},"",""]
["LAGUNA SALADA",{"$nulls":3},"",""]
["LAS CAOBAS",{"$nulls":3},"",""]
["LAS CUARENTA",{"$nulls":3},"",""]
["LAS ESPINAS",{"$nulls":3},"",""]
["LAS FLORES",{"$nulls":3},"",""]
["LAS FLORES (MONTECRISTI)",{"$nulls":3},"",""]
["LAS MATAS DE SANTA CRUZ",{"$nulls":3},"",""]
["LAS ROSAS",{"$nulls":3},"",""]
["LAS TRESCIENTAS",{"$nulls":3},"",""]
["LOMA DE CASTAÑUELA",{"$nulls":3},"",""]
["LOS BARRANCONES",{"$nulls":3},"",""]
["LOS BOMBEROS",{"$nulls":3},"",""]
["LOS CAYUCOS",{"$nulls":3},"",""]
["LOS CEREZOS",{"$nulls":3},"",""]
["LOS CONUCOS",{"$nulls":3},"",""]
["LOS CONUCOS V.V",{"$nulls":3},"",""]
["LOS DERRAMADEROS",{"$nulls":3},"",""]
["LOS MAESTRO",{"$nulls":3},"",""]
["LOS MICHES",{"$nulls":3},"",""]
["LOS PEREZ",{"$nulls":3},"",""]
["LOS QUEMADOS",{"$nulls":3},"",""]
["LOS RESTAURADORES",{"$nulls":3},"",""]
["LOS TOMINES",{"$nulls":3},"",""]
["LUPERON",{"$nulls":3},"",""]
["MAIZAL",{"$nulls":3},"",""]
["MAMONCITO",{"$nulls":3},"",""]
["MANUEL BUENO",{"$nulls":3},"",""]
["MARIANO CESTERO",{"$nulls":3},"",""]
["MARTIN GARCIA",{"$nulls":3},"",""]
["MATERNO INFANTIL JOSE FRANCISCO PEÑA GOMEZ",{"$nulls":3},"",""]
["MATIAS RAMON MELLA",{"$nulls":3},"",""]
["MEJORAMIENTO SOCIAL",{"$nulls":3},"",""]
["MESETA",{"$nulls":3},"",""]
["MONCION",{"$nulls":3},"",""]
["MONTE CARMELO",{"$nulls":3},"",""]
["MOTOCROS",{"$nulls":3},"",""]
["NARANJITO",{"$nulls":3},"",""]
["PADRE FANTINO",{"$nulls":3},"",""]
["PADRE VALENTIN SALINERO",{"$nulls":3},"",""]
["PARADERO",{"$nulls":3},"",""]
["PARAISO",{"$nulls":3},"",""]
["PARTIDO",{"$nulls":3},"",""]
["PARTIDO DAJABON",{"$nulls":3},"",""]
["PEPILLO SALCEDO",{"$nulls":3},"",""]
["PILOTO",{"$nulls":3},"",""]
["PLAZA BELLER",{"$nulls":3},"",{"$f":"LOWER(E1689)","v":""}]
["PUEBLO NUEVO",{"$nulls":3},"",""]
["RAMON ADRIANO VILLALONA",{"$nulls":3},"",""]
["RESTAURACION",{"$nulls":3},"",""]
["RESTAURACION",{"$nulls":3},"",""]
["RIO LIMPIO",{"$nulls":3},"",""]
["RIVERA DEL MASACRE",{"$nulls":3},"",""]
["SABANA LARGA",{"$nulls":3},"",""]
["SALOMÓN JORGE",{"$nulls":3},"",""]
["SAN ANTONIO",{"$nulls":3},"",""]
["SAN JOSE",{"$nulls":3},"",""]
["SANTA CRUZ",{"$nulls":3},"",""]
["SANTA MARIA",{"$nulls":3},"",""]
["SANTIAGO DE LA CRUZ",{"$nulls":3},"",""]
["SECTOR NORTE",{"$nulls":3},"",""]
["SERVICIO REGIONAL DE SALUD CIBAO OCCIDENTAL",{"$nulls":3},"",""]
["TRINITARIA",{"$nulls":3},"",""]
["UNAP BEJUCAL",{"$nulls":3},"",""]
["VACA GORDA",{"$nulls":3},"",""]
["VALLECITO",{"$nulls":3},"",""]
["VILLA ELISA",{"$nulls":3},"",""]
["VILLA LOS ALMACIGOS",{"$nulls":3},"",""]
["VILLA MUÑOZ",{"$nulls":3},"",""]
["VILLA SINDA",{"$nulls":3},"",""]
["VILLA VASQUEZ",{"$nulls":3},"",""]
["5TO CENTENARIO",{"$nulls":3},"",""]
["ALFREDO PEREZ VARGAS",{"$nulls":3},"",""]
["ARENOSO",{"$nulls":3},"",""]
["ARIDIO VASQUEZ",{"$nulls":3},"",""]
["ARROYO ARRIBA",{"$nulls":3},"",""]
["ARROYO TORO",{"$nulls":3},"",""]
["ASILO DE ANCIANO",{"$nulls":3},"",""]
["BACUI ARRIBA",{"$nulls":3},"",""]
["BARRIO LA CRUZ",{"$nulls":3},"",""]
["BARRIO LINDO",{"$nulls":3},"",""]
["BATERO",{"$nulls":3},"",""]
["BAYACANES",{"$nulls":3},"",""]
["BLANCO",{"$nulls":3},"",""]
["BONAGUA",{"$nulls":3},"",""]
["BONAITO",{"$nulls":3},"",""]
["BUENA VISTA",{"$nulls":3},"",""]
["BURENDE",{"$nulls":3},"",""]
["CABALLERO",{"$nulls":3},"",""]
["CAÑO PIEDRA",{"$nulls":3},"",""]
["CARCEL PUBLICA",{"$nulls":3},"",""]
["CÁRCEL PÚBLICA LA CONCEPCIÓN",{"$nulls":3},"",""]
["CARIBE",{"$nulls":3},"",""]
["CASTILLO",{"$nulls":3},"",""]
["CENTRO DE APOYO DIAGNOSTICO CONSTANZA",{"$nulls":3},"",""]
["CENTRO DE DIAGNOSTICO",{"$nulls":3},"",""]
["CENTRO DE SALUD GINA HUECA",{"$nulls":3},"",""]
["CENTRO DE SALUD INTEGRAL Y DESARROLLO (CENSAIDE)",{"$nulls":3},"",""]
["CENTRO DE ZONA DE SALUD BARRANCA",{"$nulls":3},"",""]
["CENTRO DE ZONA RANCHITO",{"$nulls":3},"",""]
["CENTRO DIAGNOSTICO",{"$nulls":3},"",""]
["Centro Diagnostico y Atención Primaria Fantino",{"$nulls":3},"",""]
["Centro Diagnostico y Atención Primaria Villa la Mata",{"$nulls":3},"",""]
["CEVICOS",{"$nulls":3},"",""]
["CEVICOS URBANO",{"$nulls":3},"",""]
["CHACUEY",{"$nulls":3},"",""]
["CLUB ROTARIO",{"$nulls":3},"",""]
["COLONIA ESPAÑOLA",{"$nulls":3},"",""]
["COLONIA JAPONESA",{"$nulls":3},"",""]
["COMEDERO ABAJO",{"$nulls":3},"",""]
["COMEDERO ARRIBA",{"$nulls":3},"",{"$f":"LOWER(E1753)","v":""}]
["CONSULTORIO INMACULADA",{"$nulls":3},"",""]
["CPN La Estancia",{"$nulls":3},"",""]
["CPN LA SOLEDAD",{"$nulls":3},"",""]
["CUTUPU",{"$nulls":3},"",""]
["DIRECCION PROVINCIAL DE SALUD LA VEGA",{"$nulls":3},"",""]
["DIRECCION PROVINCIAL DE SALUD MONSEÑOR NOUEL",{"$nulls":3},"",""]
["DIRECCION PROVINCIAL DE SALUD SANCHEZ RAMIREZ",{"$nulls":3},"",""]
["DISPENSARIO MADRE EL CARMEN",{"$nulls":3},"",""]
["DISPENSARIO MEDICO GUADALUPE",{"$nulls":3},"",""]
["DISPENSARIO MEDICO SAN MARTIN DE PORRES",{"$nulls":3},"",""]
["DISPENSARIO SANTA MARIA SOLEDAD",{"$nulls":3},"",""]
["DON FAUSTO",{"$nulls":3},"",""]
["DOS PALMAS",{"$nulls":3},"",""]
["DR JUAN ANTONIO CASTILLO",{"$nulls":3},"",""]
["DR LUIS MORILLO KING",{"$nulls":3},"",""]
["DR PEDRO ANTONIO CESPEDES",{"$nulls":3},"",""]
["DR. PEDRO EMILIO DE MARCHENA",{"$nulls":3},"",""]
["EL BALCÓN",{"$nulls":3},"",""]
["EL BAQUETAZO",{"$nulls":3},"",""]
["EL CERCADO",{"$nulls":3},"",""]
["EL CRUCE DE ANGELINA",{"$nulls":3},"",""]
["EL DUEY",{"$nulls":3},"",""]
["EL GUAREY",{"$nulls":3},"",""]
["EL HIGUERO",{"$nulls":3},"",""]
["EL LIMON",{"$nulls":3},"",""]
["EL LIMONCITO",{"$nulls":3},"",""]
["EL MAMEY",{"$nulls":3},"",""]
["EL NARANJAL",{"$nulls":3},"",""]
["EL OCHO",{"$nulls":3},"",""]
["EL PESCOZON",{"$nulls":3},"",""]
["EL PINITO",{"$nulls":3},"",""]
["EL PINO",{"$nulls":3},"",""]
["EL QUEMADO",{"$nulls":3},"",""]
["EL RANCHITO",{"$nulls":3},"",""]
["EL REFORMATORIO",{"$nulls":3},"",""]
["EL RINCÓN",{"$nulls":3},"",""]
["EL RIO",{"$nulls":3},"",""]
["EL TANQUE",{"$nulls":3},"",""]
["EL VERDE",{"$nulls":3},"",""]
["ESCUELA FEDERICO GARCIA GODOY",{"$nulls":3},"",""]
["EUCLIDES SANCHEZ",{"$nulls":3},"",""]
["FUNDESER SAN MIGUEL",{"$nulls":3},"",""]
["GUACO",{"$nulls":3},"",""]
["HATICO",{"$nulls":3},"",""]
["HATILLO",{"$nulls":3},"",""]
["HATO VIEJO",{"$nulls":3},"",""]
["HERNANDO ALONZO",{"$nulls":3},"",""]
["HOSPITAL DR. JOSE A. COLUMNA SEGURO SOCIAL",{"$nulls":3},"",""]
["HOSPITAL DR. RAMÓN BAEZ",{"$nulls":3},"",""]
["HOSPITAL DRA. ARMIDA GARCIA",{"$nulls":3},"",""]
["INMACULADA CONCEPCION",{"$nulls":3},"",""]
["INS. PREP. MENORES MÁXIMO ANTONIO ALVAREZ",{"$nulls":3},"",""]
["JAGUA GORDA",{"$nulls":3},"",""]
["JAYACO",{"$nulls":3},"",""]
["JIMA ABAJO",{"$nulls":3},"",""]
["JIMA ABAJO",{"$nulls":3},"",""]
["JIMA ARRIBA",{"$nulls":3},"",""]
["JIMAYACO",{"$nulls":3},"",""]
["JUAN ADRIAN",{"$nulls":3},"",""]
["JUAN PABLO DUARTE",{"$nulls":3},"",""]
["JUMA",{"$nulls":3},"",""]
["JUMUNUCO",{"$nulls":3},"",""]
["LA ALTAGRACIA COTUI",{"$nulls":3},"",""]
["LA ALTAGRACIA FANTINO",{"$nulls":3},"",{"$f":"LOWER(E1817)","v":""}]
["LA ATALAYA",{"$nulls":3},"",""]
["LA BIJA",{"$nulls":3},"",""]
["LA CABUYA",{"$nulls":3},"",""]
["LA CEIBA",{"$nulls":3},"",""]
["LA CUEVA",{"$nulls":3},"",""]
["LA CULATA",{"$nulls":3},"",""]
["LA DESCUBIERTA",{"$nulls":3},"",""]
["LA LIMA",{"$nulls":3},"",""]
["LA PLACETA",{"$nulls":3},"",""]
["LA SABINA",{"$nulls":3},"",""]
["LA TORRE",{"$nulls":3},"",""]
["LA VEGA",{"$nulls":3},"",""]
["LAS 7S",{"$nulls":3},"",""]
["LAS CANAS",{"$nulls":3},"",""]
["LAS CAOBAS",{"$nulls":3},"",""]
["LAS CARMELITAS",{"$nulls":3},"",""]
["LAS LLANADAS",{"$nulls":3},"",""]
["LAS MARTINEZ",{"$nulls":3},"",""]
["LAS PALMAS",{"$nulls":3},"",""]
["LAS POCILGAS",{"$nulls":3},"",""]
["LAS UVAS",{"$nulls":3},"",""]
["LAS YAYAS",{"$nulls":3},"",""]
["LIBERTAD",{"$nulls":3},"",""]
["LICEY",{"$nulls":3},"",""]
["LIMONAL",{"$nulls":3},"",""]
["LOS ARROCES",{"$nulls":3},"",""]
["LOS BARRAQUITOS",{"$nulls":3},"",""]
["LOS CASTELLANOS",{"$nulls":3},"",""]
["LOS COROZOS",{"$nulls":3},"",""]
["LOS CORRALITOS",{"$nulls":3},"",""]
["LOS DAJAOS",{"$nulls":3},"",""]
["LOS MARTINEZ",{"$nulls":3},"",""]
["LOS POMOS",{"$nulls":3},"",""]
["LOS QUEMADOS",{"$nulls":3},"",""]
["LOS VALERIOS",{"$nulls":3},"",""]
["MAIMON",{"$nulls":3},"",""]
["MAIMON",{"$nulls":3},"",""]
["MANABAO",{"$nulls":3},"",""]
["MARIA AUXILIADORA",{"$nulls":3},"",""]
["MAXIMO GOMEZ",{"$nulls":3},"",""]
["OCTAVIA GAUTIER DE VIDAL",{"$nulls":3},"",""]
["OCTAVIA GAUTIER DE VIDAL",{"$nulls":3},"",""]
["PADRE ADOLFO CASADO",{"$nulls":3},"",""]
["PAPANAO",{"$nulls":3},"",""]
["PASO BAJITO",{"$nulls":3},"",""]
["PEDRO FCO BONO",{"$nulls":3},"",""]
["PIEDRA BLANCA",{"$nulls":3},"",""]
["PIEDRA BLANCA",{"$nulls":3},"",""]
["PIÑA VIEJA",{"$nulls":3},"",""]
["PLATANAL",{"$nulls":3},"",""]
["PONTON",{"$nulls":3},"",""]
["PROSPERIDAD",{"$nulls":3},"",""]
["PUEBLO NUEVO",{"$nulls":3},"",""]
["QUITA SUEÑO",{"$nulls":3},"",""]
["RANCHO NUEVO",{"$nulls":3},"",""]
["RANCHO VIEJO",{"$nulls":3},"",""]
["RINCON DE YUBOA",{"$nulls":3},"",""]
["RIO SECO",{"$nulls":3},"",""]
["RIO VERDE ABAJO",{"$nulls":3},"",""]
["SABALLO",{"$nulls":3},"",""]
["SABANA DE LOS JIMENEZ",{"$nulls":3},"",""]
["SABANA DEL PUERTO",{"$nulls":3},"",""]
["SABANA REY",{"$nulls":3},"",""]
["SABANETA",{"$nulls":3},"",{"$f":"LOWER(E1881)","v":""}]
["SAN BARTOLO",{"$nulls":3},"",""]
["SAN ISIDRO",{"$nulls":3},"",""]
["SAN JOSE",{"$nulls":3},"",""]
["SAN JUAN BOSCO",{"$nulls":3},"",""]
["SAN PEDRO Y SAN PABLO",{"$nulls":3},"",""]
["SANTO CERRO",{"$nulls":3},"",""]
["SERVICIO REGIONAL DE SALUD CIBAO CENTRAL",{"$nulls":3},"",""]
["SIERRA PRIETA",{"$nulls":3},"",""]
["SIERVAS DE MARIA",{"$nulls":3},"",""]
["SIGFREDO ALBA",{"$nulls":3},"",""]
["SONADOR",{"$nulls":3},"",""]
["SOTO",{"$nulls":3},"",""]
["TIREO",{"$nulls":3},"",""]
["TRAUMATOLOGICO Y QUIRURGICO PROF JUAN BOSCH",{"$nulls":3},"",""]
["UCATECI",{"$nulls":3},"",""]
["VILLA LA MATA",{"$nulls":3},"",""]
["VILLA LA MATA",{"$nulls":3},"",""]
["VILLA LIBERACION",{"$nulls":3},"",""]
["ZAMBRANA",{"$nulls":3},"",""]